Workbook

Sheet Intro
B3: LATPAXL | E3: Ver 1.0
B6: Laterally loaded pile analysis tool
B12: Rectangular pile
B18: Developed by Yoon Seok Choi
B19: Advisor: Prof. Monica Prezzi

Sheet MAIN
B1: Pile geometry | E1: Soil properties | J1: Outputs
B2: Pile diameter a (m) | C2: 0.5 | E2: Layer i | F2: Thickness (m) | G2: Young's modulus of the soil Esi (MPa) | H2: Poisson's ratio of the soil nsi | J2: Deflection at pile head (mm) | K2: =Sheet1!B2 -> 18.98
B3: Pile diameter b (m) | C3: 0.4 | E3: 1 | F3: 6.0 | G3: 10 | H3: 0.25 | J3: Maximum moment (kN-m) | K3: =Sheet1!D1003 -> 2945.6
B4: Pile length Lp (m) | C4: 20 | E4: 2 | F4: 7.0 | G4: 15 | H4: 0.30 | J4: gx | K4: ='Initial Parameter'!M3 -> 0.18
B5: Young's modulus of the pile Ep (GPa) | C5: 25 | E5: 3 | F5: 9.0 | G5: 30 | H5: 0.28 | J5: gy | K5: ='Initial Parameter'!N3 -> 0.26
E6: 4 | F6: 1.0 | G6: 35 | H6: 0.20
B7: Load
B8: Fa (kN) | C8: 300
B9: Ma (kN-m) | C9: 100
B11: Boundary Condition
B12: Top | C12: 2
B13: Bottom | C13: 2
B15: Boundary condition = 1 | C15: Fixed pile head or base
B16: Boundary condition = 2 | C16: Free pile head or base

Sheet Graphs

Sheet Initial Parameter (hidden)
A1: Lp | B1: 20 | M1: gx | N1: gy
A2: xa | B2: 0.5 | D2: Layer | E2: Thickness | F2: Es | G2: usi | H2: l | I2: Gs | J2: Gs (modifiled) | L2: Assumed g | M2: 0.1805070847 | N2: 0.2579450041
A3: yb | B3: 0.4 | D3: 1 | E3: 6 | F3: 10000 | G3: 0.25 | H3: 0 | I3: =F3/2/(1+G3) -> 4000 | J3: =0.7*I3*(1+0.75*G3) -> 3325 | L3: Assumed g | M3: =Depth_z_1!NN1008 -> 0.1798343814 | N3: =Depth_z_1!NO1008 -> 0.2560850485
A4: R | B4: =0.5*(B3*B2)^0.5 -> 0.2236067977 | D4: 2 | E4: 7 | F4: 15000 | G4: 0.3 | H4: 0 | I4: =F4/2/(1+G4) -> 5769.230769 | J4: =0.7*I4*(1+0.75*G4) -> 4947.115385
A5: Sn | B5: =B3*B2^3/12 -> 0.004166666667 | D5: 3 | E5: 9 | F5: 30000 | G5: 0.28 | H5: 0 | I5: =F5/2/(1+G5) -> 11718.75 | J5: =0.7*I5*(1+0.75*G5) -> 9925.78125
A6: Ep | B6: 2.5E+07 | D6: 4 | E6: 1 | F6: 35000 | G6: 0.2 | H6: 0 | I6: =F6/2/(1+G6) -> 14583.33333 | J6: =0.7*I6*(1+0.75*G6) -> 11739.58333
A7: Fa | B7: 300
A8: Ma | B8: 100
A9: Fa | B9: =B7*(B1^2)/(B5*B6) -> 1.15200000
A10: Ma | B10: =B8*B1/(B5*B6) -> 0.01920000
A11: ψ | B11: =B1/B2 -> 40
A12: Ip | B12: =PI()*B2^4/4 -> 0.04908738521
A13: Top | B13: 2
A14: Bottom | B14: 2 | N14: =N16-P16 -> 20526.63
A15: Layer | B15: H(m) | C15: z (m) | D15: Es | E15: usi | F15: gx | G15: gy | H15: BESSELK0 | I15: BESSELK1 | J15: h | K15: h1 | L15: h2 | M15: x | N15: ki | O15: ti | P15: ti2 | Q15: a | R15: b | S15: ai*Hi | T15: bi*Hi | U15: Check Long | V15: Frac | W15: pp(1) | X15: pp(2) | Y15: pp(3) | Z15: pp(4) | AA15: Frac | AB15: ph(1) | AC15: ph(2) | AD15: ph(3) | AE15: ph(4)
A16: 1 | B16: =E3 -> 6 | C16: 0.00 | D16: =$F$3 -> 1.0E+04 | E16: =$G$3 -> 0.25 | F16: =$M$2 -> 0.1805070847 | G16: =$N$2 -> 0.2579450041 | H16: =BESSELK($F$17,0) -> 1.851007386 | I16: =BESSELK($F$17,1) -> 5.328712875 | J16: =0.5*((((BESSELK(F16,1)+F16*BESSELK(F16,0))^2)-(F16^2+1)*((BESSELK(F16,1))^2))/((BESSELK(F16,0))^2)) -> 0.4009218993 | K16: =F16/$B$4*($B$4/G16+$B$3) -> 1.022689921 | L16: =(G16/$B$4)*($B$4/F16+$B$2) -> 2.005784669 | M16: =1/(F16*G16)+$B$3/(F16*$B$4)+$B$2/(G16*$B$4) -> 40.05618737 | N16: =($B$1^4/$B$6/$B$5)*(($H$3+2*$J$3)*K16+$J$3*L16) -> 20690.11 | O16: =$B$4^2*M16*$J$3*$B$1^2/(2*$B$6*$B$5) -> 12.785935 | P16: =O16^2 -> 163.48 | Q16: =IF(N16>P16,((N16^0.5+O16)/2)^0.5,SQRT(O16+SQRT(O16^2-N16))) -> 8.849477313 | R16: =IF(N16>P16,((N16^0.5-O16)/2)^0.5,SQRT(O16-SQRT(O16^2-N16))) -> 8.094894298 | U16: =IF(OR(S17>7,T17>7),1,(IF(OR(S19>3.5,T19>3.5),2,IF(OR(S21>3.5,T21>3.5),3,IF(OR(S22>3.5,T22>3.5),4,0))))) -> 3 | V16: 0 | W16: =IF(OR(U16=4,U16=3,U16=2,U16=0),(IF(N16>P16,SINH(Q16*V16)*COS(R16*V16),SINH(Q16*V16))),(IF(N16>P16,EXP(-Q16*V16)*COS(R16*V16),EXP(-Q16*V16)))) -> 0 | X16: =IF(OR(U16=4,U16=3,U16=2,U16=0),IF(N16>P16,COSH(Q16*V16)*COS(R16*V16),COSH(Q16*V16)),(IF(N16>P16,EXP(-Q16*V16)*SIN(R16*V16),EXP(-R16*V16)))) -> 1 | Y16: =IF(OR(U16=4,U16=3,U16=2,U16=0),(IF(N16>P16,COSH(Q16*V16)*SIN(R16*V16),SINH(R16*V16))),0) -> 0 | Z16: =IF(OR(U16=4,U16=3,U16=2,U16=0),IF(N16>P16,SINH(Q16*V16)*SIN(R16*V16),COSH(R16*V16)),0) -> 0 | AA16: 0 | AB16: =IF(U17=1,(IF(N17>P17,EXP(-Q17*AA16)*COS(R17*AA16),EXP(-Q17*AA16))),0) -> 0 | AC16: =IF(U17=1,(IF(N17>P17,EXP(-Q17*AA16)*SIN(R17*AA16),EXP(-R17*AA16))),0) -> 0 | AD16: 0 | AE16: 0
A17: 1 | B17: =E3 -> 6 | C17: =B17/$B$1 -> 0.30 | D17: =$F$3 -> 1.0E+04 | E17: =$G$3 -> 0.25 | F17: 0.1805070847 | G17: =$N$2 -> 0.2579450041 | H17: 1.851007386 | I17: 5.328712875 | J17: =0.5*((((BESSELK(F17,1)+F17*BESSELK(F17,0))^2)-(F17^2+1)*((BESSELK(F17,1))^2))/((BESSELK(F17,0))^2)) -> 0.4009218993 | K17: 1.022689921 | L17: =(G17/$B$4)*($B$4/F17+$B$2) -> 2.005784669 | M17: =1/(F17*G17)+$B$3/(F17*$B$4)+$B$2/(G17*$B$4) -> 40.05618737 | N17: =($B$1^4/$B$6/$B$5)*(($H$3+2*$J$3)*K17+$J$3*L17) -> 20690.11 | O17: =$B$4^2*M17*$J$3*$B$1^2/(2*$B$6*$B$5) -> 12.785935 | P17: 163.48 | Q17: =IF(N17>P17,((N17^0.5+O17)/2)^0.5,SQRT(O17+SQRT(O17^2-N17))) -> 8.849477313 | R17: =IF(N17>P17,((N17^0.5-O17)/2)^0.5,SQRT(O17-SQRT(O17^2-N17))) -> 8.094894298 | S17: =Q17*C17 -> 2.654843194 | T17: =R17*C17 -> 2.42846829 | U17: =IF(OR(S17>7,T17>7),1,(IF(OR(S19>3.5,T19>3.5),2,IF(OR(S21>3.5,T21>3.5),3,IF(OR(S22>3.5,T22>3.5),4,0))))) -> 3 | V17: 0 | W17: =IF(OR(U17=4,U17=3,U17=2,U17=0),(IF(N17>P17,SINH(Q17*V17)*COS(R17*V17),SINH(Q17*V17))),(IF(N17>P17,EXP(-Q17*V17)*COS(R17*V17),EXP(-Q17*V17)))) -> 0 | X17: =IF(OR(U17=4,U17=3,U17=2,U17=0),IF(N17>P17,COSH(Q17*V17)*COS(R17*V17),COSH(Q17*V17)),(IF(N17>P17,EXP(-Q17*V17)*SIN(R17*V17),EXP(-R17*V17)))) -> 1 | Y17: =IF(OR(U17=4,U17=3,U17=2,U17=0),(IF(N17>P17,COSH(Q17*V17)*SIN(R17*V17),SINH(R17*V17))),0) -> 0 | Z17: =IF(OR(U17=4,U17=3,U17=2,U17=0),IF(N17>P17,SINH(Q17*V17)*SIN(R17*V17),COSH(R17*V17)),0) -> 0 | AA17: =V18 -> 0.3 | AB17: =IF(U17=1,(IF(N17>P17,EXP(-Q17*AA17)*COS(R17*AA17),EXP(-Q17*AA17))),(IF(N17>P17,SINH(Q17*AA17)*COS(R17*AA17),SINH(Q17*AA17)))) -> -5.351900312 | AC17: =IF(U17=1,(IF(N17>P17,EXP(-Q17*AA17)*SIN(R17*AA17),EXP(-R17*AA17))),IF(N17>P17,COSH(Q17*AA17)*COS(R17*AA17),COSH(Q17*AA17))) -> -5.405077181 | AD17: =IF(U17=1,0,(IF(N17>P17,COSH(Q17*AA17)*SIN(R17*AA17),SINH(R17*AA17)))) -> 4.675261623 | AE17: =IF(U17=1,0,(IF(N17>P17,SINH(Q17*AA17)*SIN(R17*AA17)))) -> 4.629264912
A18: 2 | B18: =E4+E3 -> 13 | C18: =B17/$B$1 -> 0.3 | D18: =$F$4 -> 1.5E+04 | E18: =$G$4 -> 0.3 | F18: 0.1805070847 | G18: 0.2579450041 | H18: 1.851007386 | I18: 5.328712875 | J18: 0.4009218993 | K18: =F18/$B$4*($B$4/G18+$B$3) -> 1.022689921 | L18: =(G18/$B$4)*($B$4/F18+$B$2) -> 2.005784669 | M18: 40.05618737 | N18: =($B$1^4/$B$6/$B$5)*(($H$4+2*$J$4)*K18+$J$4*L18) -> 30783.86 | O18: =$B$4^2*M18*$J$4*$B$1^2/(2*$B$6*$B$5) -> 19.023608 | P18: 361.90 | Q18: 9.860956304 | R18: =IF(N18>P18,((N18^0.5-O18)/2)^0.5,SQRT(O18-SQRT(O18^2-N18))) -> 8.843916072 | U18: =IF(OR(S17>7,T17>7),1,(IF(OR(S19>3.5,T19>3.5),2,IF(OR(S21>3.5,T21>3.5),3,IF(OR(S22>3.5,T22>3.5),4,0))))) -> 3 | V18: =C17 -> 0.3 | W18: =IF(OR(U18=4,U18=3,U18=0),(IF(N18>P18,SINH(Q18*V18)*COS(R18*V18),SINH(Q18*V18))),(IF(N18>P18,EXP(-Q18*V18)*COS(R18*V18),EXP(-Q18*V18)))) -> -8.483287551 | X18: =IF(OR(U18=4,U18=3,U18=0),IF(N18>P18,COSH(Q18*V18)*COS(R18*V18),COSH(Q18*V18)),(IF(N18>P18,EXP(-Q18*V18)*SIN(R18*V18),EXP(-R18*V18)))) -> -8.529126071 | Y18: =IF(OR(U18=4,U18=3,U18=0),(IF(N18>P18,COSH(Q18*V18)*SIN(R18*V18),SINH(R18*V18))),0) -> 4.532015612 | Z18: =IF(OR(U18=4,U18=3,U18=0),IF(N18>P18,SINH(Q18*V18)*SIN(R18*V18),COSH(R18*V18)),0) -> 4.507658968 | AA18: =V18 -> 0.3 | AB18: =IF(OR(U18=4,U18=3,U18=0),(IF(N18>P18,SINH(Q18*AA18)*COS(R18*AA18),SINH(Q18*AA18))),(IF(N18>P18,EXP(-Q18*AA18)*COS(R18*AA18),EXP(-Q18*AA18)))) -> -8.483287551 | AC18: =IF(OR(U18=4,U18=3,U18=0),IF(N18>P18,COSH(Q18*AA18)*COS(R18*AA18),COSH(Q18*AA18)),(IF(N18>P18,EXP(-Q18*AA18)*SIN(R18*AA18),EXP(-R18*AA18)))) -> -8.529126071 | AD18: =IF(OR(U18=4,U18=3,U18=0),(IF(N18>P18,COSH(Q18*AA18)*SIN(R18*AA18),SINH(R18*AA18))),0) -> 4.532015612 | AE18: =IF(OR(U18=4,U18=3,U18=0),IF(N18>P18,SINH(Q18*AA18)*SIN(R18*AA18),COSH(R18*AA18)),0) -> 4.507658968
A19: 2 | C19: =B18/$B$1 -> 0.65 | D19: =$F$4 -> 1.5E+04 | E19: =$G$4 -> 0.3 | F19: 0.1805070847 | G19: 0.2579450041 | H19: 1.851007386 | I19: 5.328712875 | J19: 0.4009218993 | K19: 1.022689921 | L19: 2.005784669 | M19: 40.05618737 | N19: =($B$1^4/$B$6/$B$5)*(($H$4+2*$J$4)*K19+$J$4*L19) -> 30783.86 | O19: =$B$4^2*M19*$J$4*$B$1^2/(2*$B$6*$B$5) -> 19.023608 | P19: 361.90 | Q19: 9.860956304 | R19: 8.843916072 | S19: =Q19*C18 -> 2.958286891 | T19: =R19*C18 -> 2.653174821 | U19: =IF(OR(S17>7,T17>7),1,(IF(OR(S19>3.5,T19>3.5),2,IF(OR(S21>3.5,T21>3.5),3,IF(OR(S22>3.5,T22>3.5),4,0))))) -> 3 | V19: 0.3 | W19: =IF(OR(U19=4,U19=3,U19=0),(IF(N19>P19,SINH(Q19*V19)*COS(R19*V19),SINH(Q19*V19))),(IF(N19>P19,EXP(-Q19*V19)*COS(R19*V19),EXP(-Q19*V19)))) -> -8.483287551 | X19: =IF(OR(U19=4,U19=3,U19=0),IF(N19>P19,COSH(Q19*V19)*COS(R19*V19),COSH(Q19*V19)),(IF(N19>P19,EXP(-Q19*V19)*SIN(R19*V19),EXP(-R19*V19)))) -> -8.529126071 | Y19: =IF(OR(U19=4,U19=3,U19=0),(IF(N19>P19,COSH(Q19*V19)*SIN(R19*V19),SINH(R19*V19))),0) -> 4.532015612 | Z19: =IF(OR(U19=4,U19=3,U19=0),IF(N19>P19,SINH(Q19*V19)*SIN(R19*V19),COSH(R19*V19)),0) -> 4.507658968 | AA19: =V20 -> 0.65 | AB19: =IF(OR(U19=4,U19=3,U19=0),(IF(N19>P19,SINH(Q19*AA19)*COS(R19*AA19),SINH(Q19*AA19))),(IF(N19>P19,EXP(-Q19*AA19)*COS(R19*AA19),EXP(-Q19*AA19)))) -> 261.4320703 | AC19: =IF(OR(U19=4,U19=3,U19=0),IF(N19>P19,COSH(Q19*AA19)*COS(R19*AA19),COSH(Q19*AA19)),(IF(N19>P19,EXP(-Q19*AA19)*SIN(R19*AA19),EXP(-R19*AA19)))) -> 261.4334863 | AD19: =IF(OR(U19=4,U19=3,U19=0),(IF(N19>P19,COSH(Q19*AA19)*SIN(R19*AA19),SINH(R19*AA19))),0) -> -154.8122223 | AE19: =IF(OR(U19=4,U19=3,U19=0),IF(N19>P19,SINH(Q19*AA19)*SIN(R19*AA19),COSH(R19*AA19)),0) -> -154.8113838
A20: 3 | B20: =E3+E4+E5 -> 22 | C20: =B18/$B$1 -> 0.65 | D20: =$F$5 -> 3.0E+04 | E20: =$G$5 -> 0.28 | F20: 0.1805070847 | G20: 0.2579450041 | H20: 1.851007386 | I20: 5.328712875 | J20: 0.4009218993 | K20: 1.022689921 | L20: 2.005784669 | M20: 40.05618737 | N20: =($B$1^4/$B$6/$B$5)*(($H$5+2*$J$5)*K20+$J$5*L20) -> 61764.05 | O20: =$B$4^2*M20*$J$5*$B$1^2/(2*$B$6*$B$5) -> 38.168540 | P20: 1456.84 | Q20: 11.97272503 | R20: =IF(N20>P20,((N20^0.5-O20)/2)^0.5,SQRT(O20-SQRT(O20^2-N20))) -> 10.25561334 | U20: =IF(OR(S17>7,T17>7),1,(IF(OR(S19>3.5,T19>3.5),2,IF(OR(S21>3.5,T21>3.5),3,IF(OR(S22>3.5,T22>3.5),4,0))))) -> 3 | V20: 0.65 | W20: =IF(OR(U20=4,U20=0),(IF(N20>P20,SINH(Q20*V20)*COS(R20*V20),SINH(Q20*V20))),(IF(N20>P20,EXP(-Q20*V20)*COS(R20*V20),EXP(-Q20*V20)))) -> 0.0003868523082 | X20: =IF(OR(U20=4,U20=0),IF(N20>P20,COSH(Q20*V20)*COS(R20*V20),COSH(Q20*V20)),(IF(N20>P20,EXP(-Q20*V20)*SIN(R20*V20),EXP(-R20*V20)))) -> 0.0001558445809 | Y20: =IF(OR(U20=4,U20=0),(IF(N20>P20,COSH(Q20*V20)*SIN(R20*V20),SINH(R20*V20))),0) -> 0 | Z20: =IF(OR(U20=4,U20=0),IF(N20>P20,SINH(Q20*V20)*SIN(R20*V20),COSH(R20*V20)),0) -> 0 | AA20: =V20 -> 0.65 | AB20: =IF(OR(U20=4,U20=0),(IF(N20>P20,SINH(Q20*AA20)*COS(R20*AA20),SINH(Q20*AA20))),(IF(N20>P20,EXP(-Q20*AA20)*COS(R20*AA20),EXP(-Q20*AA20)))) -> 0.0003868523082 | AC20: =IF(OR(U20=4,U20=0),IF(N20>P20,COSH(Q20*AA20)*COS(R20*AA20),COSH(Q20*AA20)),(IF(N20>P20,EXP(-Q20*AA20)*SIN(R20*AA20),EXP(-R20*AA20)))) -> 0.0001558445809 | AD20: =IF(OR(U20=4,U20=0),(IF(N20>P20,COSH(Q20*AA20)*SIN(R20*AA20),SINH(R20*AA20))),0) -> 0 | AE20: =IF(OR(U20=4,U20=0),IF(N20>P20,SINH(Q20*AA20)*SIN(R20*AA20),COSH(R20*AA20)),0) -> 0
A21: 3 | C21: =B20/$B$1 -> 1.1 | D21: =$F$5 -> 3.0E+04 | E21: =$G$5 -> 0.28 | F21: 0.1805070847 | G21: 0.2579450041 | H21: 1.851007386 | I21: 5.328712875 | J21: 0.4009218993 | K21: 1.022689921 | L21: 2.005784669 | M21: 40.05618737 | N21: =($B$1^4/$B$6/$B$5)*(($H$5+2*$J$5)*K21+$J$5*L21) -> 61764.05 | O21: =$B$4^2*M21*$J$5*$B$1^2/(2*$B$6*$B$5) -> 38.168540 | P21: 1456.84 | Q21: 11.97272503 | R21: 10.25561334 | S21: =Q21*C20 -> 7.782271268 | T21: =R21*C20 -> 6.666148674 | U21: =IF(OR(S17>7,T17>7),1,(IF(OR(S19>3.5,T19>3.5),2,IF(OR(S21>3.5,T21>3.5),3,IF(OR(S22>3.5,T22>3.5),4,0))))) -> 3 | V21: 0.65 | W21: =IF(OR(U21=4,U21=0),(IF(N21>P21,SINH(Q21*V21)*COS(R21*V21),SINH(Q21*V21))),(IF(N21>P21,EXP(-Q21*V21)*COS(R21*V21),EXP(-Q21*V21)))) -> 0.0003868523082 | X21: =IF(OR(U21=4,U21=0),IF(N21>P21,COSH(Q21*V21)*COS(R21*V21),COSH(Q21*V21)),(IF(N21>P21,EXP(-Q21*V21)*SIN(R21*V21),EXP(-R21*V21)))) -> 0.0001558445809 | Y21: =IF(OR(U21=4,U21=0),(IF(N21>P21,COSH(Q21*V21)*SIN(R21*V21),SINH(R21*V21))),0) -> 0 | Z21: =IF(OR(U21=4,U21=0),IF(N21>P21,SINH(Q21*V21)*SIN(R21*V21),COSH(R21*V21)),0) -> 0 | AA21: =V22 -> 1.1 | AB21: =IF(OR(U21=4,U21=0),(IF(N21>P21,SINH(Q21*AA21)*COS(R21*AA21),SINH(Q21*AA21))),(IF(N21>P21,EXP(-Q21*AA21)*COS(R21*AA21),EXP(-Q21*AA21)))) -> 5.372560917e-07 | AC21: =IF(OR(U21=4,U21=0),IF(N21>P21,COSH(Q21*AA21)*COS(R21*AA21),COSH(Q21*AA21)),(IF(N21>P21,EXP(-Q21*AA21)*SIN(R21*AA21),EXP(-R21*AA21)))) -> -1.829719048e-06 | AD21: =IF(OR(U21=4,U21=0),(IF(N21>P21,COSH(Q21*AA21)*SIN(R21*AA21),SINH(R21*AA21))),0) -> 0 | AE21: =IF(OR(U21=4,U21=0),IF(N21>P21,SINH(Q21*AA21)*SIN(R21*AA21),COSH(R21*AA21)),0) -> 0
A22: 4 | C22: 1 | D22: =$F$6 -> 3.5E+04 | E22: =$G$6 -> 0.2 | F22: 0.1805070847 | G22: 0.2579450041 | H22: =BESSELK(F22,0) -> 1.851007386 | I22: =BESSELK(F22,1) -> 5.328712875 | J22: 0.4009218993 | K22: 1.022689921 | L22: 2.005784669 | M22: 40.05618737 | N22: =($B$1^4/$B$6/$B$5)*(($H$6+2*$J$6)*K22+$J$6*L22) -> 73050.60 | O22: =$B$4^2*M22*$J$6*$B$1^2/(2*$B$6*$B$5) -> 45.143323 | P22: 2037.92 | Q22: 12.55830533 | R22: 10.60979309 | S22: =Q22*C21 -> 13.81413586 | T22: =R22*C21 -> 11.6707724 | U22: =IF(OR(S17>7,T17>7),1,(IF(OR(S19>3.5,T19>3.5),2,IF(OR(S21>3.5,T21>3.5),3,IF(OR(S22>3.5,T22>3.5),4,0))))) -> 3 | V22: 1.1 | W22: =IF(OR(U22=0),(IF(N22>P22,SINH(Q22*V22)*COS(R22*V22),SINH(Q22*V22))),(IF(N22>P22,EXP(-Q22*V22)*COS(R22*V22),EXP(-Q22*V22)))) -> 6.259118246e-07 | X22: =IF(OR(U22=0),IF(N22>P22,COSH(Q22*V22)*COS(R22*V22),COSH(Q22*V22)),(IF(N22>P22,EXP(-Q22*V22)*SIN(R22*V22),EXP(-R22*V22)))) -> -7.816569378e-07 | Y22: =IF(OR(U22=0),(IF(N22>P22,COSH(Q22*V22)*SIN(R22*V22),SINH(R22*V22))),0) -> 0 | Z22: =IF(OR(U22=0),IF(N22>P22,SINH(Q22*V22)*SIN(R22*V22),COSH(R22*V22)),0) -> 0 | AA22: =V22 -> 1.1 | AB22: =IF(OR(U22=0),(IF(N22>P22,SINH(Q22*AA22)*COS(R22*AA22),SINH(Q22*AA22))),(IF(N22>P22,EXP(-Q22*AA22)*COS(R22*AA22),EXP(-Q22*AA22)))) -> 6.259118246e-07 | AC22: =IF(OR(U22=0),IF(N22>P22,COSH(Q22*AA22)*COS(R22*AA22),COSH(Q22*AA22)),(IF(N22>P22,EXP(-Q22*AA22)*SIN(R22*AA22),EXP(-R22*AA22)))) -> -7.816569378e-07 | AD22: =IF(OR(U22=0),(IF(N22>P22,COSH(Q22*AA22)*SIN(R22*AA22),SINH(R22*AA22))),0) -> 0 | AE22: =IF(OR(U22=0),IF(N22>P22,SINH(Q22*AA22)*SIN(R22*AA22),COSH(R22*AA22)),0) -> 0
A23: 4 | C23: 1 | D23: =$F$6 -> 3.5E+04 | E23: =$G$6 -> 0.2 | F23: 0.1805070847 | G23: 0.2579450041 | H23: =BESSELK(F23,0) -> 1.851007386 | I23: =BESSELK(F23,1) -> 5.328712875 | J23: 0.4009218993 | K23: 1.022689921 | L23: 2.005784669 | M23: 40.05618737 | N23: =($B$1^4/$B$6/$B$5)*(($H$6+2*$J$6)*K23+$J$6*L23) -> 73050.60 | O23: =$B$4^2*M23*$J$6*$B$1^2/(2*$B$6*$B$5) -> 45.143323 | P23: =O23^2 -> 2037.92 | Q23: =IF(N23>P23,((N23^0.5+O23)/2)^0.5,SQRT(O23+SQRT(O23^2-N23))) -> 12.55830533 | R23: =IF(N23>P23,((N23^0.5-O23)/2)^0.5,SQRT(O23-SQRT(O23^2-N23))) -> 10.60979309 | V23: 1 | W23: =IF(OR(U22=0),(IF(N23>P23,SINH(Q23*V23)*COS(R23*V23),SINH(Q23*V23))),(IF(N23>P23,EXP(-Q23*V23)*COS(R23*V23),EXP(-Q23*V23)))) -> -1.322854039e-06 | X23: =IF(OR(U22=0),IF(N23>P23,COSH(Q23*V23)*COS(R23*V23),COSH(Q23*V23)),(IF(N23>P23,EXP(-Q23*V23)*SIN(R23*V23),EXP(-R23*V23)))) -> -3.257203946e-06 | Y23: =IF(OR(U23=0),(IF(N23>P23,COSH(Q23*V23)*SIN(R23*V23),SINH(R23*V23))),0) -> -131771.1595 | Z23: =IF(OR(U23=0),IF(N23>P23,SINH(Q23*V23)*SIN(R23*V23),COSH(R23*V23)),0) -> -131771.1595 | AA23: 1

Sheet K value (hidden)
A1: a | B1: b | C1: F1 | D1: F2 | E1: F3 | F1: F4 | G1: f1 | H1: f2 | I1: f3 | J1: f4 | K1: t | L1: k | M1: Fa | N1: Ma
A2: ='Initial Parameter'!Q16 -> 8.849477313 | B2: ='Initial Parameter'!R16 -> 8.094894298 | C2: ='Initial Parameter'!AB16 -> 0 | D2: ='Initial Parameter'!AC16 -> 0 | E2: ='Initial Parameter'!AD16 -> 0 | F2: ='Initial Parameter'!AE16 -> 0 | G2: ='Initial Parameter'!W16 -> 0 | H2: ='Initial Parameter'!X16 -> 1 | I2: ='Initial Parameter'!Y16 -> 0 | J2: ='Initial Parameter'!Z16 -> 0 | K2: ='Initial Parameter'!O16 -> 12.78593501 | L2: ='Initial Parameter'!N16 -> 20690.1074 | M2: ='Initial Parameter'!$B$9 -> 1.1520000000E+00 | N2: ='Initial Parameter'!$B$10 -> 1.9E-02
A3: ='Initial Parameter'!Q17 -> 8.849477313 | B3: ='Initial Parameter'!R17 -> 8.094894298 | C3: ='Initial Parameter'!AB17 -> -5.351900312 | D3: ='Initial Parameter'!AC17 -> -5.405077181 | E3: ='Initial Parameter'!AD17 -> 4.675261623 | F3: ='Initial Parameter'!AE17 -> 4.629264912 | G3: ='Initial Parameter'!W17 -> 0 | H3: ='Initial Parameter'!X17 -> 1 | I3: ='Initial Parameter'!Y17 -> 0 | J3: ='Initial Parameter'!Z17 -> 0 | K3: ='Initial Parameter'!O17 -> 12.78593501 | L3: ='Initial Parameter'!N17 -> 20690.1074 | M3: ='Initial Parameter'!$B$9 -> 1.1520000000E+00 | N3: ='Initial Parameter'!$B$10 -> 1.9E-02
A4: ='Initial Parameter'!Q18 -> 9.860956304 | B4: ='Initial Parameter'!R18 -> 8.843916072 | C4: ='Initial Parameter'!AB18 -> -8.483287551 | D4: ='Initial Parameter'!AC18 -> -8.529126071 | E4: ='Initial Parameter'!AD18 -> 4.532015612 | F4: ='Initial Parameter'!AE18 -> 4.507658968 | G4: ='Initial Parameter'!W18 -> -8.483287551 | H4: ='Initial Parameter'!X18 -> -8.529126071 | I4: ='Initial Parameter'!Y18 -> 4.532015612 | J4: ='Initial Parameter'!Z18 -> 4.507658968 | K4: ='Initial Parameter'!O18 -> 19.02360775 | L4: ='Initial Parameter'!N18 -> 30783.86424 | M4: ='Initial Parameter'!$B$9 -> 1.1520000000E+00 | N4: ='Initial Parameter'!$B$10 -> 1.9E-02
A5: ='Initial Parameter'!Q19 -> 9.860956304 | B5: ='Initial Parameter'!R19 -> 8.843916072 | C5: ='Initial Parameter'!AB19 -> 261.4320703 | D5: ='Initial Parameter'!AC19 -> 261.4334863 | E5: ='Initial Parameter'!AD19 -> -154.8122223 | F5: ='Initial Parameter'!AE19 -> -154.8113838 | G5: ='Initial Parameter'!W19 -> -8.483287551 | H5: ='Initial Parameter'!X19 -> -8.529126071 | I5: ='Initial Parameter'!Y19 -> 4.532015612 | J5: ='Initial Parameter'!Z19 -> 4.507658968 | K5: ='Initial Parameter'!O19 -> 19.02360775 | L5: ='Initial Parameter'!N19 -> 30783.86424 | M5: ='Initial Parameter'!$B$9 -> 1.1520000000E+00 | N5: ='Initial Parameter'!$B$10 -> 1.9E-02
A6: ='Initial Parameter'!Q20 -> 11.97272503 | B6: ='Initial Parameter'!R20 -> 10.25561334 | C6: ='Initial Parameter'!AB20 -> 0.0003868523082 | D6: ='Initial Parameter'!AC20 -> 0.0001558445809 | E6: ='Initial Parameter'!AD20 -> 0 | F6: ='Initial Parameter'!AE20 -> 0 | G6: ='Initial Parameter'!W20 -> 0.0003868523082 | H6: ='Initial Parameter'!X20 -> 0.0001558445809 | I6: ='Initial Parameter'!Y20 -> 0 | J6: ='Initial Parameter'!Z20 -> 0 | K6: ='Initial Parameter'!O20 -> 38.16853954 | L6: ='Initial Parameter'!N20 -> 61764.05415 | M6: ='Initial Parameter'!$B$9 -> 1.1520000000E+00 | N6: ='Initial Parameter'!$B$10 -> 1.9E-02
A7: ='Initial Parameter'!Q21 -> 11.97272503 | B7: ='Initial Parameter'!R21 -> 10.25561334 | C7: ='Initial Parameter'!AB21 -> 5.372560917e-07 | D7: ='Initial Parameter'!AC21 -> -1.829719048e-06 | E7: ='Initial Parameter'!AD21 -> 0 | F7: ='Initial Parameter'!AE21 -> 0 | G7: ='Initial Parameter'!W21 -> 0.0003868523082 | H7: ='Initial Parameter'!X21 -> 0.0001558445809 | I7: ='Initial Parameter'!Y21 -> 0 | J7: ='Initial Parameter'!Z21 -> 0 | K7: ='Initial Parameter'!O21 -> 38.16853954 | L7: ='Initial Parameter'!N21 -> 61764.05415 | M7: ='Initial Parameter'!$B$9 -> 1.1520000000E+00 | N7: ='Initial Parameter'!$B$10 -> 1.9E-02
A8: ='Initial Parameter'!Q22 -> 12.55830533 | B8: ='Initial Parameter'!R22 -> 10.60979309 | C8: ='Initial Parameter'!AB22 -> 6.259118246e-07 | D8: ='Initial Parameter'!AC22 -> -7.816569378e-07 | E8: ='Initial Parameter'!AD22 -> 0 | F8: ='Initial Parameter'!AE22 -> 0 | G8: ='Initial Parameter'!W22 -> 6.259118246e-07 | H8: ='Initial Parameter'!X22 -> -7.816569378e-07 | I8: ='Initial Parameter'!Y22 -> 0 | J8: ='Initial Parameter'!Z22 -> 0 | K8: ='Initial Parameter'!O22 -> 45.14332316 | L8: ='Initial Parameter'!N22 -> 73050.59848 | M8: ='Initial Parameter'!$B$9 -> 1.1520000000E+00 | N8: ='Initial Parameter'!$B$10 -> 1.9E-02
A9: ='Initial Parameter'!Q22 -> 12.55830533 | B9: ='Initial Parameter'!R22 -> 10.60979309 | C9: ='Initial Parameter'!AB22 -> 6.259118246e-07 | D9: ='Initial Parameter'!AC22 -> -7.816569378e-07 | E9: ='Initial Parameter'!AD22 -> 0 | F9: ='Initial Parameter'!AE22 -> 0 | G9: ='Initial Parameter'!W23 -> -1.322854039e-06 | H9: ='Initial Parameter'!X23 -> -3.257203946e-06 | I9: ='Initial Parameter'!Y23 -> -131771.1595 | J9: ='Initial Parameter'!Z23 -> -131771.1595 | K9: ='Initial Parameter'!O22 -> 45.14332316 | L9: ='Initial Parameter'!N22 -> 73050.59848 | M9: ='Initial Parameter'!$B$9 -> 1.1520000000E+00 | N9: ='Initial Parameter'!$B$10 -> 1.9E-02
X11: w01 | Y11: th01
D12: Kww | E12: Kwq | F12: KwM | G12: KwS | H12: Kqw | I12: Kqq | J12: KqM | K12: KqS | L12: KMw | M12: KMq | N12: KMM | O12: KMS | P12: KSw | Q12: KSq | R12: KSM | S12: KSS | U12: a | V12: bctop.eq.1 | X12: =$M$2/P13 ->  | Y12: 0
B13: K1calca1long | D13: =(C2*B2+A2*D2)/(B2) -> 0 | E13: 0 | F13: 0 | G13: 0 | H13: =-D2*(B2^2+A2^2)/B2 -> 0 | I13: 0 | J13: 0 | K13: 0 | L13: =(-C2*B2*A2^2-C2*B2^3+A2*B2^2*D2+A2^3*D2)/B2 -> 0 | M13: 0 | N13: 0 | O13: 0 | P13: =-(-2*B2*A2^3*C2-2*B2^3*A2*C2-B2^4*D2+A2^4*D2-2*K2*D2*B2^2-2*K2*D2*A2^2)/B2 -> 0 | Q13: 0 | R13: 0 | S13: 0 | V13: bctop.eq.2 | X13: =-(-Q14*$N$2+$M$2*M14)/(-P14*M14+L14*Q14) ->  | Y13: =($M$2*L14-$N$2*P14)/(L14*Q14-P14*M14) -> 
B14: K1calca2long | D14: =(C2*B2+A2*D2)/B2 -> 0 | E14: =D2/B2 -> 0 | F14: 0 | G14: 0 | H14: =-D2*(B2^2+A2^2)/B2 -> 0 | I14: =-(A2*D2-C2*B2)/B2 -> 0 | J14: 0 | K14: 0 | L14: =(-C2*B2*A2^2-C2*B2^3+A2*B2^2*D2+A2^3*D2)/B2 -> 0 | M14: =(A2^2*D2-B2^2*D2-2*A2*C2*B2)/B2 -> 0 | N14: 0 | O14: 0 | P14: =-(-2*A2^3*C2*B2-2*A2*C2*B2^3-B2^4*D2+A2^4*D2-2*K2*D2*B2^2-2*K2*D2*A2^2)/B2 -> 0 | Q14: =-(A2^3*D2-3*A2*B2^2*D2+C2*B2^3-3*C2*B2*A2^2-2*K2*A2*D2+2*K2*C2*B2)/B2 -> 0 | R14: 0 | S14: 0 | U14: b | V14: bctop.eq.1 | X14: =$M$2/P15 ->  | Y14: 0
B15: K1calcb1long | D15: =(-B2*C2+A2*D2)/(A2-B2) -> 0 | E15: 0 | F15: 0 | G15: 0 | H15: =B2*A2*(C2-D2)/(A2-B2) -> 0 | I15: 0 | J15: 0 | K15: 0 | L15: =-B2*A2*(A2*C2-B2*D2)/(A2-B2) -> 0 | M15: 0 | N15: 0 | O15: 0 | P15: =B2*A2*(A2^2*C2-B2^2*D2-2*K2*C2+2*K2*D2)/(A2-B2) -> 0 | Q15: 0 | R15: 0 | S15: 0 | V15: bctop.eq.2 | X15: =-(-Q16*$N$2+$M$2*M16)/(-P16*M16+L16*Q16) ->  | Y15: =($M$2*L16-$N$2*P16)/(L16*Q16-P16*M16) -> 
B16: K1calcb2long | D16: =(-B2*C2+A2*D2)/(A2-B2) -> 0 | E16: =-(C2-D2)/(A2-B2) -> 0 | F16: 0 | G16: 0 | H16: =A2*B2*(C2-D2)/(A2-B2) -> 0 | I16: =(A2*C2-B2*D2)/(A2-B2) -> 0 | J16: 0 | K16: 0 | L16: =-A2*B2*(A2*C2-B2*D2)/(A2-B2) -> 0 | M16: =-(A2^2*C2-B2^2*D2)/(A2-B2) -> 0 | N16: 0 | O16: 0 | P16: =A2*B2*(A2^2*C2-B2^2*D2-2*K2*C2+2*K2*D2)/(A2-B2) -> 0 | Q16: =(A2^3*C2-B2^3*D2-2*K2*A2*C2+2*K2*B2*D2)/(A2-B2) -> 0 | R16: 0 | S16: 0 | X16: =IF('Initial Parameter'!N16>'Initial Parameter'!P16,IF('Initial Parameter'!B13=1,'K value'!X12,'K value'!X13),IF('Initial Parameter'!B13=1,'K value'!X14,'K value'!X15)) ->  | Y16: =IF('Initial Parameter'!N16>'Initial Parameter'!P16,IF('Initial Parameter'!B13=1,'K value'!Y12,'K value'!Y13),IF('Initial Parameter'!B13=1,'K value'!Y14,'K value'!Y15)) -> 
B18: K1calca1 | D18: =D3-0.5/A3/B3*(A3^2-1*B3^2)*F3 -> -5.818206225 | E18: 0 | F18: =0.5/A3/B3*F3 -> 0.03231121106 | G18: =-0.5/A3/(B3^2+A3^2)*C3+0.5/B3/(B3^2+A3^2)*E3 -> 0.004109852754 | H18: =A3*C3-B3*E3-0.5/A3/B3*(A3^2-1*B3^2)*(A3*E3+B3*C3) -> -85.03329486 | I18: 0 | J18: =0.5/A3/B3*(A3*E3+B3*C3) -> -0.01360668514 | K18: =-0.5/A3/(B3^2+A3^2)*(A3*D3-B3*F3)+0.5/B3/(B3^2+A3^2)*(A3*F3+B3*D3) -> 0.03231121106 | L18: =(A3^2-B3^2)*D3-2*A3*B3*F3-0.5/A3/B3*(A3^2-1*B3^2)*((A3^2-B3^2)*F3+2*A3*B3*D3) -> -668.5224269 | M18: 0 | N18: =0.5/A3/B3*((A3^2-B3^2)*F3+2*A3*B3*D3) -> -4.991948136 | O18: =-0.5/A3/(B3^2+A3^2)*((A3^2-B3^2)*C3-2*A3*B3*E3)+0.5/B3/(B3^2+A3^2)*((A3^2-B3^2)*E3+2*A3*B3*C3) -> -0.01360668514 | P18: =A3*(A3^2-3*B3^2)*C3+B3*(B3^2-3*A3^2)*E3-0.5/A3/B3*(A3^2-1*B3^2)*(A3*(A3^2-3*B3^2)*E3-B3*(B3^2-3*A3^2)*C3) -> 281.5237767 | Q18: 0 | R18: =0.5/A3/B3*(A3*(A3^2-3*B3^2)*E3-B3*(B3^2-3*A3^2)*C3) -> -85.38124324 | S18: =-0.5/A3/(B3^2+A3^2)*(A3*(A3^2-3*B3^2)*D3+B3*(B3^2-3*A3^2)*F3)+0.5/B3/(B3^2+A3^2)*(A3*(A3^2-3*B3^2)*F3-B3*(B3^2-3*A3^2)*D3) -> -4.991948136
B19: K1calca2 | D19: =D3-0.5*(A3^2-B3^2)*F3/(A3*B3) -> -5.818206225 | E19: =0.5*(-(B3^2)-2*K3+3*A3^2)*C3/(A3*(B3^2+A3^2))-0.5*(A3^2-3*B3^2-2*K3)*E3/(B3*(B3^2+A3^2)) -> -0.01360668514 | F19: =0.5/(A3*B3)*F3 -> 0.03231121106 | G19: =-0.5/A3/(B3^2+A3^2)*C3+0.5/B3/(B3^2+A3^2)*E3 -> 0.004109852754 | H19: =A3*C3-B3*E3-0.5/A3/B3*(A3^2-1*B3^2)*(A3*E3+B3*C3) -> -85.03329486 | I19: =0.5*(-1*B3^2-2*K3+3*A3^2)/A3/(B3^2+A3^2)*(A3*D3-B3*F3)-0.5*(-3*B3^2-2*K3+A3^2)/(B3*(B3^2+A3^2))*(A3*F3+B3*D3) -> -4.991948136 | J19: =0.5*(A3*E3+B3*C3)/(A3*B3) -> -0.01360668514 | K19: =-0.5/A3/(B3^2+A3^2)*(A3*D3-B3*F3)+0.5/B3/(B3^2+A3^2)*(A3*F3+B3*D3) -> 0.03231121106 | L19: =(A3^2-B3^2)*D3-2*A3*B3*F3-0.5/A3/B3*(A3^2-1*B3^2)*((A3^2-B3^2)*F3+2*A3*B3*D3) -> -668.5224269 | M19: =0.5*(-1*B3^2-2*K3+3*A3^2)/A3/(B3^2+A3^2)*((A3^2-B3^2)*C3-2*A3*B3*E3)-0.5*(-3*B3^2-2*K3+A3^2)/B3/(B3^2+A3^2)*((A3^2-B3^2)*E3+2*A3*B3*C3) -> -85.38124324 | N19: =0.5/(A3*B3)*((A3^2-B3^2)*F3+2*A3*B3*D3) -> -4.991948136 | O19: =-0.5/A3/(B3^2+A3^2)*((A3^2-B3^2)*C3-2*A3*B3*E3)+0.5/B3/(B3^2+A3^2)*((A3^2-B3^2)*E3+2*A3*B3*C3) -> -0.01360668514 | P19: =A3*(A3^2-3*B3^2)*C3+B3*(B3^2-3*A3^2)*E3-0.5/A3/B3*(A3^2-1*B3^2)*(A3*(A3^2-3*B3^2)*E3-B3*(B3^2-3*A3^2)*C3)-2*K3*(A3*C3-B3*E3)+1/(A3*B3)*(A3^2-1*B3^2)*K3*(A3*E3+B3*C3) -> 2455.98414 | Q19: =0.5*(-1*B3^2-2*K3+3*A3^2)/A3/(B3^2+A3^2)*(A3*(A3^2-3*B3^2)*D3+B3*(B3^2-3*A3^2)*F3)-0.5*(-3*B3^2-2*K3+A3^2)/B3/(B3^2+A3^2)*(A3*(A3^2-3*B3^2)*F3-B3*(B3^2-3*A3^2)*D3)-1*(-1*B3^2-2*K3+3*A3^2)/(A3*(B3^2+A3^2))*K3*(A3*D3-B3*F3)+1*(-3*B3^2-2*K3+A3^2)/B3/(B3^2+A3^2)*K3*(A3*F3+B3*D3) -> -668.5224269 | R19: =0.5/A3/B3*(A3*(A3^2-3*B3^2)*E3-B3*(B3^2-3*A3^2)*C3)-1/(A3*B3)*K3*(A3*E3+B3*C3) -> -85.03329486 | S19: =-0.5/A3/(B3^2+A3^2)*(A3*(A3^2-3*B3^2)*D3+B3*(B3^2-3*A3^2)*F3)+0.5/B3/(B3^2+A3^2)*(A3*(A3^2-3*B3^2)*F3-B3*(B3^2-3*A3^2)*D3)+1/A3/(B3^2+A3^2)*K3*(A3*D3-B3*F3)-1/(B3*(B3^2+A3^2))*K3*(A3*F3+B3*D3) -> -5.818206225
B20: K1calcb1 | D20: =(-1*B3^2*D3+A3^2*F3)/(A3^2-1*B3^2) -> 56.05479474 | E20: 0 | F20: =(D3-1*F3)/(A3^2-1*B3^2) -> -0.7847953307 | G20: =-1*(-1*C3*B3+E3*A3)/A3/(A3^2-1*B3^2)/B3 -> -0.09247091139 | H20: =B3*A3*(-1*C3*B3+E3*A3)/(A3^2-1*B3^2) -> 474.5289826 | I20: 0 | J20: =(A3*C3-1*B3*E3)/(A3^2-1*B3^2) -> -6.664140636 | K20: =(D3-1*F3)/(A3^2-1*B3^2) -> -0.7847953307 | L20: =-1*B3^2*A3^2*(D3-1*F3)/(A3^2-1*B3^2) -> 4027.300308 | M20: 0 | N20: =(A3^2*D3-1*B3^2*F3)/(A3^2-1*B3^2) -> -56.83060701 | O20: =(A3*C3-1*B3*E3)/(A3^2-1*B3^2) -> -6.664140636 | P20: =-1*B3^2*A3^2*(A3*C3-1*B3*E3)/(A3^2-1*B3^2) -> 34198.08271 | Q20: 0 | R20: =(A3^3*C3-1*B3^3*E3)/(A3^2-1*B3^2) -> -484.0447544 | S20: =(A3^2*D3-1*B3^2*F3)/(A3^2-1*B3^2) -> -56.83060701
B21: K1calcb2 | D21: =(-1*B3^2*D3+A3^2*F3)/(A3^2-1*B3^2) -> 56.05479474 | E21: =(2*C3*B3*K3-1*C3*B3^3+E3*A3^3-2*E3*A3*K3)/A3/(A3^2-1*B3^2)/B3 -> 4.272273139 | F21: =(D3-1*F3)/(A3^2-1*B3^2) -> -0.7847953307 | G21: =-1*(-1*C3*B3+E3*A3)/A3/(A3^2-1*B3^2)/B3 -> -0.09247091139 | H21: =B3*A3*(-1*C3*B3+E3*A3)/(A3^2-1*B3^2) -> 474.5289826 | I21: =(2*D3*K3-1*B3^2*D3+A3^2*F3-2*F3*K3)/(A3^2-1*B3^2) -> 35.98611056 | J21: =(A3*C3-1*B3*E3)/(A3^2-1*B3^2) -> -6.664140636 | K21: =(D3-1*F3)/(A3^2-1*B3^2) -> -0.7847953307 | L21: =-1*B3^2*A3^2*(D3-1*F3)/(A3^2-1*B3^2) -> 4027.300308 | M21: =(2*A3*C3*K3-1*B3^2*A3*C3+A3^2*B3*E3-2*B3*E3*K3)/(A3^2-1*B3^2) -> 304.1144446 | N21: =(A3^2*D3-1*F3*B3^2)/(A3^2-1*B3^2) -> -56.83060701 | O21: =(A3*C3-1*B3*E3)/(A3^2-1*B3^2) -> -6.664140636 | P21: =-1*B3*A3*(B3*A3^2*C3-1*A3*B3^2*E3-2*C3*B3*K3+2*E3*A3*K3)/(A3^2-1*B3^2) -> 22063.48925 | Q21: =-1*(-2*A3^2*D3*K3+B3^2*A3^2*D3-1*A3^2*B3^2*F3+2*F3*B3^2*K3+4*D3*K3^2-2*D3*K3*B3^2+2*F3*K3*A3^2-4*F3*K3^2)/(A3^2-1*B3^2) -> 1653.803271 | R21: =(A3^3*C3-1*B3^3*E3-2*A3*C3*K3+2*B3*E3*K3)/(A3^2-1*B3^2) -> -313.6302163 | S21: =(A3^2*D3-1*F3*B3^2-2*D3*K3+2*F3*K3)/(A3^2-1*B3^2) -> -36.76192282 | X21: w02 | Y21: th02
B22: K1calca1long | D22: =(C3*B3+A3*D3)/(B3) -> -11.26082341 | E22: 0 | F22: 0 | G22: 0 | H22: =-D3*(B3^2+A3^2)/B3 -> 96.04440934 | I22: 0 | J22: 0 | K22: 0 | L22: =(-C3*B3*A3^2-C3*B3^3+A3*B3^2*D3+A3^3*D3)/B3 -> -80.12247063 | M22: 0 | N22: 0 | O22: 0 | P22: =-(-2*B3*A3^3*C3-2*B3^3*A3*C3-B3^4*D3+A3^4*D3-2*K3*D3*B3^2-2*K3*D3*A3^2)/B3 -> -14853.03304 | Q22: 0 | R22: 0 | S22: 0 | X22: =X12*D22 ->  | Y22: =X12*H22 -> 
B23: K1calca2long | D23: =(C3*B3+A3*D3)/B3 -> -11.26082341 | E23: =D3/B3 -> -0.6677143619 | F23: 0 | G23: 0 | H23: =-D3*(B3^2+A3^2)/B3 -> 96.04440934 | I23: =-(A3*D3-C3*B3)/B3 -> 0.5570227847 | J23: 0 | K23: 0 | L23: =(-C3*B3*A3^2-C3*B3^3+A3*B3^2*D3+A3^3*D3)/B3 -> -80.12247063 | M23: =(A3^2*D3-B3^2*D3-2*A3*C3*B3)/B3 -> 86.18568835 | N23: 0 | O23: 0 | P23: =-(-2*A3^3*C3*B3-2*A3*C3*B3^3-B3^4*D3+A3^4*D3-2*K3*D3*B3^2-2*K3*D3*A3^2)/B3 -> -14853.03304 | Q23: =-(A3^3*D3-3*A3*B3^2*D3+C3*B3^3-3*C3*B3*A3^2-2*K3*A3*D3+2*K3*C3*B3)/B3 -> -1619.763172 | R23: 0 | S23: 0 | X23: =X13*D23+Y13*E23 ->  | Y23: =X13*H23+Y13*I23 -> 
B24: K1calcb1long | D24: =(-B3*C3+A3*D3)/(A3-B3) -> -5.975539441 | E24: 0 | F24: 0 | G24: 0 | H24: =B3*A3*(C3-D3)/(A3-B3) -> 5.048292829 | I24: 0 | J24: 0 | K24: 0 | L24: =-B3*A3*(A3*C3-B3*D3)/(A3-B3) -> 342.5211045 | M24: 0 | N24: 0 | O24: 0 | P24: =B3*A3*(A3^2*C3-B3^2*D3-2*K3*C3+2*K3*D3)/(A3-B3) -> -6294.53657 | Q24: 0 | R24: 0 | S24: 0 | X24: =X14*D24 ->  | Y24: =X14*H24 -> 
B25: K1calcb2long | D25: =(-B3*C3+A3*D3)/(A3-B3) -> -5.975539441 | E25: =-(C3-D3)/(A3-B3) -> -0.07047186031 | F25: 0 | G25: 0 | H25: =A3*B3*(C3-D3)/(A3-B3) -> 5.048292829 | I25: =(A3*C3-B3*D3)/(A3-B3) -> -4.781438052 | J25: 0 | K25: 0 | L25: =-A3*B3*(A3*C3-B3*D3)/(A3-B3) -> 342.5211045 | M25: =-(A3^2*C3-B3^2*D3)/(A3-B3) -> 86.06675601 | N25: 0 | O25: 0 | P25: =A3*B3*(A3^2*C3-B3^2*D3-2*K3*C3+2*K3*D3)/(A3-B3) -> -6294.53657 | Q25: =(A3^3*C3-B3^3*D3-2*K3*A3*C3+2*K3*B3*D3)/(A3-B3) -> -993.5556804 | R25: 0 | S25: 0 | X25: =X15*D25+Y15*E25 ->  | Y25: =X15*H25+Y15*I25 -> 
X26: =IF('Initial Parameter'!N16>'Initial Parameter'!P16,IF('Initial Parameter'!B13=1,'K value'!X22,'K value'!X23),IF('Initial Parameter'!B13=1,'K value'!X24,'K value'!X25)) ->  | Y26: =IF('Initial Parameter'!N16>'Initial Parameter'!P16,IF('Initial Parameter'!B13=1,'K value'!Y22,'K value'!Y23),IF('Initial Parameter'!B13=1,'K value'!Y24,'K value'!Y25)) -> 
B27: K2calca | D27: =-0.5*(A4^2*F4*I4^2*H4+B4^2*D4*J4^3-1*A4^2*D4*J4^3+A4^2*C4*I4*J4^2-2*A4*E4*B4*I4^3+2*A4*F4*B4*I4^2*J4+2*A4*E4*J4^2*B4*I4-1*B4^2*F4*H4^3+B4^2*C4*I4^3-1*A4^2*C4*I4^3+B4^2*D4*J4*H4^2+A4^2*F4*H4^3+2*B4^2*E4*J4*I4*H4+B4^2*C4*I4*H4^2-1*B4^2*F4*J4^2*H4-1*B4^2*F4*I4^2*H4-2*A4*F4*B4*J4*H4^2-2*A4*D4*B4*I4^2*H4-2*A4*E4*I4*H4^2*B4-2*A4*D4*H4^3*B4-2*A4*D4*J4^2*B4*H4-2*A4^2*E4*J4*I4*H4-1*A4^2*D4*J4*H4^2-1*A4^2*C4*I4*H4^2+A4^2*F4*J4^2*H4-1*B4^2*E4*G4^3+4*A4*C4*B4*J4*I4*H4+B4^2*D4*G4^2*J4+B4^2*C4*I4*G4^2+B4^2*F4*G4^2*H4-2*B4^2*C4*H4*G4*J4+2*B4^2*F4*G4*I4*J4-1*B4^2*E4*G4*I4^2-1*B4^2*E4*G4*J4^2+B4^2*E4*G4*H4^2-2*B4^2*D4*G4*I4*H4+4*A4*D4*G4*B4*I4*J4-2*A4^2*F4*G4*I4*J4+4*A4*F4*G4*B4*I4*H4-1*A4^2*D4*G4^2*J4-1*A4^2*C4*I4*G4^2-1*A4^2*F4*G4^2*H4+2*A4^2*C4*H4*G4*J4+A4^2*E4*G4*I4^2+A4^2*E4*G4*J4^2-1*A4^2*E4*G4*H4^2+A4^2*E4*G4^3+2*A4^2*D4*G4*I4*H4-2*A4*C4*B4*G4^3-2*A4*F4*G4^2*B4*J4+2*A4*C4*B4*G4*H4^2-2*A4*E4*G4^2*B4*I4-2*A4*C4*B4*G4*J4^2-2*A4*C4*B4*G4*I4^2+2*A4*D4*G4^2*B4*H4+4*A4*E4*G4*J4*B4*H4-2*A4*F4*B4*J4^3-1*B4^2*D4*I4^2*J4-1*B4^2*C4*I4*J4^2+A4^2*D4*I4^2*J4)/(2*G4^2*J4^2+2*I4^2*H4^2-2*G4^2*H4^2+G4^4+I4^4+H4^4+2*G4^2*I4^2-8*G4*J4*I4*H4+J4^4+2*J4^2*H4^2-2*I4^2*J4^2)/A4/B4 -> 1 | E27: =-0.5*(F4*G4^2*I4*B4^3-3*D4*G4^3*A4^2*B4-1*C4*A4^3*H4^2*J4-3*C4*A4^2*H4^3*B4-1*C4*J4*G4^2*A4^3+C4*B4^3*H4^3+2*C4*H4^3*B4*K4+3*C4*J4*G4^2*A4*B4^2+6*C4*I4*G4*A4^2*J4*B4-3*C4*H4*A4^2*B4*I4^2+2*C4*J4*G4^2*A4*K4-4*C4*H4*G4*A4*I4*K4+2*C4*A4*J4^3*K4+C4*H4*B4^3*J4^2+3*C4*A4*B4^2*J4^3+2*C4*H4*I4^2*B4*K4+2*C4*H4*J4^2*B4*K4-6*C4*H4*G4*A4*B4^2*I4-2*C4*A4*J4*I4^2*K4-3*C4*A4*I4^2*J4*B4^2-1*C4*H4*G4^2*B4^3+C4*A4^3*I4^2*J4+3*C4*A4*B4^2*H4^2*J4+2*C4*A4*J4*H4^2*K4-2*C4*H4*G4^2*B4*K4+3*C4*H4*G4^2*A4^2*B4+2*C4*H4*G4*A4^3*I4-1*C4*A4^3*J4^3+C4*H4*B4^3*I4^2-3*C4*H4*A4^2*B4*J4^2-4*D4*J4*I4*H4*B4*K4+2*D4*G4*A4^3*H4*J4+2*D4*G4*J4^2*B4*K4-2*D4*B4^3*H4*I4*J4+D4*G4^3*B4^3-1*D4*A4^3*I4^3+D4*A4^3*J4^2*I4-2*C4*I4*G4*J4*B4^3-4*C4*I4*G4*B4*J4*K4-3*D4*A4*J4^2*B4^2*I4+3*D4*A4*B4^2*I4^3+2*D4*A4*H4^2*I4*K4+2*D4*G4^2*A4*I4*K4+2*D4*A4*I4^3*K4+3*D4*G4^2*A4*B4^2*I4-1*D4*G4*B4^3*H4^2-3*D4*G4*A4^2*B4*I4^2-1*D4*G4^2*A4^3*I4-2*D4*G4*H4^2*B4*K4+2*D4*G4*I4^2*B4*K4-2*D4*A4*J4^2*I4*K4+D4*G4*B4^3*I4^2+3*D4*A4*H4^2*I4*B4^2-1*D4*A4^3*H4^2*I4+2*E4*J4^3*B4*K4+E4*J4^2*A4^3*H4-3*E4*J4*A4^2*H4^2*B4+2*E4*J4*H4^2*B4*K4-2*E4*J4^2*A4*H4*K4+E4*J4^3*B4^3+E4*H4^3*A4^3-4*D4*G4*A4*J4*H4*K4-3*D4*G4*A4^2*B4*J4^2+3*D4*G4*A4^2*H4^2*B4+6*D4*A4^2*H4*I4*J4*B4-6*D4*G4*A4*B4^2*H4*J4+2*D4*G4^3*B4*K4-3*E4*J4^3*A4^2*B4+D4*G4*B4^3*J4^2+3*E4*I4^2*A4^2*J4*B4-3*E4*H4^3*A4*B4^2+F4*B4^3*H4^2*I4-3*E4*J4^2*A4*B4^2*H4-2*E4*H4^3*A4*K4+E4*I4^2*H4*A4^3-1*E4*I4^2*J4*B4^3-1*E4*G4^2*H4*A4^3+E4*G4^2*J4*B4^3-2*E4*I4^2*H4*A4*K4-2*E4*I4^2*B4*J4*K4+2*E4*G4^2*B4*J4*K4-3*E4*I4^2*H4*A4*B4^2-3*E4*G4^2*A4^2*J4*B4+2*E4*G4^2*H4*A4*K4+6*E4*G4*A4*I4*J4*B4^2+3*E4*G4^2*H4*A4*B4^2+E4*J4*B4^3*H4^2-2*E4*G4*A4^3*I4*J4+F4*G4^3*A4^3+F4*B4^3*I4^3-4*E4*G4*I4*H4*B4*K4+6*E4*G4*I4*H4*A4^2*B4+4*E4*G4*A4*J4*I4*K4-2*E4*G4*I4*H4*B4^3+4*F4*A4*J4*I4*H4*K4-1*F4*G4*A4^3*H4^2+F4*G4*A4^3*I4^2+2*F4*G4^2*B4*I4*K4-3*F4*G4*A4*B4^2*I4^2-3*F4*G4^2*A4^2*I4*B4-2*F4*B4*J4^2*I4*K4+2*F4*B4*H4^2*I4*K4-3*F4*A4^2*B4*H4^2*I4-2*F4*A4^3*H4*I4*J4+3*F4*A4^2*B4*J4^2*I4+F4*G4*A4^3*J4^2+2*F4*G4*A4*H4^2*K4-2*F4*G4*A4*J4^2*K4-2*F4*G4*A4*I4^2*K4-2*F4*G4*H4*J4*B4^3+3*F4*G4*A4*B4^2*H4^2-3*F4*G4*A4*B4^2*J4^2+6*F4*G4*A4^2*H4*J4*B4-4*F4*G4*B4*J4*H4*K4+2*F4*B4*I4^3*K4-1*F4*B4^3*J4^2*I4+6*F4*A4*H4*I4*J4*B4^2-3*F4*G4^3*A4*B4^2-2*F4*G4^3*A4*K4-3*F4*A4^2*B4*I4^3)/A4/B4/(2*G4^2*A4^2*J4^2+G4^4*A4^2+A4^2*J4^4+A4^2*H4^4+2*G4^2*B4^2*I4^2-8*G4*A4^2*J4*I4*H4+2*G4^2*B4^2*J4^2+B4^2*H4^4+B4^2*I4^4-8*G4*B4^2*J4*I4*H4+2*A4^2*I4^2*H4^2+G4^4*B4^2-2*G4^2*A4^2*H4^2+2*G4^2*A4^2*I4^2+A4^2*I4^4+2*B4^2*J4^2*H4^2-2*B4^2*I4^2*J4^2-2*G4^2*B4^2*H4^2+2*B4^2*I4^2*H4^2+B4^2*J4^4+2*A4^2*J4^2*H4^2-2*A4^2*I4^2*J4^2) -> 6.847427428e-14 | F27: =0.5*(-1*D4*J4*H4^2-1*C4*I4^3+E4*G4^3-1*C4*I4*H4^2+C4*I4*J4^2-1*D4*J4^3+D4*I4^2*J4+2*D4*G4*I4*H4-2*E4*J4*I4*H4-1*E4*G4*H4^2+E4*G4*J4^2+E4*G4*I4^2-2*F4*G4*I4*J4+2*C4*H4*G4*J4+F4*H4^3-1*F4*G4^2*H4-1*C4*I4*G4^2-1*D4*G4^2*J4+F4*J4^2*H4+F4*I4^2*H4)/(2*G4^2*J4^2+2*I4^2*H4^2-2*G4^2*H4^2+G4^4+I4^4+H4^4+2*G4^2*I4^2-8*G4*J4*I4*H4+J4^4+2*J4^2*H4^2-2*I4^2*J4^2)/A4/B4 -> -1.238426239e-14 | G27: =0.5*(-1*F4*G4^2*B4*I4-1*C4*H4^3*B4-1*D4*G4^2*A4*I4+2*D4*G4*A4*J4*H4-1*D4*A4*H4^2*I4-1*D4*A4*I4^3+2*C4*I4*G4*B4*J4+C4*H4*G4^2*B4-1*E4*J4^3*B4-1*D4*G4*J4^2*B4+C4*A4*J4*I4^2-1*C4*A4*J4*H4^2-1*C4*H4*J4^2*B4+E4*H4^3*A4-1*C4*H4*I4^2*B4+2*D4*J4*I4*H4*B4+2*C4*H4*G4*A4*I4-1*C4*A4*J4^3-1*C4*J4*G4^2*A4-1*D4*G4^3*B4+E4*J4^2*A4*H4+D4*A4*J4^2*I4-1*E4*J4*H4^2*B4+D4*G4*H4^2*B4-1*D4*G4*I4^2*B4+F4*B4*J4^2*I4-1*F4*B4*H4^2*I4-2*F4*A4*J4*I4*H4-1*F4*B4*I4^3-2*E4*G4*A4*J4*I4+2*E4*G4*I4*H4*B4-1*E4*G4^2*B4*J4-1*E4*G4^2*H4*A4+E4*I4^2*H4*A4+E4*I4^2*B4*J4+F4*G4^3*A4+F4*G4*A4*I4^2+2*F4*G4*B4*J4*H4-1*F4*G4*A4*H4^2+F4*G4*A4*J4^2)/A4/B4/(2*G4^2*A4^2*J4^2+G4^4*A4^2+A4^2*J4^4+A4^2*H4^4+2*G4^2*B4^2*I4^2-8*G4*A4^2*J4*I4*H4+2*G4^2*B4^2*J4^2+B4^2*H4^4+B4^2*I4^4-8*G4*B4^2*J4*I4*H4+2*A4^2*I4^2*H4^2+G4^4*B4^2-2*G4^2*A4^2*H4^2+2*G4^2*A4^2*I4^2+A4^2*I4^4+2*B4^2*J4^2*H4^2-2*B4^2*I4^2*J4^2-2*G4^2*B4^2*H4^2+2*B4^2*I4^2*H4^2+B4^2*J4^4+2*A4^2*J4^2*H4^2-2*A4^2*I4^2*J4^2) -> -8.91592113e-17 | H27: =-0.5*(-1*F4*G4^2*I4*B4^3-1*D4*G4^3*A4^2*B4-1*C4*A4^3*H4^2*J4-1*C4*A4^2*H4^3*B4-1*C4*J4*G4^2*A4^3-1*C4*B4^3*H4^3-1*C4*J4*G4^2*A4*B4^2+2*C4*I4*G4*A4^2*J4*B4-1*C4*H4*A4^2*B4*I4^2-1*C4*H4*B4^3*J4^2-1*C4*A4*B4^2*J4^3+2*C4*H4*G4*A4*B4^2*I4+C4*A4*I4^2*J4*B4^2+C4*H4*G4^2*B4^3+C4*A4^3*I4^2*J4-1*C4*A4*B4^2*H4^2*J4+C4*H4*G4^2*A4^2*B4+2*C4*H4*G4*A4^3*I4-1*C4*A4^3*J4^3-1*C4*H4*B4^3*I4^2-1*C4*H4*A4^2*B4*J4^2+2*D4*G4*A4^3*H4*J4+2*D4*B4^3*H4*I4*J4-1*D4*G4^3*B4^3-1*D4*A4^3*I4^3+D4*A4^3*J4^2*I4+2*C4*I4*G4*J4*B4^3+D4*A4*J4^2*B4^2*I4-1*D4*A4*B4^2*I4^3-1*D4*G4^2*A4*B4^2*I4+D4*G4*B4^3*H4^2-1*D4*G4*A4^2*B4*I4^2-1*D4*G4^2*A4^3*I4-1*D4*G4*B4^3*I4^2-1*D4*A4*H4^2*I4*B4^2-1*D4*A4^3*H4^2*I4+E4*J4^2*A4^3*H4-1*E4*J4*A4^2*H4^2*B4-1*E4*J4^3*B4^3+E4*H4^3*A4^3-1*D4*G4*A4^2*B4*J4^2+D4*G4*A4^2*H4^2*B4+2*D4*A4^2*H4*I4*J4*B4+2*D4*G4*A4*B4^2*H4*J4-1*E4*J4^3*A4^2*B4-1*D4*G4*B4^3*J4^2+E4*I4^2*A4^2*J4*B4+E4*H4^3*A4*B4^2-1*F4*B4^3*H4^2*I4+E4*J4^2*A4*B4^2*H4+E4*I4^2*H4*A4^3+E4*I4^2*J4*B4^3-1*E4*G4^2*H4*A4^3-1*E4*G4^2*J4*B4^3+E4*I4^2*H4*A4*B4^2-1*E4*G4^2*A4^2*J4*B4-2*E4*G4*A4*I4*J4*B4^2-1*E4*G4^2*H4*A4*B4^2-1*E4*J4*B4^3*H4^2-2*E4*G4*A4^3*I4*J4+F4*G4^3*A4^3-1*F4*B4^3*I4^3+2*E4*G4*I4*H4*A4^2*B4+2*E4*G4*I4*H4*B4^3-1*F4*G4*A4^3*H4^2+F4*G4*A4^3*I4^2+F4*G4*A4*B4^2*I4^2-1*F4*G4^2*A4^2*I4*B4-1*F4*A4^2*B4*H4^2*I4-2*F4*A4^3*H4*I4*J4+F4*A4^2*B4*J4^2*I4+F4*G4*A4^3*J4^2+2*F4*G4*H4*J4*B4^3-1*F4*G4*A4*B4^2*H4^2+F4*G4*A4*B4^2*J4^2+2*F4*G4*A4^2*H4*J4*B4+F4*B4^3*J4^2*I4-2*F4*A4*H4*I4*J4*B4^2+F4*G4^3*A4*B4^2-1*F4*A4^2*B4*I4^3)/(2*G4^2*J4^2+2*I4^2*H4^2-2*G4^2*H4^2+G4^4+I4^4+H4^4+2*G4^2*I4^2-8*G4*J4*I4*H4+J4^4+2*J4^2*H4^2-2*I4^2*J4^2)/A4/B4 -> -7.341912185e-12 | I27: =-0.5*(A4^2*F4*I4^2*H4+B4^2*D4*J4^3-1*A4^2*D4*J4^3+A4^2*C4*I4*J4^2-2*A4*E4*B4*I4^3+2*A4*F4*B4*I4^2*J4+2*A4*E4*J4^2*B4*I4+2*J4^3*K4*D4-2*G4^3*K4*E4-2*H4^3*K4*F4+2*H4^2*I4*K4*C4+2*G4^2*I4*K4*C4-2*J4^2*I4*K4*C4+2*J4*H4^2*K4*D4+2*J4*G4^2*K4*D4+2*G4*H4^2*K4*E4-2*G4*J4^2*K4*E4-2*G4*I4^2*K4*E4-2*J4^2*H4*K4*F4-2*I4^2*H4*K4*F4+2*G4^2*H4*K4*F4-2*J4*I4^2*K4*D4-4*H4*G4*I4*K4*D4+4*G4*J4*I4*K4*F4+4*J4*I4*H4*K4*E4-4*G4*J4*H4*K4*C4-1*B4^2*F4*H4^3+B4^2*C4*I4^3-1*A4^2*C4*I4^3+B4^2*D4*J4*H4^2+A4^2*F4*H4^3+2*B4^2*E4*J4*I4*H4+B4^2*C4*I4*H4^2-1*B4^2*F4*J4^2*H4-1*B4^2*F4*I4^2*H4-2*A4*F4*B4*J4*H4^2-2*A4*D4*B4*I4^2*H4-2*A4*E4*I4*H4^2*B4-2*A4*D4*H4^3*B4+2*I4^3*K4*C4-2*A4*D4*J4^2*B4*H4-2*A4^2*E4*J4*I4*H4-1*A4^2*D4*J4*H4^2-1*A4^2*C4*I4*H4^2+A4^2*F4*J4^2*H4-1*B4^2*E4*G4^3+4*A4*C4*B4*J4*I4*H4+B4^2*D4*G4^2*J4+B4^2*C4*I4*G4^2+B4^2*F4*G4^2*H4-2*B4^2*C4*H4*G4*J4+2*B4^2*F4*G4*I4*J4-1*B4^2*E4*G4*I4^2-1*B4^2*E4*G4*J4^2+B4^2*E4*G4*H4^2-2*B4^2*D4*G4*I4*H4+4*A4*D4*G4*B4*I4*J4-2*A4^2*F4*G4*I4*J4+4*A4*F4*G4*B4*I4*H4-1*A4^2*D4*G4^2*J4-1*A4^2*C4*I4*G4^2-1*A4^2*F4*G4^2*H4+2*A4^2*C4*H4*G4*J4+A4^2*E4*G4*I4^2+A4^2*E4*G4*J4^2-1*A4^2*E4*G4*H4^2+A4^2*E4*G4^3+2*A4^2*D4*G4*I4*H4-2*A4*C4*B4*G4^3-2*A4*F4*G4^2*B4*J4+2*A4*C4*B4*G4*H4^2-2*A4*E4*G4^2*B4*I4-2*A4*C4*B4*G4*J4^2-2*A4*C4*B4*G4*I4^2+2*A4*D4*G4^2*B4*H4+4*A4*E4*G4*J4*B4*H4-2*A4*F4*B4*J4^3-1*B4^2*D4*I4^2*J4-1*B4^2*C4*I4*J4^2+A4^2*D4*I4^2*J4)/(2*G4^2*J4^2+2*I4^2*H4^2-2*G4^2*H4^2+G4^4+I4^4+H4^4+2*G4^2*I4^2-8*G4*J4*I4*H4+J4^4+2*J4^2*H4^2-2*I4^2*J4^2)/A4/B4 -> 1 | J27: =0.5*(F4*G4^2*B4*I4+C4*H4^3*B4-1*D4*G4^2*A4*I4+2*D4*G4*A4*J4*H4-1*D4*A4*H4^2*I4-1*D4*A4*I4^3-2*C4*I4*G4*B4*J4-1*C4*H4*G4^2*B4+E4*J4^3*B4+D4*G4*J4^2*B4+C4*A4*J4*I4^2-1*C4*A4*J4*H4^2+C4*H4*J4^2*B4+E4*H4^3*A4+C4*H4*I4^2*B4-2*D4*J4*I4*H4*B4+2*C4*H4*G4*A4*I4-1*C4*A4*J4^3-1*C4*J4*G4^2*A4+D4*G4^3*B4+E4*J4^2*A4*H4+D4*A4*J4^2*I4+E4*J4*H4^2*B4-1*D4*G4*H4^2*B4+D4*G4*I4^2*B4-1*F4*B4*J4^2*I4+F4*B4*H4^2*I4-2*F4*A4*J4*I4*H4+F4*B4*I4^3-2*E4*G4*A4*J4*I4-2*E4*G4*I4*H4*B4+E4*G4^2*B4*J4-1*E4*G4^2*H4*A4+E4*I4^2*H4*A4-1*E4*I4^2*B4*J4+F4*G4^3*A4+F4*G4*A4*I4^2-2*F4*G4*B4*J4*H4-1*F4*G4*A4*H4^2+F4*G4*A4*J4^2)/(2*G4^2*J4^2+2*I4^2*H4^2-2*G4^2*H4^2+G4^4+I4^4+H4^4+2*G4^2*I4^2-8*G4*J4*I4*H4+J4^4+2*J4^2*H4^2-2*I4^2*J4^2)/A4/B4 -> -7.821639402e-14 | K27: =0.5*(-1*D4*J4*H4^2-1*C4*I4^3+E4*G4^3-1*C4*I4*H4^2+C4*I4*J4^2-1*D4*J4^3+D4*I4^2*J4+2*D4*G4*I4*H4-2*E4*J4*I4*H4-1*E4*G4*H4^2+E4*G4*J4^2+E4*G4*I4^2-2*F4*G4*I4*J4+2*C4*H4*G4*J4+F4*H4^3-1*F4*G4^2*H4-1*C4*I4*G4^2-1*D4*G4^2*J4+F4*J4^2*H4+F4*I4^2*H4)/(2*G4^2*J4^2+2*I4^2*H4^2-2*G4^2*H4^2+G4^4+I4^4+H4^4+2*G4^2*I4^2-8*G4*J4*I4*H4+J4^4+2*J4^2*H4^2-2*I4^2*J4^2)/A4/B4 -> -1.238426239e-14 | L27: =-0.5*(-1*B4^4*I4*H4^2*C4-4*A4^2*B4^2*J4*I4*H4*E4+2*A4^2*B4^2*H4*J4^2*F4+2*A4^2*B4^2*G4*I4^2*E4+2*A4^2*B4^2*H4^3*F4-1*A4^4*C4*I4*G4^2-2*A4^4*F4*G4*I4*J4+A4^4*D4*I4^2*J4-1*A4^4*D4*J4*H4^2-1*A4^4*D4*G4^2*J4+A4^4*F4*H4^3-1*B4^4*J4*H4^2*D4-1*B4^4*G4*H4^2*E4-2*B4^4*J4*I4*H4*E4+B4^4*I4^2*J4*D4+I4*B4^4*J4^2*C4+2*H4*G4*B4^4*J4*C4-1*I4*G4^2*B4^4*C4+B4^4*H4*J4^2*F4+B4^4*G4*I4^2*E4+B4^4*G4*J4^2*E4-2*G4*B4^4*J4*I4*F4+2*G4*B4^4*I4*H4*D4-1*G4^2*B4^4*J4*D4-1*G4^2*B4^4*H4*F4+B4^4*I4^2*H4*F4+A4^4*C4*I4*J4^2+A4^4*E4*G4*I4^2+2*A4^4*D4*G4*I4*H4-1*A4^4*C4*I4^3-1*A4^4*E4*G4*H4^2-1*A4^4*C4*I4*H4^2+A4^4*E4*G4^3-1*A4^4*F4*G4^2*H4+2*A4^4*C4*H4*G4*J4+A4^4*F4*J4^2*H4+A4^4*F4*I4^2*H4+A4^4*E4*G4*J4^2+2*A4^2*B4^2*I4^2*H4*F4-2*A4^2*B4^2*I4*H4^2*C4-2*A4^2*B4^2*J4*H4^2*D4-2*A4^4*E4*J4*I4*H4-4*A4^2*G4*B4^2*J4*I4*F4+2*A4^2*B4^2*I4^2*J4*D4-2*A4^2*B4^2*G4*H4^2*E4-2*A4^2*J4^3*B4^2*D4+4*A4^2*H4*G4*B4^2*J4*C4+2*A4^2*B4^2*G4^3*E4-2*A4^2*G4^2*B4^2*J4*D4-2*A4^2*I4*G4^2*B4^2*C4+4*A4^2*G4*B4^2*I4*H4*D4-2*A4^2*B4^2*I4^3*C4+2*A4^2*B4^2*G4*J4^2*E4-2*A4^2*G4^2*B4^2*H4*F4+2*A4^2*I4*B4^2*J4^2*C4-1*A4^4*D4*J4^3+B4^4*H4^3*F4-1*J4^3*B4^4*D4-1*B4^4*I4^3*C4+B4^4*G4^3*E4)/(2*G4^2*J4^2+2*I4^2*H4^2-2*G4^2*H4^2+G4^4+I4^4+H4^4+2*G4^2*I4^2-8*G4*J4*I4*H4+J4^4+2*J4^2*H4^2-2*I4^2*J4^2)/A4/B4 -> 3.203743499e-10 | M27: =-0.5*(-1*H4^3*B4*A4^2*C4+H4^3*B4^2*A4*E4-1*B4^3*H4^2*I4*F4-1*H4^3*B4^3*C4-1*A4^3*J4^3*C4-1*A4^3*I4^3*D4-1*G4^3*B4^3*D4-1*B4^3*I4^3*F4+2*A4*I4^3*K4*D4-1*G4^2*A4^2*I4*F4*B4-1*A4^3*H4^2*I4*D4-1*A4*H4^2*I4*B4^2*D4-1*G4^2*A4^3*I4*D4-1*A4*I4^3*B4^2*D4-1*A4^2*I4^3*F4*B4+G4*H4^2*B4*A4^2*D4-1*G4*H4^2*B4^2*A4*F4+A4^2*J4^2*I4*F4*B4-1*G4*J4^2*B4^3*D4+2*G4*A4*J4*H4*B4^2*D4+2*G4*A4^2*J4*H4*F4*B4+2*G4*A4^3*J4*H4*D4+A4*J4^2*I4*B4^2*D4-1*G4*J4^2*B4*A4^2*D4-1*A4^2*H4^2*I4*F4*B4-1*G4^2*A4*I4*B4^2*D4+A4^3*J4^2*I4*D4-1*G4*I4^2*B4*A4^2*D4+G4*I4^2*B4^2*A4*F4-1*G4*I4^2*B4^3*D4+G4*H4^2*B4^3*D4+A4^3*J4*I4^2*C4+A4*J4*I4^2*B4^2*C4+H4^3*A4^3*E4+H4*J4^2*B4^2*A4*E4-1*H4*I4^2*B4^3*C4+2*I4*G4*B4^3*J4*C4-1*H4*J4^2*B4^3*C4+H4*G4^2*B4*A4^2*C4-1*A4^2*J4^3*E4*B4-1*A4*J4^3*B4^2*C4+H4*G4^2*B4^3*C4-1*H4*G4^2*B4^2*A4*E4+2*H4*G4*A4^3*I4*C4+2*H4*G4*A4*I4*B4^2*C4-1*A4*J4*H4^2*B4^2*C4+2*H4*G4*A4^2*I4*E4*B4+G4^3*B4^2*A4*F4-1*A4^3*J4*H4^2*C4-1*H4*I4^2*B4*A4^2*C4+H4*I4^2*B4^2*A4*E4+A4^2*J4*I4^2*E4*B4-1*H4*J4^2*B4*A4^2*C4-1*J4*H4^2*B4^3*E4+2*I4*G4*B4*J4*A4^2*C4-2*I4*G4*B4^2*J4*A4*E4+2*J4*I4*H4*B4*A4^2*D4+2*J4*I4*H4*B4^3*D4-1*J4*G4^2*A4^2*E4*B4-1*J4*G4^2*A4^3*C4-1*G4^3*B4*A4^2*D4-1*J4*G4^2*A4*B4^2*C4-2*J4*I4*H4*B4^2*A4*F4+G4*A4^3*J4^2*F4-2*A4^3*J4*I4*H4*F4+G4*A4^3*I4^2*F4+J4^2*A4^3*H4*E4-2*G4*A4^3*J4*I4*E4+I4^2*B4^3*J4*E4+I4^2*H4*A4^3*E4-1*G4^2*B4^3*J4*E4-1*G4^2*H4*A4^3*E4-1*G4^2*B4^3*I4*F4+2*G4*I4*H4*B4^3*E4+2*G4*B4^3*J4*H4*F4-1*G4*A4^3*H4^2*F4-1*A4^2*J4*H4^2*E4*B4+B4^3*J4^2*I4*F4+G4^3*A4^3*F4-1*J4^3*B4^3*E4+G4*J4^2*B4^2*A4*F4-2*H4^3*B4*K4*C4+4*J4*I4*H4*B4*K4*D4-2*J4*G4^2*K4*E4*B4-2*G4^3*B4*K4*D4-2*I4^3*K4*F4*B4-2*G4^2*I4*K4*F4*B4-2*H4^2*I4*K4*F4*B4-2*G4*J4^2*B4*K4*D4+2*G4*H4^2*B4*K4*D4+2*J4^2*I4*K4*F4*B4+4*G4*J4*H4*K4*F4*B4-2*G4*I4^2*B4*K4*D4+2*J4*I4^2*K4*E4*B4-2*H4*J4^2*B4*K4*C4-2*H4*I4^2*B4*K4*C4+4*I4*G4*B4*J4*K4*C4-2*J4^3*K4*E4*B4+4*H4*G4*I4*K4*E4*B4+2*H4*G4^2*B4*K4*C4-2*G4*I4^2*K4*A4*F4-4*G4*A4*J4*H4*K4*D4-2*A4*J4*I4^2*K4*C4-2*H4*I4^2*K4*A4*E4-2*H4*J4^2*K4*A4*E4-2*G4^3*K4*A4*F4+2*A4*J4*H4^2*K4*C4-4*H4*G4*A4*I4*K4*C4-2*J4*H4^2*K4*E4*B4+4*I4*G4*J4*K4*A4*E4+2*A4*J4^3*K4*C4+2*H4*G4^2*K4*A4*E4+2*J4*G4^2*A4*K4*C4+4*J4*I4*H4*K4*A4*F4-2*H4^3*K4*A4*E4+2*G4^2*A4*I4*K4*D4+2*A4*H4^2*I4*K4*D4-2*A4*J4^2*I4*K4*D4-2*G4*J4^2*K4*A4*F4+2*G4*H4^2*K4*A4*F4)/(2*G4^2*J4^2+2*I4^2*H4^2-2*G4^2*H4^2+G4^4+I4^4+H4^4+2*G4^2*I4^2-8*G4*J4*I4*H4+J4^4+2*J4^2*H4^2-2*I4^2*J4^2)/A4/B4 -> -1.001169843e-11 | N27: =0.5*(-1*A4^2*C4*I4*H4^2+B4^2*I4*H4^2*C4-1*A4^2*C4*I4^3+A4^2*C4*I4*J4^2+B4^2*J4*H4^2*D4+A4^2*D4*I4^2*J4-2*A4*J4*I4^2*F4*B4+2*A4*G4^3*C4*B4+A4^2*F4*I4^2*H4-2*A4^2*E4*J4*I4*H4+2*A4*H4^2*I4*E4*B4+2*A4*J4*H4^2*F4*B4+2*A4*I4^2*H4*D4*B4+2*A4*J4^2*H4*D4*B4-4*A4*J4*I4*H4*C4*B4+2*A4*H4^3*D4*B4-2*A4*I4*J4^2*E4*B4-1*B4^2*H4*J4^2*F4-1*A4^2*D4*G4^2*J4+A4^2*E4*G4*I4^2+2*A4*J4^3*F4*B4+2*A4*I4^3*E4*B4-4*A4*H4*G4*J4*E4*B4+2*A4*I4*G4^2*E4*B4-2*A4*G4^2*H4*D4*B4-4*A4*G4*H4*I4*F4*B4-4*A4*G4*J4*I4*D4*B4-2*A4*G4*H4^2*C4*B4+2*A4*G4^2*J4*F4*B4+2*A4*G4*I4^2*C4*B4+2*A4*G4*J4^2*C4*B4-1*B4^2*I4^2*H4*F4+2*B4^2*J4*I4*H4*E4+A4^2*F4*J4^2*H4-1*A4^2*D4*J4*H4^2-1*B4^2*G4*I4^2*E4-1*B4^2*G4*J4^2*E4+2*G4*B4^2*J4*I4*F4-2*G4*B4^2*I4*H4*D4+G4^2*B4^2*H4*F4+G4^2*B4^2*J4*D4-2*H4*G4*B4^2*J4*C4+B4^2*I4^3*C4+I4*G4^2*B4^2*C4+B4^2*G4*H4^2*E4-1*A4^2*D4*J4^3-1*A4^2*C4*I4*G4^2-2*A4^2*F4*G4*I4*J4+2*A4^2*D4*G4*I4*H4-1*A4^2*F4*G4^2*H4-1*A4^2*E4*G4*H4^2+2*A4^2*C4*H4*G4*J4+A4^2*E4*G4*J4^2-1*B4^2*H4^3*F4+A4^2*F4*H4^3+J4^3*B4^2*D4-1*B4^2*G4^3*E4-1*B4^2*I4^2*J4*D4+A4^2*E4*G4^3-1*I4*B4^2*J4^2*C4)/(2*G4^2*J4^2+2*I4^2*H4^2-2*G4^2*H4^2+G4^4+I4^4+H4^4+2*G4^2*I4^2-8*G4*J4*I4*H4+J4^4+2*J4^2*H4^2-2*I4^2*J4^2)/A4/B4 -> 1 | O27: =0.5*(-1*A4*H4^2*I4*D4+A4*J4^2*I4*D4-1*H4*G4^2*B4*C4+J4^3*E4*B4+H4^2*J4*E4*B4+I4^3*F4*B4+H4^3*B4*C4-2*H4*I4*J4*B4*D4+H4^2*I4*F4*B4-1*J4^2*I4*F4*B4+G4^3*B4*D4+G4^2*I4*F4*B4+G4*B4*J4^2*D4+J4*G4^2*E4*B4-2*H4*G4*I4*E4*B4+H4*B4*I4^2*C4-1*I4^2*J4*E4*B4+H4*B4*J4^2*C4-2*I4*G4*J4*B4*C4+2*G4*A4*H4*J4*D4-1*G4^2*A4*I4*D4-1*G4*H4^2*A4*F4+G4*I4^2*A4*F4+G4*J4^2*A4*F4-1*H4*G4^2*A4*E4-2*I4*G4*J4*A4*E4+2*H4*G4*A4*I4*C4+H4^3*A4*E4+H4*J4^2*A4*E4-1*A4*H4^2*J4*C4+A4*I4^2*J4*C4+H4*I4^2*A4*E4-2*H4*I4*J4*A4*F4-1*J4*G4^2*A4*C4-1*A4*J4^3*C4+G4^3*A4*F4-1*A4*I4^3*D4-2*G4*H4*J4*F4*B4+G4*B4*I4^2*D4-1*G4*H4^2*B4*D4)/(2*G4^2*J4^2+2*I4^2*H4^2-2*G4^2*H4^2+G4^4+I4^4+H4^4+2*G4^2*I4^2-8*G4*J4*I4*H4+J4^4+2*J4^2*H4^2-2*I4^2*J4^2)/A4/B4 -> -2.92007871e-13 | P27: =-0.5*(-2*G4^3*B4^2*K4*A4*F4+G4^3*B4^5*D4+B4^5*I4^3*F4+A4*I4^2*J4*B4^4*C4-2*A4^2*I4^2*J4*B4^3*E4+2*B4^3*H4^3*A4^2*C4+B4^4*H4^3*A4*E4+B4^5*H4^3*C4-1*A4^5*J4^3*C4-2*H4*G4^2*B4^3*K4*C4+2*H4*G4^2*B4^2*K4*A4*E4-4*H4*G4*A4^3*I4*K4*C4-4*H4*G4*A4*I4*K4*B4^2*C4-4*H4*G4*A4^2*I4*K4*E4*B4+2*A4^3*J4*H4^2*K4*C4+2*A4*J4*H4^2*K4*B4^2*C4+H4*B4^4*I4^2*A4*E4-2*A4^3*B4^2*H4^2*J4*C4-1*A4*B4^4*H4^2*J4*C4+2*A4^2*B4^3*H4^2*J4*E4-1*H4*G4^2*A4^4*B4*C4-2*H4*G4^2*A4^3*B4^2*E4-2*H4*G4^2*B4*K4*A4^2*C4+H4*B4^4*J4^2*A4*E4+2*H4*G4*A4^5*I4*C4-2*H4*G4*A4^4*I4*E4*B4-4*H4*G4*A4^2*B4^3*I4*E4-2*I4*G4*A4^4*J4*B4*C4+2*H4*A4^2*B4^3*I4^2*C4+2*H4*A4^3*B4^2*I4^2*E4+4*H4*G4*A4^3*B4^2*I4*C4+2*A4^2*J4^3*K4*E4*B4+H4*A4^4*B4*J4^2*C4+2*H4*A4^2*B4^3*J4^2*C4+2*H4*A4^3*B4^2*J4^2*E4+2*A4*J4^3*K4*B4^2*C4+H4*A4^4*B4*I4^2*C4+2*H4*G4*A4*B4^4*I4*C4-4*I4*G4*A4^3*J4*B4^2*E4+H4*B4^5*J4^2*C4-1*A4^5*H4^2*J4*C4+2*H4^3*B4^3*K4*C4+H4*B4^5*I4^2*C4+2*H4*J4^2*B4^3*K4*C4-2*H4*J4^2*B4^2*K4*A4*E4-1*A4^4*I4^2*J4*E4*B4+2*H4*I4^2*B4*K4*A4^2*C4+2*H4*I4^2*B4^3*K4*C4-2*H4*I4^2*B4^2*K4*A4*E4+2*A4^3*J4^3*K4*C4-2*I4*G4*J4*B4^5*C4-2*I4*G4*J4*B4^4*A4*E4-4*I4*G4*B4*J4*K4*A4^2*C4-4*I4*G4*B4^3*J4*K4*C4-4*I4*G4*J4*B4^3*A4^2*C4+4*I4*G4*B4^2*J4*K4*A4*E4-2*A4^3*J4*I4^2*K4*C4-2*A4*J4*I4^2*K4*B4^2*C4-2*A4^2*J4*I4^2*K4*E4*B4+2*H4*J4^2*B4*K4*A4^2*C4-2*H4*G4^2*B4^3*A4^2*C4-1*H4*G4^2*B4^4*A4*E4-2*J4*G4^2*A4^3*B4^2*C4+J4*G4^2*A4^4*E4*B4-2*A4^3*J4^3*B4^2*C4+A4^4*J4^3*E4*B4-1*H4*G4^2*B4^5*C4-1*J4*G4^2*A4^5*C4-1*A4*B4^4*J4^3*C4+2*A4^2*B4^3*J4^3*E4+A4^5*I4^2*J4*C4+2*A4^3*I4^2*J4*B4^2*C4+G4*B4^4*J4^2*A4*F4+2*J4*H4^2*B4^3*K4*E4-2*G4*A4^5*I4*J4*E4+G4*B4^5*J4^2*D4+G4^2*J4*B4^5*E4-1*G4^2*H4*A4^5*E4-2*H4^3*A4^3*K4*E4-1*I4^2*J4*B4^5*E4+I4^2*H4*A4^5*E4-2*G4*A4^4*H4*J4*F4*B4+G4^2*A4^4*I4*F4*B4-1*G4*B4^4*H4^2*A4*F4+G4*B4^4*I4^2*A4*F4-2*G4*A4^3*H4^2*B4^2*F4+G4*A4^4*B4*J4^2*D4+2*G4*A4^2*B4^3*J4^2*D4+2*G4*A4^3*B4^2*J4^2*F4-2*G4^2*A4^3*B4^2*I4*D4-1*G4^2*A4*B4^4*I4*D4+2*G4^2*A4^2*B4^3*I4*F4+2*G4*A4^5*H4*J4*D4+H4^3*A4^5*E4+G4*A4^4*B4*I4^2*D4+2*G4*A4^2*B4^3*I4^2*D4+2*G4*A4^3*B4^2*I4^2*F4-4*G4*A4^3*J4*H4*K4*D4-4*G4*A4*J4*H4*K4*B4^2*D4-4*G4*A4^2*J4*H4*K4*F4*B4-1*G4*A4^4*H4^2*B4*D4-2*G4*A4^2*H4^2*B4^3*D4+2*G4*I4^2*B4*K4*A4^2*D4-2*G4*I4^2*B4^2*K4*A4*F4+J4^3*B4^5*E4+2*G4*A4*B4^4*H4*J4*D4-4*G4*A4^2*B4^3*H4*J4*F4+2*G4*I4^2*B4^3*K4*D4-2*G4*H4^2*B4*K4*A4^2*D4-2*G4*H4^2*B4^3*K4*D4+2*G4*H4^2*B4^2*K4*A4*F4-2*A4^2*J4^2*I4*K4*F4*B4-1*A4*H4^2*I4*B4^4*D4-2*A4*J4^2*I4*K4*B4^2*D4+2*A4^2*H4^2*I4*B4^3*F4+2*G4*J4^2*B4*K4*A4^2*D4+2*G4*J4^2*B4^3*K4*D4-2*G4*J4^2*B4^2*K4*A4*F4+4*G4*A4^3*B4^2*H4*J4*D4+2*A4^2*H4^2*I4*K4*F4*B4+2*G4^2*A4*I4*K4*B4^2*D4+2*G4^2*A4^2*I4*K4*F4*B4-2*A4^3*J4^2*I4*K4*D4+2*A4^3*H4^2*I4*K4*D4+2*A4*H4^2*I4*K4*B4^2*D4+2*G4^2*A4^3*I4*K4*D4+A4*J4^2*B4^4*I4*D4-2*A4^2*J4^2*B4^3*I4*F4+2*A4*I4^3*K4*B4^2*D4+2*A4^2*I4^3*K4*F4*B4+G4^3*A4^4*B4*D4+2*G4^3*A4^3*B4^2*F4-1*A4*B4^4*I4^3*D4+2*A4^2*B4^3*I4^3*F4+2*A4^3*I4^3*K4*D4-1*G4^2*A4^5*I4*D4-1*G4*B4^5*H4^2*D4+G4*B4^5*I4^2*D4-2*A4^3*H4^2*I4*B4^2*D4+A4^4*H4^2*I4*F4*B4-2*A4^4*H4*I4*J4*B4*D4-4*A4^3*H4*I4*J4*B4^2*F4-1*A4^4*J4^2*I4*F4*B4-4*J4*I4*H4*B4*K4*A4^2*D4-4*J4*I4*H4*B4^3*K4*D4+2*J4*G4^2*A4^2*K4*E4*B4+A4^5*J4^2*I4*D4)/(2*G4^2*J4^2+2*I4^2*H4^2-2*G4^2*H4^2+G4^4+I4^4+H4^4+2*G4^2*I4^2-8*G4*J4*I4*H4+J4^4+2*J4^2*H4^2-2*I4^2*J4^2)/A4/B4-0.5*(-2*A4^3*I4^3*B4^2*D4+A4^4*I4^3*F4*B4+2*G4^3*B4^3*A4^2*D4+G4^3*B4^4*A4*F4-1*A4^5*I4^3*D4-1*J4*G4^2*A4*B4^4*C4+2*J4*G4^2*A4^2*B4^3*E4+2*J4*G4^2*A4^3*K4*C4+2*G4^3*B4*K4*A4^2*D4+A4^4*H4^2*J4*E4*B4+2*H4^3*B4*K4*A4^2*C4-2*H4^3*B4^2*K4*A4*E4+A4^4*H4^3*B4*C4+2*A4^3*H4^3*B4^2*E4+2*G4^3*B4^3*K4*D4+2*A4^2*J4*H4^2*K4*E4*B4+2*J4*G4^2*A4*K4*B4^2*C4+2*A4^3*J4^2*I4*B4^2*D4+4*J4*I4*H4*B4^2*K4*A4*F4-4*B4^3*H4*I4*J4*A4^2*D4-2*B4^5*H4*I4*J4*D4-2*B4^4*H4*I4*J4*A4*F4-1*A4^5*H4^2*I4*D4-2*A4^5*H4*I4*J4*F4+G4^2*I4*B4^5*F4-1*B4^5*J4^2*I4*F4+2*B4^3*H4^2*I4*K4*F4-2*B4^3*J4^2*I4*K4*F4+2*B4^3*I4^3*K4*F4+B4^5*H4^2*I4*F4+G4*A4^5*I4^2*F4-2*G4^3*A4^3*K4*F4-4*G4*I4*H4*B4^3*K4*E4-2*G4*I4*H4*B4^5*E4-2*J4^2*A4^3*H4*K4*E4+4*G4*A4^3*J4*I4*K4*E4+2*J4^3*B4^3*K4*E4+J4^2*A4^5*H4*E4+J4*B4^5*H4^2*E4-1*G4*A4^5*H4^2*F4+G4^3*A4^5*F4-2*I4^2*B4^3*J4*K4*E4-2*I4^2*H4*A4^3*K4*E4+2*G4^2*B4^3*J4*K4*E4+2*G4^2*H4*A4^3*K4*E4-4*G4*B4^3*J4*H4*K4*F4+G4*A4^5*J4^2*F4+4*A4^3*J4*I4*H4*K4*F4+2*G4^2*B4^3*I4*K4*F4-2*G4*A4^3*I4^2*K4*F4+2*G4*A4^3*H4^2*K4*F4-2*G4*H4*J4*B4^5*F4-2*G4*A4^3*J4^2*K4*F4)/(2*G4^2*J4^2+2*I4^2*H4^2-2*G4^2*H4^2+G4^4+I4^4+H4^4+2*G4^2*I4^2-8*G4*J4*I4*H4+J4^4+2*J4^2*H4^2-2*I4^2*J4^2)/A4/B4 -> 0 | Q27: =-0.5*(-4*I4^3*K4^2*C4+4*H4^3*K4^2*F4-4*J4^3*K4^2*D4+4*G4^3*K4^2*E4-1*B4^4*I4*H4^2*C4-4*A4^2*B4^2*J4*I4*H4*E4+2*A4^2*B4^2*H4*J4^2*F4+2*A4^2*B4^2*G4*I4^2*E4+2*A4^2*B4^2*H4^3*F4-1*A4^4*C4*I4*G4^2-2*A4^4*F4*G4*I4*J4+A4^4*D4*I4^2*J4-1*A4^4*D4*J4*H4^2-1*A4^4*D4*G4^2*J4+A4^4*F4*H4^3-4*J4*H4^2*K4^2*D4-4*J4*G4^2*K4^2*D4+4*I4^2*H4*K4^2*F4+4*G4*I4^2*K4^2*E4+4*G4*J4^2*K4^2*E4-4*G4*H4^2*K4^2*E4-4*K4*J4^2*A4^2*H4*F4-4*K4*J4*H4^2*B4^2*D4+4*K4*I4^2*B4^2*J4*D4-4*K4*I4^2*H4*A4^2*F4-4*K4*G4^2*B4^2*J4*D4+4*K4*G4^2*H4*A4^2*F4+4*K4*H4*J4^2*B4^2*F4-8*K4*G4*A4^2*J4*H4*C4+4*K4*H4^3*B4^2*F4+4*K4*A4^2*J4^3*D4+4*K4*G4^3*B4^2*E4+4*K4*A4^2*I4^3*C4-4*K4*J4^3*B4^2*D4-4*K4*H4^3*A4^2*F4-4*K4*G4^3*A4^2*E4-4*K4*B4^2*I4^3*C4-4*K4*G4^2*B4^2*I4*C4-4*K4*G4*A4^2*J4^2*E4+4*K4*G4*A4^2*H4^2*E4-4*K4*G4*A4^2*I4^2*E4+8*K4*A4^2*J4*I4*H4*E4+4*K4*B4^2*J4^2*I4*C4-4*K4*B4^2*H4^2*I4*C4+8*K4*G4*A4^2*J4*I4*F4+8*K4*G4*I4*H4*B4^2*D4+4*K4*G4^2*A4^2*I4*C4+4*K4*G4*I4^2*B4^2*E4+4*K4*G4*J4^2*B4^2*E4-4*K4*G4*H4^2*B4^2*E4-4*K4*A4^2*J4*I4^2*D4-8*K4*I4*G4*B4^2*J4*F4-4*K4*H4*G4^2*B4^2*F4+4*K4*J4*G4^2*A4^2*D4+4*K4*A4^2*J4*H4^2*D4-8*K4*H4*G4*A4^2*I4*D4+4*K4*H4*I4^2*B4^2*F4-8*K4*J4*I4*H4*B4^2*E4+4*K4*A4^2*H4^2*I4*C4-4*K4*A4^2*J4^2*I4*C4-8*G4*J4*I4*K4^2*F4-8*J4*I4*H4*K4^2*E4+8*K4*G4*B4^2*J4*H4*C4+8*H4*G4*I4*K4^2*D4+8*G4*J4*H4*K4^2*C4+4*J4^2*H4*K4^2*F4-4*G4^2*I4*K4^2*C4-4*H4^2*I4*K4^2*C4+4*J4^2*I4*K4^2*C4+4*J4*I4^2*K4^2*D4-4*G4^2*H4*K4^2*F4-1*B4^4*J4*H4^2*D4-1*B4^4*G4*H4^2*E4-2*B4^4*J4*I4*H4*E4+B4^4*I4^2*J4*D4+I4*B4^4*J4^2*C4+2*H4*G4*B4^4*J4*C4-1*I4*G4^2*B4^4*C4+B4^4*H4*J4^2*F4+B4^4*G4*I4^2*E4+B4^4*G4*J4^2*E4-2*G4*B4^4*J4*I4*F4+2*G4*B4^4*I4*H4*D4-1*G4^2*B4^4*J4*D4-1*G4^2*B4^4*H4*F4+B4^4*I4^2*H4*F4+A4^4*C4*I4*J4^2+A4^4*E4*G4*I4^2+2*A4^4*D4*G4*I4*H4-1*A4^4*C4*I4^3-1*A4^4*E4*G4*H4^2-1*A4^4*C4*I4*H4^2+A4^4*E4*G4^3-1*A4^4*F4*G4^2*H4+2*A4^4*C4*H4*G4*J4+A4^4*F4*J4^2*H4+A4^4*F4*I4^2*H4+A4^4*E4*G4*J4^2+2*A4^2*B4^2*I4^2*H4*F4-2*A4^2*B4^2*I4*H4^2*C4-2*A4^2*B4^2*J4*H4^2*D4-2*A4^4*E4*J4*I4*H4-4*A4^2*G4*B4^2*J4*I4*F4+2*A4^2*B4^2*I4^2*J4*D4-2*A4^2*B4^2*G4*H4^2*E4-2*A4^2*J4^3*B4^2*D4+4*A4^2*H4*G4*B4^2*J4*C4+2*A4^2*B4^2*G4^3*E4-2*A4^2*G4^2*B4^2*J4*D4-2*A4^2*I4*G4^2*B4^2*C4+4*A4^2*G4*B4^2*I4*H4*D4-2*A4^2*B4^2*I4^3*C4+2*A4^2*B4^2*G4*J4^2*E4-2*A4^2*G4^2*B4^2*H4*F4+2*A4^2*I4*B4^2*J4^2*C4-1*A4^4*D4*J4^3+B4^4*H4^3*F4-1*J4^3*B4^4*D4-1*B4^4*I4^3*C4+B4^4*G4^3*E4)/(2*G4^2*J4^2+2*I4^2*H4^2-2*G4^2*H4^2+G4^4+I4^4+H4^4+2*G4^2*I4^2-8*G4*J4*I4*H4+J4^4+2*J4^2*H4^2-2*I4^2*J4^2)/B4/A4 -> 6.621069898e-10 | R27: =0.5*(-2*G4*I4^2*K4*A4*F4+2*A4*I4^3*K4*D4+3*A4^2*I4^3*F4*B4-1*I4*G4^2*B4^3*F4-1*I4*G4^2*A4^3*D4-1*A4^3*H4^2*I4*D4+3*B4^2*I4^3*A4*D4-1*B4^3*I4^3*F4-1*A4^3*I4^3*D4-1*J4^3*B4^3*E4-1*A4^3*J4^3*C4-1*G4^3*B4^3*D4+G4^3*A4^3*F4+3*A4^2*J4^2*H4*C4*B4-3*G4^2*A4^2*H4*C4*B4+3*G4^2*H4*B4^2*A4*E4-2*G4*A4^3*J4*I4*E4-6*G4*A4^2*J4*I4*C4*B4+6*G4*J4*I4*B4^2*A4*E4+2*G4*J4*I4*B4^3*C4-3*B4^2*I4^2*H4*A4*E4-3*B4^2*J4^2*H4*A4*E4+3*A4^2*I4^2*H4*C4*B4+G4^2*H4*B4^3*C4+3*A4^2*H4^3*C4*B4-1*B4^3*I4^2*H4*C4-1*B4^3*J4^2*H4*C4+A4^3*I4^2*H4*E4+A4^3*J4^2*H4*E4-1*G4^2*A4^3*H4*E4+6*J4*H4*B4^2*I4*A4*F4+2*J4*H4*B4^3*I4*D4+3*G4^3*A4^2*D4*B4+3*G4*A4^2*J4^2*D4*B4-3*G4*H4^2*A4^2*D4*B4-6*J4*A4^2*H4*I4*D4*B4-3*G4*B4^2*I4^2*A4*F4-1*G4*B4^3*I4^2*D4-1*G4*B4^3*J4^2*D4+G4*A4^3*I4^2*F4+G4*A4^3*J4^2*F4-1*G4*H4^2*A4^3*F4-3*B4^2*H4^3*A4*E4-3*G4*B4^2*J4^2*A4*F4+2*G4*H4*B4^3*I4*E4+3*G4*H4^2*B4^2*A4*F4+3*G4*A4^2*I4^2*D4*B4-2*J4*A4^3*H4*I4*F4-1*B4^3*H4^3*C4+A4^3*H4^3*E4-6*G4*A4^2*H4*I4*E4*B4-6*G4*H4*B4^2*I4*A4*C4-3*A4^2*J4*I4^2*E4*B4+3*G4^2*A4^2*J4*E4*B4+3*G4^2*J4*B4^2*A4*C4+3*A4^2*J4*H4^2*E4*B4-1*G4^2*J4*B4^3*E4-3*G4^3*B4^2*A4*F4+G4*H4^2*B4^3*D4+2*G4*A4^3*H4*I4*C4+3*J4*B4^2*H4^2*A4*C4-1*A4^3*J4*H4^2*C4+A4^3*J4*I4^2*C4-1*G4^2*A4^3*J4*C4+3*A4^2*J4^3*E4*B4+J4*B4^3*I4^2*E4-1*J4*B4^3*H4^2*E4-3*J4*B4^2*I4^2*A4*C4-6*H4*G4*A4^2*J4*F4*B4 -6*H4*G4*J4*B4^2*A4*D4+I4*A4^3*J4^2*D4+3*I4*G4^2*A4^2*F4*B4+3*A4^2*H4^2*I4*F4*B4+3*H4^2*B4^2*I4*A4*D4-1*H4^2*B4^3*I4*F4+I4*B4^3*J4^2*F4+3*I4*G4^2*B4^2*A4*D4+2*H4*G4*A4^3*J4*D4+2*H4*G4*J4*B4^3*F4-3*I4*B4^2*J4^2*A4*D4-3*I4*A4^2*J4^2*F4*B4+3*J4^3*B4^2*A4*C4+4*J4*I4*H4*B4*K4*D4-2*J4*G4^2*K4*E4*B4-2*G4^3*B4*K4*D4-2*H4^3*B4*K4*C4-2*I4^3*K4*F4*B4-2*G4^2*I4*K4*F4*B4-2*H4^2*I4*K4*F4*B4+4*G4*J4*H4*K4*F4*B4-2*G4*I4^2*B4*K4*D4+2*G4*H4^2*B4*K4*D4+2*J4^2*I4*K4*F4*B4-2*G4*J4^2*B4*K4*D4+2*J4*I4^2*K4*E4*B4-2*H4*J4^2*B4*K4*C4-2*H4*I4^2*B4*K4*C4+4*I4*G4*B4*J4*K4*C4-2*J4^3*K4*E4*B4+2*H4*G4^2*B4*K4*C4+4*H4*G4*I4*K4*E4*B4+2*H4*G4^2*K4*A4*E4+2*A4*J4*H4^2*K4*C4-4*H4*G4*A4*I4*K4*C4-2*G4^3*K4*A4*F4-2*J4*H4^2*K4*E4*B4-2*H4*I4^2*K4*A4*E4-2*H4*J4^2*K4*A4*E4+2*J4*G4^2*A4*K4*C4+4*J4*I4*H4*K4*A4*F4-2*H4^3*K4*A4*E4+4*I4*G4*J4*K4*A4*E4-2*A4*J4*I4^2*K4*C4+2*A4*J4^3*K4*C4+2*A4*H4^2*I4*K4*D4+2*G4*H4^2*K4*A4*F4-2*A4*J4^2*I4*K4*D4-2*G4*J4^2*K4*A4*F4+2*G4^2*A4*I4*K4*D4-4*G4*A4*J4*H4*K4*D4)/(2*G4^2*J4^2+2*I4^2*H4^2-2*G4^2*H4^2+G4^4+I4^4+H4^4+2*G4^2*I4^2-8*G4*J4*I4*H4+J4^4+2*J4^2*H4^2-2*I4^2*J4^2)/B4/A4 -> -4.538636624e-11 | S27: =0.5*(2*G4^2*H4*K4*F4+I4^3*B4^2*C4-2*G4^3*K4*E4+2*I4^3*K4*C4-2*H4^3*K4*F4+2*J4^3*K4*D4-1*H4^3*B4^2*F4+A4^2*H4^3*F4-1*I4^3*A4^2*C4+2*H4^3*B4*A4*D4+2*A4*J4^3*F4*B4+2*G4^3*B4*A4*C4+2*A4*I4^3*E4*B4+2*G4*J4^2*B4*A4*C4-2*G4*H4^2*B4*A4*C4+2*H4*J4^2*B4*A4*D4-2*A4*J4*I4^2*F4*B4-4*I4*G4*B4*J4*A4*D4-4*B4*J4*I4*H4*A4*C4+2*A4*H4^2*I4*E4*B4-2*A4*J4^2*I4*E4*B4+2*G4^2*A4*I4*E4*B4-4*G4*A4*J4*H4*E4*B4-2*H4*G4^2*B4*A4*D4+2*J4*G4^2*A4*F4*B4+2*A4*J4*H4^2*F4*B4-4*H4*G4*A4*I4*F4*B4+2*H4*I4^2*B4*A4*D4+2*G4*I4^2*B4*A4*C4-2*G4*J4^2*K4*E4+2*G4*H4^2*K4*E4+2*J4*H4^2*K4*D4-2*I4^2*H4*K4*F4-2*G4*I4^2*K4*E4-2*J4^2*H4*K4*F4+2*G4^2*I4*K4*C4+2*H4^2*I4*K4*C4+4*J4*I4*H4*K4*E4-2*J4^2*I4*K4*C4-4*G4*J4*H4*K4*C4+4*G4*J4*I4*K4*F4-2*J4*I4^2*K4*D4+2*J4*G4^2*K4*D4-4*H4*G4*I4*K4*D4+B4^2*G4*H4^2*E4-2*G4*I4*H4*B4^2*D4-2*H4*G4*J4*B4^2*C4+2*B4^2*J4*I4*H4*E4-1*B4^2*G4*I4^2*E4-1*B4^2*G4^3*E4+I4*G4^2*B4^2*C4-1*B4^2*G4*J4^2*E4+J4^3*B4^2*D4+I4*H4^2*B4^2*C4-1*I4^2*J4*B4^2*D4-1*J4^2*B4^2*H4*F4-1*B4^2*I4^2*H4*F4+J4*H4^2*B4^2*D4-1*I4*J4^2*B4^2*C4+2*G4*B4^2*I4*J4*F4+G4^2*J4*B4^2*D4+G4^2*B4^2*H4*F4+2*H4*G4*J4*A4^2*C4-2*A4^2*J4*I4*H4*E4+A4^2*G4^3*E4+2*G4*I4*H4*A4^2*D4-2*G4*A4^2*J4*I4*F4-1*A4^2*G4*H4^2*E4-1*I4*H4^2*A4^2*C4-1*J4^3*A4^2*D4-1*I4*G4^2*A4^2*C4-1*J4*H4^2*A4^2*D4+I4*J4^2*A4^2*C4+A4^2*G4*J4^2*E4+A4^2*G4*I4^2*E4-1*G4^2*A4^2*H4*F4-1*G4^2*J4*A4^2*D4+A4^2*I4^2*H4*F4+A4^2*H4*J4^2*F4+I4^2*J4*A4^2*D4)/(2*G4^2*J4^2+2*I4^2*H4^2-2*G4^2*H4^2+G4^4+I4^4+H4^4+2*G4^2*I4^2-8*G4*J4*I4*H4+J4^4+2*J4^2*H4^2-2*I4^2*J4^2)/B4/A4 -> 1
D28: =-0.5*(A5^2*F5*I5^2*H5+B5^2*D5*J5^3-1*A5^2*D5*J5^3+A5^2*C5*I5*J5^2-2*A5*E5*B5*I5^3+2*A5*F5*B5*I5^2*J5+2*A5*E5*J5^2*B5*I5-1*B5^2*F5*H5^3+B5^2*C5*I5^3-1*A5^2*C5*I5^3+B5^2*D5*J5*H5^2+A5^2*F5*H5^3+2*B5^2*E5*J5*I5*H5+B5^2*C5*I5*H5^2-1*B5^2*F5*J5^2*H5-1*B5^2*F5*I5^2*H5-2*A5*F5*B5*J5*H5^2-2*A5*D5*B5*I5^2*H5-2*A5*E5*I5*H5^2*B5-2*A5*D5*H5^3*B5-2*A5*D5*J5^2*B5*H5-2*A5^2*E5*J5*I5*H5-1*A5^2*D5*J5*H5^2-1*A5^2*C5*I5*H5^2+A5^2*F5*J5^2*H5-1*B5^2*E5*G5^3+4*A5*C5*B5*J5*I5*H5+B5^2*D5*G5^2*J5+B5^2*C5*I5*G5^2+B5^2*F5*G5^2*H5-2*B5^2*C5*H5*G5*J5+2*B5^2*F5*G5*I5*J5-1*B5^2*E5*G5*I5^2-1*B5^2*E5*G5*J5^2+B5^2*E5*G5*H5^2-2*B5^2*D5*G5*I5*H5+4*A5*D5*G5*B5*I5*J5-2*A5^2*F5*G5*I5*J5+4*A5*F5*G5*B5*I5*H5-1*A5^2*D5*G5^2*J5-1*A5^2*C5*I5*G5^2-1*A5^2*F5*G5^2*H5+2*A5^2*C5*H5*G5*J5+A5^2*E5*G5*I5^2+A5^2*E5*G5*J5^2-1*A5^2*E5*G5*H5^2+A5^2*E5*G5^3+2*A5^2*D5*G5*I5*H5-2*A5*C5*B5*G5^3-2*A5*F5*G5^2*B5*J5+2*A5*C5*B5*G5*H5^2-2*A5*E5*G5^2*B5*I5-2*A5*C5*B5*G5*J5^2-2*A5*C5*B5*G5*I5^2+2*A5*D5*G5^2*B5*H5+4*A5*E5*G5*J5*B5*H5-2*A5*F5*B5*J5^3-1*B5^2*D5*I5^2*J5-1*B5^2*C5*I5*J5^2+A5^2*D5*I5^2*J5)/(2*G5^2*J5^2+2*I5^2*H5^2-2*G5^2*H5^2+G5^4+I5^4+H5^4+2*G5^2*I5^2-8*G5*J5*I5*H5+J5^4+2*J5^2*H5^2-2*I5^2*J5^2)/A5/B5 -> -15.84962273 | E28: =-0.5*(F5*G5^2*I5*B5^3-3*D5*G5^3*A5^2*B5-1*C5*A5^3*H5^2*J5-3*C5*A5^2*H5^3*B5-1*C5*J5*G5^2*A5^3+C5*B5^3*H5^3+2*C5*H5^3*B5*K5+3*C5*J5*G5^2*A5*B5^2+6*C5*I5*G5*A5^2*J5*B5-3*C5*H5*A5^2*B5*I5^2+2*C5*J5*G5^2*A5*K5-4*C5*H5*G5*A5*I5*K5+2*C5*A5*J5^3*K5+C5*H5*B5^3*J5^2+3*C5*A5*B5^2*J5^3+2*C5*H5*I5^2*B5*K5+2*C5*H5*J5^2*B5*K5-6*C5*H5*G5*A5*B5^2*I5-2*C5*A5*J5*I5^2*K5-3*C5*A5*I5^2*J5*B5^2-1*C5*H5*G5^2*B5^3+C5*A5^3*I5^2*J5+3*C5*A5*B5^2*H5^2*J5+2*C5*A5*J5*H5^2*K5-2*C5*H5*G5^2*B5*K5+3*C5*H5*G5^2*A5^2*B5+2*C5*H5*G5*A5^3*I5-1*C5*A5^3*J5^3+C5*H5*B5^3*I5^2-3*C5*H5*A5^2*B5*J5^2-4*D5*J5*I5*H5*B5*K5+2*D5*G5*A5^3*H5*J5+2*D5*G5*J5^2*B5*K5-2*D5*B5^3*H5*I5*J5+D5*G5^3*B5^3-1*D5*A5^3*I5^3+D5*A5^3*J5^2*I5-2*C5*I5*G5*J5*B5^3-4*C5*I5*G5*B5*J5*K5-3*D5*A5*J5^2*B5^2*I5+3*D5*A5*B5^2*I5^3+2*D5*A5*H5^2*I5*K5+2*D5*G5^2*A5*I5*K5+2*D5*A5*I5^3*K5+3*D5*G5^2*A5*B5^2*I5-1*D5*G5*B5^3*H5^2-3*D5*G5*A5^2*B5*I5^2-1*D5*G5^2*A5^3*I5-2*D5*G5*H5^2*B5*K5+2*D5*G5*I5^2*B5*K5-2*D5*A5*J5^2*I5*K5+D5*G5*B5^3*I5^2+3*D5*A5*H5^2*I5*B5^2-1*D5*A5^3*H5^2*I5+2*E5*J5^3*B5*K5+E5*J5^2*A5^3*H5-3*E5*J5*A5^2*H5^2*B5+2*E5*J5*H5^2*B5*K5-2*E5*J5^2*A5*H5*K5+E5*J5^3*B5^3+E5*H5^3*A5^3-4*D5*G5*A5*J5*H5*K5-3*D5*G5*A5^2*B5*J5^2+3*D5*G5*A5^2*H5^2*B5+6*D5*A5^2*H5*I5*J5*B5-6*D5*G5*A5*B5^2*H5*J5+2*D5*G5^3*B5*K5-3*E5*J5^3*A5^2*B5+D5*G5*B5^3*J5^2+3*E5*I5^2*A5^2*J5*B5-3*E5*H5^3*A5*B5^2+F5*B5^3*H5^2*I5-3*E5*J5^2*A5*B5^2*H5-2*E5*H5^3*A5*K5+E5*I5^2*H5*A5^3-1*E5*I5^2*J5*B5^3-1*E5*G5^2*H5*A5^3+E5*G5^2*J5*B5^3-2*E5*I5^2*H5*A5*K5-2*E5*I5^2*B5*J5*K5+2*E5*G5^2*B5*J5*K5-3*E5*I5^2*H5*A5*B5^2-3*E5*G5^2*A5^2*J5*B5+2*E5*G5^2*H5*A5*K5+6*E5*G5*A5*I5*J5*B5^2+3*E5*G5^2*H5*A5*B5^2+E5*J5*B5^3*H5^2-2*E5*G5*A5^3*I5*J5+F5*G5^3*A5^3+F5*B5^3*I5^3-4*E5*G5*I5*H5*B5*K5+6*E5*G5*I5*H5*A5^2*B5+4*E5*G5*A5*J5*I5*K5-2*E5*G5*I5*H5*B5^3+4*F5*A5*J5*I5*H5*K5-1*F5*G5*A5^3*H5^2+F5*G5*A5^3*I5^2+2*F5*G5^2*B5*I5*K5-3*F5*G5*A5*B5^2*I5^2-3*F5*G5^2*A5^2*I5*B5-2*F5*B5*J5^2*I5*K5+2*F5*B5*H5^2*I5*K5-3*F5*A5^2*B5*H5^2*I5-2*F5*A5^3*H5*I5*J5+3*F5*A5^2*B5*J5^2*I5+F5*G5*A5^3*J5^2+2*F5*G5*A5*H5^2*K5-2*F5*G5*A5*J5^2*K5-2*F5*G5*A5*I5^2*K5-2*F5*G5*H5*J5*B5^3+3*F5*G5*A5*B5^2*H5^2-3*F5*G5*A5*B5^2*J5^2+6*F5*G5*A5^2*H5*J5*B5-4*F5*G5*B5*J5*H5*K5+2*F5*B5*I5^3*K5-1*F5*B5^3*J5^2*I5+6*F5*A5*H5*I5*J5*B5^2-3*F5*G5^3*A5*B5^2-2*F5*G5^3*A5*K5-3*F5*A5^2*B5*I5^3)/A5/B5/(2*G5^2*A5^2*J5^2+G5^4*A5^2+A5^2*J5^4+A5^2*H5^4+2*G5^2*B5^2*I5^2-8*G5*A5^2*J5*I5*H5+2*G5^2*B5^2*J5^2+B5^2*H5^4+B5^2*I5^4-8*G5*B5^2*J5*I5*H5+2*A5^2*I5^2*H5^2+G5^4*B5^2-2*G5^2*A5^2*H5^2+2*G5^2*A5^2*I5^2+A5^2*I5^4+2*B5^2*J5^2*H5^2-2*B5^2*I5^2*J5^2-2*G5^2*B5^2*H5^2+2*B5^2*I5^2*H5^2+B5^2*J5^4+2*A5^2*J5^2*H5^2-2*A5^2*I5^2*J5^2) -> -0.7567833782 | F28: =0.5*(-1*D5*J5*H5^2-1*C5*I5^3+E5*G5^3-1*C5*I5*H5^2+C5*I5*J5^2-1*D5*J5^3+D5*I5^2*J5+2*D5*G5*I5*H5-2*E5*J5*I5*H5-1*E5*G5*H5^2+E5*G5*J5^2+E5*G5*I5^2-2*F5*G5*I5*J5+2*C5*H5*G5*J5+F5*H5^3-1*F5*G5^2*H5-1*C5*I5*G5^2-1*D5*G5^2*J5+F5*J5^2*H5+F5*I5^2*H5)/(2*G5^2*J5^2+2*I5^2*H5^2-2*G5^2*H5^2+G5^4+I5^4+H5^4+2*G5^2*I5^2-8*G5*J5*I5*H5+J5^4+2*J5^2*H5^2-2*I5^2*J5^2)/A5/B5 -> 0.004173780431 | G28: =0.5*(-1*F5*G5^2*B5*I5-1*C5*H5^3*B5-1*D5*G5^2*A5*I5+2*D5*G5*A5*J5*H5-1*D5*A5*H5^2*I5-1*D5*A5*I5^3+2*C5*I5*G5*B5*J5+C5*H5*G5^2*B5-1*E5*J5^3*B5-1*D5*G5*J5^2*B5+C5*A5*J5*I5^2-1*C5*A5*J5*H5^2-1*C5*H5*J5^2*B5+E5*H5^3*A5-1*C5*H5*I5^2*B5+2*D5*J5*I5*H5*B5+2*C5*H5*G5*A5*I5-1*C5*A5*J5^3-1*C5*J5*G5^2*A5-1*D5*G5^3*B5+E5*J5^2*A5*H5+D5*A5*J5^2*I5-1*E5*J5*H5^2*B5+D5*G5*H5^2*B5-1*D5*G5*I5^2*B5+F5*B5*J5^2*I5-1*F5*B5*H5^2*I5-2*F5*A5*J5*I5*H5-1*F5*B5*I5^3-2*E5*G5*A5*J5*I5+2*E5*G5*I5*H5*B5-1*E5*G5^2*B5*J5-1*E5*G5^2*H5*A5+E5*I5^2*H5*A5+E5*I5^2*B5*J5+F5*G5^3*A5+F5*G5*A5*I5^2+2*F5*G5*B5*J5*H5-1*F5*G5*A5*H5^2+F5*G5*A5*J5^2)/A5/B5/(2*G5^2*A5^2*J5^2+G5^4*A5^2+A5^2*J5^4+A5^2*H5^4+2*G5^2*B5^2*I5^2-8*G5*A5^2*J5*I5*H5+2*G5^2*B5^2*J5^2+B5^2*H5^4+B5^2*I5^4-8*G5*B5^2*J5*I5*H5+2*A5^2*I5^2*H5^2+G5^4*B5^2-2*G5^2*A5^2*H5^2+2*G5^2*A5^2*I5^2+A5^2*I5^4+2*B5^2*J5^2*H5^2-2*B5^2*I5^2*J5^2-2*G5^2*B5^2*H5^2+2*B5^2*I5^2*H5^2+B5^2*J5^4+2*A5^2*J5^2*H5^2-2*A5^2*I5^2*J5^2) -> 0.004783403308 | H28: =-0.5*(-1*F5*G5^2*I5*B5^3-1*D5*G5^3*A5^2*B5-1*C5*A5^3*H5^2*J5-1*C5*A5^2*H5^3*B5-1*C5*J5*G5^2*A5^3-1*C5*B5^3*H5^3-1*C5*J5*G5^2*A5*B5^2+2*C5*I5*G5*A5^2*J5*B5-1*C5*H5*A5^2*B5*I5^2-1*C5*H5*B5^3*J5^2-1*C5*A5*B5^2*J5^3+2*C5*H5*G5*A5*B5^2*I5+C5*A5*I5^2*J5*B5^2+C5*H5*G5^2*B5^3+C5*A5^3*I5^2*J5-1*C5*A5*B5^2*H5^2*J5+C5*H5*G5^2*A5^2*B5+2*C5*H5*G5*A5^3*I5-1*C5*A5^3*J5^3-1*C5*H5*B5^3*I5^2-1*C5*H5*A5^2*B5*J5^2+2*D5*G5*A5^3*H5*J5+2*D5*B5^3*H5*I5*J5-1*D5*G5^3*B5^3-1*D5*A5^3*I5^3+D5*A5^3*J5^2*I5+2*C5*I5*G5*J5*B5^3+D5*A5*J5^2*B5^2*I5-1*D5*A5*B5^2*I5^3-1*D5*G5^2*A5*B5^2*I5+D5*G5*B5^3*H5^2-1*D5*G5*A5^2*B5*I5^2-1*D5*G5^2*A5^3*I5-1*D5*G5*B5^3*I5^2-1*D5*A5*H5^2*I5*B5^2-1*D5*A5^3*H5^2*I5+E5*J5^2*A5^3*H5-1*E5*J5*A5^2*H5^2*B5-1*E5*J5^3*B5^3+E5*H5^3*A5^3-1*D5*G5*A5^2*B5*J5^2+D5*G5*A5^2*H5^2*B5+2*D5*A5^2*H5*I5*J5*B5+2*D5*G5*A5*B5^2*H5*J5-1*E5*J5^3*A5^2*B5-1*D5*G5*B5^3*J5^2+E5*I5^2*A5^2*J5*B5+E5*H5^3*A5*B5^2-1*F5*B5^3*H5^2*I5+E5*J5^2*A5*B5^2*H5+E5*I5^2*H5*A5^3+E5*I5^2*J5*B5^3-1*E5*G5^2*H5*A5^3-1*E5*G5^2*J5*B5^3+E5*I5^2*H5*A5*B5^2-1*E5*G5^2*A5^2*J5*B5-2*E5*G5*A5*I5*J5*B5^2-1*E5*G5^2*H5*A5*B5^2-1*E5*J5*B5^3*H5^2-2*E5*G5*A5^3*I5*J5+F5*G5^3*A5^3-1*F5*B5^3*I5^3+2*E5*G5*I5*H5*A5^2*B5+2*E5*G5*I5*H5*B5^3-1*F5*G5*A5^3*H5^2+F5*G5*A5^3*I5^2+F5*G5*A5*B5^2*I5^2-1*F5*G5^2*A5^2*I5*B5-1*F5*A5^2*B5*H5^2*I5-2*F5*A5^3*H5*I5*J5+F5*A5^2*B5*J5^2*I5+F5*G5*A5^3*J5^2+2*F5*G5*H5*J5*B5^3-1*F5*G5*A5*B5^2*H5^2+F5*G5*A5*B5^2*J5^2+2*F5*G5*A5^2*H5*J5*B5+F5*B5^3*J5^2*I5-2*F5*A5*H5*I5*J5*B5^2+F5*G5^3*A5*B5^2-1*F5*A5^2*B5*I5^3)/(2*G5^2*J5^2+2*I5^2*H5^2-2*G5^2*H5^2+G5^4+I5^4+H5^4+2*G5^2*I5^2-8*G5*J5*I5*H5+J5^4+2*J5^2*H5^2-2*I5^2*J5^2)/A5/B5 -> -147.2516381 | I28: =-0.5*(A5^2*F5*I5^2*H5+B5^2*D5*J5^3-1*A5^2*D5*J5^3+A5^2*C5*I5*J5^2-2*A5*E5*B5*I5^3+2*A5*F5*B5*I5^2*J5+2*A5*E5*J5^2*B5*I5+2*J5^3*K5*D5-2*G5^3*K5*E5-2*H5^3*K5*F5+2*H5^2*I5*K5*C5+2*G5^2*I5*K5*C5-2*J5^2*I5*K5*C5+2*J5*H5^2*K5*D5+2*J5*G5^2*K5*D5+2*G5*H5^2*K5*E5-2*G5*J5^2*K5*E5-2*G5*I5^2*K5*E5-2*J5^2*H5*K5*F5-2*I5^2*H5*K5*F5+2*G5^2*H5*K5*F5-2*J5*I5^2*K5*D5-4*H5*G5*I5*K5*D5+4*G5*J5*I5*K5*F5+4*J5*I5*H5*K5*E5-4*G5*J5*H5*K5*C5-1*B5^2*F5*H5^3+B5^2*C5*I5^3-1*A5^2*C5*I5^3+B5^2*D5*J5*H5^2+A5^2*F5*H5^3+2*B5^2*E5*J5*I5*H5+B5^2*C5*I5*H5^2-1*B5^2*F5*J5^2*H5-1*B5^2*F5*I5^2*H5-2*A5*F5*B5*J5*H5^2-2*A5*D5*B5*I5^2*H5-2*A5*E5*I5*H5^2*B5-2*A5*D5*H5^3*B5+2*I5^3*K5*C5-2*A5*D5*J5^2*B5*H5-2*A5^2*E5*J5*I5*H5-1*A5^2*D5*J5*H5^2-1*A5^2*C5*I5*H5^2+A5^2*F5*J5^2*H5-1*B5^2*E5*G5^3+4*A5*C5*B5*J5*I5*H5+B5^2*D5*G5^2*J5+B5^2*C5*I5*G5^2+B5^2*F5*G5^2*H5-2*B5^2*C5*H5*G5*J5+2*B5^2*F5*G5*I5*J5-1*B5^2*E5*G5*I5^2-1*B5^2*E5*G5*J5^2+B5^2*E5*G5*H5^2-2*B5^2*D5*G5*I5*H5+4*A5*D5*G5*B5*I5*J5-2*A5^2*F5*G5*I5*J5+4*A5*F5*G5*B5*I5*H5-1*A5^2*D5*G5^2*J5-1*A5^2*C5*I5*G5^2-1*A5^2*F5*G5^2*H5+2*A5^2*C5*H5*G5*J5+A5^2*E5*G5*I5^2+A5^2*E5*G5*J5^2-1*A5^2*E5*G5*H5^2+A5^2*E5*G5^3+2*A5^2*D5*G5*I5*H5-2*A5*C5*B5*G5^3-2*A5*F5*G5^2*B5*J5+2*A5*C5*B5*G5*H5^2-2*A5*E5*G5^2*B5*I5-2*A5*C5*B5*G5*J5^2-2*A5*C5*B5*G5*I5^2+2*A5*D5*G5^2*B5*H5+4*A5*E5*G5*J5*B5*H5-2*A5*F5*B5*J5^3-1*B5^2*D5*I5^2*J5-1*B5^2*C5*I5*J5^2+A5^2*D5*I5^2*J5)/(2*G5^2*J5^2+2*I5^2*H5^2-2*G5^2*H5^2+G5^4+I5^4+H5^4+2*G5^2*I5^2-8*G5*J5*I5*H5+J5^4+2*J5^2*H5^2-2*I5^2*J5^2)/A5/B5 -> -15.690822 | J28: =0.5*(F5*G5^2*B5*I5+C5*H5^3*B5-1*D5*G5^2*A5*I5+2*D5*G5*A5*J5*H5-1*D5*A5*H5^2*I5-1*D5*A5*I5^3-2*C5*I5*G5*B5*J5-1*C5*H5*G5^2*B5+E5*J5^3*B5+D5*G5*J5^2*B5+C5*A5*J5*I5^2-1*C5*A5*J5*H5^2+C5*H5*J5^2*B5+E5*H5^3*A5+C5*H5*I5^2*B5-2*D5*J5*I5*H5*B5+2*C5*H5*G5*A5*I5-1*C5*A5*J5^3-1*C5*J5*G5^2*A5+D5*G5^3*B5+E5*J5^2*A5*H5+D5*A5*J5^2*I5+E5*J5*H5^2*B5-1*D5*G5*H5^2*B5+D5*G5*I5^2*B5-1*F5*B5*J5^2*I5+F5*B5*H5^2*I5-2*F5*A5*J5*I5*H5+F5*B5*I5^3-2*E5*G5*A5*J5*I5-2*E5*G5*I5*H5*B5+E5*G5^2*B5*J5-1*E5*G5^2*H5*A5+E5*I5^2*H5*A5-1*E5*I5^2*B5*J5+F5*G5^3*A5+F5*G5*A5*I5^2-2*F5*G5*B5*J5*H5-1*F5*G5*A5*H5^2+F5*G5*A5*J5^2)/(2*G5^2*J5^2+2*I5^2*H5^2-2*G5^2*H5^2+G5^4+I5^4+H5^4+2*G5^2*I5^2-8*G5*J5*I5*H5+J5^4+2*J5^2*H5^2-2*I5^2*J5^2)/A5/B5 -> -0.7567833782 | K28: =0.5*(-1*D5*J5*H5^2-1*C5*I5^3+E5*G5^3-1*C5*I5*H5^2+C5*I5*J5^2-1*D5*J5^3+D5*I5^2*J5+2*D5*G5*I5*H5-2*E5*J5*I5*H5-1*E5*G5*H5^2+E5*G5*J5^2+E5*G5*I5^2-2*F5*G5*I5*J5+2*C5*H5*G5*J5+F5*H5^3-1*F5*G5^2*H5-1*C5*I5*G5^2-1*D5*G5^2*J5+F5*J5^2*H5+F5*I5^2*H5)/(2*G5^2*J5^2+2*I5^2*H5^2-2*G5^2*H5^2+G5^4+I5^4+H5^4+2*G5^2*I5^2-8*G5*J5*I5*H5+J5^4+2*J5^2*H5^2-2*I5^2*J5^2)/A5/B5 -> 0.004173780431 | L28: =-0.5*(-1*B5^4*I5*H5^2*C5-4*A5^2*B5^2*J5*I5*H5*E5+2*A5^2*B5^2*H5*J5^2*F5+2*A5^2*B5^2*G5*I5^2*E5+2*A5^2*B5^2*H5^3*F5-1*A5^4*C5*I5*G5^2-2*A5^4*F5*G5*I5*J5+A5^4*D5*I5^2*J5-1*A5^4*D5*J5*H5^2-1*A5^4*D5*G5^2*J5+A5^4*F5*H5^3-1*B5^4*J5*H5^2*D5-1*B5^4*G5*H5^2*E5-2*B5^4*J5*I5*H5*E5+B5^4*I5^2*J5*D5+I5*B5^4*J5^2*C5+2*H5*G5*B5^4*J5*C5-1*I5*G5^2*B5^4*C5+B5^4*H5*J5^2*F5+B5^4*G5*I5^2*E5+B5^4*G5*J5^2*E5-2*G5*B5^4*J5*I5*F5+2*G5*B5^4*I5*H5*D5-1*G5^2*B5^4*J5*D5-1*G5^2*B5^4*H5*F5+B5^4*I5^2*H5*F5+A5^4*C5*I5*J5^2+A5^4*E5*G5*I5^2+2*A5^4*D5*G5*I5*H5-1*A5^4*C5*I5^3-1*A5^4*E5*G5*H5^2-1*A5^4*C5*I5*H5^2+A5^4*E5*G5^3-1*A5^4*F5*G5^2*H5+2*A5^4*C5*H5*G5*J5+A5^4*F5*J5^2*H5+A5^4*F5*I5^2*H5+A5^4*E5*G5*J5^2+2*A5^2*B5^2*I5^2*H5*F5-2*A5^2*B5^2*I5*H5^2*C5-2*A5^2*B5^2*J5*H5^2*D5-2*A5^4*E5*J5*I5*H5-4*A5^2*G5*B5^2*J5*I5*F5+2*A5^2*B5^2*I5^2*J5*D5-2*A5^2*B5^2*G5*H5^2*E5-2*A5^2*J5^3*B5^2*D5+4*A5^2*H5*G5*B5^2*J5*C5+2*A5^2*B5^2*G5^3*E5-2*A5^2*G5^2*B5^2*J5*D5-2*A5^2*I5*G5^2*B5^2*C5+4*A5^2*G5*B5^2*I5*H5*D5-2*A5^2*B5^2*I5^3*C5+2*A5^2*B5^2*G5*J5^2*E5-2*A5^2*G5^2*B5^2*H5*F5+2*A5^2*I5*B5^2*J5^2*C5-1*A5^4*D5*J5^3+B5^4*H5^3*F5-1*J5^3*B5^4*D5-1*B5^4*I5^3*C5+B5^4*G5^3*E5)/(2*G5^2*J5^2+2*I5^2*H5^2-2*G5^2*H5^2+G5^4+I5^4+H5^4+2*G5^2*I5^2-8*G5*J5*I5*H5+J5^4+2*J5^2*H5^2-2*I5^2*J5^2)/A5/B5 -> -128.4850902 | M28: =-0.5*(-1*H5^3*B5*A5^2*C5+H5^3*B5^2*A5*E5-1*B5^3*H5^2*I5*F5-1*H5^3*B5^3*C5-1*A5^3*J5^3*C5-1*A5^3*I5^3*D5-1*G5^3*B5^3*D5-1*B5^3*I5^3*F5+2*A5*I5^3*K5*D5-1*G5^2*A5^2*I5*F5*B5-1*A5^3*H5^2*I5*D5-1*A5*H5^2*I5*B5^2*D5-1*G5^2*A5^3*I5*D5-1*A5*I5^3*B5^2*D5-1*A5^2*I5^3*F5*B5+G5*H5^2*B5*A5^2*D5-1*G5*H5^2*B5^2*A5*F5+A5^2*J5^2*I5*F5*B5-1*G5*J5^2*B5^3*D5+2*G5*A5*J5*H5*B5^2*D5+2*G5*A5^2*J5*H5*F5*B5+2*G5*A5^3*J5*H5*D5+A5*J5^2*I5*B5^2*D5-1*G5*J5^2*B5*A5^2*D5-1*A5^2*H5^2*I5*F5*B5-1*G5^2*A5*I5*B5^2*D5+A5^3*J5^2*I5*D5-1*G5*I5^2*B5*A5^2*D5+G5*I5^2*B5^2*A5*F5-1*G5*I5^2*B5^3*D5+G5*H5^2*B5^3*D5+A5^3*J5*I5^2*C5+A5*J5*I5^2*B5^2*C5+H5^3*A5^3*E5+H5*J5^2*B5^2*A5*E5-1*H5*I5^2*B5^3*C5+2*I5*G5*B5^3*J5*C5-1*H5*J5^2*B5^3*C5+H5*G5^2*B5*A5^2*C5-1*A5^2*J5^3*E5*B5-1*A5*J5^3*B5^2*C5+H5*G5^2*B5^3*C5-1*H5*G5^2*B5^2*A5*E5+2*H5*G5*A5^3*I5*C5+2*H5*G5*A5*I5*B5^2*C5-1*A5*J5*H5^2*B5^2*C5+2*H5*G5*A5^2*I5*E5*B5+G5^3*B5^2*A5*F5-1*A5^3*J5*H5^2*C5-1*H5*I5^2*B5*A5^2*C5+H5*I5^2*B5^2*A5*E5+A5^2*J5*I5^2*E5*B5-1*H5*J5^2*B5*A5^2*C5-1*J5*H5^2*B5^3*E5+2*I5*G5*B5*J5*A5^2*C5-2*I5*G5*B5^2*J5*A5*E5+2*J5*I5*H5*B5*A5^2*D5+2*J5*I5*H5*B5^3*D5-1*J5*G5^2*A5^2*E5*B5-1*J5*G5^2*A5^3*C5-1*G5^3*B5*A5^2*D5-1*J5*G5^2*A5*B5^2*C5-2*J5*I5*H5*B5^2*A5*F5+G5*A5^3*J5^2*F5-2*A5^3*J5*I5*H5*F5+G5*A5^3*I5^2*F5+J5^2*A5^3*H5*E5-2*G5*A5^3*J5*I5*E5+I5^2*B5^3*J5*E5+I5^2*H5*A5^3*E5-1*G5^2*B5^3*J5*E5-1*G5^2*H5*A5^3*E5-1*G5^2*B5^3*I5*F5+2*G5*I5*H5*B5^3*E5+2*G5*B5^3*J5*H5*F5-1*G5*A5^3*H5^2*F5-1*A5^2*J5*H5^2*E5*B5+B5^3*J5^2*I5*F5+G5^3*A5^3*F5-1*J5^3*B5^3*E5+G5*J5^2*B5^2*A5*F5-2*H5^3*B5*K5*C5+4*J5*I5*H5*B5*K5*D5-2*J5*G5^2*K5*E5*B5-2*G5^3*B5*K5*D5-2*I5^3*K5*F5*B5-2*G5^2*I5*K5*F5*B5-2*H5^2*I5*K5*F5*B5-2*G5*J5^2*B5*K5*D5+2*G5*H5^2*B5*K5*D5+2*J5^2*I5*K5*F5*B5+4*G5*J5*H5*K5*F5*B5-2*G5*I5^2*B5*K5*D5+2*J5*I5^2*K5*E5*B5-2*H5*J5^2*B5*K5*C5-2*H5*I5^2*B5*K5*C5+4*I5*G5*B5*J5*K5*C5-2*J5^3*K5*E5*B5+4*H5*G5*I5*K5*E5*B5+2*H5*G5^2*B5*K5*C5-2*G5*I5^2*K5*A5*F5-4*G5*A5*J5*H5*K5*D5-2*A5*J5*I5^2*K5*C5-2*H5*I5^2*K5*A5*E5-2*H5*J5^2*K5*A5*E5-2*G5^3*K5*A5*F5+2*A5*J5*H5^2*K5*C5-4*H5*G5*A5*I5*K5*C5-2*J5*H5^2*K5*E5*B5+4*I5*G5*J5*K5*A5*E5+2*A5*J5^3*K5*C5+2*H5*G5^2*K5*A5*E5+2*J5*G5^2*A5*K5*C5+4*J5*I5*H5*K5*A5*F5-2*H5^3*K5*A5*E5+2*G5^2*A5*I5*K5*D5+2*A5*H5^2*I5*K5*D5-2*A5*J5^2*I5*K5*D5-2*G5*J5^2*K5*A5*F5+2*G5*H5^2*K5*A5*F5)/(2*G5^2*J5^2+2*I5^2*H5^2-2*G5^2*H5^2+G5^4+I5^4+H5^4+2*G5^2*I5^2-8*G5*J5*I5*H5+J5^4+2*J5^2*H5^2-2*I5^2*J5^2)/A5/B5 -> -176.0451383 | N28: =0.5*(-1*A5^2*C5*I5*H5^2+B5^2*I5*H5^2*C5-1*A5^2*C5*I5^3+A5^2*C5*I5*J5^2+B5^2*J5*H5^2*D5+A5^2*D5*I5^2*J5-2*A5*J5*I5^2*F5*B5+2*A5*G5^3*C5*B5+A5^2*F5*I5^2*H5-2*A5^2*E5*J5*I5*H5+2*A5*H5^2*I5*E5*B5+2*A5*J5*H5^2*F5*B5+2*A5*I5^2*H5*D5*B5+2*A5*J5^2*H5*D5*B5-4*A5*J5*I5*H5*C5*B5+2*A5*H5^3*D5*B5-2*A5*I5*J5^2*E5*B5-1*B5^2*H5*J5^2*F5-1*A5^2*D5*G5^2*J5+A5^2*E5*G5*I5^2+2*A5*J5^3*F5*B5+2*A5*I5^3*E5*B5-4*A5*H5*G5*J5*E5*B5+2*A5*I5*G5^2*E5*B5-2*A5*G5^2*H5*D5*B5-4*A5*G5*H5*I5*F5*B5-4*A5*G5*J5*I5*D5*B5-2*A5*G5*H5^2*C5*B5+2*A5*G5^2*J5*F5*B5+2*A5*G5*I5^2*C5*B5+2*A5*G5*J5^2*C5*B5-1*B5^2*I5^2*H5*F5+2*B5^2*J5*I5*H5*E5+A5^2*F5*J5^2*H5-1*A5^2*D5*J5*H5^2-1*B5^2*G5*I5^2*E5-1*B5^2*G5*J5^2*E5+2*G5*B5^2*J5*I5*F5-2*G5*B5^2*I5*H5*D5+G5^2*B5^2*H5*F5+G5^2*B5^2*J5*D5-2*H5*G5*B5^2*J5*C5+B5^2*I5^3*C5+I5*G5^2*B5^2*C5+B5^2*G5*H5^2*E5-1*A5^2*D5*J5^3-1*A5^2*C5*I5*G5^2-2*A5^2*F5*G5*I5*J5+2*A5^2*D5*G5*I5*H5-1*A5^2*F5*G5^2*H5-1*A5^2*E5*G5*H5^2+2*A5^2*C5*H5*G5*J5+A5^2*E5*G5*J5^2-1*B5^2*H5^3*F5+A5^2*F5*H5^3+J5^3*B5^2*D5-1*B5^2*G5^3*E5-1*B5^2*I5^2*J5*D5+A5^2*E5*G5^3-1*I5*B5^2*J5^2*C5)/(2*G5^2*J5^2+2*I5^2*H5^2-2*G5^2*H5^2+G5^4+I5^4+H5^4+2*G5^2*I5^2-8*G5*J5*I5*H5+J5^4+2*J5^2*H5^2-2*I5^2*J5^2)/A5/B5 -> -15.690822 | O28: =0.5*(-1*A5*H5^2*I5*D5+A5*J5^2*I5*D5-1*H5*G5^2*B5*C5+J5^3*E5*B5+H5^2*J5*E5*B5+I5^3*F5*B5+H5^3*B5*C5-2*H5*I5*J5*B5*D5+H5^2*I5*F5*B5-1*J5^2*I5*F5*B5+G5^3*B5*D5+G5^2*I5*F5*B5+G5*B5*J5^2*D5+J5*G5^2*E5*B5-2*H5*G5*I5*E5*B5+H5*B5*I5^2*C5-1*I5^2*J5*E5*B5+H5*B5*J5^2*C5-2*I5*G5*J5*B5*C5+2*G5*A5*H5*J5*D5-1*G5^2*A5*I5*D5-1*G5*H5^2*A5*F5+G5*I5^2*A5*F5+G5*J5^2*A5*F5-1*H5*G5^2*A5*E5-2*I5*G5*J5*A5*E5+2*H5*G5*A5*I5*C5+H5^3*A5*E5+H5*J5^2*A5*E5-1*A5*H5^2*J5*C5+A5*I5^2*J5*C5+H5*I5^2*A5*E5-2*H5*I5*J5*A5*F5-1*J5*G5^2*A5*C5-1*A5*J5^3*C5+G5^3*A5*F5-1*A5*I5^3*D5-2*G5*H5*J5*F5*B5+G5*B5*I5^2*D5-1*G5*H5^2*B5*D5)/(2*G5^2*J5^2+2*I5^2*H5^2-2*G5^2*H5^2+G5^4+I5^4+H5^4+2*G5^2*I5^2-8*G5*J5*I5*H5+J5^4+2*J5^2*H5^2-2*I5^2*J5^2)/A5/B5 -> -0.7567833782 | P28: =-0.5*(-2*G5^3*B5^2*K5*A5*F5+G5^3*B5^5*D5+B5^5*I5^3*F5+A5*I5^2*J5*B5^4*C5-2*A5^2*I5^2*J5*B5^3*E5+2*B5^3*H5^3*A5^2*C5+B5^4*H5^3*A5*E5+B5^5*H5^3*C5-1*A5^5*J5^3*C5-2*H5*G5^2*B5^3*K5*C5+2*H5*G5^2*B5^2*K5*A5*E5-4*H5*G5*A5^3*I5*K5*C5-4*H5*G5*A5*I5*K5*B5^2*C5-4*H5*G5*A5^2*I5*K5*E5*B5+2*A5^3*J5*H5^2*K5*C5+2*A5*J5*H5^2*K5*B5^2*C5+H5*B5^4*I5^2*A5*E5-2*A5^3*B5^2*H5^2*J5*C5-1*A5*B5^4*H5^2*J5*C5+2*A5^2*B5^3*H5^2*J5*E5-1*H5*G5^2*A5^4*B5*C5-2*H5*G5^2*A5^3*B5^2*E5-2*H5*G5^2*B5*K5*A5^2*C5+H5*B5^4*J5^2*A5*E5+2*H5*G5*A5^5*I5*C5-2*H5*G5*A5^4*I5*E5*B5-4*H5*G5*A5^2*B5^3*I5*E5-2*I5*G5*A5^4*J5*B5*C5+2*H5*A5^2*B5^3*I5^2*C5+2*H5*A5^3*B5^2*I5^2*E5+4*H5*G5*A5^3*B5^2*I5*C5+2*A5^2*J5^3*K5*E5*B5+H5*A5^4*B5*J5^2*C5+2*H5*A5^2*B5^3*J5^2*C5+2*H5*A5^3*B5^2*J5^2*E5+2*A5*J5^3*K5*B5^2*C5+H5*A5^4*B5*I5^2*C5+2*H5*G5*A5*B5^4*I5*C5-4*I5*G5*A5^3*J5*B5^2*E5+H5*B5^5*J5^2*C5-1*A5^5*H5^2*J5*C5+2*H5^3*B5^3*K5*C5+H5*B5^5*I5^2*C5+2*H5*J5^2*B5^3*K5*C5-2*H5*J5^2*B5^2*K5*A5*E5-1*A5^4*I5^2*J5*E5*B5+2*H5*I5^2*B5*K5*A5^2*C5+2*H5*I5^2*B5^3*K5*C5-2*H5*I5^2*B5^2*K5*A5*E5+2*A5^3*J5^3*K5*C5-2*I5*G5*J5*B5^5*C5-2*I5*G5*J5*B5^4*A5*E5-4*I5*G5*B5*J5*K5*A5^2*C5-4*I5*G5*B5^3*J5*K5*C5-4*I5*G5*J5*B5^3*A5^2*C5+4*I5*G5*B5^2*J5*K5*A5*E5-2*A5^3*J5*I5^2*K5*C5-2*A5*J5*I5^2*K5*B5^2*C5-2*A5^2*J5*I5^2*K5*E5*B5+2*H5*J5^2*B5*K5*A5^2*C5-2*H5*G5^2*B5^3*A5^2*C5-1*H5*G5^2*B5^4*A5*E5-2*J5*G5^2*A5^3*B5^2*C5+J5*G5^2*A5^4*E5*B5-2*A5^3*J5^3*B5^2*C5+A5^4*J5^3*E5*B5-1*H5*G5^2*B5^5*C5-1*J5*G5^2*A5^5*C5-1*A5*B5^4*J5^3*C5+2*A5^2*B5^3*J5^3*E5+A5^5*I5^2*J5*C5+2*A5^3*I5^2*J5*B5^2*C5+G5*B5^4*J5^2*A5*F5+2*J5*H5^2*B5^3*K5*E5-2*G5*A5^5*I5*J5*E5+G5*B5^5*J5^2*D5+G5^2*J5*B5^5*E5-1*G5^2*H5*A5^5*E5-2*H5^3*A5^3*K5*E5-1*I5^2*J5*B5^5*E5+I5^2*H5*A5^5*E5-2*G5*A5^4*H5*J5*F5*B5+G5^2*A5^4*I5*F5*B5-1*G5*B5^4*H5^2*A5*F5+G5*B5^4*I5^2*A5*F5-2*G5*A5^3*H5^2*B5^2*F5+G5*A5^4*B5*J5^2*D5+2*G5*A5^2*B5^3*J5^2*D5+2*G5*A5^3*B5^2*J5^2*F5-2*G5^2*A5^3*B5^2*I5*D5-1*G5^2*A5*B5^4*I5*D5+2*G5^2*A5^2*B5^3*I5*F5+2*G5*A5^5*H5*J5*D5+H5^3*A5^5*E5+G5*A5^4*B5*I5^2*D5+2*G5*A5^2*B5^3*I5^2*D5+2*G5*A5^3*B5^2*I5^2*F5-4*G5*A5^3*J5*H5*K5*D5-4*G5*A5*J5*H5*K5*B5^2*D5-4*G5*A5^2*J5*H5*K5*F5*B5-1*G5*A5^4*H5^2*B5*D5-2*G5*A5^2*H5^2*B5^3*D5+2*G5*I5^2*B5*K5*A5^2*D5-2*G5*I5^2*B5^2*K5*A5*F5+J5^3*B5^5*E5+2*G5*A5*B5^4*H5*J5*D5-4*G5*A5^2*B5^3*H5*J5*F5+2*G5*I5^2*B5^3*K5*D5-2*G5*H5^2*B5*K5*A5^2*D5-2*G5*H5^2*B5^3*K5*D5+2*G5*H5^2*B5^2*K5*A5*F5-2*A5^2*J5^2*I5*K5*F5*B5-1*A5*H5^2*I5*B5^4*D5-2*A5*J5^2*I5*K5*B5^2*D5+2*A5^2*H5^2*I5*B5^3*F5+2*G5*J5^2*B5*K5*A5^2*D5+2*G5*J5^2*B5^3*K5*D5-2*G5*J5^2*B5^2*K5*A5*F5+4*G5*A5^3*B5^2*H5*J5*D5+2*A5^2*H5^2*I5*K5*F5*B5+2*G5^2*A5*I5*K5*B5^2*D5+2*G5^2*A5^2*I5*K5*F5*B5-2*A5^3*J5^2*I5*K5*D5+2*A5^3*H5^2*I5*K5*D5+2*A5*H5^2*I5*K5*B5^2*D5+2*G5^2*A5^3*I5*K5*D5+A5*J5^2*B5^4*I5*D5-2*A5^2*J5^2*B5^3*I5*F5+2*A5*I5^3*K5*B5^2*D5+2*A5^2*I5^3*K5*F5*B5+G5^3*A5^4*B5*D5+2*G5^3*A5^3*B5^2*F5-1*A5*B5^4*I5^3*D5+2*A5^2*B5^3*I5^3*F5+2*A5^3*I5^3*K5*D5-1*G5^2*A5^5*I5*D5-1*G5*B5^5*H5^2*D5+G5*B5^5*I5^2*D5-2*A5^3*H5^2*I5*B5^2*D5+A5^4*H5^2*I5*F5*B5-2*A5^4*H5*I5*J5*B5*D5-4*A5^3*H5*I5*J5*B5^2*F5-1*A5^4*J5^2*I5*F5*B5-4*J5*I5*H5*B5*K5*A5^2*D5-4*J5*I5*H5*B5^3*K5*D5+2*J5*G5^2*A5^2*K5*E5*B5+A5^5*J5^2*I5*D5)/(2*G5^2*J5^2+2*I5^2*H5^2-2*G5^2*H5^2+G5^4+I5^4+H5^4+2*G5^2*I5^2-8*G5*J5*I5*H5+J5^4+2*J5^2*H5^2-2*I5^2*J5^2)/A5/B5-0.5*(-2*A5^3*I5^3*B5^2*D5+A5^4*I5^3*F5*B5+2*G5^3*B5^3*A5^2*D5+G5^3*B5^4*A5*F5-1*A5^5*I5^3*D5-1*J5*G5^2*A5*B5^4*C5+2*J5*G5^2*A5^2*B5^3*E5+2*J5*G5^2*A5^3*K5*C5+2*G5^3*B5*K5*A5^2*D5+A5^4*H5^2*J5*E5*B5+2*H5^3*B5*K5*A5^2*C5-2*H5^3*B5^2*K5*A5*E5+A5^4*H5^3*B5*C5+2*A5^3*H5^3*B5^2*E5+2*G5^3*B5^3*K5*D5+2*A5^2*J5*H5^2*K5*E5*B5+2*J5*G5^2*A5*K5*B5^2*C5+2*A5^3*J5^2*I5*B5^2*D5+4*J5*I5*H5*B5^2*K5*A5*F5-4*B5^3*H5*I5*J5*A5^2*D5-2*B5^5*H5*I5*J5*D5-2*B5^4*H5*I5*J5*A5*F5-1*A5^5*H5^2*I5*D5-2*A5^5*H5*I5*J5*F5+G5^2*I5*B5^5*F5-1*B5^5*J5^2*I5*F5+2*B5^3*H5^2*I5*K5*F5-2*B5^3*J5^2*I5*K5*F5+2*B5^3*I5^3*K5*F5+B5^5*H5^2*I5*F5+G5*A5^5*I5^2*F5-2*G5^3*A5^3*K5*F5-4*G5*I5*H5*B5^3*K5*E5-2*G5*I5*H5*B5^5*E5-2*J5^2*A5^3*H5*K5*E5+4*G5*A5^3*J5*I5*K5*E5+2*J5^3*B5^3*K5*E5+J5^2*A5^5*H5*E5+J5*B5^5*H5^2*E5-1*G5*A5^5*H5^2*F5+G5^3*A5^5*F5-2*I5^2*B5^3*J5*K5*E5-2*I5^2*H5*A5^3*K5*E5+2*G5^2*B5^3*J5*K5*E5+2*G5^2*H5*A5^3*K5*E5-4*G5*B5^3*J5*H5*K5*F5+G5*A5^5*J5^2*F5+4*A5^3*J5*I5*H5*K5*F5+2*G5^2*B5^3*I5*K5*F5-2*G5*A5^3*I5^2*K5*F5+2*G5*A5^3*H5^2*K5*F5-2*G5*H5*J5*B5^5*F5-2*G5*A5^3*J5^2*K5*F5)/(2*G5^2*J5^2+2*I5^2*H5^2-2*G5^2*H5^2+G5^4+I5^4+H5^4+2*G5^2*I5^2-8*G5*J5*I5*H5+J5^4+2*J5^2*H5^2-2*I5^2*J5^2)/A5/B5 -> 28899.23158 | Q28: =-0.5*(-4*I5^3*K5^2*C5+4*H5^3*K5^2*F5-4*J5^3*K5^2*D5+4*G5^3*K5^2*E5-1*B5^4*I5*H5^2*C5-4*A5^2*B5^2*J5*I5*H5*E5+2*A5^2*B5^2*H5*J5^2*F5+2*A5^2*B5^2*G5*I5^2*E5+2*A5^2*B5^2*H5^3*F5-1*A5^4*C5*I5*G5^2-2*A5^4*F5*G5*I5*J5+A5^4*D5*I5^2*J5-1*A5^4*D5*J5*H5^2-1*A5^4*D5*G5^2*J5+A5^4*F5*H5^3-4*J5*H5^2*K5^2*D5-4*J5*G5^2*K5^2*D5+4*I5^2*H5*K5^2*F5+4*G5*I5^2*K5^2*E5+4*G5*J5^2*K5^2*E5-4*G5*H5^2*K5^2*E5-4*K5*J5^2*A5^2*H5*F5-4*K5*J5*H5^2*B5^2*D5+4*K5*I5^2*B5^2*J5*D5-4*K5*I5^2*H5*A5^2*F5-4*K5*G5^2*B5^2*J5*D5+4*K5*G5^2*H5*A5^2*F5+4*K5*H5*J5^2*B5^2*F5-8*K5*G5*A5^2*J5*H5*C5+4*K5*H5^3*B5^2*F5+4*K5*A5^2*J5^3*D5+4*K5*G5^3*B5^2*E5+4*K5*A5^2*I5^3*C5-4*K5*J5^3*B5^2*D5-4*K5*H5^3*A5^2*F5-4*K5*G5^3*A5^2*E5-4*K5*B5^2*I5^3*C5-4*K5*G5^2*B5^2*I5*C5-4*K5*G5*A5^2*J5^2*E5+4*K5*G5*A5^2*H5^2*E5-4*K5*G5*A5^2*I5^2*E5+8*K5*A5^2*J5*I5*H5*E5+4*K5*B5^2*J5^2*I5*C5-4*K5*B5^2*H5^2*I5*C5+8*K5*G5*A5^2*J5*I5*F5+8*K5*G5*I5*H5*B5^2*D5+4*K5*G5^2*A5^2*I5*C5+4*K5*G5*I5^2*B5^2*E5+4*K5*G5*J5^2*B5^2*E5-4*K5*G5*H5^2*B5^2*E5-4*K5*A5^2*J5*I5^2*D5-8*K5*I5*G5*B5^2*J5*F5-4*K5*H5*G5^2*B5^2*F5+4*K5*J5*G5^2*A5^2*D5+4*K5*A5^2*J5*H5^2*D5-8*K5*H5*G5*A5^2*I5*D5+4*K5*H5*I5^2*B5^2*F5-8*K5*J5*I5*H5*B5^2*E5+4*K5*A5^2*H5^2*I5*C5-4*K5*A5^2*J5^2*I5*C5-8*G5*J5*I5*K5^2*F5-8*J5*I5*H5*K5^2*E5+8*K5*G5*B5^2*J5*H5*C5+8*H5*G5*I5*K5^2*D5+8*G5*J5*H5*K5^2*C5+4*J5^2*H5*K5^2*F5-4*G5^2*I5*K5^2*C5-4*H5^2*I5*K5^2*C5+4*J5^2*I5*K5^2*C5+4*J5*I5^2*K5^2*D5-4*G5^2*H5*K5^2*F5-1*B5^4*J5*H5^2*D5-1*B5^4*G5*H5^2*E5-2*B5^4*J5*I5*H5*E5+B5^4*I5^2*J5*D5+I5*B5^4*J5^2*C5+2*H5*G5*B5^4*J5*C5-1*I5*G5^2*B5^4*C5+B5^4*H5*J5^2*F5+B5^4*G5*I5^2*E5+B5^4*G5*J5^2*E5-2*G5*B5^4*J5*I5*F5+2*G5*B5^4*I5*H5*D5-1*G5^2*B5^4*J5*D5-1*G5^2*B5^4*H5*F5+B5^4*I5^2*H5*F5+A5^4*C5*I5*J5^2+A5^4*E5*G5*I5^2+2*A5^4*D5*G5*I5*H5-1*A5^4*C5*I5^3-1*A5^4*E5*G5*H5^2-1*A5^4*C5*I5*H5^2+A5^4*E5*G5^3-1*A5^4*F5*G5^2*H5+2*A5^4*C5*H5*G5*J5+A5^4*F5*J5^2*H5+A5^4*F5*I5^2*H5+A5^4*E5*G5*J5^2+2*A5^2*B5^2*I5^2*H5*F5-2*A5^2*B5^2*I5*H5^2*C5-2*A5^2*B5^2*J5*H5^2*D5-2*A5^4*E5*J5*I5*H5-4*A5^2*G5*B5^2*J5*I5*F5+2*A5^2*B5^2*I5^2*J5*D5-2*A5^2*B5^2*G5*H5^2*E5-2*A5^2*J5^3*B5^2*D5+4*A5^2*H5*G5*B5^2*J5*C5+2*A5^2*B5^2*G5^3*E5-2*A5^2*G5^2*B5^2*J5*D5-2*A5^2*I5*G5^2*B5^2*C5+4*A5^2*G5*B5^2*I5*H5*D5-2*A5^2*B5^2*I5^3*C5+2*A5^2*B5^2*G5*J5^2*E5-2*A5^2*G5^2*B5^2*H5*F5+2*A5^2*I5*B5^2*J5^2*C5-1*A5^4*D5*J5^3+B5^4*H5^3*F5-1*J5^3*B5^4*D5-1*B5^4*I5^3*C5+B5^4*G5^3*E5)/(2*G5^2*J5^2+2*I5^2*H5^2-2*G5^2*H5^2+G5^4+I5^4+H5^4+2*G5^2*I5^2-8*G5*J5*I5*H5+J5^4+2*J5^2*H5^2-2*I5^2*J5^2)/B5/A5 -> -128.4850902 | R28: =0.5*(-2*G5*I5^2*K5*A5*F5+2*A5*I5^3*K5*D5+3*A5^2*I5^3*F5*B5-1*I5*G5^2*B5^3*F5-1*I5*G5^2*A5^3*D5-1*A5^3*H5^2*I5*D5+3*B5^2*I5^3*A5*D5-1*B5^3*I5^3*F5-1*A5^3*I5^3*D5-1*J5^3*B5^3*E5-1*A5^3*J5^3*C5-1*G5^3*B5^3*D5+G5^3*A5^3*F5+3*A5^2*J5^2*H5*C5*B5-3*G5^2*A5^2*H5*C5*B5+3*G5^2*H5*B5^2*A5*E5-2*G5*A5^3*J5*I5*E5-6*G5*A5^2*J5*I5*C5*B5+6*G5*J5*I5*B5^2*A5*E5+2*G5*J5*I5*B5^3*C5-3*B5^2*I5^2*H5*A5*E5-3*B5^2*J5^2*H5*A5*E5+3*A5^2*I5^2*H5*C5*B5+G5^2*H5*B5^3*C5+3*A5^2*H5^3*C5*B5-1*B5^3*I5^2*H5*C5-1*B5^3*J5^2*H5*C5+A5^3*I5^2*H5*E5+A5^3*J5^2*H5*E5-1*G5^2*A5^3*H5*E5+6*J5*H5*B5^2*I5*A5*F5+2*J5*H5*B5^3*I5*D5+3*G5^3*A5^2*D5*B5+3*G5*A5^2*J5^2*D5*B5-3*G5*H5^2*A5^2*D5*B5-6*J5*A5^2*H5*I5*D5*B5-3*G5*B5^2*I5^2*A5*F5-1*G5*B5^3*I5^2*D5-1*G5*B5^3*J5^2*D5+G5*A5^3*I5^2*F5+G5*A5^3*J5^2*F5-1*G5*H5^2*A5^3*F5-3*B5^2*H5^3*A5*E5-3*G5*B5^2*J5^2*A5*F5+2*G5*H5*B5^3*I5*E5+3*G5*H5^2*B5^2*A5*F5+3*G5*A5^2*I5^2*D5*B5-2*J5*A5^3*H5*I5*F5-1*B5^3*H5^3*C5+A5^3*H5^3*E5-6*G5*A5^2*H5*I5*E5*B5-6*G5*H5*B5^2*I5*A5*C5-3*A5^2*J5*I5^2*E5*B5+3*G5^2*A5^2*J5*E5*B5+3*G5^2*J5*B5^2*A5*C5+3*A5^2*J5*H5^2*E5*B5-1*G5^2*J5*B5^3*E5-3*G5^3*B5^2*A5*F5+G5*H5^2*B5^3*D5+2*G5*A5^3*H5*I5*C5+3*J5*B5^2*H5^2*A5*C5-1*A5^3*J5*H5^2*C5+A5^3*J5*I5^2*C5-1*G5^2*A5^3*J5*C5+3*A5^2*J5^3*E5*B5+J5*B5^3*I5^2*E5-1*J5*B5^3*H5^2*E5-3*J5*B5^2*I5^2*A5*C5-6*H5*G5*A5^2*J5*F5*B5 -6*H5*G5*J5*B5^2*A5*D5+I5*A5^3*J5^2*D5+3*I5*G5^2*A5^2*F5*B5+3*A5^2*H5^2*I5*F5*B5+3*H5^2*B5^2*I5*A5*D5-1*H5^2*B5^3*I5*F5+I5*B5^3*J5^2*F5+3*I5*G5^2*B5^2*A5*D5+2*H5*G5*A5^3*J5*D5+2*H5*G5*J5*B5^3*F5-3*I5*B5^2*J5^2*A5*D5-3*I5*A5^2*J5^2*F5*B5+3*J5^3*B5^2*A5*C5+4*J5*I5*H5*B5*K5*D5-2*J5*G5^2*K5*E5*B5-2*G5^3*B5*K5*D5-2*H5^3*B5*K5*C5-2*I5^3*K5*F5*B5-2*G5^2*I5*K5*F5*B5-2*H5^2*I5*K5*F5*B5+4*G5*J5*H5*K5*F5*B5-2*G5*I5^2*B5*K5*D5+2*G5*H5^2*B5*K5*D5+2*J5^2*I5*K5*F5*B5-2*G5*J5^2*B5*K5*D5+2*J5*I5^2*K5*E5*B5-2*H5*J5^2*B5*K5*C5-2*H5*I5^2*B5*K5*C5+4*I5*G5*B5*J5*K5*C5-2*J5^3*K5*E5*B5+2*H5*G5^2*B5*K5*C5+4*H5*G5*I5*K5*E5*B5+2*H5*G5^2*K5*A5*E5+2*A5*J5*H5^2*K5*C5-4*H5*G5*A5*I5*K5*C5-2*G5^3*K5*A5*F5-2*J5*H5^2*K5*E5*B5-2*H5*I5^2*K5*A5*E5-2*H5*J5^2*K5*A5*E5+2*J5*G5^2*A5*K5*C5+4*J5*I5*H5*K5*A5*F5-2*H5^3*K5*A5*E5+4*I5*G5*J5*K5*A5*E5-2*A5*J5*I5^2*K5*C5+2*A5*J5^3*K5*C5+2*A5*H5^2*I5*K5*D5+2*G5*H5^2*K5*A5*F5-2*A5*J5^2*I5*K5*D5-2*G5*J5^2*K5*A5*F5+2*G5^2*A5*I5*K5*D5-4*G5*A5*J5*H5*K5*D5)/(2*G5^2*J5^2+2*I5^2*H5^2-2*G5^2*H5^2+G5^4+I5^4+H5^4+2*G5^2*I5^2-8*G5*J5*I5*H5+J5^4+2*J5^2*H5^2-2*I5^2*J5^2)/B5/A5 -> -147.2516381 | S28: =0.5*(2*G5^2*H5*K5*F5+I5^3*B5^2*C5-2*G5^3*K5*E5+2*I5^3*K5*C5-2*H5^3*K5*F5+2*J5^3*K5*D5-1*H5^3*B5^2*F5+A5^2*H5^3*F5-1*I5^3*A5^2*C5+2*H5^3*B5*A5*D5+2*A5*J5^3*F5*B5+2*G5^3*B5*A5*C5+2*A5*I5^3*E5*B5+2*G5*J5^2*B5*A5*C5-2*G5*H5^2*B5*A5*C5+2*H5*J5^2*B5*A5*D5-2*A5*J5*I5^2*F5*B5-4*I5*G5*B5*J5*A5*D5-4*B5*J5*I5*H5*A5*C5+2*A5*H5^2*I5*E5*B5-2*A5*J5^2*I5*E5*B5+2*G5^2*A5*I5*E5*B5-4*G5*A5*J5*H5*E5*B5-2*H5*G5^2*B5*A5*D5+2*J5*G5^2*A5*F5*B5+2*A5*J5*H5^2*F5*B5-4*H5*G5*A5*I5*F5*B5+2*H5*I5^2*B5*A5*D5+2*G5*I5^2*B5*A5*C5-2*G5*J5^2*K5*E5+2*G5*H5^2*K5*E5+2*J5*H5^2*K5*D5-2*I5^2*H5*K5*F5-2*G5*I5^2*K5*E5-2*J5^2*H5*K5*F5+2*G5^2*I5*K5*C5+2*H5^2*I5*K5*C5+4*J5*I5*H5*K5*E5-2*J5^2*I5*K5*C5-4*G5*J5*H5*K5*C5+4*G5*J5*I5*K5*F5-2*J5*I5^2*K5*D5+2*J5*G5^2*K5*D5-4*H5*G5*I5*K5*D5+B5^2*G5*H5^2*E5-2*G5*I5*H5*B5^2*D5-2*H5*G5*J5*B5^2*C5+2*B5^2*J5*I5*H5*E5-1*B5^2*G5*I5^2*E5-1*B5^2*G5^3*E5+I5*G5^2*B5^2*C5-1*B5^2*G5*J5^2*E5+J5^3*B5^2*D5+I5*H5^2*B5^2*C5-1*I5^2*J5*B5^2*D5-1*J5^2*B5^2*H5*F5-1*B5^2*I5^2*H5*F5+J5*H5^2*B5^2*D5-1*I5*J5^2*B5^2*C5+2*G5*B5^2*I5*J5*F5+G5^2*J5*B5^2*D5+G5^2*B5^2*H5*F5+2*H5*G5*J5*A5^2*C5-2*A5^2*J5*I5*H5*E5+A5^2*G5^3*E5+2*G5*I5*H5*A5^2*D5-2*G5*A5^2*J5*I5*F5-1*A5^2*G5*H5^2*E5-1*I5*H5^2*A5^2*C5-1*J5^3*A5^2*D5-1*I5*G5^2*A5^2*C5-1*J5*H5^2*A5^2*D5+I5*J5^2*A5^2*C5+A5^2*G5*J5^2*E5+A5^2*G5*I5^2*E5-1*G5^2*A5^2*H5*F5-1*G5^2*J5*A5^2*D5+A5^2*I5^2*H5*F5+A5^2*H5*J5^2*F5+I5^2*J5*A5^2*D5)/(2*G5^2*J5^2+2*I5^2*H5^2-2*G5^2*H5^2+G5^4+I5^4+H5^4+2*G5^2*I5^2-8*G5*J5*I5*H5+J5^4+2*J5^2*H5^2-2*I5^2*J5^2)/B5/A5 -> -15.84962273
B29: K2calcb | D29: =(A4^2*I4*E4*G4^2-1*A4^2*I4*E4*H4^2-1*A4^2*J4*F4*G4^2+A4^2*J4*F4*H4^2+B4^2*G4*C4*J4^2-1*B4^2*G4*C4*I4^2-1*B4^2*H4*D4*J4^2+B4^2*H4*D4*I4^2)/(-1*A4^2*J4^2+B4^2*J4^2-1*I4^2*B4^2+A4^2*I4^2)/(G4^2-1*H4^2) -> 1 | E29: =(-1*C4*B4^3*H4*J4^2+C4*B4^3*H4*I4^2-1*E4*A4^3*J4*G4^2+D4*B4^3*G4*J4^2-1*D4*B4^3*G4*I4^2+E4*A4^3*J4*H4^2+F4*A4^3*I4*G4^2-1*F4*A4^3*I4*H4^2+2*C4*B4*H4*K4*J4^2-2*C4*B4*H4*K4*I4^2-2*D4*B4*K4*G4*J4^2+2*D4*B4*K4*G4*I4^2+2*A4*E4*J4*K4*G4^2-2*A4*E4*J4*K4*H4^2-2*A4*F4*K4*I4*G4^2+2*A4*F4*K4*I4*H4^2)/(-1*A4^2*J4^2+B4^2*J4^2-1*I4^2*B4^2+A4^2*I4^2)/B4/A4/(G4^2-1*H4^2) -> 0 | F29: =-1*(-1*G4*C4*I4^2+H4*D4*I4^2+I4*E4*G4^2-1*I4*E4*H4^2-1*H4*D4*J4^2+G4*C4*J4^2-1*J4*F4*G4^2+J4*F4*H4^2)/(-1*A4^2*J4^2+B4^2*J4^2-1*I4^2*B4^2+A4^2*I4^2)/(G4^2-1*H4^2) -> 0 | G29: =-1*(-1*A4*F4*I4*H4^2-1*A4*E4*J4*G4^2+A4*E4*J4*H4^2+A4*F4*I4*G4^2+C4*B4*H4*I4^2-1*D4*B4*G4*I4^2+D4*B4*G4*J4^2-1*C4*B4*H4*J4^2)/(-1*A4^2*J4^2+B4^2*J4^2-1*I4^2*B4^2+A4^2*I4^2)/B4/A4/(G4^2-1*H4^2) -> 0 | H29: =(-1*A4*F4*I4*H4^2-1*A4*E4*J4*G4^2+A4*E4*J4*H4^2+A4*F4*I4*G4^2+C4*B4*H4*I4^2-1*D4*B4*G4*I4^2+D4*B4*G4*J4^2-1*C4*B4*H4*J4^2)*A4*B4/(-1*A4^2*J4^2+B4^2*J4^2-1*I4^2*B4^2+A4^2*I4^2)/(G4^2-1*H4^2) -> 0 | I29: =(-1*B4^2*H4*D4*J4^2+B4^2*H4*D4*I4^2+B4^2*G4*C4*J4^2-1*B4^2*G4*C4*I4^2-1*A4^2*J4*F4*G4^2+A4^2*I4*E4*G4^2-1*A4^2*I4*E4*H4^2+A4^2*J4*F4*H4^2-2*D4*H4*K4*I4^2+2*D4*H4*K4*J4^2+2*C4*K4*G4*I4^2-2*C4*K4*G4*J4^2+2*F4*J4*K4*G4^2-2*F4*J4*K4*H4^2-2*E4*K4*I4*G4^2+2*E4*K4*I4*H4^2)/(-1*A4^2*J4^2+B4^2*J4^2-1*I4^2*B4^2+A4^2*I4^2)/(G4^2-1*H4^2) -> 1 | J29: =-1*(-1*A4*D4*I4^2*G4-1*A4*C4*H4*J4^2+A4*C4*H4*I4^2+A4*D4*J4^2*G4-1*F4*B4*I4*H4^2+E4*B4*J4*H4^2+F4*B4*I4*G4^2-1*E4*B4*J4*G4^2)/(-1*A4^2*J4^2+B4^2*J4^2-1*I4^2*B4^2+A4^2*I4^2)/(G4^2-1*H4^2) -> 0 | K29: =-1*(-1*G4*C4*I4^2+H4*D4*I4^2+I4*E4*G4^2-1*I4*E4*H4^2-1*H4*D4*J4^2+G4*C4*J4^2-1*J4*F4*G4^2+J4*F4*H4^2)/(-1*A4^2*J4^2+B4^2*J4^2-1*I4^2*B4^2+A4^2*I4^2)/(G4^2-1*H4^2) -> 0 | L29: =(-1*G4*C4*I4^2+H4*D4*I4^2+I4*E4*G4^2-1*I4*E4*H4^2-1*H4*D4*J4^2+G4*C4*J4^2-1*J4*F4*G4^2+J4*F4*H4^2)*B4^2*A4^2/(-1*A4^2*J4^2+B4^2*J4^2-1*I4^2*B4^2+A4^2*I4^2)/(G4^2-1*H4^2) -> 0 | M29: =(-1*C4*A4*H4*B4^2*J4^2+C4*A4*H4*I4^2*B4^2+D4*J4^2*A4*B4^2*G4-1*D4*I4^2*A4*B4^2*G4-1*E4*A4^2*B4*J4*G4^2+F4*B4*A4^2*I4*G4^2+E4*A4^2*B4*J4*H4^2-1*F4*B4*A4^2*I4*H4^2+2*E4*B4*J4*K4*G4^2-2*E4*B4*J4*K4*H4^2-2*F4*B4*K4*I4*G4^2+2*F4*B4*K4*I4*H4^2+2*A4*C4*H4*K4*J4^2-2*A4*D4*K4*G4*J4^2-2*A4*C4*H4*K4*I4^2+2*A4*D4*K4*G4*I4^2)/(-1*A4^2*J4^2+B4^2*J4^2-1*I4^2*B4^2+A4^2*I4^2)/(G4^2-1*H4^2) -> 3.564105017e-11 | N29: =-1*(G4*C4*A4^2*J4^2-1*H4*D4*A4^2*J4^2-1*G4*C4*A4^2*I4^2+H4*D4*A4^2*I4^2+I4*E4*B4^2*G4^2-1*I4*E4*B4^2*H4^2-1*J4*F4*B4^2*G4^2+J4*F4*B4^2*H4^2)/(-1*A4^2*J4^2+B4^2*J4^2-1*I4^2*B4^2+A4^2*I4^2)/(G4^2-1*H4^2) -> 1 | O29: =-1*(-1*A4*D4*I4^2*G4-1*A4*C4*H4*J4^2+A4*C4*H4*I4^2+A4*D4*J4^2*G4-1*F4*B4*I4*H4^2+E4*B4*J4*H4^2+F4*B4*I4*G4^2-1*E4*B4*J4*G4^2)/(-1*A4^2*J4^2+B4^2*J4^2-1*I4^2*B4^2+A4^2*I4^2)/(G4^2-1*H4^2) -> 0 | P29: =-1*A4^3*B4^2*G4/(-1*B4^2+A4^2)/(G4^2-1*H4^2)*D4+1*B4^2*A4^3*H4/(-1*B4^2+A4^2)/(G4^2-1*H4^2)*C4+B4^3*A4^2*I4/(-1*A4^2*J4^2+B4^2*J4^2-1*I4^2*B4^2+A4^2*I4^2)*F4-1*B4^3*J4*A4^2/(-1*A4^2*J4^2+B4^2*J4^2-1*I4^2*B4^2+A4^2*I4^2)*E4+2*A4*B4^2*G4/(-1*B4^2+A4^2)/(G4^2-1*H4^2)*K4*D4-2*B4^2*A4*H4/(-1*B4^2+A4^2)/(G4^2-1*H4^2)*K4*C4-2*B4*A4^2*I4/(-1*A4^2*J4^2+B4^2*J4^2-1*I4^2*B4^2+A4^2*I4^2)*K4*F4+2*B4*J4*A4^2/(-1*A4^2*J4^2+B4^2*J4^2-1*I4^2*B4^2+A4^2*I4^2)*K4*E4 -> 0 | Q29: =(B4^2*G4*C4*A4^2*J4^2-1*B4^2*G4*C4*A4^2*I4^2-1*B4^2*H4*D4*A4^2*J4^2+B4^2*H4*D4*A4^2*I4^2+A4^2*I4*E4*B4^2*G4^2-1*A4^2*I4*E4*B4^2*H4^2-1*J4*A4^2*F4*B4^2*G4^2+J4*A4^2*F4*B4^2*H4^2+2*D4*H4*K4*A4^2*J4^2+2*D4*H4*B4^2*K4*J4^2-2*D4*H4*B4^2*K4*I4^2-2*D4*H4*K4*A4^2*I4^2-2*C4*K4*G4*B4^2*J4^2-2*C4*K4*G4*A4^2*J4^2+2*C4*K4*G4*I4^2*B4^2+2*C4*K4*G4*A4^2*I4^2+2*F4*J4*K4*A4^2*G4^2-2*F4*J4*K4*A4^2*H4^2+2*F4*J4*K4*B4^2*G4^2-2*F4*J4*K4*B4^2*H4^2-2*E4*K4*A4^2*I4*G4^2+2*E4*K4*A4^2*I4*H4^2-2*E4*K4*B4^2*I4*G4^2+2*E4*K4*B4^2*I4*H4^2+4*K4^2*C4*G4*J4^2+4*F4*K4^2*J4*H4^2+4*K4^2*D4*H4*I4^2-4*F4*K4^2*J4*G4^2-4*K4^2*D4*H4*J4^2-4*K4^2*C4*G4*I4^2+4*E4*K4^2*I4*G4^2-4*E4*K4^2*I4*H4^2)/(-1*A4^2*J4^2+B4^2*J4^2-1*I4^2*B4^2+A4^2*I4^2)/(G4^2-1*H4^2) -> 4.276926021e-10 | R29: =-1*(-1*D4*I4^2*A4^3*G4-1*C4*A4^3*H4*J4^2+C4*A4^3*H4*I4^2+D4*J4^2*A4^3*G4+2*A4*C4*H4*K4*J4^2-2*A4*C4*H4*K4*I4^2-2*A4*D4*K4*G4*J4^2+2*A4*D4*K4*G4*I4^2-1*E4*B4^3*J4*G4^2-1*F4*B4^3*I4*H4^2+E4*B4^3*J4*H4^2+F4*B4^3*I4*G4^2+2*E4*B4*J4*K4*G4^2-2*E4*B4*J4*K4*H4^2+2*F4*B4*K4*I4*H4^2-2*F4*B4*K4*I4*G4^2)/(-1*A4^2*J4^2+B4^2*J4^2-1*I4^2*B4^2+A4^2*I4^2)/(G4^2-1*H4^2) -> -2.494873512e-10 | S29: =-1*(G4*C4*A4^2*J4^2-1*H4*D4*A4^2*J4^2-1*G4*C4*A4^2*I4^2+H4*D4*A4^2*I4^2+J4*F4*B4^2*H4^2+2*D4*H4*K4*J4^2-2*C4*K4*G4*J4^2-2*D4*H4*K4*I4^2+I4*E4*B4^2*G4^2-2*E4*K4*I4*G4^2+2*E4*K4*I4*H4^2-1*J4*F4*B4^2*G4^2+2*C4*K4*G4*I4^2+2*F4*J4*K4*G4^2-2*F4*J4*K4*H4^2-1*I4*E4*B4^2*H4^2)/(-1*A4^2*J4^2+B4^2*J4^2-1*I4^2*B4^2+A4^2*I4^2)/(G4^2-1*H4^2) -> 1
D30: =(A5^2*I5*E5*G5^2-1*A5^2*I5*E5*H5^2-1*A5^2*J5*F5*G5^2+A5^2*J5*F5*H5^2+B5^2*G5*C5*J5^2-1*B5^2*G5*C5*I5^2-1*B5^2*H5*D5*J5^2+B5^2*H5*D5*I5^2)/(-1*A5^2*J5^2+B5^2*J5^2-1*I5^2*B5^2+A5^2*I5^2)/(G5^2-1*H5^2) -> -24.38087307 | E30: =(-1*C5*B5^3*H5*J5^2+C5*B5^3*H5*I5^2-1*E5*A5^3*J5*G5^2+D5*B5^3*G5*J5^2-1*D5*B5^3*G5*I5^2+E5*A5^3*J5*H5^2+F5*A5^3*I5*G5^2-1*F5*A5^3*I5*H5^2+2*C5*B5*H5*K5*J5^2-2*C5*B5*H5*K5*I5^2-2*D5*B5*K5*G5*J5^2+2*D5*B5*K5*G5*I5^2+2*A5*E5*J5*K5*G5^2-2*A5*E5*J5*K5*H5^2-2*A5*F5*K5*I5*G5^2+2*A5*F5*K5*I5*H5^2)/(-1*A5^2*J5^2+B5^2*J5^2-1*I5^2*B5^2+A5^2*I5^2)/B5/A5/(G5^2-1*H5^2) -> -2.731974236 | F30: =-1*(-1*G5*C5*I5^2+H5*D5*I5^2+I5*E5*G5^2-1*I5*E5*H5^2-1*H5*D5*J5^2+G5*C5*J5^2-1*J5*F5*G5^2+J5*F5*H5^2)/(-1*A5^2*J5^2+B5^2*J5^2-1*I5^2*B5^2+A5^2*I5^2)/(G5^2-1*H5^2) -> 0.09253797513 | G30: =-1*(-1*A5*F5*I5*H5^2-1*A5*E5*J5*G5^2+A5*E5*J5*H5^2+A5*F5*I5*G5^2+C5*B5*H5*I5^2-1*D5*B5*G5*I5^2+D5*B5*G5*J5^2-1*C5*B5*H5*J5^2)/(-1*A5^2*J5^2+B5^2*J5^2-1*I5^2*B5^2+A5^2*I5^2)/B5/A5/(G5^2-1*H5^2) -> 0.01985351847 | H30: =(-1*A5*F5*I5*H5^2-1*A5*E5*J5*G5^2+A5*E5*J5*H5^2+A5*F5*I5*G5^2+C5*B5*H5*I5^2-1*D5*B5*G5*I5^2+D5*B5*G5*J5^2-1*C5*B5*H5*J5^2)*A5*B5/(-1*A5^2*J5^2+B5^2*J5^2-1*I5^2*B5^2+A5^2*I5^2)/(G5^2-1*H5^2) -> -150.9957689 | I30: =(-1*B5^2*H5*D5*J5^2+B5^2*H5*D5*I5^2+B5^2*G5*C5*J5^2-1*B5^2*G5*C5*I5^2-1*A5^2*J5*F5*G5^2+A5^2*I5*E5*G5^2-1*A5^2*I5*E5*H5^2+A5^2*J5*F5*H5^2-2*D5*H5*K5*I5^2+2*D5*H5*K5*J5^2+2*C5*K5*G5*I5^2-2*C5*K5*G5*J5^2+2*F5*J5*K5*G5^2-2*F5*J5*K5*H5^2-2*E5*K5*I5*G5^2+2*E5*K5*I5*H5^2)/(-1*A5^2*J5^2+B5^2*J5^2-1*I5^2*B5^2+A5^2*I5^2)/(G5^2-1*H5^2) -> -20.86006078 | J30: =-1*(-1*A5*D5*I5^2*G5-1*A5*C5*H5*J5^2+A5*C5*H5*I5^2+A5*D5*J5^2*G5-1*F5*B5*I5*H5^2+E5*B5*J5*H5^2+F5*B5*I5*G5^2-1*E5*B5*J5*G5^2)/(-1*A5^2*J5^2+B5^2*J5^2-1*I5^2*B5^2+A5^2*I5^2)/(G5^2-1*H5^2) -> -0.003979787013 | K30: =-1*(-1*G5*C5*I5^2+H5*D5*I5^2+I5*E5*G5^2-1*I5*E5*H5^2-1*H5*D5*J5^2+G5*C5*J5^2-1*J5*F5*G5^2+J5*F5*H5^2)/(-1*A5^2*J5^2+B5^2*J5^2-1*I5^2*B5^2+A5^2*I5^2)/(G5^2-1*H5^2) -> 0.09253797513 | L30: =(-1*G5*C5*I5^2+H5*D5*I5^2+I5*E5*G5^2-1*I5*E5*H5^2-1*H5*D5*J5^2+G5*C5*J5^2-1*J5*F5*G5^2+J5*F5*H5^2)*B5^2*A5^2/(-1*A5^2*J5^2+B5^2*J5^2-1*I5^2*B5^2+A5^2*I5^2)/(G5^2-1*H5^2) -> -703.796797 | M30: =(-1*C5*A5*H5*B5^2*J5^2+C5*A5*H5*I5^2*B5^2+D5*J5^2*A5*B5^2*G5-1*D5*I5^2*A5*B5^2*G5-1*E5*A5^2*B5*J5*G5^2+F5*B5*A5^2*I5*G5^2+E5*A5^2*B5*J5*H5^2-1*F5*B5*A5^2*I5*H5^2+2*E5*B5*J5*K5*G5^2-2*E5*B5*J5*K5*H5^2-2*F5*B5*K5*I5*G5^2+2*F5*B5*K5*I5*H5^2+2*A5*C5*H5*K5*J5^2-2*A5*D5*K5*G5*J5^2-2*A5*C5*H5*K5*I5^2+2*A5*D5*K5*G5*I5^2)/(-1*A5^2*J5^2+B5^2*J5^2-1*I5^2*B5^2+A5^2*I5^2)/(G5^2-1*H5^2) -> -151.1471887 | N30: =-1*(G5*C5*A5^2*J5^2-1*H5*D5*A5^2*J5^2-1*G5*C5*A5^2*I5^2+H5*D5*A5^2*I5^2+I5*E5*B5^2*G5^2-1*I5*E5*B5^2*H5^2-1*J5*F5*B5^2*G5^2+J5*F5*B5^2*H5^2)/(-1*A5^2*J5^2+B5^2*J5^2-1*I5^2*B5^2+A5^2*I5^2)/(G5^2-1*H5^2) -> -8.144778961 | O30: =-1*(-1*A5*D5*I5^2*G5-1*A5*C5*H5*J5^2+A5*C5*H5*I5^2+A5*D5*J5^2*G5-1*F5*B5*I5*H5^2+E5*B5*J5*H5^2+F5*B5*I5*G5^2-1*E5*B5*J5*G5^2)/(-1*A5^2*J5^2+B5^2*J5^2-1*I5^2*B5^2+A5^2*I5^2)/(G5^2-1*H5^2) -> -0.003979787013 | P30: =-1*A5^3*B5^2*G5/(-1*B5^2+A5^2)/(G5^2-1*H5^2)*D5+1*B5^2*A5^3*H5/(-1*B5^2+A5^2)/(G5^2-1*H5^2)*C5+B5^3*A5^2*I5/(-1*A5^2*J5^2+B5^2*J5^2-1*I5^2*B5^2+A5^2*I5^2)*F5-1*B5^3*J5*A5^2/(-1*A5^2*J5^2+B5^2*J5^2-1*I5^2*B5^2+A5^2*I5^2)*E5+2*A5*B5^2*G5/(-1*B5^2+A5^2)/(G5^2-1*H5^2)*K5*D5-2*B5^2*A5*H5/(-1*B5^2+A5^2)/(G5^2-1*H5^2)*K5*C5-2*B5*A5^2*I5/(-1*A5^2*J5^2+B5^2*J5^2-1*I5^2*B5^2+A5^2*I5^2)*K5*F5+2*B5*J5*A5^2/(-1*A5^2*J5^2+B5^2*J5^2-1*I5^2*B5^2+A5^2*I5^2)*K5*E5 -> 5775.236797 | Q30: =(B5^2*G5*C5*A5^2*J5^2-1*B5^2*G5*C5*A5^2*I5^2-1*B5^2*H5*D5*A5^2*J5^2+B5^2*H5*D5*A5^2*I5^2+A5^2*I5*E5*B5^2*G5^2-1*A5^2*I5*E5*B5^2*H5^2-1*J5*A5^2*F5*B5^2*G5^2+J5*A5^2*F5*B5^2*H5^2+2*D5*H5*K5*A5^2*J5^2+2*D5*H5*B5^2*K5*J5^2-2*D5*H5*B5^2*K5*I5^2-2*D5*H5*K5*A5^2*I5^2-2*C5*K5*G5*B5^2*J5^2-2*C5*K5*G5*A5^2*J5^2+2*C5*K5*G5*I5^2*B5^2+2*C5*K5*G5*A5^2*I5^2+2*F5*J5*K5*A5^2*G5^2-2*F5*J5*K5*A5^2*H5^2+2*F5*J5*K5*B5^2*G5^2-2*F5*J5*K5*B5^2*H5^2-2*E5*K5*A5^2*I5*G5^2+2*E5*K5*A5^2*I5*H5^2-2*E5*K5*B5^2*I5*G5^2+2*E5*K5*B5^2*I5*H5^2+4*K5^2*C5*G5*J5^2+4*F5*K5^2*J5*H5^2+4*K5^2*D5*H5*I5^2-4*F5*K5^2*J5*G5^2-4*K5^2*D5*H5*J5^2-4*K5^2*C5*G5*I5^2+4*E5*K5^2*I5*G5^2-4*E5*K5^2*I5*H5^2)/(-1*A5^2*J5^2+B5^2*J5^2-1*I5^2*B5^2+A5^2*I5^2)/(G5^2-1*H5^2) -> -220.0157292 | R30: =-1*(-1*D5*I5^2*A5^3*G5-1*C5*A5^3*H5*J5^2+C5*A5^3*H5*I5^2+D5*J5^2*A5^3*G5+2*A5*C5*H5*K5*J5^2-2*A5*C5*H5*K5*I5^2-2*A5*D5*K5*G5*J5^2+2*A5*D5*K5*G5*I5^2-1*E5*B5^3*J5*G5^2-1*F5*B5^3*I5*H5^2+E5*B5^3*J5*H5^2+F5*B5^3*I5*G5^2+2*E5*B5*J5*K5*G5^2-2*E5*B5*J5*K5*H5^2+2*F5*B5*K5*I5*H5^2-2*F5*B5*K5*I5*G5^2)/(-1*A5^2*J5^2+B5^2*J5^2-1*I5^2*B5^2+A5^2*I5^2)/(G5^2-1*H5^2) -> -151.5426159 | S30: =-1*(G5*C5*A5^2*J5^2-1*H5*D5*A5^2*J5^2-1*G5*C5*A5^2*I5^2+H5*D5*A5^2*I5^2+J5*F5*B5^2*H5^2+2*D5*H5*K5*J5^2-2*C5*K5*G5*J5^2-2*D5*H5*K5*I5^2+I5*E5*B5^2*G5^2-2*E5*K5*I5*G5^2+2*E5*K5*I5*H5^2-1*J5*F5*B5^2*G5^2+2*C5*K5*G5*I5^2+2*F5*J5*K5*G5^2-2*F5*J5*K5*H5^2-1*I5*E5*B5^2*H5^2)/(-1*A5^2*J5^2+B5^2*J5^2-1*I5^2*B5^2+A5^2*I5^2)/(G5^2-1*H5^2) -> -11.66559124 | X30: w03 | Y30: th03
B31: K2calcalong | D31: =(-C4*A4*H4+C4*B4*G4+D4*A4*G4+D4*B4*H4)/(B4*(G4^2+H4^2)) -> 1 | E31: =(-C4*H4+D4*G4)/(B4*(G4^2+H4^2)) -> 0 | F31: =0 -> 0 | G31: =0 -> 0 | H31: =-(-H4*A4^2*C4+B4^2*G4*D4-B4^2*H4*C4+A4^2*G4*D4)/(B4*(G4^2+H4^2)) -> 0 | I31: =-(-C4*A4*H4-D4*B4*H4+D4*A4*G4-C4*B4*G4)/(B4*(G4^2+H4^2)) -> 1 | J31: 0 | K31: 0 | L31: =(-A4^3*H4*C4-A4*H4*B4^2*C4-A4^2*H4*B4*D4-B4*G4*A4^2*C4-B4^3*G4*C4+B4^2*G4*A4*D4+A4^3*G4*D4-B4^3*H4*D4)/(B4*(G4^2+H4^2)) -> -175.4533107 | M31: =(-H4*A4^2*C4+B4^2*H4*C4-2*A4*H4*D4*B4+A4^2*G4*D4-B4^2*G4*D4-2*B4*G4*C4*A4)/(B4*(G4^2+H4^2)) -> -19.72191261 | N31: 0 | O31: 0 | P31: =-(-(A4^4)*H4*C4-2*A4*H4*B4^3*D4-2*A4^3*H4*B4*D4-2*B4*G4*A4^3*C4-2*B4^3*G4*A4*C4-B4^4*G4*D4+A4^4*G4*D4+B4^4*H4*C4+2*K4*H4*A4^2*C4-2*K4*B4^2*G4*D4+2*K4*B4^2*H4*C4-2*K4*A4^2*G4*D4)/(B4*(G4^2+H4^2)) -> 3460.274861 | Q31: =-(-A4^3*H4*C4+3*A4*H4*B4^2*C4+B4^3*H4*D4-3*A4^2*H4*B4*D4+A4^3*G4*D4-3*B4^2*G4*A4*D4+B4^3*G4*C4-3*B4*G4*A4^2*C4+2*K4*C4*A4*H4+2*K4*D4*B4*H4-2*K4*D4*A4*G4+2*K4*C4*B4*G4)/(B4*(G4^2+H4^2)) -> 175.4533107 | R31: 0 | S31: 0 | X31: =X22*D32+Y22*E32 ->  | Y31: =X22*H32+Y22*I32 -> 
D32: =(-C5*A5*H5+C5*B5*G5+D5*A5*G5+D5*B5*H5)/(B5*(G5^2+H5^2)) -> -30.64189107 | E32: =(-C5*H5+D5*G5)/(B5*(G5^2+H5^2)) -> 0.009354148527 | F32: 0 | G32: 0 | H32: =-(-H5*A5^2*C5+B5^2*G5*D5-B5^2*H5*C5+A5^2*G5*D5)/(B5*(G5^2+H5^2)) -> -1.641216328 | I32: =-(-C5*A5*H5-D5*B5*H5+D5*A5*G5-C5*B5*G5)/(B5*(G5^2+H5^2)) -> -30.82637277 | J32: 0 | K32: 0 | L32: =(-A5^3*H5*C5-A5*H5*B5^2*C5-A5^2*H5*B5*D5-B5*G5*A5^2*C5-B5^3*G5*C5+B5^2*G5*A5*D5+A5^3*G5*D5-B5^3*H5*D5)/(B5*(G5^2+H5^2)) -> 5408.58916 | M32: =(-H5*A5^2*C5+B5^2*H5*C5-2*A5*H5*D5*B5+A5^2*G5*D5-B5^2*G5*D5-2*B5*G5*C5*A5)/(B5*(G5^2+H5^2)) -> 606.3138135 | N32: 0 | O32: 0 | P32: =-(-(A5^4)*H5*C5-2*A5*H5*B5^3*D5-2*A5^3*H5*B5*D5-2*B5*G5*A5^3*C5-2*B5^3*G5*A5*C5-B5^4*G5*D5+A5^4*G5*D5+B5^4*H5*C5+2*K5*H5*A5^2*C5-2*K5*B5^2*G5*D5+2*K5*B5^2*H5*C5-2*K5*A5^2*G5*D5)/(B5*(G5^2+H5^2)) -> -106317.3222 | Q32: =-(-A5^3*H5*C5+3*A5*H5*B5^2*C5+B5^3*H5*D5-3*A5^2*H5*B5*D5+A5^3*G5*D5-3*B5^2*G5*A5*D5+B5^3*G5*C5-3*B5*G5*A5^2*C5+2*K5*C5*A5*H5+2*K5*D5*B5*H5-2*K5*D5*A5*G5+2*K5*C5*B5*G5)/(B5*(G5^2+H5^2)) -> -5376.221235 | R32: 0 | S32: 0 | X32: =X23*D32+Y23*E32 ->  | Y32: =X23*H32+Y23*I32 -> 
B33: K2calcblong | D33: =(-B4*C4*H4+A4*D4*G4)/(G4*(-B4+A4)*H4) -> 1 | E33: =(-C4*H4+D4*G4)/(G4*(-B4+A4)*H4) -> 0 | F33: 0 | G33: 0 | H33: =-A4*B4*(-C4*H4+D4*G4)/(G4*(-B4+A4)*H4) -> 0 | I33: =-(-A4*C4*H4+B4*D4*G4)/(G4*(-B4+A4)*H4) -> 1 | J33: 0 | K33: 0 | L33: =A4*B4*(-A4*C4*H4+B4*D4*G4)/(G4*(-B4+A4)*H4) -> -87.20946994 | M33: =(-A4^2*C4*H4+B4^2*D4*G4)/(G4*(-B4+A4)*H4) -> 172.5136382 | N33: 0 | O33: 0 | P33: =-A4*B4*(-A4^2*C4*H4+B4^2*D4*G4+2*K4*C4*H4-2*K4*D4*G4)/(G4*(-B4+A4)*H4) -> -15044.82294 | Q33: =-(-A4^3*C4*H4+B4^3*D4*G4+2*K4*A4*C4*H4-2*K4*B4*D4*G4)/(G4*(-B4+A4)*H4) -> 224.6155652 | R33: 0 | S33: 0 | X33: =X24*D34+Y24*E34 ->  | Y33: =X24*H34+Y24*I34 -> 
D34: =(-B5*C5*H5+A5*D5*G5)/(G5*(-B5+A5)*H5) -> -29.21307829 | E34: =(-C5*H5+D5*G5)/(G5*(-B5+A5)*H5) -> 0.1626848241 | F34: 0 | G34: 0 | H34: =-A5*B5*(-C5*H5+D5*G5)/(G5*(-B5+A5)*H5) -> -14.18765728 | I34: =-(-A5*C5*H5+B5*D5*G5)/(G5*(-B5+A5)*H5) -> -32.25607716 | J34: 0 | K34: 0 | L34: =A5*B5*(-A5*C5*H5+B5*D5*G5)/(G5*(-B5+A5)*H5) -> 2813.035392 | M34: =(-A5^2*C5*H5+B5^2*D5*G5)/(G5*(-B5+A5)*H5) -> -5303.681248 | N34: 0 | O34: 0 | P34: =-A5*B5*(-A5^2*C5*H5+B5^2*D5*G5+2*K5*C5*H5-2*K5*D5*G5)/(G5*(-B5+A5)*H5) -> 463071.0312 | Q34: =-(-A5^3*C5*H5+B5^3*D5*G5+2*K5*A5*C5*H5-2*K5*B5*D5*G5)/(G5*(-B5+A5)*H5) -> -6979.838683 | R34: 0 | S34: 0 | X34: =X25*D34+Y25*E34 ->  | Y34: =X25*H34+Y25*I34 -> 
X35: =IF('Initial Parameter'!N16>'Initial Parameter'!P16,IF('Initial Parameter'!B13=1,'K value'!X31,'K value'!X32),IF('Initial Parameter'!B13=1,'K value'!X33,'K value'!X34)) ->  | Y35: =IF('Initial Parameter'!N16>'Initial Parameter'!P16,IF('Initial Parameter'!B13=1,'K value'!Y31,'K value'!Y32),IF('Initial Parameter'!B13=1,'K value'!Y33,'K value'!Y34)) -> 
B36: K3calca | D36: =-0.5*(A6^2*F6*I6^2*H6+B6^2*D6*J6^3-1*A6^2*D6*J6^3+A6^2*C6*I6*J6^2-2*A6*E6*B6*I6^3+2*A6*F6*B6*I6^2*J6+2*A6*E6*J6^2*B6*I6-1*B6^2*F6*H6^3+B6^2*C6*I6^3-1*A6^2*C6*I6^3+B6^2*D6*J6*H6^2+A6^2*F6*H6^3+2*B6^2*E6*J6*I6*H6+B6^2*C6*I6*H6^2-1*B6^2*F6*J6^2*H6-1*B6^2*F6*I6^2*H6-2*A6*F6*B6*J6*H6^2-2*A6*D6*B6*I6^2*H6-2*A6*E6*I6*H6^2*B6-2*A6*D6*H6^3*B6-2*A6*D6*J6^2*B6*H6-2*A6^2*E6*J6*I6*H6-1*A6^2*D6*J6*H6^2-1*A6^2*C6*I6*H6^2+A6^2*F6*J6^2*H6-1*B6^2*E6*G6^3+4*A6*C6*B6*J6*I6*H6+B6^2*D6*G6^2*J6+B6^2*C6*I6*G6^2+B6^2*F6*G6^2*H6-2*B6^2*C6*H6*G6*J6+2*B6^2*F6*G6*I6*J6-1*B6^2*E6*G6*I6^2-1*B6^2*E6*G6*J6^2+B6^2*E6*G6*H6^2-2*B6^2*D6*G6*I6*H6+4*A6*D6*G6*B6*I6*J6-2*A6^2*F6*G6*I6*J6+4*A6*F6*G6*B6*I6*H6-1*A6^2*D6*G6^2*J6-1*A6^2*C6*I6*G6^2-1*A6^2*F6*G6^2*H6+2*A6^2*C6*H6*G6*J6+A6^2*E6*G6*I6^2+A6^2*E6*G6*J6^2-1*A6^2*E6*G6*H6^2+A6^2*E6*G6^3+2*A6^2*D6*G6*I6*H6-2*A6*C6*B6*G6^3-2*A6*F6*G6^2*B6*J6+2*A6*C6*B6*G6*H6^2-2*A6*E6*G6^2*B6*I6-2*A6*C6*B6*G6*J6^2-2*A6*C6*B6*G6*I6^2+2*A6*D6*G6^2*B6*H6+4*A6*E6*G6*J6*B6*H6-2*A6*F6*B6*J6^3-1*B6^2*D6*I6^2*J6-1*B6^2*C6*I6*J6^2+A6^2*D6*I6^2*J6)/(2*G6^2*J6^2+2*I6^2*H6^2-2*G6^2*H6^2+G6^4+I6^4+H6^4+2*G6^2*I6^2-8*G6*J6*I6*H6+J6^4+2*J6^2*H6^2-2*I6^2*J6^2)/A6/B6 -> 1 | E36: =-0.5*(F6*G6^2*I6*B6^3-3*D6*G6^3*A6^2*B6-1*C6*A6^3*H6^2*J6-3*C6*A6^2*H6^3*B6-1*C6*J6*G6^2*A6^3+C6*B6^3*H6^3+2*C6*H6^3*B6*K6+3*C6*J6*G6^2*A6*B6^2+6*C6*I6*G6*A6^2*J6*B6-3*C6*H6*A6^2*B6*I6^2+2*C6*J6*G6^2*A6*K6-4*C6*H6*G6*A6*I6*K6+2*C6*A6*J6^3*K6+C6*H6*B6^3*J6^2+3*C6*A6*B6^2*J6^3+2*C6*H6*I6^2*B6*K6+2*C6*H6*J6^2*B6*K6-6*C6*H6*G6*A6*B6^2*I6-2*C6*A6*J6*I6^2*K6-3*C6*A6*I6^2*J6*B6^2-1*C6*H6*G6^2*B6^3+C6*A6^3*I6^2*J6+3*C6*A6*B6^2*H6^2*J6+2*C6*A6*J6*H6^2*K6-2*C6*H6*G6^2*B6*K6+3*C6*H6*G6^2*A6^2*B6+2*C6*H6*G6*A6^3*I6-1*C6*A6^3*J6^3+C6*H6*B6^3*I6^2-3*C6*H6*A6^2*B6*J6^2-4*D6*J6*I6*H6*B6*K6+2*D6*G6*A6^3*H6*J6+2*D6*G6*J6^2*B6*K6-2*D6*B6^3*H6*I6*J6+D6*G6^3*B6^3-1*D6*A6^3*I6^3+D6*A6^3*J6^2*I6-2*C6*I6*G6*J6*B6^3-4*C6*I6*G6*B6*J6*K6-3*D6*A6*J6^2*B6^2*I6+3*D6*A6*B6^2*I6^3+2*D6*A6*H6^2*I6*K6+2*D6*G6^2*A6*I6*K6+2*D6*A6*I6^3*K6+3*D6*G6^2*A6*B6^2*I6-1*D6*G6*B6^3*H6^2-3*D6*G6*A6^2*B6*I6^2-1*D6*G6^2*A6^3*I6-2*D6*G6*H6^2*B6*K6+2*D6*G6*I6^2*B6*K6-2*D6*A6*J6^2*I6*K6+D6*G6*B6^3*I6^2+3*D6*A6*H6^2*I6*B6^2-1*D6*A6^3*H6^2*I6+2*E6*J6^3*B6*K6+E6*J6^2*A6^3*H6-3*E6*J6*A6^2*H6^2*B6+2*E6*J6*H6^2*B6*K6-2*E6*J6^2*A6*H6*K6+E6*J6^3*B6^3+E6*H6^3*A6^3-4*D6*G6*A6*J6*H6*K6-3*D6*G6*A6^2*B6*J6^2+3*D6*G6*A6^2*H6^2*B6+6*D6*A6^2*H6*I6*J6*B6-6*D6*G6*A6*B6^2*H6*J6+2*D6*G6^3*B6*K6-3*E6*J6^3*A6^2*B6+D6*G6*B6^3*J6^2+3*E6*I6^2*A6^2*J6*B6-3*E6*H6^3*A6*B6^2+F6*B6^3*H6^2*I6-3*E6*J6^2*A6*B6^2*H6-2*E6*H6^3*A6*K6+E6*I6^2*H6*A6^3-1*E6*I6^2*J6*B6^3-1*E6*G6^2*H6*A6^3+E6*G6^2*J6*B6^3-2*E6*I6^2*H6*A6*K6-2*E6*I6^2*B6*J6*K6+2*E6*G6^2*B6*J6*K6-3*E6*I6^2*H6*A6*B6^2-3*E6*G6^2*A6^2*J6*B6+2*E6*G6^2*H6*A6*K6+6*E6*G6*A6*I6*J6*B6^2+3*E6*G6^2*H6*A6*B6^2+E6*J6*B6^3*H6^2-2*E6*G6*A6^3*I6*J6+F6*G6^3*A6^3+F6*B6^3*I6^3-4*E6*G6*I6*H6*B6*K6+6*E6*G6*I6*H6*A6^2*B6+4*E6*G6*A6*J6*I6*K6-2*E6*G6*I6*H6*B6^3+4*F6*A6*J6*I6*H6*K6-1*F6*G6*A6^3*H6^2+F6*G6*A6^3*I6^2+2*F6*G6^2*B6*I6*K6-3*F6*G6*A6*B6^2*I6^2-3*F6*G6^2*A6^2*I6*B6-2*F6*B6*J6^2*I6*K6+2*F6*B6*H6^2*I6*K6-3*F6*A6^2*B6*H6^2*I6-2*F6*A6^3*H6*I6*J6+3*F6*A6^2*B6*J6^2*I6+F6*G6*A6^3*J6^2+2*F6*G6*A6*H6^2*K6-2*F6*G6*A6*J6^2*K6-2*F6*G6*A6*I6^2*K6-2*F6*G6*H6*J6*B6^3+3*F6*G6*A6*B6^2*H6^2-3*F6*G6*A6*B6^2*J6^2+6*F6*G6*A6^2*H6*J6*B6-4*F6*G6*B6*J6*H6*K6+2*F6*B6*I6^3*K6-1*F6*B6^3*J6^2*I6+6*F6*A6*H6*I6*J6*B6^2-3*F6*G6^3*A6*B6^2-2*F6*G6^3*A6*K6-3*F6*A6^2*B6*I6^3)/A6/B6/(2*G6^2*A6^2*J6^2+G6^4*A6^2+A6^2*J6^4+A6^2*H6^4+2*G6^2*B6^2*I6^2-8*G6*A6^2*J6*I6*H6+2*G6^2*B6^2*J6^2+B6^2*H6^4+B6^2*I6^4-8*G6*B6^2*J6*I6*H6+2*A6^2*I6^2*H6^2+G6^4*B6^2-2*G6^2*A6^2*H6^2+2*G6^2*A6^2*I6^2+A6^2*I6^4+2*B6^2*J6^2*H6^2-2*B6^2*I6^2*J6^2-2*G6^2*B6^2*H6^2+2*B6^2*I6^2*H6^2+B6^2*J6^4+2*A6^2*J6^2*H6^2-2*A6^2*I6^2*J6^2) -> -2.526396003e-18 | F36: =0.5*(-1*D6*J6*H6^2-1*C6*I6^3+E6*G6^3-1*C6*I6*H6^2+C6*I6*J6^2-1*D6*J6^3+D6*I6^2*J6+2*D6*G6*I6*H6-2*E6*J6*I6*H6-1*E6*G6*H6^2+E6*G6*J6^2+E6*G6*I6^2-2*F6*G6*I6*J6+2*C6*H6*G6*J6+F6*H6^3-1*F6*G6^2*H6-1*C6*I6*G6^2-1*D6*G6^2*J6+F6*J6^2*H6+F6*I6^2*H6)/(2*G6^2*J6^2+2*I6^2*H6^2-2*G6^2*H6^2+G6^4+I6^4+H6^4+2*G6^2*I6^2-8*G6*J6*I6*H6+J6^4+2*J6^2*H6^2-2*I6^2*J6^2)/A6/B6 -> 0.0000E+00 | G36: =0.5*(-1*F6*G6^2*B6*I6-1*C6*H6^3*B6-1*D6*G6^2*A6*I6+2*D6*G6*A6*J6*H6-1*D6*A6*H6^2*I6-1*D6*A6*I6^3+2*C6*I6*G6*B6*J6+C6*H6*G6^2*B6-1*E6*J6^3*B6-1*D6*G6*J6^2*B6+C6*A6*J6*I6^2-1*C6*A6*J6*H6^2-1*C6*H6*J6^2*B6+E6*H6^3*A6-1*C6*H6*I6^2*B6+2*D6*J6*I6*H6*B6+2*C6*H6*G6*A6*I6-1*C6*A6*J6^3-1*C6*J6*G6^2*A6-1*D6*G6^3*B6+E6*J6^2*A6*H6+D6*A6*J6^2*I6-1*E6*J6*H6^2*B6+D6*G6*H6^2*B6-1*D6*G6*I6^2*B6+F6*B6*J6^2*I6-1*F6*B6*H6^2*I6-2*F6*A6*J6*I6*H6-1*F6*B6*I6^3-2*E6*G6*A6*J6*I6+2*E6*G6*I6*H6*B6-1*E6*G6^2*B6*J6-1*E6*G6^2*H6*A6+E6*I6^2*H6*A6+E6*I6^2*B6*J6+F6*G6^3*A6+F6*G6*A6*I6^2+2*F6*G6*B6*J6*H6-1*F6*G6*A6*H6^2+F6*G6*A6*J6^2)/A6/B6/(2*G6^2*A6^2*J6^2+G6^4*A6^2+A6^2*J6^4+A6^2*H6^4+2*G6^2*B6^2*I6^2-8*G6*A6^2*J6*I6*H6+2*G6^2*B6^2*J6^2+B6^2*H6^4+B6^2*I6^4-8*G6*B6^2*J6*I6*H6+2*A6^2*I6^2*H6^2+G6^4*B6^2-2*G6^2*A6^2*H6^2+2*G6^2*A6^2*I6^2+A6^2*I6^4+2*B6^2*J6^2*H6^2-2*B6^2*I6^2*J6^2-2*G6^2*B6^2*H6^2+2*B6^2*I6^2*H6^2+B6^2*J6^4+2*A6^2*J6^2*H6^2-2*A6^2*I6^2*J6^2) -> 1.315831252e-20 | H36: =-0.5*(-1*F6*G6^2*I6*B6^3-1*D6*G6^3*A6^2*B6-1*C6*A6^3*H6^2*J6-1*C6*A6^2*H6^3*B6-1*C6*J6*G6^2*A6^3-1*C6*B6^3*H6^3-1*C6*J6*G6^2*A6*B6^2+2*C6*I6*G6*A6^2*J6*B6-1*C6*H6*A6^2*B6*I6^2-1*C6*H6*B6^3*J6^2-1*C6*A6*B6^2*J6^3+2*C6*H6*G6*A6*B6^2*I6+C6*A6*I6^2*J6*B6^2+C6*H6*G6^2*B6^3+C6*A6^3*I6^2*J6-1*C6*A6*B6^2*H6^2*J6+C6*H6*G6^2*A6^2*B6+2*C6*H6*G6*A6^3*I6-1*C6*A6^3*J6^3-1*C6*H6*B6^3*I6^2-1*C6*H6*A6^2*B6*J6^2+2*D6*G6*A6^3*H6*J6+2*D6*B6^3*H6*I6*J6-1*D6*G6^3*B6^3-1*D6*A6^3*I6^3+D6*A6^3*J6^2*I6+2*C6*I6*G6*J6*B6^3+D6*A6*J6^2*B6^2*I6-1*D6*A6*B6^2*I6^3-1*D6*G6^2*A6*B6^2*I6+D6*G6*B6^3*H6^2-1*D6*G6*A6^2*B6*I6^2-1*D6*G6^2*A6^3*I6-1*D6*G6*B6^3*I6^2-1*D6*A6*H6^2*I6*B6^2-1*D6*A6^3*H6^2*I6+E6*J6^2*A6^3*H6-1*E6*J6*A6^2*H6^2*B6-1*E6*J6^3*B6^3+E6*H6^3*A6^3-1*D6*G6*A6^2*B6*J6^2+D6*G6*A6^2*H6^2*B6+2*D6*A6^2*H6*I6*J6*B6+2*D6*G6*A6*B6^2*H6*J6-1*E6*J6^3*A6^2*B6-1*D6*G6*B6^3*J6^2+E6*I6^2*A6^2*J6*B6+E6*H6^3*A6*B6^2-1*F6*B6^3*H6^2*I6+E6*J6^2*A6*B6^2*H6+E6*I6^2*H6*A6^3+E6*I6^2*J6*B6^3-1*E6*G6^2*H6*A6^3-1*E6*G6^2*J6*B6^3+E6*I6^2*H6*A6*B6^2-1*E6*G6^2*A6^2*J6*B6-2*E6*G6*A6*I6*J6*B6^2-1*E6*G6^2*H6*A6*B6^2-1*E6*J6*B6^3*H6^2-2*E6*G6*A6^3*I6*J6+F6*G6^3*A6^3-1*F6*B6^3*I6^3+2*E6*G6*I6*H6*A6^2*B6+2*E6*G6*I6*H6*B6^3-1*F6*G6*A6^3*H6^2+F6*G6*A6^3*I6^2+F6*G6*A6*B6^2*I6^2-1*F6*G6^2*A6^2*I6*B6-1*F6*A6^2*B6*H6^2*I6-2*F6*A6^3*H6*I6*J6+F6*A6^2*B6*J6^2*I6+F6*G6*A6^3*J6^2+2*F6*G6*H6*J6*B6^3-1*F6*G6*A6*B6^2*H6^2+F6*G6*A6*B6^2*J6^2+2*F6*G6*A6^2*H6*J6*B6+F6*B6^3*J6^2*I6-2*F6*A6*H6*I6*J6*B6^2+F6*G6^3*A6*B6^2-1*F6*A6^2*B6*I6^3)/(2*G6^2*J6^2+2*I6^2*H6^2-2*G6^2*H6^2+G6^4+I6^4+H6^4+2*G6^2*I6^2-8*G6*J6*I6*H6+J6^4+2*J6^2*H6^2-2*I6^2*J6^2)/A6/B6 -> -2.40683273e-15 | I36: =-0.5*(A6^2*F6*I6^2*H6+B6^2*D6*J6^3-1*A6^2*D6*J6^3+A6^2*C6*I6*J6^2-2*A6*E6*B6*I6^3+2*A6*F6*B6*I6^2*J6+2*A6*E6*J6^2*B6*I6+2*J6^3*K6*D6-2*G6^3*K6*E6-2*H6^3*K6*F6+2*H6^2*I6*K6*C6+2*G6^2*I6*K6*C6-2*J6^2*I6*K6*C6+2*J6*H6^2*K6*D6+2*J6*G6^2*K6*D6+2*G6*H6^2*K6*E6-2*G6*J6^2*K6*E6-2*G6*I6^2*K6*E6-2*J6^2*H6*K6*F6-2*I6^2*H6*K6*F6+2*G6^2*H6*K6*F6-2*J6*I6^2*K6*D6-4*H6*G6*I6*K6*D6+4*G6*J6*I6*K6*F6+4*J6*I6*H6*K6*E6-4*G6*J6*H6*K6*C6-1*B6^2*F6*H6^3+B6^2*C6*I6^3-1*A6^2*C6*I6^3+B6^2*D6*J6*H6^2+A6^2*F6*H6^3+2*B6^2*E6*J6*I6*H6+B6^2*C6*I6*H6^2-1*B6^2*F6*J6^2*H6-1*B6^2*F6*I6^2*H6-2*A6*F6*B6*J6*H6^2-2*A6*D6*B6*I6^2*H6-2*A6*E6*I6*H6^2*B6-2*A6*D6*H6^3*B6+2*I6^3*K6*C6-2*A6*D6*J6^2*B6*H6-2*A6^2*E6*J6*I6*H6-1*A6^2*D6*J6*H6^2-1*A6^2*C6*I6*H6^2+A6^2*F6*J6^2*H6-1*B6^2*E6*G6^3+4*A6*C6*B6*J6*I6*H6+B6^2*D6*G6^2*J6+B6^2*C6*I6*G6^2+B6^2*F6*G6^2*H6-2*B6^2*C6*H6*G6*J6+2*B6^2*F6*G6*I6*J6-1*B6^2*E6*G6*I6^2-1*B6^2*E6*G6*J6^2+B6^2*E6*G6*H6^2-2*B6^2*D6*G6*I6*H6+4*A6*D6*G6*B6*I6*J6-2*A6^2*F6*G6*I6*J6+4*A6*F6*G6*B6*I6*H6-1*A6^2*D6*G6^2*J6-1*A6^2*C6*I6*G6^2-1*A6^2*F6*G6^2*H6+2*A6^2*C6*H6*G6*J6+A6^2*E6*G6*I6^2+A6^2*E6*G6*J6^2-1*A6^2*E6*G6*H6^2+A6^2*E6*G6^3+2*A6^2*D6*G6*I6*H6-2*A6*C6*B6*G6^3-2*A6*F6*G6^2*B6*J6+2*A6*C6*B6*G6*H6^2-2*A6*E6*G6^2*B6*I6-2*A6*C6*B6*G6*J6^2-2*A6*C6*B6*G6*I6^2+2*A6*D6*G6^2*B6*H6+4*A6*E6*G6*J6*B6*H6-2*A6*F6*B6*J6^3-1*B6^2*D6*I6^2*J6-1*B6^2*C6*I6*J6^2+A6^2*D6*I6^2*J6)/(2*G6^2*J6^2+2*I6^2*H6^2-2*G6^2*H6^2+G6^4+I6^4+H6^4+2*G6^2*I6^2-8*G6*J6*I6*H6+J6^4+2*J6^2*H6^2-2*I6^2*J6^2)/A6/B6 -> 1 | J36: =0.5*(F6*G6^2*B6*I6+C6*H6^3*B6-1*D6*G6^2*A6*I6+2*D6*G6*A6*J6*H6-1*D6*A6*H6^2*I6-1*D6*A6*I6^3-2*C6*I6*G6*B6*J6-1*C6*H6*G6^2*B6+E6*J6^3*B6+D6*G6*J6^2*B6+C6*A6*J6*I6^2-1*C6*A6*J6*H6^2+C6*H6*J6^2*B6+E6*H6^3*A6+C6*H6*I6^2*B6-2*D6*J6*I6*H6*B6+2*C6*H6*G6*A6*I6-1*C6*A6*J6^3-1*C6*J6*G6^2*A6+D6*G6^3*B6+E6*J6^2*A6*H6+D6*A6*J6^2*I6+E6*J6*H6^2*B6-1*D6*G6*H6^2*B6+D6*G6*I6^2*B6-1*F6*B6*J6^2*I6+F6*B6*H6^2*I6-2*F6*A6*J6*I6*H6+F6*B6*I6^3-2*E6*G6*A6*J6*I6-2*E6*G6*I6*H6*B6+E6*G6^2*B6*J6-1*E6*G6^2*H6*A6+E6*I6^2*H6*A6-1*E6*I6^2*B6*J6+F6*G6^3*A6+F6*G6*A6*I6^2-2*F6*G6*B6*J6*H6-1*F6*G6*A6*H6^2+F6*G6*A6*J6^2)/(2*G6^2*J6^2+2*I6^2*H6^2-2*G6^2*H6^2+G6^4+I6^4+H6^4+2*G6^2*I6^2-8*G6*J6*I6*H6+J6^4+2*J6^2*H6^2-2*I6^2*J6^2)/A6/B6 -> -3.270153166e-18 | K36: =0.5*(-1*D6*J6*H6^2-1*C6*I6^3+E6*G6^3-1*C6*I6*H6^2+C6*I6*J6^2-1*D6*J6^3+D6*I6^2*J6+2*D6*G6*I6*H6-2*E6*J6*I6*H6-1*E6*G6*H6^2+E6*G6*J6^2+E6*G6*I6^2-2*F6*G6*I6*J6+2*C6*H6*G6*J6+F6*H6^3-1*F6*G6^2*H6-1*C6*I6*G6^2-1*D6*G6^2*J6+F6*J6^2*H6+F6*I6^2*H6)/(2*G6^2*J6^2+2*I6^2*H6^2-2*G6^2*H6^2+G6^4+I6^4+H6^4+2*G6^2*I6^2-8*G6*J6*I6*H6+J6^4+2*J6^2*H6^2-2*I6^2*J6^2)/A6/B6 -> 0 | L36: =-0.5*(-1*B6^4*I6*H6^2*C6-4*A6^2*B6^2*J6*I6*H6*E6+2*A6^2*B6^2*H6*J6^2*F6+2*A6^2*B6^2*G6*I6^2*E6+2*A6^2*B6^2*H6^3*F6-1*A6^4*C6*I6*G6^2-2*A6^4*F6*G6*I6*J6+A6^4*D6*I6^2*J6-1*A6^4*D6*J6*H6^2-1*A6^4*D6*G6^2*J6+A6^4*F6*H6^3-1*B6^4*J6*H6^2*D6-1*B6^4*G6*H6^2*E6-2*B6^4*J6*I6*H6*E6+B6^4*I6^2*J6*D6+I6*B6^4*J6^2*C6+2*H6*G6*B6^4*J6*C6-1*I6*G6^2*B6^4*C6+B6^4*H6*J6^2*F6+B6^4*G6*I6^2*E6+B6^4*G6*J6^2*E6-2*G6*B6^4*J6*I6*F6+2*G6*B6^4*I6*H6*D6-1*G6^2*B6^4*J6*D6-1*G6^2*B6^4*H6*F6+B6^4*I6^2*H6*F6+A6^4*C6*I6*J6^2+A6^4*E6*G6*I6^2+2*A6^4*D6*G6*I6*H6-1*A6^4*C6*I6^3-1*A6^4*E6*G6*H6^2-1*A6^4*C6*I6*H6^2+A6^4*E6*G6^3-1*A6^4*F6*G6^2*H6+2*A6^4*C6*H6*G6*J6+A6^4*F6*J6^2*H6+A6^4*F6*I6^2*H6+A6^4*E6*G6*J6^2+2*A6^2*B6^2*I6^2*H6*F6-2*A6^2*B6^2*I6*H6^2*C6-2*A6^2*B6^2*J6*H6^2*D6-2*A6^4*E6*J6*I6*H6-4*A6^2*G6*B6^2*J6*I6*F6+2*A6^2*B6^2*I6^2*J6*D6-2*A6^2*B6^2*G6*H6^2*E6-2*A6^2*J6^3*B6^2*D6+4*A6^2*H6*G6*B6^2*J6*C6+2*A6^2*B6^2*G6^3*E6-2*A6^2*G6^2*B6^2*J6*D6-2*A6^2*I6*G6^2*B6^2*C6+4*A6^2*G6*B6^2*I6*H6*D6-2*A6^2*B6^2*I6^3*C6+2*A6^2*B6^2*G6*J6^2*E6-2*A6^2*G6^2*B6^2*H6*F6+2*A6^2*I6*B6^2*J6^2*C6-1*A6^4*D6*J6^3+B6^4*H6^3*F6-1*J6^3*B6^4*D6-1*B6^4*I6^3*C6+B6^4*G6^3*E6)/(2*G6^2*J6^2+2*I6^2*H6^2-2*G6^2*H6^2+G6^4+I6^4+H6^4+2*G6^2*I6^2-8*G6*J6*I6*H6+J6^4+2*J6^2*H6^2-2*I6^2*J6^2)/A6/B6 -> 0 | M36: =-0.5*(-1*H6^3*B6*A6^2*C6+H6^3*B6^2*A6*E6-1*B6^3*H6^2*I6*F6-1*H6^3*B6^3*C6-1*A6^3*J6^3*C6-1*A6^3*I6^3*D6-1*G6^3*B6^3*D6-1*B6^3*I6^3*F6+2*A6*I6^3*K6*D6-1*G6^2*A6^2*I6*F6*B6-1*A6^3*H6^2*I6*D6-1*A6*H6^2*I6*B6^2*D6-1*G6^2*A6^3*I6*D6-1*A6*I6^3*B6^2*D6-1*A6^2*I6^3*F6*B6+G6*H6^2*B6*A6^2*D6-1*G6*H6^2*B6^2*A6*F6+A6^2*J6^2*I6*F6*B6-1*G6*J6^2*B6^3*D6+2*G6*A6*J6*H6*B6^2*D6+2*G6*A6^2*J6*H6*F6*B6+2*G6*A6^3*J6*H6*D6+A6*J6^2*I6*B6^2*D6-1*G6*J6^2*B6*A6^2*D6-1*A6^2*H6^2*I6*F6*B6-1*G6^2*A6*I6*B6^2*D6+A6^3*J6^2*I6*D6-1*G6*I6^2*B6*A6^2*D6+G6*I6^2*B6^2*A6*F6-1*G6*I6^2*B6^3*D6+G6*H6^2*B6^3*D6+A6^3*J6*I6^2*C6+A6*J6*I6^2*B6^2*C6+H6^3*A6^3*E6+H6*J6^2*B6^2*A6*E6-1*H6*I6^2*B6^3*C6+2*I6*G6*B6^3*J6*C6-1*H6*J6^2*B6^3*C6+H6*G6^2*B6*A6^2*C6-1*A6^2*J6^3*E6*B6-1*A6*J6^3*B6^2*C6+H6*G6^2*B6^3*C6-1*H6*G6^2*B6^2*A6*E6+2*H6*G6*A6^3*I6*C6+2*H6*G6*A6*I6*B6^2*C6-1*A6*J6*H6^2*B6^2*C6+2*H6*G6*A6^2*I6*E6*B6+G6^3*B6^2*A6*F6-1*A6^3*J6*H6^2*C6-1*H6*I6^2*B6*A6^2*C6+H6*I6^2*B6^2*A6*E6+A6^2*J6*I6^2*E6*B6-1*H6*J6^2*B6*A6^2*C6-1*J6*H6^2*B6^3*E6+2*I6*G6*B6*J6*A6^2*C6-2*I6*G6*B6^2*J6*A6*E6+2*J6*I6*H6*B6*A6^2*D6+2*J6*I6*H6*B6^3*D6-1*J6*G6^2*A6^2*E6*B6-1*J6*G6^2*A6^3*C6-1*G6^3*B6*A6^2*D6-1*J6*G6^2*A6*B6^2*C6-2*J6*I6*H6*B6^2*A6*F6+G6*A6^3*J6^2*F6-2*A6^3*J6*I6*H6*F6+G6*A6^3*I6^2*F6+J6^2*A6^3*H6*E6-2*G6*A6^3*J6*I6*E6+I6^2*B6^3*J6*E6+I6^2*H6*A6^3*E6-1*G6^2*B6^3*J6*E6-1*G6^2*H6*A6^3*E6-1*G6^2*B6^3*I6*F6+2*G6*I6*H6*B6^3*E6+2*G6*B6^3*J6*H6*F6-1*G6*A6^3*H6^2*F6-1*A6^2*J6*H6^2*E6*B6+B6^3*J6^2*I6*F6+G6^3*A6^3*F6-1*J6^3*B6^3*E6+G6*J6^2*B6^2*A6*F6-2*H6^3*B6*K6*C6+4*J6*I6*H6*B6*K6*D6-2*J6*G6^2*K6*E6*B6-2*G6^3*B6*K6*D6-2*I6^3*K6*F6*B6-2*G6^2*I6*K6*F6*B6-2*H6^2*I6*K6*F6*B6-2*G6*J6^2*B6*K6*D6+2*G6*H6^2*B6*K6*D6+2*J6^2*I6*K6*F6*B6+4*G6*J6*H6*K6*F6*B6-2*G6*I6^2*B6*K6*D6+2*J6*I6^2*K6*E6*B6-2*H6*J6^2*B6*K6*C6-2*H6*I6^2*B6*K6*C6+4*I6*G6*B6*J6*K6*C6-2*J6^3*K6*E6*B6+4*H6*G6*I6*K6*E6*B6+2*H6*G6^2*B6*K6*C6-2*G6*I6^2*K6*A6*F6-4*G6*A6*J6*H6*K6*D6-2*A6*J6*I6^2*K6*C6-2*H6*I6^2*K6*A6*E6-2*H6*J6^2*K6*A6*E6-2*G6^3*K6*A6*F6+2*A6*J6*H6^2*K6*C6-4*H6*G6*A6*I6*K6*C6-2*J6*H6^2*K6*E6*B6+4*I6*G6*J6*K6*A6*E6+2*A6*J6^3*K6*C6+2*H6*G6^2*K6*A6*E6+2*J6*G6^2*A6*K6*C6+4*J6*I6*H6*K6*A6*F6-2*H6^3*K6*A6*E6+2*G6^2*A6*I6*K6*D6+2*A6*H6^2*I6*K6*D6-2*A6*J6^2*I6*K6*D6-2*G6*J6^2*K6*A6*F6+2*G6*H6^2*K6*A6*F6)/(2*G6^2*J6^2+2*I6^2*H6^2-2*G6^2*H6^2+G6^4+I6^4+H6^4+2*G6^2*I6^2-8*G6*J6*I6*H6+J6^4+2*J6^2*H6^2-2*I6^2*J6^2)/A6/B6 -> 1.046449013e-15 | N36: =0.5*(-1*A6^2*C6*I6*H6^2+B6^2*I6*H6^2*C6-1*A6^2*C6*I6^3+A6^2*C6*I6*J6^2+B6^2*J6*H6^2*D6+A6^2*D6*I6^2*J6-2*A6*J6*I6^2*F6*B6+2*A6*G6^3*C6*B6+A6^2*F6*I6^2*H6-2*A6^2*E6*J6*I6*H6+2*A6*H6^2*I6*E6*B6+2*A6*J6*H6^2*F6*B6+2*A6*I6^2*H6*D6*B6+2*A6*J6^2*H6*D6*B6-4*A6*J6*I6*H6*C6*B6+2*A6*H6^3*D6*B6-2*A6*I6*J6^2*E6*B6-1*B6^2*H6*J6^2*F6-1*A6^2*D6*G6^2*J6+A6^2*E6*G6*I6^2+2*A6*J6^3*F6*B6+2*A6*I6^3*E6*B6-4*A6*H6*G6*J6*E6*B6+2*A6*I6*G6^2*E6*B6-2*A6*G6^2*H6*D6*B6-4*A6*G6*H6*I6*F6*B6-4*A6*G6*J6*I6*D6*B6-2*A6*G6*H6^2*C6*B6+2*A6*G6^2*J6*F6*B6+2*A6*G6*I6^2*C6*B6+2*A6*G6*J6^2*C6*B6-1*B6^2*I6^2*H6*F6+2*B6^2*J6*I6*H6*E6+A6^2*F6*J6^2*H6-1*A6^2*D6*J6*H6^2-1*B6^2*G6*I6^2*E6-1*B6^2*G6*J6^2*E6+2*G6*B6^2*J6*I6*F6-2*G6*B6^2*I6*H6*D6+G6^2*B6^2*H6*F6+G6^2*B6^2*J6*D6-2*H6*G6*B6^2*J6*C6+B6^2*I6^3*C6+I6*G6^2*B6^2*C6+B6^2*G6*H6^2*E6-1*A6^2*D6*J6^3-1*A6^2*C6*I6*G6^2-2*A6^2*F6*G6*I6*J6+2*A6^2*D6*G6*I6*H6-1*A6^2*F6*G6^2*H6-1*A6^2*E6*G6*H6^2+2*A6^2*C6*H6*G6*J6+A6^2*E6*G6*J6^2-1*B6^2*H6^3*F6+A6^2*F6*H6^3+J6^3*B6^2*D6-1*B6^2*G6^3*E6-1*B6^2*I6^2*J6*D6+A6^2*E6*G6^3-1*I6*B6^2*J6^2*C6)/(2*G6^2*J6^2+2*I6^2*H6^2-2*G6^2*H6^2+G6^4+I6^4+H6^4+2*G6^2*I6^2-8*G6*J6*I6*H6+J6^4+2*J6^2*H6^2-2*I6^2*J6^2)/A6/B6 -> 1 | O36: =0.5*(-1*A6*H6^2*I6*D6+A6*J6^2*I6*D6-1*H6*G6^2*B6*C6+J6^3*E6*B6+H6^2*J6*E6*B6+I6^3*F6*B6+H6^3*B6*C6-2*H6*I6*J6*B6*D6+H6^2*I6*F6*B6-1*J6^2*I6*F6*B6+G6^3*B6*D6+G6^2*I6*F6*B6+G6*B6*J6^2*D6+J6*G6^2*E6*B6-2*H6*G6*I6*E6*B6+H6*B6*I6^2*C6-1*I6^2*J6*E6*B6+H6*B6*J6^2*C6-2*I6*G6*J6*B6*C6+2*G6*A6*H6*J6*D6-1*G6^2*A6*I6*D6-1*G6*H6^2*A6*F6+G6*I6^2*A6*F6+G6*J6^2*A6*F6-1*H6*G6^2*A6*E6-2*I6*G6*J6*A6*E6+2*H6*G6*A6*I6*C6+H6^3*A6*E6+H6*J6^2*A6*E6-1*A6*H6^2*J6*C6+A6*I6^2*J6*C6+H6*I6^2*A6*E6-2*H6*I6*J6*A6*F6-1*J6*G6^2*A6*C6-1*A6*J6^3*C6+G6^3*A6*F6-1*A6*I6^3*D6-2*G6*H6*J6*F6*B6+G6*B6*I6^2*D6-1*G6*H6^2*B6*D6)/(2*G6^2*J6^2+2*I6^2*H6^2-2*G6^2*H6^2+G6^4+I6^4+H6^4+2*G6^2*I6^2-8*G6*J6*I6*H6+J6^4+2*J6^2*H6^2-2*I6^2*J6^2)/A6/B6 -> 0 | P36: =-0.5*(-2*G6^3*B6^2*K6*A6*F6+G6^3*B6^5*D6+B6^5*I6^3*F6+A6*I6^2*J6*B6^4*C6-2*A6^2*I6^2*J6*B6^3*E6+2*B6^3*H6^3*A6^2*C6+B6^4*H6^3*A6*E6+B6^5*H6^3*C6-1*A6^5*J6^3*C6-2*H6*G6^2*B6^3*K6*C6+2*H6*G6^2*B6^2*K6*A6*E6-4*H6*G6*A6^3*I6*K6*C6-4*H6*G6*A6*I6*K6*B6^2*C6-4*H6*G6*A6^2*I6*K6*E6*B6+2*A6^3*J6*H6^2*K6*C6+2*A6*J6*H6^2*K6*B6^2*C6+H6*B6^4*I6^2*A6*E6-2*A6^3*B6^2*H6^2*J6*C6-1*A6*B6^4*H6^2*J6*C6+2*A6^2*B6^3*H6^2*J6*E6-1*H6*G6^2*A6^4*B6*C6-2*H6*G6^2*A6^3*B6^2*E6-2*H6*G6^2*B6*K6*A6^2*C6+H6*B6^4*J6^2*A6*E6+2*H6*G6*A6^5*I6*C6-2*H6*G6*A6^4*I6*E6*B6-4*H6*G6*A6^2*B6^3*I6*E6-2*I6*G6*A6^4*J6*B6*C6+2*H6*A6^2*B6^3*I6^2*C6+2*H6*A6^3*B6^2*I6^2*E6+4*H6*G6*A6^3*B6^2*I6*C6+2*A6^2*J6^3*K6*E6*B6+H6*A6^4*B6*J6^2*C6+2*H6*A6^2*B6^3*J6^2*C6+2*H6*A6^3*B6^2*J6^2*E6+2*A6*J6^3*K6*B6^2*C6+H6*A6^4*B6*I6^2*C6+2*H6*G6*A6*B6^4*I6*C6-4*I6*G6*A6^3*J6*B6^2*E6+H6*B6^5*J6^2*C6-1*A6^5*H6^2*J6*C6+2*H6^3*B6^3*K6*C6+H6*B6^5*I6^2*C6+2*H6*J6^2*B6^3*K6*C6-2*H6*J6^2*B6^2*K6*A6*E6-1*A6^4*I6^2*J6*E6*B6+2*H6*I6^2*B6*K6*A6^2*C6+2*H6*I6^2*B6^3*K6*C6-2*H6*I6^2*B6^2*K6*A6*E6+2*A6^3*J6^3*K6*C6-2*I6*G6*J6*B6^5*C6-2*I6*G6*J6*B6^4*A6*E6-4*I6*G6*B6*J6*K6*A6^2*C6-4*I6*G6*B6^3*J6*K6*C6-4*I6*G6*J6*B6^3*A6^2*C6+4*I6*G6*B6^2*J6*K6*A6*E6-2*A6^3*J6*I6^2*K6*C6-2*A6*J6*I6^2*K6*B6^2*C6-2*A6^2*J6*I6^2*K6*E6*B6+2*H6*J6^2*B6*K6*A6^2*C6-2*H6*G6^2*B6^3*A6^2*C6-1*H6*G6^2*B6^4*A6*E6-2*J6*G6^2*A6^3*B6^2*C6+J6*G6^2*A6^4*E6*B6-2*A6^3*J6^3*B6^2*C6+A6^4*J6^3*E6*B6-1*H6*G6^2*B6^5*C6-1*J6*G6^2*A6^5*C6-1*A6*B6^4*J6^3*C6+2*A6^2*B6^3*J6^3*E6+A6^5*I6^2*J6*C6+2*A6^3*I6^2*J6*B6^2*C6+G6*B6^4*J6^2*A6*F6+2*J6*H6^2*B6^3*K6*E6-2*G6*A6^5*I6*J6*E6+G6*B6^5*J6^2*D6+G6^2*J6*B6^5*E6-1*G6^2*H6*A6^5*E6-2*H6^3*A6^3*K6*E6-1*I6^2*J6*B6^5*E6+I6^2*H6*A6^5*E6-2*G6*A6^4*H6*J6*F6*B6+G6^2*A6^4*I6*F6*B6-1*G6*B6^4*H6^2*A6*F6+G6*B6^4*I6^2*A6*F6-2*G6*A6^3*H6^2*B6^2*F6+G6*A6^4*B6*J6^2*D6+2*G6*A6^2*B6^3*J6^2*D6+2*G6*A6^3*B6^2*J6^2*F6-2*G6^2*A6^3*B6^2*I6*D6-1*G6^2*A6*B6^4*I6*D6+2*G6^2*A6^2*B6^3*I6*F6+2*G6*A6^5*H6*J6*D6+H6^3*A6^5*E6+G6*A6^4*B6*I6^2*D6+2*G6*A6^2*B6^3*I6^2*D6+2*G6*A6^3*B6^2*I6^2*F6-4*G6*A6^3*J6*H6*K6*D6-4*G6*A6*J6*H6*K6*B6^2*D6-4*G6*A6^2*J6*H6*K6*F6*B6-1*G6*A6^4*H6^2*B6*D6-2*G6*A6^2*H6^2*B6^3*D6+2*G6*I6^2*B6*K6*A6^2*D6-2*G6*I6^2*B6^2*K6*A6*F6+J6^3*B6^5*E6+2*G6*A6*B6^4*H6*J6*D6-4*G6*A6^2*B6^3*H6*J6*F6+2*G6*I6^2*B6^3*K6*D6-2*G6*H6^2*B6*K6*A6^2*D6-2*G6*H6^2*B6^3*K6*D6+2*G6*H6^2*B6^2*K6*A6*F6-2*A6^2*J6^2*I6*K6*F6*B6-1*A6*H6^2*I6*B6^4*D6-2*A6*J6^2*I6*K6*B6^2*D6+2*A6^2*H6^2*I6*B6^3*F6+2*G6*J6^2*B6*K6*A6^2*D6+2*G6*J6^2*B6^3*K6*D6-2*G6*J6^2*B6^2*K6*A6*F6+4*G6*A6^3*B6^2*H6*J6*D6+2*A6^2*H6^2*I6*K6*F6*B6+2*G6^2*A6*I6*K6*B6^2*D6+2*G6^2*A6^2*I6*K6*F6*B6-2*A6^3*J6^2*I6*K6*D6+2*A6^3*H6^2*I6*K6*D6+2*A6*H6^2*I6*K6*B6^2*D6+2*G6^2*A6^3*I6*K6*D6+A6*J6^2*B6^4*I6*D6-2*A6^2*J6^2*B6^3*I6*F6+2*A6*I6^3*K6*B6^2*D6+2*A6^2*I6^3*K6*F6*B6+G6^3*A6^4*B6*D6+2*G6^3*A6^3*B6^2*F6-1*A6*B6^4*I6^3*D6+2*A6^2*B6^3*I6^3*F6+2*A6^3*I6^3*K6*D6-1*G6^2*A6^5*I6*D6-1*G6*B6^5*H6^2*D6+G6*B6^5*I6^2*D6-2*A6^3*H6^2*I6*B6^2*D6+A6^4*H6^2*I6*F6*B6-2*A6^4*H6*I6*J6*B6*D6-4*A6^3*H6*I6*J6*B6^2*F6-1*A6^4*J6^2*I6*F6*B6-4*J6*I6*H6*B6*K6*A6^2*D6-4*J6*I6*H6*B6^3*K6*D6+2*J6*G6^2*A6^2*K6*E6*B6+A6^5*J6^2*I6*D6)/(2*G6^2*J6^2+2*I6^2*H6^2-2*G6^2*H6^2+G6^4+I6^4+H6^4+2*G6^2*I6^2-8*G6*J6*I6*H6+J6^4+2*J6^2*H6^2-2*I6^2*J6^2)/A6/B6-0.5*(-2*A6^3*I6^3*B6^2*D6+A6^4*I6^3*F6*B6+2*G6^3*B6^3*A6^2*D6+G6^3*B6^4*A6*F6-1*A6^5*I6^3*D6-1*J6*G6^2*A6*B6^4*C6+2*J6*G6^2*A6^2*B6^3*E6+2*J6*G6^2*A6^3*K6*C6+2*G6^3*B6*K6*A6^2*D6+A6^4*H6^2*J6*E6*B6+2*H6^3*B6*K6*A6^2*C6-2*H6^3*B6^2*K6*A6*E6+A6^4*H6^3*B6*C6+2*A6^3*H6^3*B6^2*E6+2*G6^3*B6^3*K6*D6+2*A6^2*J6*H6^2*K6*E6*B6+2*J6*G6^2*A6*K6*B6^2*C6+2*A6^3*J6^2*I6*B6^2*D6+4*J6*I6*H6*B6^2*K6*A6*F6-4*B6^3*H6*I6*J6*A6^2*D6-2*B6^5*H6*I6*J6*D6-2*B6^4*H6*I6*J6*A6*F6-1*A6^5*H6^2*I6*D6-2*A6^5*H6*I6*J6*F6+G6^2*I6*B6^5*F6-1*B6^5*J6^2*I6*F6+2*B6^3*H6^2*I6*K6*F6-2*B6^3*J6^2*I6*K6*F6+2*B6^3*I6^3*K6*F6+B6^5*H6^2*I6*F6+G6*A6^5*I6^2*F6-2*G6^3*A6^3*K6*F6-4*G6*I6*H6*B6^3*K6*E6-2*G6*I6*H6*B6^5*E6-2*J6^2*A6^3*H6*K6*E6+4*G6*A6^3*J6*I6*K6*E6+2*J6^3*B6^3*K6*E6+J6^2*A6^5*H6*E6+J6*B6^5*H6^2*E6-1*G6*A6^5*H6^2*F6+G6^3*A6^5*F6-2*I6^2*B6^3*J6*K6*E6-2*I6^2*H6*A6^3*K6*E6+2*G6^2*B6^3*J6*K6*E6+2*G6^2*H6*A6^3*K6*E6-4*G6*B6^3*J6*H6*K6*F6+G6*A6^5*J6^2*F6+4*A6^3*J6*I6*H6*K6*F6+2*G6^2*B6^3*I6*K6*F6-2*G6*A6^3*I6^2*K6*F6+2*G6*A6^3*H6^2*K6*F6-2*G6*H6*J6*B6^5*F6-2*G6*A6^3*J6^2*K6*F6)/(2*G6^2*J6^2+2*I6^2*H6^2-2*G6^2*H6^2+G6^4+I6^4+H6^4+2*G6^2*I6^2-8*G6*J6*I6*H6+J6^4+2*J6^2*H6^2-2*I6^2*J6^2)/A6/B6 -> 0 | Q36: =-0.5*(-4*I6^3*K6^2*C6+4*H6^3*K6^2*F6-4*J6^3*K6^2*D6+4*G6^3*K6^2*E6-1*B6^4*I6*H6^2*C6-4*A6^2*B6^2*J6*I6*H6*E6+2*A6^2*B6^2*H6*J6^2*F6+2*A6^2*B6^2*G6*I6^2*E6+2*A6^2*B6^2*H6^3*F6-1*A6^4*C6*I6*G6^2-2*A6^4*F6*G6*I6*J6+A6^4*D6*I6^2*J6-1*A6^4*D6*J6*H6^2-1*A6^4*D6*G6^2*J6+A6^4*F6*H6^3-4*J6*H6^2*K6^2*D6-4*J6*G6^2*K6^2*D6+4*I6^2*H6*K6^2*F6+4*G6*I6^2*K6^2*E6+4*G6*J6^2*K6^2*E6-4*G6*H6^2*K6^2*E6-4*K6*J6^2*A6^2*H6*F6-4*K6*J6*H6^2*B6^2*D6+4*K6*I6^2*B6^2*J6*D6-4*K6*I6^2*H6*A6^2*F6-4*K6*G6^2*B6^2*J6*D6+4*K6*G6^2*H6*A6^2*F6+4*K6*H6*J6^2*B6^2*F6-8*K6*G6*A6^2*J6*H6*C6+4*K6*H6^3*B6^2*F6+4*K6*A6^2*J6^3*D6+4*K6*G6^3*B6^2*E6+4*K6*A6^2*I6^3*C6-4*K6*J6^3*B6^2*D6-4*K6*H6^3*A6^2*F6-4*K6*G6^3*A6^2*E6-4*K6*B6^2*I6^3*C6-4*K6*G6^2*B6^2*I6*C6-4*K6*G6*A6^2*J6^2*E6+4*K6*G6*A6^2*H6^2*E6-4*K6*G6*A6^2*I6^2*E6+8*K6*A6^2*J6*I6*H6*E6+4*K6*B6^2*J6^2*I6*C6-4*K6*B6^2*H6^2*I6*C6+8*K6*G6*A6^2*J6*I6*F6+8*K6*G6*I6*H6*B6^2*D6+4*K6*G6^2*A6^2*I6*C6+4*K6*G6*I6^2*B6^2*E6+4*K6*G6*J6^2*B6^2*E6-4*K6*G6*H6^2*B6^2*E6-4*K6*A6^2*J6*I6^2*D6-8*K6*I6*G6*B6^2*J6*F6-4*K6*H6*G6^2*B6^2*F6+4*K6*J6*G6^2*A6^2*D6+4*K6*A6^2*J6*H6^2*D6-8*K6*H6*G6*A6^2*I6*D6+4*K6*H6*I6^2*B6^2*F6-8*K6*J6*I6*H6*B6^2*E6+4*K6*A6^2*H6^2*I6*C6-4*K6*A6^2*J6^2*I6*C6-8*G6*J6*I6*K6^2*F6-8*J6*I6*H6*K6^2*E6+8*K6*G6*B6^2*J6*H6*C6+8*H6*G6*I6*K6^2*D6+8*G6*J6*H6*K6^2*C6+4*J6^2*H6*K6^2*F6-4*G6^2*I6*K6^2*C6-4*H6^2*I6*K6^2*C6+4*J6^2*I6*K6^2*C6+4*J6*I6^2*K6^2*D6-4*G6^2*H6*K6^2*F6-1*B6^4*J6*H6^2*D6-1*B6^4*G6*H6^2*E6-2*B6^4*J6*I6*H6*E6+B6^4*I6^2*J6*D6+I6*B6^4*J6^2*C6+2*H6*G6*B6^4*J6*C6-1*I6*G6^2*B6^4*C6+B6^4*H6*J6^2*F6+B6^4*G6*I6^2*E6+B6^4*G6*J6^2*E6-2*G6*B6^4*J6*I6*F6+2*G6*B6^4*I6*H6*D6-1*G6^2*B6^4*J6*D6-1*G6^2*B6^4*H6*F6+B6^4*I6^2*H6*F6+A6^4*C6*I6*J6^2+A6^4*E6*G6*I6^2+2*A6^4*D6*G6*I6*H6-1*A6^4*C6*I6^3-1*A6^4*E6*G6*H6^2-1*A6^4*C6*I6*H6^2+A6^4*E6*G6^3-1*A6^4*F6*G6^2*H6+2*A6^4*C6*H6*G6*J6+A6^4*F6*J6^2*H6+A6^4*F6*I6^2*H6+A6^4*E6*G6*J6^2+2*A6^2*B6^2*I6^2*H6*F6-2*A6^2*B6^2*I6*H6^2*C6-2*A6^2*B6^2*J6*H6^2*D6-2*A6^4*E6*J6*I6*H6-4*A6^2*G6*B6^2*J6*I6*F6+2*A6^2*B6^2*I6^2*J6*D6-2*A6^2*B6^2*G6*H6^2*E6-2*A6^2*J6^3*B6^2*D6+4*A6^2*H6*G6*B6^2*J6*C6+2*A6^2*B6^2*G6^3*E6-2*A6^2*G6^2*B6^2*J6*D6-2*A6^2*I6*G6^2*B6^2*C6+4*A6^2*G6*B6^2*I6*H6*D6-2*A6^2*B6^2*I6^3*C6+2*A6^2*B6^2*G6*J6^2*E6-2*A6^2*G6^2*B6^2*H6*F6+2*A6^2*I6*B6^2*J6^2*C6-1*A6^4*D6*J6^3+B6^4*H6^3*F6-1*J6^3*B6^4*D6-1*B6^4*I6^3*C6+B6^4*G6^3*E6)/(2*G6^2*J6^2+2*I6^2*H6^2-2*G6^2*H6^2+G6^4+I6^4+H6^4+2*G6^2*I6^2-8*G6*J6*I6*H6+J6^4+2*J6^2*H6^2-2*I6^2*J6^2)/B6/A6 -> 0 | R36: =0.5*(-2*G6*I6^2*K6*A6*F6+2*A6*I6^3*K6*D6+3*A6^2*I6^3*F6*B6-1*I6*G6^2*B6^3*F6-1*I6*G6^2*A6^3*D6-1*A6^3*H6^2*I6*D6+3*B6^2*I6^3*A6*D6-1*B6^3*I6^3*F6-1*A6^3*I6^3*D6-1*J6^3*B6^3*E6-1*A6^3*J6^3*C6-1*G6^3*B6^3*D6+G6^3*A6^3*F6+3*A6^2*J6^2*H6*C6*B6-3*G6^2*A6^2*H6*C6*B6+3*G6^2*H6*B6^2*A6*E6-2*G6*A6^3*J6*I6*E6-6*G6*A6^2*J6*I6*C6*B6+6*G6*J6*I6*B6^2*A6*E6+2*G6*J6*I6*B6^3*C6-3*B6^2*I6^2*H6*A6*E6-3*B6^2*J6^2*H6*A6*E6+3*A6^2*I6^2*H6*C6*B6+G6^2*H6*B6^3*C6+3*A6^2*H6^3*C6*B6-1*B6^3*I6^2*H6*C6-1*B6^3*J6^2*H6*C6+A6^3*I6^2*H6*E6+A6^3*J6^2*H6*E6-1*G6^2*A6^3*H6*E6+6*J6*H6*B6^2*I6*A6*F6+2*J6*H6*B6^3*I6*D6+3*G6^3*A6^2*D6*B6+3*G6*A6^2*J6^2*D6*B6-3*G6*H6^2*A6^2*D6*B6-6*J6*A6^2*H6*I6*D6*B6-3*G6*B6^2*I6^2*A6*F6-1*G6*B6^3*I6^2*D6-1*G6*B6^3*J6^2*D6+G6*A6^3*I6^2*F6+G6*A6^3*J6^2*F6-1*G6*H6^2*A6^3*F6-3*B6^2*H6^3*A6*E6-3*G6*B6^2*J6^2*A6*F6+2*G6*H6*B6^3*I6*E6+3*G6*H6^2*B6^2*A6*F6+3*G6*A6^2*I6^2*D6*B6-2*J6*A6^3*H6*I6*F6-1*B6^3*H6^3*C6+A6^3*H6^3*E6-6*G6*A6^2*H6*I6*E6*B6-6*G6*H6*B6^2*I6*A6*C6-3*A6^2*J6*I6^2*E6*B6+3*G6^2*A6^2*J6*E6*B6+3*G6^2*J6*B6^2*A6*C6+3*A6^2*J6*H6^2*E6*B6-1*G6^2*J6*B6^3*E6-3*G6^3*B6^2*A6*F6+G6*H6^2*B6^3*D6+2*G6*A6^3*H6*I6*C6+3*J6*B6^2*H6^2*A6*C6-1*A6^3*J6*H6^2*C6+A6^3*J6*I6^2*C6-1*G6^2*A6^3*J6*C6+3*A6^2*J6^3*E6*B6+J6*B6^3*I6^2*E6-1*J6*B6^3*H6^2*E6-3*J6*B6^2*I6^2*A6*C6-6*H6*G6*A6^2*J6*F6*B6 -6*H6*G6*J6*B6^2*A6*D6+I6*A6^3*J6^2*D6+3*I6*G6^2*A6^2*F6*B6+3*A6^2*H6^2*I6*F6*B6+3*H6^2*B6^2*I6*A6*D6-1*H6^2*B6^3*I6*F6+I6*B6^3*J6^2*F6+3*I6*G6^2*B6^2*A6*D6+2*H6*G6*A6^3*J6*D6+2*H6*G6*J6*B6^3*F6-3*I6*B6^2*J6^2*A6*D6-3*I6*A6^2*J6^2*F6*B6+3*J6^3*B6^2*A6*C6+4*J6*I6*H6*B6*K6*D6-2*J6*G6^2*K6*E6*B6-2*G6^3*B6*K6*D6-2*H6^3*B6*K6*C6-2*I6^3*K6*F6*B6-2*G6^2*I6*K6*F6*B6-2*H6^2*I6*K6*F6*B6+4*G6*J6*H6*K6*F6*B6-2*G6*I6^2*B6*K6*D6+2*G6*H6^2*B6*K6*D6+2*J6^2*I6*K6*F6*B6-2*G6*J6^2*B6*K6*D6+2*J6*I6^2*K6*E6*B6-2*H6*J6^2*B6*K6*C6-2*H6*I6^2*B6*K6*C6+4*I6*G6*B6*J6*K6*C6-2*J6^3*K6*E6*B6+2*H6*G6^2*B6*K6*C6+4*H6*G6*I6*K6*E6*B6+2*H6*G6^2*K6*A6*E6+2*A6*J6*H6^2*K6*C6-4*H6*G6*A6*I6*K6*C6-2*G6^3*K6*A6*F6-2*J6*H6^2*K6*E6*B6-2*H6*I6^2*K6*A6*E6-2*H6*J6^2*K6*A6*E6+2*J6*G6^2*A6*K6*C6+4*J6*I6*H6*K6*A6*F6-2*H6^3*K6*A6*E6+4*I6*G6*J6*K6*A6*E6-2*A6*J6*I6^2*K6*C6+2*A6*J6^3*K6*C6+2*A6*H6^2*I6*K6*D6+2*G6*H6^2*K6*A6*F6-2*A6*J6^2*I6*K6*D6-2*G6*J6^2*K6*A6*F6+2*G6^2*A6*I6*K6*D6-4*G6*A6*J6*H6*K6*D6)/(2*G6^2*J6^2+2*I6^2*H6^2-2*G6^2*H6^2+G6^4+I6^4+H6^4+2*G6^2*I6^2-8*G6*J6*I6*H6+J6^4+2*J6^2*H6^2-2*I6^2*J6^2)/B6/A6 -> 2.092898026e-16 | S36: =0.5*(2*G6^2*H6*K6*F6+I6^3*B6^2*C6-2*G6^3*K6*E6+2*I6^3*K6*C6-2*H6^3*K6*F6+2*J6^3*K6*D6-1*H6^3*B6^2*F6+A6^2*H6^3*F6-1*I6^3*A6^2*C6+2*H6^3*B6*A6*D6+2*A6*J6^3*F6*B6+2*G6^3*B6*A6*C6+2*A6*I6^3*E6*B6+2*G6*J6^2*B6*A6*C6-2*G6*H6^2*B6*A6*C6+2*H6*J6^2*B6*A6*D6-2*A6*J6*I6^2*F6*B6-4*I6*G6*B6*J6*A6*D6-4*B6*J6*I6*H6*A6*C6+2*A6*H6^2*I6*E6*B6-2*A6*J6^2*I6*E6*B6+2*G6^2*A6*I6*E6*B6-4*G6*A6*J6*H6*E6*B6-2*H6*G6^2*B6*A6*D6+2*J6*G6^2*A6*F6*B6+2*A6*J6*H6^2*F6*B6-4*H6*G6*A6*I6*F6*B6+2*H6*I6^2*B6*A6*D6+2*G6*I6^2*B6*A6*C6-2*G6*J6^2*K6*E6+2*G6*H6^2*K6*E6+2*J6*H6^2*K6*D6-2*I6^2*H6*K6*F6-2*G6*I6^2*K6*E6-2*J6^2*H6*K6*F6+2*G6^2*I6*K6*C6+2*H6^2*I6*K6*C6+4*J6*I6*H6*K6*E6-2*J6^2*I6*K6*C6-4*G6*J6*H6*K6*C6+4*G6*J6*I6*K6*F6-2*J6*I6^2*K6*D6+2*J6*G6^2*K6*D6-4*H6*G6*I6*K6*D6+B6^2*G6*H6^2*E6-2*G6*I6*H6*B6^2*D6-2*H6*G6*J6*B6^2*C6+2*B6^2*J6*I6*H6*E6-1*B6^2*G6*I6^2*E6-1*B6^2*G6^3*E6+I6*G6^2*B6^2*C6-1*B6^2*G6*J6^2*E6+J6^3*B6^2*D6+I6*H6^2*B6^2*C6-1*I6^2*J6*B6^2*D6-1*J6^2*B6^2*H6*F6-1*B6^2*I6^2*H6*F6+J6*H6^2*B6^2*D6-1*I6*J6^2*B6^2*C6+2*G6*B6^2*I6*J6*F6+G6^2*J6*B6^2*D6+G6^2*B6^2*H6*F6+2*H6*G6*J6*A6^2*C6-2*A6^2*J6*I6*H6*E6+A6^2*G6^3*E6+2*G6*I6*H6*A6^2*D6-2*G6*A6^2*J6*I6*F6-1*A6^2*G6*H6^2*E6-1*I6*H6^2*A6^2*C6-1*J6^3*A6^2*D6-1*I6*G6^2*A6^2*C6-1*J6*H6^2*A6^2*D6+I6*J6^2*A6^2*C6+A6^2*G6*J6^2*E6+A6^2*G6*I6^2*E6-1*G6^2*A6^2*H6*F6-1*G6^2*J6*A6^2*D6+A6^2*I6^2*H6*F6+A6^2*H6*J6^2*F6+I6^2*J6*A6^2*D6)/(2*G6^2*J6^2+2*I6^2*H6^2-2*G6^2*H6^2+G6^4+I6^4+H6^4+2*G6^2*I6^2-8*G6*J6*I6*H6+J6^4+2*J6^2*H6^2-2*I6^2*J6^2)/B6/A6 -> 1
D37: =-0.5*(A7^2*F7*I7^2*H7+B7^2*D7*J7^3-1*A7^2*D7*J7^3+A7^2*C7*I7*J7^2-2*A7*E7*B7*I7^3+2*A7*F7*B7*I7^2*J7+2*A7*E7*J7^2*B7*I7-1*B7^2*F7*H7^3+B7^2*C7*I7^3-1*A7^2*C7*I7^3+B7^2*D7*J7*H7^2+A7^2*F7*H7^3+2*B7^2*E7*J7*I7*H7+B7^2*C7*I7*H7^2-1*B7^2*F7*J7^2*H7-1*B7^2*F7*I7^2*H7-2*A7*F7*B7*J7*H7^2-2*A7*D7*B7*I7^2*H7-2*A7*E7*I7*H7^2*B7-2*A7*D7*H7^3*B7-2*A7*D7*J7^2*B7*H7-2*A7^2*E7*J7*I7*H7-1*A7^2*D7*J7*H7^2-1*A7^2*C7*I7*H7^2+A7^2*F7*J7^2*H7-1*B7^2*E7*G7^3+4*A7*C7*B7*J7*I7*H7+B7^2*D7*G7^2*J7+B7^2*C7*I7*G7^2+B7^2*F7*G7^2*H7-2*B7^2*C7*H7*G7*J7+2*B7^2*F7*G7*I7*J7-1*B7^2*E7*G7*I7^2-1*B7^2*E7*G7*J7^2+B7^2*E7*G7*H7^2-2*B7^2*D7*G7*I7*H7+4*A7*D7*G7*B7*I7*J7-2*A7^2*F7*G7*I7*J7+4*A7*F7*G7*B7*I7*H7-1*A7^2*D7*G7^2*J7-1*A7^2*C7*I7*G7^2-1*A7^2*F7*G7^2*H7+2*A7^2*C7*H7*G7*J7+A7^2*E7*G7*I7^2+A7^2*E7*G7*J7^2-1*A7^2*E7*G7*H7^2+A7^2*E7*G7^3+2*A7^2*D7*G7*I7*H7-2*A7*C7*B7*G7^3-2*A7*F7*G7^2*B7*J7+2*A7*C7*B7*G7*H7^2-2*A7*E7*G7^2*B7*I7-2*A7*C7*B7*G7*J7^2-2*A7*C7*B7*G7*I7^2+2*A7*D7*G7^2*B7*H7+4*A7*E7*G7*J7*B7*H7-2*A7*F7*B7*J7^3-1*B7^2*D7*I7^2*J7-1*B7^2*C7*I7*J7^2+A7^2*D7*I7^2*J7)/(2*G7^2*J7^2+2*I7^2*H7^2-2*G7^2*H7^2+G7^4+I7^4+H7^4+2*G7^2*I7^2-8*G7*J7*I7*H7+J7^4+2*J7^2*H7^2-2*I7^2*J7^2)/A7/B7 -> 0.003932373507 | E37: =-0.5*(F7*G7^2*I7*B7^3-3*D7*G7^3*A7^2*B7-1*C7*A7^3*H7^2*J7-3*C7*A7^2*H7^3*B7-1*C7*J7*G7^2*A7^3+C7*B7^3*H7^3+2*C7*H7^3*B7*K7+3*C7*J7*G7^2*A7*B7^2+6*C7*I7*G7*A7^2*J7*B7-3*C7*H7*A7^2*B7*I7^2+2*C7*J7*G7^2*A7*K7-4*C7*H7*G7*A7*I7*K7+2*C7*A7*J7^3*K7+C7*H7*B7^3*J7^2+3*C7*A7*B7^2*J7^3+2*C7*H7*I7^2*B7*K7+2*C7*H7*J7^2*B7*K7-6*C7*H7*G7*A7*B7^2*I7-2*C7*A7*J7*I7^2*K7-3*C7*A7*I7^2*J7*B7^2-1*C7*H7*G7^2*B7^3+C7*A7^3*I7^2*J7+3*C7*A7*B7^2*H7^2*J7+2*C7*A7*J7*H7^2*K7-2*C7*H7*G7^2*B7*K7+3*C7*H7*G7^2*A7^2*B7+2*C7*H7*G7*A7^3*I7-1*C7*A7^3*J7^3+C7*H7*B7^3*I7^2-3*C7*H7*A7^2*B7*J7^2-4*D7*J7*I7*H7*B7*K7+2*D7*G7*A7^3*H7*J7+2*D7*G7*J7^2*B7*K7-2*D7*B7^3*H7*I7*J7+D7*G7^3*B7^3-1*D7*A7^3*I7^3+D7*A7^3*J7^2*I7-2*C7*I7*G7*J7*B7^3-4*C7*I7*G7*B7*J7*K7-3*D7*A7*J7^2*B7^2*I7+3*D7*A7*B7^2*I7^3+2*D7*A7*H7^2*I7*K7+2*D7*G7^2*A7*I7*K7+2*D7*A7*I7^3*K7+3*D7*G7^2*A7*B7^2*I7-1*D7*G7*B7^3*H7^2-3*D7*G7*A7^2*B7*I7^2-1*D7*G7^2*A7^3*I7-2*D7*G7*H7^2*B7*K7+2*D7*G7*I7^2*B7*K7-2*D7*A7*J7^2*I7*K7+D7*G7*B7^3*I7^2+3*D7*A7*H7^2*I7*B7^2-1*D7*A7^3*H7^2*I7+2*E7*J7^3*B7*K7+E7*J7^2*A7^3*H7-3*E7*J7*A7^2*H7^2*B7+2*E7*J7*H7^2*B7*K7-2*E7*J7^2*A7*H7*K7+E7*J7^3*B7^3+E7*H7^3*A7^3-4*D7*G7*A7*J7*H7*K7-3*D7*G7*A7^2*B7*J7^2+3*D7*G7*A7^2*H7^2*B7+6*D7*A7^2*H7*I7*J7*B7-6*D7*G7*A7*B7^2*H7*J7+2*D7*G7^3*B7*K7-3*E7*J7^3*A7^2*B7+D7*G7*B7^3*J7^2+3*E7*I7^2*A7^2*J7*B7-3*E7*H7^3*A7*B7^2+F7*B7^3*H7^2*I7-3*E7*J7^2*A7*B7^2*H7-2*E7*H7^3*A7*K7+E7*I7^2*H7*A7^3-1*E7*I7^2*J7*B7^3-1*E7*G7^2*H7*A7^3+E7*G7^2*J7*B7^3-2*E7*I7^2*H7*A7*K7-2*E7*I7^2*B7*J7*K7+2*E7*G7^2*B7*J7*K7-3*E7*I7^2*H7*A7*B7^2-3*E7*G7^2*A7^2*J7*B7+2*E7*G7^2*H7*A7*K7+6*E7*G7*A7*I7*J7*B7^2+3*E7*G7^2*H7*A7*B7^2+E7*J7*B7^3*H7^2-2*E7*G7*A7^3*I7*J7+F7*G7^3*A7^3+F7*B7^3*I7^3-4*E7*G7*I7*H7*B7*K7+6*E7*G7*I7*H7*A7^2*B7+4*E7*G7*A7*J7*I7*K7-2*E7*G7*I7*H7*B7^3+4*F7*A7*J7*I7*H7*K7-1*F7*G7*A7^3*H7^2+F7*G7*A7^3*I7^2+2*F7*G7^2*B7*I7*K7-3*F7*G7*A7*B7^2*I7^2-3*F7*G7^2*A7^2*I7*B7-2*F7*B7*J7^2*I7*K7+2*F7*B7*H7^2*I7*K7-3*F7*A7^2*B7*H7^2*I7-2*F7*A7^3*H7*I7*J7+3*F7*A7^2*B7*J7^2*I7+F7*G7*A7^3*J7^2+2*F7*G7*A7*H7^2*K7-2*F7*G7*A7*J7^2*K7-2*F7*G7*A7*I7^2*K7-2*F7*G7*H7*J7*B7^3+3*F7*G7*A7*B7^2*H7^2-3*F7*G7*A7*B7^2*J7^2+6*F7*G7*A7^2*H7*J7*B7-4*F7*G7*B7*J7*H7*K7+2*F7*B7*I7^3*K7-1*F7*B7^3*J7^2*I7+6*F7*A7*H7*I7*J7*B7^2-3*F7*G7^3*A7*B7^2-2*F7*G7^3*A7*K7-3*F7*A7^2*B7*I7^3)/A7/B7/(2*G7^2*A7^2*J7^2+G7^4*A7^2+A7^2*J7^4+A7^2*H7^4+2*G7^2*B7^2*I7^2-8*G7*A7^2*J7*I7*H7+2*G7^2*B7^2*J7^2+B7^2*H7^4+B7^2*I7^4-8*G7*B7^2*J7*I7*H7+2*A7^2*I7^2*H7^2+G7^4*B7^2-2*G7^2*A7^2*H7^2+2*G7^2*A7^2*I7^2+A7^2*I7^4+2*B7^2*J7^2*H7^2-2*B7^2*I7^2*J7^2-2*G7^2*B7^2*H7^2+2*B7^2*I7^2*H7^2+B7^2*J7^4+2*A7^2*J7^2*H7^2-2*A7^2*I7^2*J7^2) -> -0.0002636797117 | F37: =0.5*(-1*D7*J7*H7^2-1*C7*I7^3+E7*G7^3-1*C7*I7*H7^2+C7*I7*J7^2-1*D7*J7^3+D7*I7^2*J7+2*D7*G7*I7*H7-2*E7*J7*I7*H7-1*E7*G7*H7^2+E7*G7*J7^2+E7*G7*I7^2-2*F7*G7*I7*J7+2*C7*H7*G7*J7+F7*H7^3-1*F7*G7^2*H7-1*C7*I7*G7^2-1*D7*G7^2*J7+F7*J7^2*H7+F7*I7^2*H7)/(2*G7^2*J7^2+2*I7^2*H7^2-2*G7^2*H7^2+G7^4+I7^4+H7^4+2*G7^2*I7^2-8*G7*J7*I7*H7+J7^4+2*J7^2*H7^2-2*I7^2*J7^2)/A7/B7 -> 0.0000E+00 | G37: =0.5*(-1*F7*G7^2*B7*I7-1*C7*H7^3*B7-1*D7*G7^2*A7*I7+2*D7*G7*A7*J7*H7-1*D7*A7*H7^2*I7-1*D7*A7*I7^3+2*C7*I7*G7*B7*J7+C7*H7*G7^2*B7-1*E7*J7^3*B7-1*D7*G7*J7^2*B7+C7*A7*J7*I7^2-1*C7*A7*J7*H7^2-1*C7*H7*J7^2*B7+E7*H7^3*A7-1*C7*H7*I7^2*B7+2*D7*J7*I7*H7*B7+2*C7*H7*G7*A7*I7-1*C7*A7*J7^3-1*C7*J7*G7^2*A7-1*D7*G7^3*B7+E7*J7^2*A7*H7+D7*A7*J7^2*I7-1*E7*J7*H7^2*B7+D7*G7*H7^2*B7-1*D7*G7*I7^2*B7+F7*B7*J7^2*I7-1*F7*B7*H7^2*I7-2*F7*A7*J7*I7*H7-1*F7*B7*I7^3-2*E7*G7*A7*J7*I7+2*E7*G7*I7*H7*B7-1*E7*G7^2*B7*J7-1*E7*G7^2*H7*A7+E7*I7^2*H7*A7+E7*I7^2*B7*J7+F7*G7^3*A7+F7*G7*A7*I7^2+2*F7*G7*B7*J7*H7-1*F7*G7*A7*H7^2+F7*G7*A7*J7^2)/A7/B7/(2*G7^2*A7^2*J7^2+G7^4*A7^2+A7^2*J7^4+A7^2*H7^4+2*G7^2*B7^2*I7^2-8*G7*A7^2*J7*I7*H7+2*G7^2*B7^2*J7^2+B7^2*H7^4+B7^2*I7^4-8*G7*B7^2*J7*I7*H7+2*A7^2*I7^2*H7^2+G7^4*B7^2-2*G7^2*A7^2*H7^2+2*G7^2*A7^2*I7^2+A7^2*I7^4+2*B7^2*J7^2*H7^2-2*B7^2*I7^2*J7^2-2*G7^2*B7^2*H7^2+2*B7^2*I7^2*H7^2+B7^2*J7^4+2*A7^2*J7^2*H7^2-2*A7^2*I7^2*J7^2) -> 1.060983958e-06 | H37: =-0.5*(-1*F7*G7^2*I7*B7^3-1*D7*G7^3*A7^2*B7-1*C7*A7^3*H7^2*J7-1*C7*A7^2*H7^3*B7-1*C7*J7*G7^2*A7^3-1*C7*B7^3*H7^3-1*C7*J7*G7^2*A7*B7^2+2*C7*I7*G7*A7^2*J7*B7-1*C7*H7*A7^2*B7*I7^2-1*C7*H7*B7^3*J7^2-1*C7*A7*B7^2*J7^3+2*C7*H7*G7*A7*B7^2*I7+C7*A7*I7^2*J7*B7^2+C7*H7*G7^2*B7^3+C7*A7^3*I7^2*J7-1*C7*A7*B7^2*H7^2*J7+C7*H7*G7^2*A7^2*B7+2*C7*H7*G7*A7^3*I7-1*C7*A7^3*J7^3-1*C7*H7*B7^3*I7^2-1*C7*H7*A7^2*B7*J7^2+2*D7*G7*A7^3*H7*J7+2*D7*B7^3*H7*I7*J7-1*D7*G7^3*B7^3-1*D7*A7^3*I7^3+D7*A7^3*J7^2*I7+2*C7*I7*G7*J7*B7^3+D7*A7*J7^2*B7^2*I7-1*D7*A7*B7^2*I7^3-1*D7*G7^2*A7*B7^2*I7+D7*G7*B7^3*H7^2-1*D7*G7*A7^2*B7*I7^2-1*D7*G7^2*A7^3*I7-1*D7*G7*B7^3*I7^2-1*D7*A7*H7^2*I7*B7^2-1*D7*A7^3*H7^2*I7+E7*J7^2*A7^3*H7-1*E7*J7*A7^2*H7^2*B7-1*E7*J7^3*B7^3+E7*H7^3*A7^3-1*D7*G7*A7^2*B7*J7^2+D7*G7*A7^2*H7^2*B7+2*D7*A7^2*H7*I7*J7*B7+2*D7*G7*A7*B7^2*H7*J7-1*E7*J7^3*A7^2*B7-1*D7*G7*B7^3*J7^2+E7*I7^2*A7^2*J7*B7+E7*H7^3*A7*B7^2-1*F7*B7^3*H7^2*I7+E7*J7^2*A7*B7^2*H7+E7*I7^2*H7*A7^3+E7*I7^2*J7*B7^3-1*E7*G7^2*H7*A7^3-1*E7*G7^2*J7*B7^3+E7*I7^2*H7*A7*B7^2-1*E7*G7^2*A7^2*J7*B7-2*E7*G7*A7*I7*J7*B7^2-1*E7*G7^2*H7*A7*B7^2-1*E7*J7*B7^3*H7^2-2*E7*G7*A7^3*I7*J7+F7*G7^3*A7^3-1*F7*B7^3*I7^3+2*E7*G7*I7*H7*A7^2*B7+2*E7*G7*I7*H7*B7^3-1*F7*G7*A7^3*H7^2+F7*G7*A7^3*I7^2+F7*G7*A7*B7^2*I7^2-1*F7*G7^2*A7^2*I7*B7-1*F7*A7^2*B7*H7^2*I7-2*F7*A7^3*H7*I7*J7+F7*A7^2*B7*J7^2*I7+F7*G7*A7^3*J7^2+2*F7*G7*H7*J7*B7^3-1*F7*G7*A7*B7^2*H7^2+F7*G7*A7*B7^2*J7^2+2*F7*G7*A7^2*H7*J7*B7+F7*B7^3*J7^2*I7-2*F7*A7*H7*I7*J7*B7^2+F7*G7^3*A7*B7^2-1*F7*A7^2*B7*I7^3)/(2*G7^2*J7^2+2*I7^2*H7^2-2*G7^2*H7^2+G7^4+I7^4+H7^4+2*G7^2*I7^2-8*G7*J7*I7*H7+J7^4+2*J7^2*H7^2-2*I7^2*J7^2)/A7/B7 -> -0.06553067066 | I37: =-0.5*(A7^2*F7*I7^2*H7+B7^2*D7*J7^3-1*A7^2*D7*J7^3+A7^2*C7*I7*J7^2-2*A7*E7*B7*I7^3+2*A7*F7*B7*I7^2*J7+2*A7*E7*J7^2*B7*I7+2*J7^3*K7*D7-2*G7^3*K7*E7-2*H7^3*K7*F7+2*H7^2*I7*K7*C7+2*G7^2*I7*K7*C7-2*J7^2*I7*K7*C7+2*J7*H7^2*K7*D7+2*J7*G7^2*K7*D7+2*G7*H7^2*K7*E7-2*G7*J7^2*K7*E7-2*G7*I7^2*K7*E7-2*J7^2*H7*K7*F7-2*I7^2*H7*K7*F7+2*G7^2*H7*K7*F7-2*J7*I7^2*K7*D7-4*H7*G7*I7*K7*D7+4*G7*J7*I7*K7*F7+4*J7*I7*H7*K7*E7-4*G7*J7*H7*K7*C7-1*B7^2*F7*H7^3+B7^2*C7*I7^3-1*A7^2*C7*I7^3+B7^2*D7*J7*H7^2+A7^2*F7*H7^3+2*B7^2*E7*J7*I7*H7+B7^2*C7*I7*H7^2-1*B7^2*F7*J7^2*H7-1*B7^2*F7*I7^2*H7-2*A7*F7*B7*J7*H7^2-2*A7*D7*B7*I7^2*H7-2*A7*E7*I7*H7^2*B7-2*A7*D7*H7^3*B7+2*I7^3*K7*C7-2*A7*D7*J7^2*B7*H7-2*A7^2*E7*J7*I7*H7-1*A7^2*D7*J7*H7^2-1*A7^2*C7*I7*H7^2+A7^2*F7*J7^2*H7-1*B7^2*E7*G7^3+4*A7*C7*B7*J7*I7*H7+B7^2*D7*G7^2*J7+B7^2*C7*I7*G7^2+B7^2*F7*G7^2*H7-2*B7^2*C7*H7*G7*J7+2*B7^2*F7*G7*I7*J7-1*B7^2*E7*G7*I7^2-1*B7^2*E7*G7*J7^2+B7^2*E7*G7*H7^2-2*B7^2*D7*G7*I7*H7+4*A7*D7*G7*B7*I7*J7-2*A7^2*F7*G7*I7*J7+4*A7*F7*G7*B7*I7*H7-1*A7^2*D7*G7^2*J7-1*A7^2*C7*I7*G7^2-1*A7^2*F7*G7^2*H7+2*A7^2*C7*H7*G7*J7+A7^2*E7*G7*I7^2+A7^2*E7*G7*J7^2-1*A7^2*E7*G7*H7^2+A7^2*E7*G7^3+2*A7^2*D7*G7*I7*H7-2*A7*C7*B7*G7^3-2*A7*F7*G7^2*B7*J7+2*A7*C7*B7*G7*H7^2-2*A7*E7*G7^2*B7*I7-2*A7*C7*B7*G7*J7^2-2*A7*C7*B7*G7*I7^2+2*A7*D7*G7^2*B7*H7+4*A7*E7*G7*J7*B7*H7-2*A7*F7*B7*J7^3-1*B7^2*D7*I7^2*J7-1*B7^2*C7*I7*J7^2+A7^2*D7*I7^2*J7)/(2*G7^2*J7^2+2*I7^2*H7^2-2*G7^2*H7^2+G7^4+I7^4+H7^4+2*G7^2*I7^2-8*G7*J7*I7*H7+J7^4+2*J7^2*H7^2-2*I7^2*J7^2)/A7/B7 -> 0.003932373507 | J37: =0.5*(F7*G7^2*B7*I7+C7*H7^3*B7-1*D7*G7^2*A7*I7+2*D7*G7*A7*J7*H7-1*D7*A7*H7^2*I7-1*D7*A7*I7^3-2*C7*I7*G7*B7*J7-1*C7*H7*G7^2*B7+E7*J7^3*B7+D7*G7*J7^2*B7+C7*A7*J7*I7^2-1*C7*A7*J7*H7^2+C7*H7*J7^2*B7+E7*H7^3*A7+C7*H7*I7^2*B7-2*D7*J7*I7*H7*B7+2*C7*H7*G7*A7*I7-1*C7*A7*J7^3-1*C7*J7*G7^2*A7+D7*G7^3*B7+E7*J7^2*A7*H7+D7*A7*J7^2*I7+E7*J7*H7^2*B7-1*D7*G7*H7^2*B7+D7*G7*I7^2*B7-1*F7*B7*J7^2*I7+F7*B7*H7^2*I7-2*F7*A7*J7*I7*H7+F7*B7*I7^3-2*E7*G7*A7*J7*I7-2*E7*G7*I7*H7*B7+E7*G7^2*B7*J7-1*E7*G7^2*H7*A7+E7*I7^2*H7*A7-1*E7*I7^2*B7*J7+F7*G7^3*A7+F7*G7*A7*I7^2-2*F7*G7*B7*J7*H7-1*F7*G7*A7*H7^2+F7*G7*A7*J7^2)/(2*G7^2*J7^2+2*I7^2*H7^2-2*G7^2*H7^2+G7^4+I7^4+H7^4+2*G7^2*I7^2-8*G7*J7*I7*H7+J7^4+2*J7^2*H7^2-2*I7^2*J7^2)/A7/B7 -> -0.0002636797117 | K37: =0.5*(-1*D7*J7*H7^2-1*C7*I7^3+E7*G7^3-1*C7*I7*H7^2+C7*I7*J7^2-1*D7*J7^3+D7*I7^2*J7+2*D7*G7*I7*H7-2*E7*J7*I7*H7-1*E7*G7*H7^2+E7*G7*J7^2+E7*G7*I7^2-2*F7*G7*I7*J7+2*C7*H7*G7*J7+F7*H7^3-1*F7*G7^2*H7-1*C7*I7*G7^2-1*D7*G7^2*J7+F7*J7^2*H7+F7*I7^2*H7)/(2*G7^2*J7^2+2*I7^2*H7^2-2*G7^2*H7^2+G7^4+I7^4+H7^4+2*G7^2*I7^2-8*G7*J7*I7*H7+J7^4+2*J7^2*H7^2-2*I7^2*J7^2)/A7/B7 -> 0 | L37: =-0.5*(-1*B7^4*I7*H7^2*C7-4*A7^2*B7^2*J7*I7*H7*E7+2*A7^2*B7^2*H7*J7^2*F7+2*A7^2*B7^2*G7*I7^2*E7+2*A7^2*B7^2*H7^3*F7-1*A7^4*C7*I7*G7^2-2*A7^4*F7*G7*I7*J7+A7^4*D7*I7^2*J7-1*A7^4*D7*J7*H7^2-1*A7^4*D7*G7^2*J7+A7^4*F7*H7^3-1*B7^4*J7*H7^2*D7-1*B7^4*G7*H7^2*E7-2*B7^4*J7*I7*H7*E7+B7^4*I7^2*J7*D7+I7*B7^4*J7^2*C7+2*H7*G7*B7^4*J7*C7-1*I7*G7^2*B7^4*C7+B7^4*H7*J7^2*F7+B7^4*G7*I7^2*E7+B7^4*G7*J7^2*E7-2*G7*B7^4*J7*I7*F7+2*G7*B7^4*I7*H7*D7-1*G7^2*B7^4*J7*D7-1*G7^2*B7^4*H7*F7+B7^4*I7^2*H7*F7+A7^4*C7*I7*J7^2+A7^4*E7*G7*I7^2+2*A7^4*D7*G7*I7*H7-1*A7^4*C7*I7^3-1*A7^4*E7*G7*H7^2-1*A7^4*C7*I7*H7^2+A7^4*E7*G7^3-1*A7^4*F7*G7^2*H7+2*A7^4*C7*H7*G7*J7+A7^4*F7*J7^2*H7+A7^4*F7*I7^2*H7+A7^4*E7*G7*J7^2+2*A7^2*B7^2*I7^2*H7*F7-2*A7^2*B7^2*I7*H7^2*C7-2*A7^2*B7^2*J7*H7^2*D7-2*A7^4*E7*J7*I7*H7-4*A7^2*G7*B7^2*J7*I7*F7+2*A7^2*B7^2*I7^2*J7*D7-2*A7^2*B7^2*G7*H7^2*E7-2*A7^2*J7^3*B7^2*D7+4*A7^2*H7*G7*B7^2*J7*C7+2*A7^2*B7^2*G7^3*E7-2*A7^2*G7^2*B7^2*J7*D7-2*A7^2*I7*G7^2*B7^2*C7+4*A7^2*G7*B7^2*I7*H7*D7-2*A7^2*B7^2*I7^3*C7+2*A7^2*B7^2*G7*J7^2*E7-2*A7^2*G7^2*B7^2*H7*F7+2*A7^2*I7*B7^2*J7^2*C7-1*A7^4*D7*J7^3+B7^4*H7^3*F7-1*J7^3*B7^4*D7-1*B7^4*I7^3*C7+B7^4*G7^3*E7)/(2*G7^2*J7^2+2*I7^2*H7^2-2*G7^2*H7^2+G7^4+I7^4+H7^4+2*G7^2*I7^2-8*G7*J7*I7*H7+J7^4+2*J7^2*H7^2-2*I7^2*J7^2)/A7/B7 -> 0 | M37: =-0.5*(-1*H7^3*B7*A7^2*C7+H7^3*B7^2*A7*E7-1*B7^3*H7^2*I7*F7-1*H7^3*B7^3*C7-1*A7^3*J7^3*C7-1*A7^3*I7^3*D7-1*G7^3*B7^3*D7-1*B7^3*I7^3*F7+2*A7*I7^3*K7*D7-1*G7^2*A7^2*I7*F7*B7-1*A7^3*H7^2*I7*D7-1*A7*H7^2*I7*B7^2*D7-1*G7^2*A7^3*I7*D7-1*A7*I7^3*B7^2*D7-1*A7^2*I7^3*F7*B7+G7*H7^2*B7*A7^2*D7-1*G7*H7^2*B7^2*A7*F7+A7^2*J7^2*I7*F7*B7-1*G7*J7^2*B7^3*D7+2*G7*A7*J7*H7*B7^2*D7+2*G7*A7^2*J7*H7*F7*B7+2*G7*A7^3*J7*H7*D7+A7*J7^2*I7*B7^2*D7-1*G7*J7^2*B7*A7^2*D7-1*A7^2*H7^2*I7*F7*B7-1*G7^2*A7*I7*B7^2*D7+A7^3*J7^2*I7*D7-1*G7*I7^2*B7*A7^2*D7+G7*I7^2*B7^2*A7*F7-1*G7*I7^2*B7^3*D7+G7*H7^2*B7^3*D7+A7^3*J7*I7^2*C7+A7*J7*I7^2*B7^2*C7+H7^3*A7^3*E7+H7*J7^2*B7^2*A7*E7-1*H7*I7^2*B7^3*C7+2*I7*G7*B7^3*J7*C7-1*H7*J7^2*B7^3*C7+H7*G7^2*B7*A7^2*C7-1*A7^2*J7^3*E7*B7-1*A7*J7^3*B7^2*C7+H7*G7^2*B7^3*C7-1*H7*G7^2*B7^2*A7*E7+2*H7*G7*A7^3*I7*C7+2*H7*G7*A7*I7*B7^2*C7-1*A7*J7*H7^2*B7^2*C7+2*H7*G7*A7^2*I7*E7*B7+G7^3*B7^2*A7*F7-1*A7^3*J7*H7^2*C7-1*H7*I7^2*B7*A7^2*C7+H7*I7^2*B7^2*A7*E7+A7^2*J7*I7^2*E7*B7-1*H7*J7^2*B7*A7^2*C7-1*J7*H7^2*B7^3*E7+2*I7*G7*B7*J7*A7^2*C7-2*I7*G7*B7^2*J7*A7*E7+2*J7*I7*H7*B7*A7^2*D7+2*J7*I7*H7*B7^3*D7-1*J7*G7^2*A7^2*E7*B7-1*J7*G7^2*A7^3*C7-1*G7^3*B7*A7^2*D7-1*J7*G7^2*A7*B7^2*C7-2*J7*I7*H7*B7^2*A7*F7+G7*A7^3*J7^2*F7-2*A7^3*J7*I7*H7*F7+G7*A7^3*I7^2*F7+J7^2*A7^3*H7*E7-2*G7*A7^3*J7*I7*E7+I7^2*B7^3*J7*E7+I7^2*H7*A7^3*E7-1*G7^2*B7^3*J7*E7-1*G7^2*H7*A7^3*E7-1*G7^2*B7^3*I7*F7+2*G7*I7*H7*B7^3*E7+2*G7*B7^3*J7*H7*F7-1*G7*A7^3*H7^2*F7-1*A7^2*J7*H7^2*E7*B7+B7^3*J7^2*I7*F7+G7^3*A7^3*F7-1*J7^3*B7^3*E7+G7*J7^2*B7^2*A7*F7-2*H7^3*B7*K7*C7+4*J7*I7*H7*B7*K7*D7-2*J7*G7^2*K7*E7*B7-2*G7^3*B7*K7*D7-2*I7^3*K7*F7*B7-2*G7^2*I7*K7*F7*B7-2*H7^2*I7*K7*F7*B7-2*G7*J7^2*B7*K7*D7+2*G7*H7^2*B7*K7*D7+2*J7^2*I7*K7*F7*B7+4*G7*J7*H7*K7*F7*B7-2*G7*I7^2*B7*K7*D7+2*J7*I7^2*K7*E7*B7-2*H7*J7^2*B7*K7*C7-2*H7*I7^2*B7*K7*C7+4*I7*G7*B7*J7*K7*C7-2*J7^3*K7*E7*B7+4*H7*G7*I7*K7*E7*B7+2*H7*G7^2*B7*K7*C7-2*G7*I7^2*K7*A7*F7-4*G7*A7*J7*H7*K7*D7-2*A7*J7*I7^2*K7*C7-2*H7*I7^2*K7*A7*E7-2*H7*J7^2*K7*A7*E7-2*G7^3*K7*A7*F7+2*A7*J7*H7^2*K7*C7-4*H7*G7*A7*I7*K7*C7-2*J7*H7^2*K7*E7*B7+4*I7*G7*J7*K7*A7*E7+2*A7*J7^3*K7*C7+2*H7*G7^2*K7*A7*E7+2*J7*G7^2*A7*K7*C7+4*J7*I7*H7*K7*A7*F7-2*H7^3*K7*A7*E7+2*G7^2*A7*I7*K7*D7+2*A7*H7^2*I7*K7*D7-2*A7*J7^2*I7*K7*D7-2*G7*J7^2*K7*A7*F7+2*G7*H7^2*K7*A7*F7)/(2*G7^2*J7^2+2*I7^2*H7^2-2*G7^2*H7^2+G7^4+I7^4+H7^4+2*G7^2*I7^2-8*G7*J7*I7*H7+J7^4+2*J7^2*H7^2-2*I7^2*J7^2)/A7/B7 -> -0.08565920966 | N37: =0.5*(-1*A7^2*C7*I7*H7^2+B7^2*I7*H7^2*C7-1*A7^2*C7*I7^3+A7^2*C7*I7*J7^2+B7^2*J7*H7^2*D7+A7^2*D7*I7^2*J7-2*A7*J7*I7^2*F7*B7+2*A7*G7^3*C7*B7+A7^2*F7*I7^2*H7-2*A7^2*E7*J7*I7*H7+2*A7*H7^2*I7*E7*B7+2*A7*J7*H7^2*F7*B7+2*A7*I7^2*H7*D7*B7+2*A7*J7^2*H7*D7*B7-4*A7*J7*I7*H7*C7*B7+2*A7*H7^3*D7*B7-2*A7*I7*J7^2*E7*B7-1*B7^2*H7*J7^2*F7-1*A7^2*D7*G7^2*J7+A7^2*E7*G7*I7^2+2*A7*J7^3*F7*B7+2*A7*I7^3*E7*B7-4*A7*H7*G7*J7*E7*B7+2*A7*I7*G7^2*E7*B7-2*A7*G7^2*H7*D7*B7-4*A7*G7*H7*I7*F7*B7-4*A7*G7*J7*I7*D7*B7-2*A7*G7*H7^2*C7*B7+2*A7*G7^2*J7*F7*B7+2*A7*G7*I7^2*C7*B7+2*A7*G7*J7^2*C7*B7-1*B7^2*I7^2*H7*F7+2*B7^2*J7*I7*H7*E7+A7^2*F7*J7^2*H7-1*A7^2*D7*J7*H7^2-1*B7^2*G7*I7^2*E7-1*B7^2*G7*J7^2*E7+2*G7*B7^2*J7*I7*F7-2*G7*B7^2*I7*H7*D7+G7^2*B7^2*H7*F7+G7^2*B7^2*J7*D7-2*H7*G7*B7^2*J7*C7+B7^2*I7^3*C7+I7*G7^2*B7^2*C7+B7^2*G7*H7^2*E7-1*A7^2*D7*J7^3-1*A7^2*C7*I7*G7^2-2*A7^2*F7*G7*I7*J7+2*A7^2*D7*G7*I7*H7-1*A7^2*F7*G7^2*H7-1*A7^2*E7*G7*H7^2+2*A7^2*C7*H7*G7*J7+A7^2*E7*G7*J7^2-1*B7^2*H7^3*F7+A7^2*F7*H7^3+J7^3*B7^2*D7-1*B7^2*G7^3*E7-1*B7^2*I7^2*J7*D7+A7^2*E7*G7^3-1*I7*B7^2*J7^2*C7)/(2*G7^2*J7^2+2*I7^2*H7^2-2*G7^2*H7^2+G7^4+I7^4+H7^4+2*G7^2*I7^2-8*G7*J7*I7*H7+J7^4+2*J7^2*H7^2-2*I7^2*J7^2)/A7/B7 -> 0.003932373507 | O37: =0.5*(-1*A7*H7^2*I7*D7+A7*J7^2*I7*D7-1*H7*G7^2*B7*C7+J7^3*E7*B7+H7^2*J7*E7*B7+I7^3*F7*B7+H7^3*B7*C7-2*H7*I7*J7*B7*D7+H7^2*I7*F7*B7-1*J7^2*I7*F7*B7+G7^3*B7*D7+G7^2*I7*F7*B7+G7*B7*J7^2*D7+J7*G7^2*E7*B7-2*H7*G7*I7*E7*B7+H7*B7*I7^2*C7-1*I7^2*J7*E7*B7+H7*B7*J7^2*C7-2*I7*G7*J7*B7*C7+2*G7*A7*H7*J7*D7-1*G7^2*A7*I7*D7-1*G7*H7^2*A7*F7+G7*I7^2*A7*F7+G7*J7^2*A7*F7-1*H7*G7^2*A7*E7-2*I7*G7*J7*A7*E7+2*H7*G7*A7*I7*C7+H7^3*A7*E7+H7*J7^2*A7*E7-1*A7*H7^2*J7*C7+A7*I7^2*J7*C7+H7*I7^2*A7*E7-2*H7*I7*J7*A7*F7-1*J7*G7^2*A7*C7-1*A7*J7^3*C7+G7^3*A7*F7-1*A7*I7^3*D7-2*G7*H7*J7*F7*B7+G7*B7*I7^2*D7-1*G7*H7^2*B7*D7)/(2*G7^2*J7^2+2*I7^2*H7^2-2*G7^2*H7^2+G7^4+I7^4+H7^4+2*G7^2*I7^2-8*G7*J7*I7*H7+J7^4+2*J7^2*H7^2-2*I7^2*J7^2)/A7/B7 -> -0.0002636797117 | P37: =-0.5*(-2*G7^3*B7^2*K7*A7*F7+G7^3*B7^5*D7+B7^5*I7^3*F7+A7*I7^2*J7*B7^4*C7-2*A7^2*I7^2*J7*B7^3*E7+2*B7^3*H7^3*A7^2*C7+B7^4*H7^3*A7*E7+B7^5*H7^3*C7-1*A7^5*J7^3*C7-2*H7*G7^2*B7^3*K7*C7+2*H7*G7^2*B7^2*K7*A7*E7-4*H7*G7*A7^3*I7*K7*C7-4*H7*G7*A7*I7*K7*B7^2*C7-4*H7*G7*A7^2*I7*K7*E7*B7+2*A7^3*J7*H7^2*K7*C7+2*A7*J7*H7^2*K7*B7^2*C7+H7*B7^4*I7^2*A7*E7-2*A7^3*B7^2*H7^2*J7*C7-1*A7*B7^4*H7^2*J7*C7+2*A7^2*B7^3*H7^2*J7*E7-1*H7*G7^2*A7^4*B7*C7-2*H7*G7^2*A7^3*B7^2*E7-2*H7*G7^2*B7*K7*A7^2*C7+H7*B7^4*J7^2*A7*E7+2*H7*G7*A7^5*I7*C7-2*H7*G7*A7^4*I7*E7*B7-4*H7*G7*A7^2*B7^3*I7*E7-2*I7*G7*A7^4*J7*B7*C7+2*H7*A7^2*B7^3*I7^2*C7+2*H7*A7^3*B7^2*I7^2*E7+4*H7*G7*A7^3*B7^2*I7*C7+2*A7^2*J7^3*K7*E7*B7+H7*A7^4*B7*J7^2*C7+2*H7*A7^2*B7^3*J7^2*C7+2*H7*A7^3*B7^2*J7^2*E7+2*A7*J7^3*K7*B7^2*C7+H7*A7^4*B7*I7^2*C7+2*H7*G7*A7*B7^4*I7*C7-4*I7*G7*A7^3*J7*B7^2*E7+H7*B7^5*J7^2*C7-1*A7^5*H7^2*J7*C7+2*H7^3*B7^3*K7*C7+H7*B7^5*I7^2*C7+2*H7*J7^2*B7^3*K7*C7-2*H7*J7^2*B7^2*K7*A7*E7-1*A7^4*I7^2*J7*E7*B7+2*H7*I7^2*B7*K7*A7^2*C7+2*H7*I7^2*B7^3*K7*C7-2*H7*I7^2*B7^2*K7*A7*E7+2*A7^3*J7^3*K7*C7-2*I7*G7*J7*B7^5*C7-2*I7*G7*J7*B7^4*A7*E7-4*I7*G7*B7*J7*K7*A7^2*C7-4*I7*G7*B7^3*J7*K7*C7-4*I7*G7*J7*B7^3*A7^2*C7+4*I7*G7*B7^2*J7*K7*A7*E7-2*A7^3*J7*I7^2*K7*C7-2*A7*J7*I7^2*K7*B7^2*C7-2*A7^2*J7*I7^2*K7*E7*B7+2*H7*J7^2*B7*K7*A7^2*C7-2*H7*G7^2*B7^3*A7^2*C7-1*H7*G7^2*B7^4*A7*E7-2*J7*G7^2*A7^3*B7^2*C7+J7*G7^2*A7^4*E7*B7-2*A7^3*J7^3*B7^2*C7+A7^4*J7^3*E7*B7-1*H7*G7^2*B7^5*C7-1*J7*G7^2*A7^5*C7-1*A7*B7^4*J7^3*C7+2*A7^2*B7^3*J7^3*E7+A7^5*I7^2*J7*C7+2*A7^3*I7^2*J7*B7^2*C7+G7*B7^4*J7^2*A7*F7+2*J7*H7^2*B7^3*K7*E7-2*G7*A7^5*I7*J7*E7+G7*B7^5*J7^2*D7+G7^2*J7*B7^5*E7-1*G7^2*H7*A7^5*E7-2*H7^3*A7^3*K7*E7-1*I7^2*J7*B7^5*E7+I7^2*H7*A7^5*E7-2*G7*A7^4*H7*J7*F7*B7+G7^2*A7^4*I7*F7*B7-1*G7*B7^4*H7^2*A7*F7+G7*B7^4*I7^2*A7*F7-2*G7*A7^3*H7^2*B7^2*F7+G7*A7^4*B7*J7^2*D7+2*G7*A7^2*B7^3*J7^2*D7+2*G7*A7^3*B7^2*J7^2*F7-2*G7^2*A7^3*B7^2*I7*D7-1*G7^2*A7*B7^4*I7*D7+2*G7^2*A7^2*B7^3*I7*F7+2*G7*A7^5*H7*J7*D7+H7^3*A7^5*E7+G7*A7^4*B7*I7^2*D7+2*G7*A7^2*B7^3*I7^2*D7+2*G7*A7^3*B7^2*I7^2*F7-4*G7*A7^3*J7*H7*K7*D7-4*G7*A7*J7*H7*K7*B7^2*D7-4*G7*A7^2*J7*H7*K7*F7*B7-1*G7*A7^4*H7^2*B7*D7-2*G7*A7^2*H7^2*B7^3*D7+2*G7*I7^2*B7*K7*A7^2*D7-2*G7*I7^2*B7^2*K7*A7*F7+J7^3*B7^5*E7+2*G7*A7*B7^4*H7*J7*D7-4*G7*A7^2*B7^3*H7*J7*F7+2*G7*I7^2*B7^3*K7*D7-2*G7*H7^2*B7*K7*A7^2*D7-2*G7*H7^2*B7^3*K7*D7+2*G7*H7^2*B7^2*K7*A7*F7-2*A7^2*J7^2*I7*K7*F7*B7-1*A7*H7^2*I7*B7^4*D7-2*A7*J7^2*I7*K7*B7^2*D7+2*A7^2*H7^2*I7*B7^3*F7+2*G7*J7^2*B7*K7*A7^2*D7+2*G7*J7^2*B7^3*K7*D7-2*G7*J7^2*B7^2*K7*A7*F7+4*G7*A7^3*B7^2*H7*J7*D7+2*A7^2*H7^2*I7*K7*F7*B7+2*G7^2*A7*I7*K7*B7^2*D7+2*G7^2*A7^2*I7*K7*F7*B7-2*A7^3*J7^2*I7*K7*D7+2*A7^3*H7^2*I7*K7*D7+2*A7*H7^2*I7*K7*B7^2*D7+2*G7^2*A7^3*I7*K7*D7+A7*J7^2*B7^4*I7*D7-2*A7^2*J7^2*B7^3*I7*F7+2*A7*I7^3*K7*B7^2*D7+2*A7^2*I7^3*K7*F7*B7+G7^3*A7^4*B7*D7+2*G7^3*A7^3*B7^2*F7-1*A7*B7^4*I7^3*D7+2*A7^2*B7^3*I7^3*F7+2*A7^3*I7^3*K7*D7-1*G7^2*A7^5*I7*D7-1*G7*B7^5*H7^2*D7+G7*B7^5*I7^2*D7-2*A7^3*H7^2*I7*B7^2*D7+A7^4*H7^2*I7*F7*B7-2*A7^4*H7*I7*J7*B7*D7-4*A7^3*H7*I7*J7*B7^2*F7-1*A7^4*J7^2*I7*F7*B7-4*J7*I7*H7*B7*K7*A7^2*D7-4*J7*I7*H7*B7^3*K7*D7+2*J7*G7^2*A7^2*K7*E7*B7+A7^5*J7^2*I7*D7)/(2*G7^2*J7^2+2*I7^2*H7^2-2*G7^2*H7^2+G7^4+I7^4+H7^4+2*G7^2*I7^2-8*G7*J7*I7*H7+J7^4+2*J7^2*H7^2-2*I7^2*J7^2)/A7/B7-0.5*(-2*A7^3*I7^3*B7^2*D7+A7^4*I7^3*F7*B7+2*G7^3*B7^3*A7^2*D7+G7^3*B7^4*A7*F7-1*A7^5*I7^3*D7-1*J7*G7^2*A7*B7^4*C7+2*J7*G7^2*A7^2*B7^3*E7+2*J7*G7^2*A7^3*K7*C7+2*G7^3*B7*K7*A7^2*D7+A7^4*H7^2*J7*E7*B7+2*H7^3*B7*K7*A7^2*C7-2*H7^3*B7^2*K7*A7*E7+A7^4*H7^3*B7*C7+2*A7^3*H7^3*B7^2*E7+2*G7^3*B7^3*K7*D7+2*A7^2*J7*H7^2*K7*E7*B7+2*J7*G7^2*A7*K7*B7^2*C7+2*A7^3*J7^2*I7*B7^2*D7+4*J7*I7*H7*B7^2*K7*A7*F7-4*B7^3*H7*I7*J7*A7^2*D7-2*B7^5*H7*I7*J7*D7-2*B7^4*H7*I7*J7*A7*F7-1*A7^5*H7^2*I7*D7-2*A7^5*H7*I7*J7*F7+G7^2*I7*B7^5*F7-1*B7^5*J7^2*I7*F7+2*B7^3*H7^2*I7*K7*F7-2*B7^3*J7^2*I7*K7*F7+2*B7^3*I7^3*K7*F7+B7^5*H7^2*I7*F7+G7*A7^5*I7^2*F7-2*G7^3*A7^3*K7*F7-4*G7*I7*H7*B7^3*K7*E7-2*G7*I7*H7*B7^5*E7-2*J7^2*A7^3*H7*K7*E7+4*G7*A7^3*J7*I7*K7*E7+2*J7^3*B7^3*K7*E7+J7^2*A7^5*H7*E7+J7*B7^5*H7^2*E7-1*G7*A7^5*H7^2*F7+G7^3*A7^5*F7-2*I7^2*B7^3*J7*K7*E7-2*I7^2*H7*A7^3*K7*E7+2*G7^2*B7^3*J7*K7*E7+2*G7^2*H7*A7^3*K7*E7-4*G7*B7^3*J7*H7*K7*F7+G7*A7^5*J7^2*F7+4*A7^3*J7*I7*H7*K7*F7+2*G7^2*B7^3*I7*K7*F7-2*G7*A7^3*I7^2*K7*F7+2*G7*A7^3*H7^2*K7*F7-2*G7*H7*J7*B7^5*F7-2*G7*A7^3*J7^2*K7*F7)/(2*G7^2*J7^2+2*I7^2*H7^2-2*G7^2*H7^2+G7^4+I7^4+H7^4+2*G7^2*I7^2-8*G7*J7*I7*H7+J7^4+2*J7^2*H7^2-2*I7^2*J7^2)/A7/B7 -> 21.28834798 | Q37: =-0.5*(-4*I7^3*K7^2*C7+4*H7^3*K7^2*F7-4*J7^3*K7^2*D7+4*G7^3*K7^2*E7-1*B7^4*I7*H7^2*C7-4*A7^2*B7^2*J7*I7*H7*E7+2*A7^2*B7^2*H7*J7^2*F7+2*A7^2*B7^2*G7*I7^2*E7+2*A7^2*B7^2*H7^3*F7-1*A7^4*C7*I7*G7^2-2*A7^4*F7*G7*I7*J7+A7^4*D7*I7^2*J7-1*A7^4*D7*J7*H7^2-1*A7^4*D7*G7^2*J7+A7^4*F7*H7^3-4*J7*H7^2*K7^2*D7-4*J7*G7^2*K7^2*D7+4*I7^2*H7*K7^2*F7+4*G7*I7^2*K7^2*E7+4*G7*J7^2*K7^2*E7-4*G7*H7^2*K7^2*E7-4*K7*J7^2*A7^2*H7*F7-4*K7*J7*H7^2*B7^2*D7+4*K7*I7^2*B7^2*J7*D7-4*K7*I7^2*H7*A7^2*F7-4*K7*G7^2*B7^2*J7*D7+4*K7*G7^2*H7*A7^2*F7+4*K7*H7*J7^2*B7^2*F7-8*K7*G7*A7^2*J7*H7*C7+4*K7*H7^3*B7^2*F7+4*K7*A7^2*J7^3*D7+4*K7*G7^3*B7^2*E7+4*K7*A7^2*I7^3*C7-4*K7*J7^3*B7^2*D7-4*K7*H7^3*A7^2*F7-4*K7*G7^3*A7^2*E7-4*K7*B7^2*I7^3*C7-4*K7*G7^2*B7^2*I7*C7-4*K7*G7*A7^2*J7^2*E7+4*K7*G7*A7^2*H7^2*E7-4*K7*G7*A7^2*I7^2*E7+8*K7*A7^2*J7*I7*H7*E7+4*K7*B7^2*J7^2*I7*C7-4*K7*B7^2*H7^2*I7*C7+8*K7*G7*A7^2*J7*I7*F7+8*K7*G7*I7*H7*B7^2*D7+4*K7*G7^2*A7^2*I7*C7+4*K7*G7*I7^2*B7^2*E7+4*K7*G7*J7^2*B7^2*E7-4*K7*G7*H7^2*B7^2*E7-4*K7*A7^2*J7*I7^2*D7-8*K7*I7*G7*B7^2*J7*F7-4*K7*H7*G7^2*B7^2*F7+4*K7*J7*G7^2*A7^2*D7+4*K7*A7^2*J7*H7^2*D7-8*K7*H7*G7*A7^2*I7*D7+4*K7*H7*I7^2*B7^2*F7-8*K7*J7*I7*H7*B7^2*E7+4*K7*A7^2*H7^2*I7*C7-4*K7*A7^2*J7^2*I7*C7-8*G7*J7*I7*K7^2*F7-8*J7*I7*H7*K7^2*E7+8*K7*G7*B7^2*J7*H7*C7+8*H7*G7*I7*K7^2*D7+8*G7*J7*H7*K7^2*C7+4*J7^2*H7*K7^2*F7-4*G7^2*I7*K7^2*C7-4*H7^2*I7*K7^2*C7+4*J7^2*I7*K7^2*C7+4*J7*I7^2*K7^2*D7-4*G7^2*H7*K7^2*F7-1*B7^4*J7*H7^2*D7-1*B7^4*G7*H7^2*E7-2*B7^4*J7*I7*H7*E7+B7^4*I7^2*J7*D7+I7*B7^4*J7^2*C7+2*H7*G7*B7^4*J7*C7-1*I7*G7^2*B7^4*C7+B7^4*H7*J7^2*F7+B7^4*G7*I7^2*E7+B7^4*G7*J7^2*E7-2*G7*B7^4*J7*I7*F7+2*G7*B7^4*I7*H7*D7-1*G7^2*B7^4*J7*D7-1*G7^2*B7^4*H7*F7+B7^4*I7^2*H7*F7+A7^4*C7*I7*J7^2+A7^4*E7*G7*I7^2+2*A7^4*D7*G7*I7*H7-1*A7^4*C7*I7^3-1*A7^4*E7*G7*H7^2-1*A7^4*C7*I7*H7^2+A7^4*E7*G7^3-1*A7^4*F7*G7^2*H7+2*A7^4*C7*H7*G7*J7+A7^4*F7*J7^2*H7+A7^4*F7*I7^2*H7+A7^4*E7*G7*J7^2+2*A7^2*B7^2*I7^2*H7*F7-2*A7^2*B7^2*I7*H7^2*C7-2*A7^2*B7^2*J7*H7^2*D7-2*A7^4*E7*J7*I7*H7-4*A7^2*G7*B7^2*J7*I7*F7+2*A7^2*B7^2*I7^2*J7*D7-2*A7^2*B7^2*G7*H7^2*E7-2*A7^2*J7^3*B7^2*D7+4*A7^2*H7*G7*B7^2*J7*C7+2*A7^2*B7^2*G7^3*E7-2*A7^2*G7^2*B7^2*J7*D7-2*A7^2*I7*G7^2*B7^2*C7+4*A7^2*G7*B7^2*I7*H7*D7-2*A7^2*B7^2*I7^3*C7+2*A7^2*B7^2*G7*J7^2*E7-2*A7^2*G7^2*B7^2*H7*F7+2*A7^2*I7*B7^2*J7^2*C7-1*A7^4*D7*J7^3+B7^4*H7^3*F7-1*J7^3*B7^4*D7-1*B7^4*I7^3*C7+B7^4*G7^3*E7)/(2*G7^2*J7^2+2*I7^2*H7^2-2*G7^2*H7^2+G7^4+I7^4+H7^4+2*G7^2*I7^2-8*G7*J7*I7*H7+J7^4+2*J7^2*H7^2-2*I7^2*J7^2)/B7/A7 -> 0 | R37: =0.5*(-2*G7*I7^2*K7*A7*F7+2*A7*I7^3*K7*D7+3*A7^2*I7^3*F7*B7-1*I7*G7^2*B7^3*F7-1*I7*G7^2*A7^3*D7-1*A7^3*H7^2*I7*D7+3*B7^2*I7^3*A7*D7-1*B7^3*I7^3*F7-1*A7^3*I7^3*D7-1*J7^3*B7^3*E7-1*A7^3*J7^3*C7-1*G7^3*B7^3*D7+G7^3*A7^3*F7+3*A7^2*J7^2*H7*C7*B7-3*G7^2*A7^2*H7*C7*B7+3*G7^2*H7*B7^2*A7*E7-2*G7*A7^3*J7*I7*E7-6*G7*A7^2*J7*I7*C7*B7+6*G7*J7*I7*B7^2*A7*E7+2*G7*J7*I7*B7^3*C7-3*B7^2*I7^2*H7*A7*E7-3*B7^2*J7^2*H7*A7*E7+3*A7^2*I7^2*H7*C7*B7+G7^2*H7*B7^3*C7+3*A7^2*H7^3*C7*B7-1*B7^3*I7^2*H7*C7-1*B7^3*J7^2*H7*C7+A7^3*I7^2*H7*E7+A7^3*J7^2*H7*E7-1*G7^2*A7^3*H7*E7+6*J7*H7*B7^2*I7*A7*F7+2*J7*H7*B7^3*I7*D7+3*G7^3*A7^2*D7*B7+3*G7*A7^2*J7^2*D7*B7-3*G7*H7^2*A7^2*D7*B7-6*J7*A7^2*H7*I7*D7*B7-3*G7*B7^2*I7^2*A7*F7-1*G7*B7^3*I7^2*D7-1*G7*B7^3*J7^2*D7+G7*A7^3*I7^2*F7+G7*A7^3*J7^2*F7-1*G7*H7^2*A7^3*F7-3*B7^2*H7^3*A7*E7-3*G7*B7^2*J7^2*A7*F7+2*G7*H7*B7^3*I7*E7+3*G7*H7^2*B7^2*A7*F7+3*G7*A7^2*I7^2*D7*B7-2*J7*A7^3*H7*I7*F7-1*B7^3*H7^3*C7+A7^3*H7^3*E7-6*G7*A7^2*H7*I7*E7*B7-6*G7*H7*B7^2*I7*A7*C7-3*A7^2*J7*I7^2*E7*B7+3*G7^2*A7^2*J7*E7*B7+3*G7^2*J7*B7^2*A7*C7+3*A7^2*J7*H7^2*E7*B7-1*G7^2*J7*B7^3*E7-3*G7^3*B7^2*A7*F7+G7*H7^2*B7^3*D7+2*G7*A7^3*H7*I7*C7+3*J7*B7^2*H7^2*A7*C7-1*A7^3*J7*H7^2*C7+A7^3*J7*I7^2*C7-1*G7^2*A7^3*J7*C7+3*A7^2*J7^3*E7*B7+J7*B7^3*I7^2*E7-1*J7*B7^3*H7^2*E7-3*J7*B7^2*I7^2*A7*C7-6*H7*G7*A7^2*J7*F7*B7 -6*H7*G7*J7*B7^2*A7*D7+I7*A7^3*J7^2*D7+3*I7*G7^2*A7^2*F7*B7+3*A7^2*H7^2*I7*F7*B7+3*H7^2*B7^2*I7*A7*D7-1*H7^2*B7^3*I7*F7+I7*B7^3*J7^2*F7+3*I7*G7^2*B7^2*A7*D7+2*H7*G7*A7^3*J7*D7+2*H7*G7*J7*B7^3*F7-3*I7*B7^2*J7^2*A7*D7-3*I7*A7^2*J7^2*F7*B7+3*J7^3*B7^2*A7*C7+4*J7*I7*H7*B7*K7*D7-2*J7*G7^2*K7*E7*B7-2*G7^3*B7*K7*D7-2*H7^3*B7*K7*C7-2*I7^3*K7*F7*B7-2*G7^2*I7*K7*F7*B7-2*H7^2*I7*K7*F7*B7+4*G7*J7*H7*K7*F7*B7-2*G7*I7^2*B7*K7*D7+2*G7*H7^2*B7*K7*D7+2*J7^2*I7*K7*F7*B7-2*G7*J7^2*B7*K7*D7+2*J7*I7^2*K7*E7*B7-2*H7*J7^2*B7*K7*C7-2*H7*I7^2*B7*K7*C7+4*I7*G7*B7*J7*K7*C7-2*J7^3*K7*E7*B7+2*H7*G7^2*B7*K7*C7+4*H7*G7*I7*K7*E7*B7+2*H7*G7^2*K7*A7*E7+2*A7*J7*H7^2*K7*C7-4*H7*G7*A7*I7*K7*C7-2*G7^3*K7*A7*F7-2*J7*H7^2*K7*E7*B7-2*H7*I7^2*K7*A7*E7-2*H7*J7^2*K7*A7*E7+2*J7*G7^2*A7*K7*C7+4*J7*I7*H7*K7*A7*F7-2*H7^3*K7*A7*E7+4*I7*G7*J7*K7*A7*E7-2*A7*J7*I7^2*K7*C7+2*A7*J7^3*K7*C7+2*A7*H7^2*I7*K7*D7+2*G7*H7^2*K7*A7*F7-2*A7*J7^2*I7*K7*D7-2*G7*J7^2*K7*A7*F7+2*G7^2*A7*I7*K7*D7-4*G7*A7*J7*H7*K7*D7)/(2*G7^2*J7^2+2*I7^2*H7^2-2*G7^2*H7^2+G7^4+I7^4+H7^4+2*G7^2*I7^2-8*G7*J7*I7*H7+J7^4+2*J7^2*H7^2-2*I7^2*J7^2)/B7/A7 -> -0.06553067066 | S37: =0.5*(2*G7^2*H7*K7*F7+I7^3*B7^2*C7-2*G7^3*K7*E7+2*I7^3*K7*C7-2*H7^3*K7*F7+2*J7^3*K7*D7-1*H7^3*B7^2*F7+A7^2*H7^3*F7-1*I7^3*A7^2*C7+2*H7^3*B7*A7*D7+2*A7*J7^3*F7*B7+2*G7^3*B7*A7*C7+2*A7*I7^3*E7*B7+2*G7*J7^2*B7*A7*C7-2*G7*H7^2*B7*A7*C7+2*H7*J7^2*B7*A7*D7-2*A7*J7*I7^2*F7*B7-4*I7*G7*B7*J7*A7*D7-4*B7*J7*I7*H7*A7*C7+2*A7*H7^2*I7*E7*B7-2*A7*J7^2*I7*E7*B7+2*G7^2*A7*I7*E7*B7-4*G7*A7*J7*H7*E7*B7-2*H7*G7^2*B7*A7*D7+2*J7*G7^2*A7*F7*B7+2*A7*J7*H7^2*F7*B7-4*H7*G7*A7*I7*F7*B7+2*H7*I7^2*B7*A7*D7+2*G7*I7^2*B7*A7*C7-2*G7*J7^2*K7*E7+2*G7*H7^2*K7*E7+2*J7*H7^2*K7*D7-2*I7^2*H7*K7*F7-2*G7*I7^2*K7*E7-2*J7^2*H7*K7*F7+2*G7^2*I7*K7*C7+2*H7^2*I7*K7*C7+4*J7*I7*H7*K7*E7-2*J7^2*I7*K7*C7-4*G7*J7*H7*K7*C7+4*G7*J7*I7*K7*F7-2*J7*I7^2*K7*D7+2*J7*G7^2*K7*D7-4*H7*G7*I7*K7*D7+B7^2*G7*H7^2*E7-2*G7*I7*H7*B7^2*D7-2*H7*G7*J7*B7^2*C7+2*B7^2*J7*I7*H7*E7-1*B7^2*G7*I7^2*E7-1*B7^2*G7^3*E7+I7*G7^2*B7^2*C7-1*B7^2*G7*J7^2*E7+J7^3*B7^2*D7+I7*H7^2*B7^2*C7-1*I7^2*J7*B7^2*D7-1*J7^2*B7^2*H7*F7-1*B7^2*I7^2*H7*F7+J7*H7^2*B7^2*D7-1*I7*J7^2*B7^2*C7+2*G7*B7^2*I7*J7*F7+G7^2*J7*B7^2*D7+G7^2*B7^2*H7*F7+2*H7*G7*J7*A7^2*C7-2*A7^2*J7*I7*H7*E7+A7^2*G7^3*E7+2*G7*I7*H7*A7^2*D7-2*G7*A7^2*J7*I7*F7-1*A7^2*G7*H7^2*E7-1*I7*H7^2*A7^2*C7-1*J7^3*A7^2*D7-1*I7*G7^2*A7^2*C7-1*J7*H7^2*A7^2*D7+I7*J7^2*A7^2*C7+A7^2*G7*J7^2*E7+A7^2*G7*I7^2*E7-1*G7^2*A7^2*H7*F7-1*G7^2*J7*A7^2*D7+A7^2*I7^2*H7*F7+A7^2*H7*J7^2*F7+I7^2*J7*A7^2*D7)/(2*G7^2*J7^2+2*I7^2*H7^2-2*G7^2*H7^2+G7^4+I7^4+H7^4+2*G7^2*I7^2-8*G7*J7*I7*H7+J7^4+2*J7^2*H7^2-2*I7^2*J7^2)/B7/A7 -> 0.003932373507
B38: K3calcb | D38: =(A6^2*I6*E6*G6^2-1*A6^2*I6*E6*H6^2-1*A6^2*J6*F6*G6^2+A6^2*J6*F6*H6^2+B6^2*G6*C6*J6^2-1*B6^2*G6*C6*I6^2-1*B6^2*H6*D6*J6^2+B6^2*H6*D6*I6^2)/(-1*A6^2*J6^2+B6^2*J6^2-1*I6^2*B6^2+A6^2*I6^2)/(G6^2-1*H6^2) ->  | E38: =(-1*C6*B6^3*H6*J6^2+C6*B6^3*H6*I6^2-1*E6*A6^3*J6*G6^2+D6*B6^3*G6*J6^2-1*D6*B6^3*G6*I6^2+E6*A6^3*J6*H6^2+F6*A6^3*I6*G6^2-1*F6*A6^3*I6*H6^2+2*C6*B6*H6*K6*J6^2-2*C6*B6*H6*K6*I6^2-2*D6*B6*K6*G6*J6^2+2*D6*B6*K6*G6*I6^2+2*A6*E6*J6*K6*G6^2-2*A6*E6*J6*K6*H6^2-2*A6*F6*K6*I6*G6^2+2*A6*F6*K6*I6*H6^2)/(-1*A6^2*J6^2+B6^2*J6^2-1*I6^2*B6^2+A6^2*I6^2)/B6/A6/(G6^2-1*H6^2) ->  | F38: =-1*(-1*G6*C6*I6^2+H6*D6*I6^2+I6*E6*G6^2-1*I6*E6*H6^2-1*H6*D6*J6^2+G6*C6*J6^2-1*J6*F6*G6^2+J6*F6*H6^2)/(-1*A6^2*J6^2+B6^2*J6^2-1*I6^2*B6^2+A6^2*I6^2)/(G6^2-1*H6^2) ->  | G38: =-1*(-1*A6*F6*I6*H6^2-1*A6*E6*J6*G6^2+A6*E6*J6*H6^2+A6*F6*I6*G6^2+C6*B6*H6*I6^2-1*D6*B6*G6*I6^2+D6*B6*G6*J6^2-1*C6*B6*H6*J6^2)/(-1*A6^2*J6^2+B6^2*J6^2-1*I6^2*B6^2+A6^2*I6^2)/B6/A6/(G6^2-1*H6^2) ->  | H38: =(-1*A6*F6*I6*H6^2-1*A6*E6*J6*G6^2+A6*E6*J6*H6^2+A6*F6*I6*G6^2+C6*B6*H6*I6^2-1*D6*B6*G6*I6^2+D6*B6*G6*J6^2-1*C6*B6*H6*J6^2)*A6*B6/(-1*A6^2*J6^2+B6^2*J6^2-1*I6^2*B6^2+A6^2*I6^2)/(G6^2-1*H6^2) ->  | I38: =(-1*B6^2*H6*D6*J6^2+B6^2*H6*D6*I6^2+B6^2*G6*C6*J6^2-1*B6^2*G6*C6*I6^2-1*A6^2*J6*F6*G6^2+A6^2*I6*E6*G6^2-1*A6^2*I6*E6*H6^2+A6^2*J6*F6*H6^2-2*D6*H6*K6*I6^2+2*D6*H6*K6*J6^2+2*C6*K6*G6*I6^2-2*C6*K6*G6*J6^2+2*F6*J6*K6*G6^2-2*F6*J6*K6*H6^2-2*E6*K6*I6*G6^2+2*E6*K6*I6*H6^2)/(-1*A6^2*J6^2+B6^2*J6^2-1*I6^2*B6^2+A6^2*I6^2)/(G6^2-1*H6^2) ->  | J38: =-1*(-1*A6*D6*I6^2*G6-1*A6*C6*H6*J6^2+A6*C6*H6*I6^2+A6*D6*J6^2*G6-1*F6*B6*I6*H6^2+E6*B6*J6*H6^2+F6*B6*I6*G6^2-1*E6*B6*J6*G6^2)/(-1*A6^2*J6^2+B6^2*J6^2-1*I6^2*B6^2+A6^2*I6^2)/(G6^2-1*H6^2) ->  | K38: =-1*(-1*G6*C6*I6^2+H6*D6*I6^2+I6*E6*G6^2-1*I6*E6*H6^2-1*H6*D6*J6^2+G6*C6*J6^2-1*J6*F6*G6^2+J6*F6*H6^2)/(-1*A6^2*J6^2+B6^2*J6^2-1*I6^2*B6^2+A6^2*I6^2)/(G6^2-1*H6^2) ->  | L38: =(-1*G6*C6*I6^2+H6*D6*I6^2+I6*E6*G6^2-1*I6*E6*H6^2-1*H6*D6*J6^2+G6*C6*J6^2-1*J6*F6*G6^2+J6*F6*H6^2)*B6^2*A6^2/(-1*A6^2*J6^2+B6^2*J6^2-1*I6^2*B6^2+A6^2*I6^2)/(G6^2-1*H6^2) ->  | M38: =(-1*C6*A6*H6*B6^2*J6^2+C6*A6*H6*I6^2*B6^2+D6*J6^2*A6*B6^2*G6-1*D6*I6^2*A6*B6^2*G6-1*E6*A6^2*B6*J6*G6^2+F6*B6*A6^2*I6*G6^2+E6*A6^2*B6*J6*H6^2-1*F6*B6*A6^2*I6*H6^2+2*E6*B6*J6*K6*G6^2-2*E6*B6*J6*K6*H6^2-2*F6*B6*K6*I6*G6^2+2*F6*B6*K6*I6*H6^2+2*A6*C6*H6*K6*J6^2-2*A6*D6*K6*G6*J6^2-2*A6*C6*H6*K6*I6^2+2*A6*D6*K6*G6*I6^2)/(-1*A6^2*J6^2+B6^2*J6^2-1*I6^2*B6^2+A6^2*I6^2)/(G6^2-1*H6^2) ->  | N38: =-1*(G6*C6*A6^2*J6^2-1*H6*D6*A6^2*J6^2-1*G6*C6*A6^2*I6^2+H6*D6*A6^2*I6^2+I6*E6*B6^2*G6^2-1*I6*E6*B6^2*H6^2-1*J6*F6*B6^2*G6^2+J6*F6*B6^2*H6^2)/(-1*A6^2*J6^2+B6^2*J6^2-1*I6^2*B6^2+A6^2*I6^2)/(G6^2-1*H6^2) ->  | O38: =-1*(-1*A6*D6*I6^2*G6-1*A6*C6*H6*J6^2+A6*C6*H6*I6^2+A6*D6*J6^2*G6-1*F6*B6*I6*H6^2+E6*B6*J6*H6^2+F6*B6*I6*G6^2-1*E6*B6*J6*G6^2)/(-1*A6^2*J6^2+B6^2*J6^2-1*I6^2*B6^2+A6^2*I6^2)/(G6^2-1*H6^2) ->  | P38: =-1*A6^3*B6^2*G6/(-1*B6^2+A6^2)/(G6^2-1*H6^2)*D6+1*B6^2*A6^3*H6/(-1*B6^2+A6^2)/(G6^2-1*H6^2)*C6+B6^3*A6^2*I6/(-1*A6^2*J6^2+B6^2*J6^2-1*I6^2*B6^2+A6^2*I6^2)*F6-1*B6^3*J6*A6^2/(-1*A6^2*J6^2+B6^2*J6^2-1*I6^2*B6^2+A6^2*I6^2)*E6+2*A6*B6^2*G6/(-1*B6^2+A6^2)/(G6^2-1*H6^2)*K6*D6-2*B6^2*A6*H6/(-1*B6^2+A6^2)/(G6^2-1*H6^2)*K6*C6-2*B6*A6^2*I6/(-1*A6^2*J6^2+B6^2*J6^2-1*I6^2*B6^2+A6^2*I6^2)*K6*F6+2*B6*J6*A6^2/(-1*A6^2*J6^2+B6^2*J6^2-1*I6^2*B6^2+A6^2*I6^2)*K6*E6 ->  | Q38: =(B6^2*G6*C6*A6^2*J6^2-1*B6^2*G6*C6*A6^2*I6^2-1*B6^2*H6*D6*A6^2*J6^2+B6^2*H6*D6*A6^2*I6^2+A6^2*I6*E6*B6^2*G6^2-1*A6^2*I6*E6*B6^2*H6^2-1*J6*A6^2*F6*B6^2*G6^2+J6*A6^2*F6*B6^2*H6^2+2*D6*H6*K6*A6^2*J6^2+2*D6*H6*B6^2*K6*J6^2-2*D6*H6*B6^2*K6*I6^2-2*D6*H6*K6*A6^2*I6^2-2*C6*K6*G6*B6^2*J6^2-2*C6*K6*G6*A6^2*J6^2+2*C6*K6*G6*I6^2*B6^2+2*C6*K6*G6*A6^2*I6^2+2*F6*J6*K6*A6^2*G6^2-2*F6*J6*K6*A6^2*H6^2+2*F6*J6*K6*B6^2*G6^2-2*F6*J6*K6*B6^2*H6^2-2*E6*K6*A6^2*I6*G6^2+2*E6*K6*A6^2*I6*H6^2-2*E6*K6*B6^2*I6*G6^2+2*E6*K6*B6^2*I6*H6^2+4*K6^2*C6*G6*J6^2+4*F6*K6^2*J6*H6^2+4*K6^2*D6*H6*I6^2-4*F6*K6^2*J6*G6^2-4*K6^2*D6*H6*J6^2-4*K6^2*C6*G6*I6^2+4*E6*K6^2*I6*G6^2-4*E6*K6^2*I6*H6^2)/(-1*A6^2*J6^2+B6^2*J6^2-1*I6^2*B6^2+A6^2*I6^2)/(G6^2-1*H6^2) ->  | R38: =-1*(-1*D6*I6^2*A6^3*G6-1*C6*A6^3*H6*J6^2+C6*A6^3*H6*I6^2+D6*J6^2*A6^3*G6+2*A6*C6*H6*K6*J6^2-2*A6*C6*H6*K6*I6^2-2*A6*D6*K6*G6*J6^2+2*A6*D6*K6*G6*I6^2-1*E6*B6^3*J6*G6^2-1*F6*B6^3*I6*H6^2+E6*B6^3*J6*H6^2+F6*B6^3*I6*G6^2+2*E6*B6*J6*K6*G6^2-2*E6*B6*J6*K6*H6^2+2*F6*B6*K6*I6*H6^2-2*F6*B6*K6*I6*G6^2)/(-1*A6^2*J6^2+B6^2*J6^2-1*I6^2*B6^2+A6^2*I6^2)/(G6^2-1*H6^2) ->  | S38: =-1*(G6*C6*A6^2*J6^2-1*H6*D6*A6^2*J6^2-1*G6*C6*A6^2*I6^2+H6*D6*A6^2*I6^2+J6*F6*B6^2*H6^2+2*D6*H6*K6*J6^2-2*C6*K6*G6*J6^2-2*D6*H6*K6*I6^2+I6*E6*B6^2*G6^2-2*E6*K6*I6*G6^2+2*E6*K6*I6*H6^2-1*J6*F6*B6^2*G6^2+2*C6*K6*G6*I6^2+2*F6*J6*K6*G6^2-2*F6*J6*K6*H6^2-1*I6*E6*B6^2*H6^2)/(-1*A6^2*J6^2+B6^2*J6^2-1*I6^2*B6^2+A6^2*I6^2)/(G6^2-1*H6^2) -> 
D39: =(A7^2*I7*E7*G7^2-1*A7^2*I7*E7*H7^2-1*A7^2*J7*F7*G7^2+A7^2*J7*F7*H7^2+B7^2*G7*C7*J7^2-1*B7^2*G7*C7*I7^2-1*B7^2*H7*D7*J7^2+B7^2*H7*D7*I7^2)/(-1*A7^2*J7^2+B7^2*J7^2-1*I7^2*B7^2+A7^2*I7^2)/(G7^2-1*H7^2) ->  | E39: =(-1*C7*B7^3*H7*J7^2+C7*B7^3*H7*I7^2-1*E7*A7^3*J7*G7^2+D7*B7^3*G7*J7^2-1*D7*B7^3*G7*I7^2+E7*A7^3*J7*H7^2+F7*A7^3*I7*G7^2-1*F7*A7^3*I7*H7^2+2*C7*B7*H7*K7*J7^2-2*C7*B7*H7*K7*I7^2-2*D7*B7*K7*G7*J7^2+2*D7*B7*K7*G7*I7^2+2*A7*E7*J7*K7*G7^2-2*A7*E7*J7*K7*H7^2-2*A7*F7*K7*I7*G7^2+2*A7*F7*K7*I7*H7^2)/(-1*A7^2*J7^2+B7^2*J7^2-1*I7^2*B7^2+A7^2*I7^2)/B7/A7/(G7^2-1*H7^2) ->  | F39: =-1*(-1*G7*C7*I7^2+H7*D7*I7^2+I7*E7*G7^2-1*I7*E7*H7^2-1*H7*D7*J7^2+G7*C7*J7^2-1*J7*F7*G7^2+J7*F7*H7^2)/(-1*A7^2*J7^2+B7^2*J7^2-1*I7^2*B7^2+A7^2*I7^2)/(G7^2-1*H7^2) ->  | G39: =-1*(-1*A7*F7*I7*H7^2-1*A7*E7*J7*G7^2+A7*E7*J7*H7^2+A7*F7*I7*G7^2+C7*B7*H7*I7^2-1*D7*B7*G7*I7^2+D7*B7*G7*J7^2-1*C7*B7*H7*J7^2)/(-1*A7^2*J7^2+B7^2*J7^2-1*I7^2*B7^2+A7^2*I7^2)/B7/A7/(G7^2-1*H7^2) ->  | H39: =(-1*A7*F7*I7*H7^2-1*A7*E7*J7*G7^2+A7*E7*J7*H7^2+A7*F7*I7*G7^2+C7*B7*H7*I7^2-1*D7*B7*G7*I7^2+D7*B7*G7*J7^2-1*C7*B7*H7*J7^2)*A7*B7/(-1*A7^2*J7^2+B7^2*J7^2-1*I7^2*B7^2+A7^2*I7^2)/(G7^2-1*H7^2) ->  | I39: =(-1*B7^2*H7*D7*J7^2+B7^2*H7*D7*I7^2+B7^2*G7*C7*J7^2-1*B7^2*G7*C7*I7^2-1*A7^2*J7*F7*G7^2+A7^2*I7*E7*G7^2-1*A7^2*I7*E7*H7^2+A7^2*J7*F7*H7^2-2*D7*H7*K7*I7^2+2*D7*H7*K7*J7^2+2*C7*K7*G7*I7^2-2*C7*K7*G7*J7^2+2*F7*J7*K7*G7^2-2*F7*J7*K7*H7^2-2*E7*K7*I7*G7^2+2*E7*K7*I7*H7^2)/(-1*A7^2*J7^2+B7^2*J7^2-1*I7^2*B7^2+A7^2*I7^2)/(G7^2-1*H7^2) ->  | J39: =-1*(-1*A7*D7*I7^2*G7-1*A7*C7*H7*J7^2+A7*C7*H7*I7^2+A7*D7*J7^2*G7-1*F7*B7*I7*H7^2+E7*B7*J7*H7^2+F7*B7*I7*G7^2-1*E7*B7*J7*G7^2)/(-1*A7^2*J7^2+B7^2*J7^2-1*I7^2*B7^2+A7^2*I7^2)/(G7^2-1*H7^2) ->  | K39: =-1*(-1*G7*C7*I7^2+H7*D7*I7^2+I7*E7*G7^2-1*I7*E7*H7^2-1*H7*D7*J7^2+G7*C7*J7^2-1*J7*F7*G7^2+J7*F7*H7^2)/(-1*A7^2*J7^2+B7^2*J7^2-1*I7^2*B7^2+A7^2*I7^2)/(G7^2-1*H7^2) ->  | L39: =(-1*G7*C7*I7^2+H7*D7*I7^2+I7*E7*G7^2-1*I7*E7*H7^2-1*H7*D7*J7^2+G7*C7*J7^2-1*J7*F7*G7^2+J7*F7*H7^2)*B7^2*A7^2/(-1*A7^2*J7^2+B7^2*J7^2-1*I7^2*B7^2+A7^2*I7^2)/(G7^2-1*H7^2) ->  | M39: =(-1*C7*A7*H7*B7^2*J7^2+C7*A7*H7*I7^2*B7^2+D7*J7^2*A7*B7^2*G7-1*D7*I7^2*A7*B7^2*G7-1*E7*A7^2*B7*J7*G7^2+F7*B7*A7^2*I7*G7^2+E7*A7^2*B7*J7*H7^2-1*F7*B7*A7^2*I7*H7^2+2*E7*B7*J7*K7*G7^2-2*E7*B7*J7*K7*H7^2-2*F7*B7*K7*I7*G7^2+2*F7*B7*K7*I7*H7^2+2*A7*C7*H7*K7*J7^2-2*A7*D7*K7*G7*J7^2-2*A7*C7*H7*K7*I7^2+2*A7*D7*K7*G7*I7^2)/(-1*A7^2*J7^2+B7^2*J7^2-1*I7^2*B7^2+A7^2*I7^2)/(G7^2-1*H7^2) ->  | N39: =-1*(G7*C7*A7^2*J7^2-1*H7*D7*A7^2*J7^2-1*G7*C7*A7^2*I7^2+H7*D7*A7^2*I7^2+I7*E7*B7^2*G7^2-1*I7*E7*B7^2*H7^2-1*J7*F7*B7^2*G7^2+J7*F7*B7^2*H7^2)/(-1*A7^2*J7^2+B7^2*J7^2-1*I7^2*B7^2+A7^2*I7^2)/(G7^2-1*H7^2) ->  | O39: =-1*(-1*A7*D7*I7^2*G7-1*A7*C7*H7*J7^2+A7*C7*H7*I7^2+A7*D7*J7^2*G7-1*F7*B7*I7*H7^2+E7*B7*J7*H7^2+F7*B7*I7*G7^2-1*E7*B7*J7*G7^2)/(-1*A7^2*J7^2+B7^2*J7^2-1*I7^2*B7^2+A7^2*I7^2)/(G7^2-1*H7^2) ->  | P39: =-1*A7^3*B7^2*G7/(-1*B7^2+A7^2)/(G7^2-1*H7^2)*D7+1*B7^2*A7^3*H7/(-1*B7^2+A7^2)/(G7^2-1*H7^2)*C7+B7^3*A7^2*I7/(-1*A7^2*J7^2+B7^2*J7^2-1*I7^2*B7^2+A7^2*I7^2)*F7-1*B7^3*J7*A7^2/(-1*A7^2*J7^2+B7^2*J7^2-1*I7^2*B7^2+A7^2*I7^2)*E7+2*A7*B7^2*G7/(-1*B7^2+A7^2)/(G7^2-1*H7^2)*K7*D7-2*B7^2*A7*H7/(-1*B7^2+A7^2)/(G7^2-1*H7^2)*K7*C7-2*B7*A7^2*I7/(-1*A7^2*J7^2+B7^2*J7^2-1*I7^2*B7^2+A7^2*I7^2)*K7*F7+2*B7*J7*A7^2/(-1*A7^2*J7^2+B7^2*J7^2-1*I7^2*B7^2+A7^2*I7^2)*K7*E7 ->  | Q39: =(B7^2*G7*C7*A7^2*J7^2-1*B7^2*G7*C7*A7^2*I7^2-1*B7^2*H7*D7*A7^2*J7^2+B7^2*H7*D7*A7^2*I7^2+A7^2*I7*E7*B7^2*G7^2-1*A7^2*I7*E7*B7^2*H7^2-1*J7*A7^2*F7*B7^2*G7^2+J7*A7^2*F7*B7^2*H7^2+2*D7*H7*K7*A7^2*J7^2+2*D7*H7*B7^2*K7*J7^2-2*D7*H7*B7^2*K7*I7^2-2*D7*H7*K7*A7^2*I7^2-2*C7*K7*G7*B7^2*J7^2-2*C7*K7*G7*A7^2*J7^2+2*C7*K7*G7*I7^2*B7^2+2*C7*K7*G7*A7^2*I7^2+2*F7*J7*K7*A7^2*G7^2-2*F7*J7*K7*A7^2*H7^2+2*F7*J7*K7*B7^2*G7^2-2*F7*J7*K7*B7^2*H7^2-2*E7*K7*A7^2*I7*G7^2+2*E7*K7*A7^2*I7*H7^2-2*E7*K7*B7^2*I7*G7^2+2*E7*K7*B7^2*I7*H7^2+4*K7^2*C7*G7*J7^2+4*F7*K7^2*J7*H7^2+4*K7^2*D7*H7*I7^2-4*F7*K7^2*J7*G7^2-4*K7^2*D7*H7*J7^2-4*K7^2*C7*G7*I7^2+4*E7*K7^2*I7*G7^2-4*E7*K7^2*I7*H7^2)/(-1*A7^2*J7^2+B7^2*J7^2-1*I7^2*B7^2+A7^2*I7^2)/(G7^2-1*H7^2) ->  | R39: =-1*(-1*D7*I7^2*A7^3*G7-1*C7*A7^3*H7*J7^2+C7*A7^3*H7*I7^2+D7*J7^2*A7^3*G7+2*A7*C7*H7*K7*J7^2-2*A7*C7*H7*K7*I7^2-2*A7*D7*K7*G7*J7^2+2*A7*D7*K7*G7*I7^2-1*E7*B7^3*J7*G7^2-1*F7*B7^3*I7*H7^2+E7*B7^3*J7*H7^2+F7*B7^3*I7*G7^2+2*E7*B7*J7*K7*G7^2-2*E7*B7*J7*K7*H7^2+2*F7*B7*K7*I7*H7^2-2*F7*B7*K7*I7*G7^2)/(-1*A7^2*J7^2+B7^2*J7^2-1*I7^2*B7^2+A7^2*I7^2)/(G7^2-1*H7^2) ->  | S39: =-1*(G7*C7*A7^2*J7^2-1*H7*D7*A7^2*J7^2-1*G7*C7*A7^2*I7^2+H7*D7*A7^2*I7^2+J7*F7*B7^2*H7^2+2*D7*H7*K7*J7^2-2*C7*K7*G7*J7^2-2*D7*H7*K7*I7^2+I7*E7*B7^2*G7^2-2*E7*K7*I7*G7^2+2*E7*K7*I7*H7^2-1*J7*F7*B7^2*G7^2+2*C7*K7*G7*I7^2+2*F7*J7*K7*G7^2-2*F7*J7*K7*H7^2-1*I7*E7*B7^2*H7^2)/(-1*A7^2*J7^2+B7^2*J7^2-1*I7^2*B7^2+A7^2*I7^2)/(G7^2-1*H7^2) ->  | X39: w04 | Y39: th04
B40: K3calcalong | D40: =(-C6*A6*H6+C6*B6*G6+D6*A6*G6+D6*B6*H6)/(B6*(G6^2+H6^2)) -> 1 | E40: =(-C6*H6+D6*G6)/(B6*(G6^2+H6^2)) -> 0 | F40: 0 | G40: 0 | H40: =-(-H6*A6^2*C6+B6^2*G6*D6-B6^2*H6*C6+A6^2*G6*D6)/(B6*(G6^2+H6^2)) -> -9.496500544e-16 | I40: =-(-C6*A6*H6-D6*B6*H6+D6*A6*G6-C6*B6*G6)/(B6*(G6^2+H6^2)) -> 1 | J40: 0 | K40: 0 | L40: =(-A6^3*H6*C6-A6*H6*B6^2*C6-A6^2*H6*B6*D6-B6*G6*A6^2*C6-B6^3*G6*C6+B6^2*G6*A6*D6+A6^3*G6*D6-B6^3*H6*D6)/(B6*(G6^2+H6^2)) -> -248.5237497 | M40: =(-H6*A6^2*C6+B6^2*H6*C6-2*A6*H6*D6*B6+A6^2*G6*D6-B6^2*G6*D6-2*B6*G6*C6*A6)/(B6*(G6^2+H6^2)) -> -23.94545006 | N40: 0 | O40: 0 | P40: =-(-(A6^4)*H6*C6-2*A6*H6*B6^3*D6-2*A6^3*H6*B6*D6-2*B6*G6*A6^3*C6-2*B6^3*G6*A6*C6-B6^4*G6*D6+A6^4*G6*D6+B6^4*H6*C6+2*K6*H6*A6^2*C6-2*K6*B6^2*G6*D6+2*K6*B6^2*H6*C6-2*K6*A6^2*G6*D6)/(B6*(G6^2+H6^2)) -> 5951.013036 | Q40: =-(-A6^3*H6*C6+3*A6*H6*B6^2*C6+B6^3*H6*D6-3*A6^2*H6*B6*D6+A6^3*G6*D6-3*B6^2*G6*A6*D6+B6^3*G6*C6-3*B6*G6*A6^2*C6+2*K6*C6*A6*H6+2*K6*D6*B6*H6-2*K6*D6*A6*G6+2*K6*C6*B6*G6)/(B6*(G6^2+H6^2)) -> 248.5237497 | R40: 0 | S40: 0 | X40: =X31*D41+Y31*E41 ->  | Y40: =X31*H41+Y31*I41 -> 
D41: =(-C7*A7*H7+C7*B7*G7+D7*A7*G7+D7*B7*H7)/(B7*(G7^2+H7^2)) -> -0.00575710896 | E41: =(-C7*H7+D7*G7)/(B7*(G7^2+H7^2)) -> -0.0004437280231 | F41: 0 | G41: 0 | H41: =-(-H7*A7^2*C7+B7^2*G7*D7-B7^2*H7*C7+A7^2*G7*D7)/(B7*(G7^2+H7^2)) -> 0.1102769521 | I41: =-(-C7*A7*H7-D7*B7*H7+D7*A7*G7-C7*B7*G7)/(B7*(G7^2+H7^2)) -> 0.004868158257 | J41: 0 | K41: 0 | L41: =(-A7^3*H7*C7-A7*H7*B7^2*C7-A7^2*H7*B7*D7-B7*G7*A7^2*C7-B7^3*G7*C7+B7^2*G7*A7*D7+A7^3*G7*D7-B7^3*H7*D7)/(B7*(G7^2+H7^2)) -> -1.209852944 | M41: =(-H7*A7^2*C7+B7^2*H7*C7-2*A7*H7*D7*B7+A7^2*G7*D7-B7^2*G7*D7-2*B7*G7*C7*A7)/(B7*(G7^2+H7^2)) -> -0.006293288257 | N41: 0 | O41: 0 | P41: =-(-(A7^4)*H7*C7-2*A7*H7*B7^3*D7-2*A7^3*H7*B7*D7-2*B7*G7*A7^3*C7-2*B7^3*G7*A7*C7-B7^4*G7*D7+A7^4*G7*D7+B7^4*H7*C7+2*K7*H7*A7^2*C7-2*K7*B7^2*G7*D7+2*K7*B7^2*H7*C7-2*K7*A7^2*G7*D7)/(B7*(G7^2+H7^2)) -> -6.854188821 | Q41: =-(-A7^3*H7*C7+3*A7*H7*B7^2*C7+B7^3*H7*D7-3*A7^2*H7*B7*D7+A7^3*G7*D7-3*B7^2*G7*A7*D7+B7^3*G7*C7-3*B7*G7*A7^2*C7+2*K7*C7*A7*H7+2*K7*D7*B7*H7-2*K7*D7*A7*G7+2*K7*C7*B7*G7)/(B7*(G7^2+H7^2)) -> -1.430778306 | R41: 0 | S41: 0 | X41: =X32*D41+Y32*E41 ->  | Y41: =X32*H41+Y32*I41 -> 
B42: K3calcblong | D42: =(-B6*C6*H6+A6*D6*G6)/(G6*(-B6+A6)*H6) -> 1 | E42: =(-C6*H6+D6*G6)/(G6*(-B6+A6)*H6) -> 0 | F42: 0 | G42: 0 | H42: =-A6*B6*(-C6*H6+D6*G6)/(G6*(-B6+A6)*H6) -> 0 | I42: =-(-A6*C6*H6+B6*D6*G6)/(G6*(-B6+A6)*H6) -> 1 | J42: 0 | K42: 0 | L42: =A6*B6*(-A6*C6*H6+B6*D6*G6)/(G6*(-B6+A6)*H6) -> -122.7876386 | M42: =(-A6^2*C6*H6+B6^2*D6*G6)/(G6*(-B6+A6)*H6) -> 144.7335965 | N42: 0 | O42: 0 | P42: =-A6*B6*(-A6^2*C6*H6+B6^2*D6*G6+2*K6*C6*H6-2*K6*D6*G6)/(G6*(-B6+A6)*H6) -> -17771.49654 | Q42: =-(-A6^3*C6*H6+B6^3*D6*G6+2*K6*A6*C6*H6-2*K6*B6*D6*G6)/(G6*(-B6+A6)*H6) -> 294.9743092 | R42: 0 | S42: 0 | X42: =X33*D43+Y33*E43 ->  | Y42: =X33*H43+Y33*I43 -> 
D43: =(-B7*C7*H7+A7*D7*G7)/(G7*(-B7+A7)*H7) -> -0.09015758082 | E43: =(-C7*H7+D7*G7)/(G7*(-B7+A7)*H7) -> -0.007646243378 | F43: 0 | G43: 0 | H43: =-A7*B7*(-C7*H7+D7*G7)/(G7*(-B7+A7)*H7) -> 0.9388641683 | I43: =-(-A7*C7*H7+B7*D7*G7)/(G7*(-B7+A7)*H7) -> 0.07980570426 | J43: 0 | K43: 0 | L43: =A7*B7*(-A7*C7*H7+B7*D7*G7)/(G7*(-B7+A7)*H7) -> -9.79915397 | M43: =(-A7^2*C7*H7+B7^2*D7*G7)/(G7*(-B7+A7)*H7) -> -0.6032091913 | N43: 0 | O43: 0 | P43: =-A7*B7*(-A7^2*C7*H7+B7^2*D7*G7+2*K7*C7*H7-2*K7*D7*G7)/(G7*(-B7+A7)*H7) -> 2.396483907 | Q43: =-(-A7^3*C7*H7+B7^3*D7*G7+2*K7*A7*C7*H7-2*K7*B7*D7*G7)/(G7*(-B7+A7)*H7) -> 2.671242063 | R43: 0 | S43: 0 | X43: =X34*D43+Y34*E43 ->  | Y43: =X34*H43+Y34*I43 -> 
X44: =IF('Initial Parameter'!N16>'Initial Parameter'!P16,IF('Initial Parameter'!B13=1,'K value'!X40,'K value'!X41),IF('Initial Parameter'!B13=1,'K value'!X42,'K value'!X43)) ->  | Y44: =IF('Initial Parameter'!N16>'Initial Parameter'!P16,IF('Initial Parameter'!B13=1,'K value'!Y40,'K value'!Y41),IF('Initial Parameter'!B13=1,'K value'!Y42,'K value'!Y43)) -> 
B45: K4calca1 | D45: 0 | E45: 0 | F45: =(0.5*J9^2*H9*F9+0.5*G9^3*E9-0.5*J9*H9^2*D9+0.5*H9^3*F9-0.5*G9^2*I9*C9-0.5*G9*H9^2*E9-0.5*H9^2*I9*C9+0.5*J9^2*I9*C9-0.5*J9*G9^2*D9+1*G9*J9*H9*C9+0.5*G9*I9^2*E9+1*H9*G9*I9*D9-0.5*J9^3*D9-0.5*I9^3*C9+0.5*J9*I9^2*D9+0.5*I9^2*H9*F9-0.5*G9^2*H9*F9+0.5*G9*J9^2*E9-1*J9*I9*H9*E9-1*G9*J9*I9*F9)/((H9^4+2*J9^2*H9^2+2*G9^2*J9^2-2*G9^2*H9^2+2*I9^2*H9^2+I9^4+J9^4-8*G9*J9*I9*H9-2*I9^2*J9^2+G9^4+2*G9^2*I9^2)*B9*A9) -> 0.00983150659 | G45: =(1*D9*G9*J9*H9*A9+1*C9*I9*G9*J9*B9+1*E9*G9*I9*H9*B9-1*F9*J9*I9*H9*A9+1*F9*G9*J9*H9*B9+0.5*C9*A9*J9*I9^2+0.5*D9*G9*H9^2*B9+0.5*D9*A9*J9^2*I9+0.5*E9*J9^2*H9*A9+0.5*E9*I9^2*J9*B9+0.5*E9*I9^2*H9*A9+0.5*F9*B9*J9^2*I9+0.5*F9*G9*A9*J9^2+0.5*F9*G9*A9*I9^2-1*E9*G9*A9*J9*I9+1*D9*J9*I9*H9*B9+1*C9*H9*G9*I9*A9-0.5*C9*J9*H9^2*A9-0.5*C9*H9*J9^2*B9-0.5*C9*H9*B9*I9^2-0.5*C9*J9*A9*G9^2-0.5*D9*G9^2*I9*A9-0.5*D9*G9*J9^2*B9-0.5*D9*G9*B9*I9^2-0.5*D9*A9*H9^2*I9-0.5*E9*G9^2*J9*B9-0.5*E9*G9^2*H9*A9-0.5*E9*J9*H9^2*B9-0.5*F9*B9*H9^2*I9-0.5*F9*G9*A9*H9^2-0.5*F9*G9^2*I9*B9+0.5*F9*A9*G9^3+0.5*E9*H9^3*A9-0.5*C9*H9^3*B9-0.5*C9*A9*J9^3-0.5*D9*B9*G9^3-0.5*D9*A9*I9^3-0.5*E9*J9^3*B9-0.5*F9*B9*I9^3+0.5*C9*H9*B9*G9^2)/(A9*B9*(A9^2*J9^4+A9^2*H9^4+2*A9^2*J9^2*H9^2+A9^2*I9^4+B9^2*I9^4+B9^2*H9^4+B9^2*J9^4+2*A9^2*I9^2*H9^2+G9^4*B9^2+2*G9^2*A9^2*J9^2-2*G9^2*A9^2*H9^2+2*G9^2*B9^2*I9^2+2*G9^2*B9^2*J9^2-2*G9^2*B9^2*H9^2-8*G9*J9*I9*H9*A9^2-2*A9^2*I9^2*J9^2-8*G9*J9*I9*H9*B9^2+2*B9^2*J9^2*H9^2-2*B9^2*I9^2*J9^2+2*B9^2*I9^2*H9^2+G9^4*A9^2+2*G9^2*A9^2*I9^2)) -> -2.228396864e-10 | H45: 0 | I45: 0 | J45: =(1*D9*G9*J9*H9*A9-1*C9*I9*G9*J9*B9-1*E9*G9*I9*H9*B9-1*F9*J9*I9*H9*A9-1*F9*G9*J9*H9*B9+0.5*C9*A9*J9*I9^2-0.5*D9*G9*H9^2*B9+0.5*D9*A9*J9^2*I9+0.5*E9*J9^2*H9*A9-0.5*E9*I9^2*J9*B9+0.5*E9*I9^2*H9*A9-0.5*F9*B9*J9^2*I9+0.5*F9*G9*A9*J9^2+0.5*F9*G9*A9*I9^2-1*E9*G9*A9*J9*I9-1*D9*J9*I9*H9*B9+1*C9*H9*G9*I9*A9-0.5*C9*J9*H9^2*A9+0.5*C9*H9*J9^2*B9+0.5*C9*H9*B9*I9^2-0.5*C9*J9*A9*G9^2-0.5*D9*G9^2*I9*A9+0.5*D9*G9*J9^2*B9+0.5*D9*G9*B9*I9^2-0.5*D9*A9*H9^2*I9+0.5*E9*G9^2*J9*B9-0.5*E9*G9^2*H9*A9+0.5*E9*J9*H9^2*B9+0.5*F9*B9*H9^2*I9-0.5*F9*G9*A9*H9^2+0.5*F9*G9^2*I9*B9+0.5*F9*A9*G9^3+0.5*E9*H9^3*A9+0.5*C9*H9^3*B9-0.5*C9*A9*J9^3+0.5*D9*B9*G9^3-0.5*D9*A9*I9^3+0.5*E9*J9^3*B9+0.5*F9*B9*I9^3-0.5*C9*H9*B9*G9^2)/((H9^4+2*J9^2*H9^2+2*G9^2*J9^2-2*G9^2*H9^2+2*I9^2*H9^2+I9^4+J9^4-8*G9*J9*I9*H9-2*I9^2*J9^2+G9^4+2*G9^2*I9^2)*B9*A9) -> -0.1854143991 | K45: =(0.5*F9*J9^2*H9+0.5*E9*G9^3-0.5*D9*J9*H9^2+0.5*F9*H9^3-0.5*C9*I9*G9^2-0.5*E9*G9*H9^2-0.5*C9*H9^2*I9+0.5*C9*I9*J9^2-0.5*D9*G9^2*J9+1*C9*H9*G9*J9+0.5*E9*G9*I9^2+1*D9*G9*H9*I9-0.5*D9*J9^3-0.5*C9*I9^3+0.5*D9*J9*I9^2+0.5*F9*I9^2*H9-0.5*F9*G9^2*H9+0.5*E9*G9*J9^2-1*E9*J9*H9*I9-1*F9*G9*J9*I9)/((H9^4+2*J9^2*H9^2+2*G9^2*J9^2-2*G9^2*H9^2+2*I9^2*H9^2+I9^4+J9^4-8*G9*J9*I9*H9-2*I9^2*J9^2+G9^4+2*G9^2*I9^2)*B9*A9) -> 0.00983150659 | L45: 0 | M45: 0 | N45: =(-1*A9*J9^2*I9*E9*B9-2*J9*I9*H9*B9*C9*A9+1*J9*I9*H9*B9^2*E9-0.5*H9^3*B9^2*F9-1*G9*A9^2*J9*I9*F9-1*G9*I9*H9*B9^2*D9+0.5*J9^2*H9*A9^2*F9-0.5*I9^2*J9*B9^2*D9+0.5*I9^2*H9*A9^2*F9+0.5*B9^2*H9^2*I9*C9+1*G9^2*I9*A9*E9*B9+1*G9*J9*H9*A9^2*C9-2*G9*J9*H9*A9*E9*B9+1*G9*J9^2*B9*C9*A9-0.5*B9^2*J9^2*I9*C9+0.5*G9*A9^2*J9^2*E9-0.5*G9*A9^2*H9^2*E9+0.5*G9*A9^2*I9^2*E9+0.5*G9^2*I9*B9^2*C9-1*J9*I9*H9*A9^2*E9-1*G9*J9*H9*B9^2*C9-0.5*G9*J9^2*B9^2*E9+0.5*G9*H9^2*B9^2*E9-0.5*G9*B9^2*I9^2*E9-0.5*A9^2*H9^2*I9*C9+1*A9*I9^3*E9*B9+0.5*A9^2*J9^2*I9*C9+0.5*G9^2*J9*B9^2*D9-0.5*G9^2*H9*A9^2*F9+0.5*J9*H9^2*B9^2*D9+1*H9^3*B9*D9*A9-0.5*J9*H9^2*A9^2*D9+0.5*H9*B9^2*G9^2*F9-1*H9*B9*G9^2*D9*A9+1*J9*H9^2*A9*F9*B9+1*H9*G9*I9*A9^2*D9-2*H9*G9*I9*A9*F9*B9-0.5*H9*J9^2*B9^2*F9-1*G9*H9^2*B9*C9*A9+1*G9*B9*I9^2*C9*A9+1*A9*H9^2*I9*E9*B9-0.5*A9^2*I9^3*C9+0.5*H9^3*A9^2*F9+0.5*J9^3*B9^2*D9+0.5*A9^2*G9^3*E9+0.5*B9^2*I9^3*C9+1*H9*J9^2*B9*D9*A9+1*H9*B9*I9^2*D9*A9-0.5*H9*B9^2*I9^2*F9+0.5*A9^2*J9*I9^2*D9+1*A9*J9^3*F9*B9-0.5*J9*A9^2*G9^2*D9+1*B9*G9^3*C9*A9-0.5*G9^2*I9*A9^2*C9-0.5*A9^2*J9^3*D9-0.5*B9^2*G9^3*E9-1*A9*J9*I9^2*F9*B9+1*J9*A9*G9^2*F9*B9-2*I9*G9*J9*B9*D9*A9+1*I9*G9*J9*B9^2*F9)/((H9^4+2*J9^2*H9^2+2*G9^2*J9^2-2*G9^2*H9^2+2*I9^2*H9^2+I9^4+J9^4-8*G9*J9*I9*H9-2*I9^2*J9^2+G9^4+2*G9^2*I9^2)*B9*A9) -> 1.999729256 | O45: =(0.5*E9*J9^2*H9*A9+0.5*C9*H9*J9^2*B9+0.5*F9*G9^2*I9*B9+0.5*C9*H9*B9*I9^2+0.5*D9*G9*J9^2*B9+0.5*D9*A9*J9^2*I9+1*C9*H9*G9*I9*A9-1*C9*I9*G9*J9*B9+1*D9*G9*J9*H9*A9-1*E9*G9*I9*H9*B9-1*F9*J9*I9*H9*A9+0.5*E9*G9^2*J9*B9-0.5*C9*H9*B9*G9^2-0.5*D9*G9^2*I9*A9-0.5*C9*J9*H9^2*A9+0.5*E9*J9*H9^2*B9-1*F9*G9*J9*H9*B9-0.5*E9*G9^2*H9*A9-0.5*C9*A9*J9^3-0.5*D9*A9*I9^3-0.5*E9*I9^2*J9*B9+0.5*F9*G9*A9*J9^2+0.5*D9*B9*G9^3+0.5*C9*H9^3*B9+0.5*E9*J9^3*B9+0.5*E9*H9^3*A9+0.5*F9*B9*I9^3-0.5*D9*A9*H9^2*I9-0.5*F9*G9*A9*H9^2-0.5*C9*J9*A9*G9^2-0.5*F9*B9*J9^2*I9+0.5*D9*G9*B9*I9^2-0.5*D9*G9*H9^2*B9+0.5*E9*I9^2*H9*A9-1*E9*G9*A9*J9*I9-1*D9*J9*I9*H9*B9+0.5*F9*B9*H9^2*I9+0.5*F9*G9*A9*I9^2+0.5*C9*A9*J9*I9^2+0.5*F9*A9*G9^3)/((H9^4+2*J9^2*H9^2+2*G9^2*J9^2-2*G9^2*H9^2+2*I9^2*H9^2+I9^4+J9^4-8*G9*J9*I9*H9-2*I9^2*J9^2+G9^4+2*G9^2*I9^2)*B9*A9) -> -0.1854143991 | P45: 0 | Q45: 0 | R45: =(-1*G9*J9*I9*A9^3*E9-0.5*G9^3*B9^3*D9-1.5*A9^2*C9*H9*B9*G9^2+1*G9*H9*I9*A9^3*C9-1.5*A9*B9^2*I9^2*H9*E9+1.5*A9*H9^2*I9*B9^2*D9+3*A9*J9*H9*B9^2*I9*F9+1.5*A9*J9*H9^2*B9^2*C9-1.5*A9*B9^2*J9^2*H9*E9-1*J9*H9*I9*A9^3*F9+1.5*A9^2*F9*B9*H9^2*I9+1.5*A9^2*E9*J9*H9^2*B9+1.5*A9^2*C9*H9*J9^2*B9+1*J9*H9*B9^3*I9*D9-1.5*A9^2*E9*I9^2*J9*B9-1.5*A9^2*F9*B9*J9^2*I9+1.5*A9^2*F9*B9*I9^3-0.5*B9^3*I9^3*F9+1*G9*H9*I9*B9^3*E9-1.5*A9*G9*B9^2*I9^2*F9+1.5*A9*G9^2*H9*B9^2*E9+1.5*A9*G9^2*J9*B9^2*C9-3*A9*H9*G9*J9*B9^2*D9+3*A9*G9*J9*I9*B9^2*E9+1.5*A9*I9*G9^2*B9^2*D9-3*A9*G9*H9*I9*B9^2*C9+1.5*A9*G9*H9^2*B9^2*F9-1.5*A9*G9*B9^2*J9^2*F9-3*A9^2*F9*G9*J9*H9*B9+0.5*J9*I9^2*B9^3*E9+0.5*G9^3*A9^3*F9+0.5*A9^3*H9^3*E9-0.5*H9^3*B9^3*C9-0.5*J9^3*B9^3*E9-0.5*A9^3*J9^3*C9-0.5*I9^3*A9^3*D9+1*H9*G9*J9*B9^3*F9+1*G9*J9*I9*B9^3*C9-1.5*A9*I9*B9^2*J9^2*D9-1.5*A9*J9*I9^2*B9^2*C9-0.5*A9^3*J9*H9^2*C9-0.5*I9*G9^2*A9^3*D9+1.5*A9^2*D9*B9*G9^3-1.5*A9*G9^3*B9^2*F9+1.5*A9*B9^2*I9^3*D9-0.5*G9^2*J9*A9^3*C9-0.5*B9^3*J9^2*H9*C9-0.5*G9*B9^3*J9^2*D9+0.5*I9*J9^2*A9^3*D9+0.5*I9^2*H9*A9^3*E9+0.5*I9*B9^3*J9^2*F9+0.5*G9*J9^2*A9^3*F9+0.5*G9*I9^2*A9^3*F9+0.5*G9^2*H9*B9^3*C9+0.5*A9^3*J9*I9^2*C9+0.5*J9^2*H9*A9^3*E9+0.5*G9*H9^2*B9^3*D9+1.5*A9^2*E9*J9^3*B9+1.5*A9*J9^3*B9^2*C9-0.5*G9*B9^3*I9^2*D9-0.5*G9^2*J9*B9^3*E9-0.5*G9^2*H9*A9^3*E9-0.5*H9^2*I9*B9^3*F9-0.5*G9*H9^2*A9^3*F9-0.5*B9^3*I9^2*H9*C9-0.5*H9^2*I9*A9^3*D9-0.5*J9*H9^2*B9^3*E9-0.5*I9*G9^2*B9^3*F9+1.5*A9^2*C9*H9^3*B9-1.5*A9*H9^3*B9^2*E9-3*A9^2*C9*I9*G9*J9*B9+1.5*A9^2*D9*G9*J9^2*B9-3*A9^2*E9*G9*I9*H9*B9+1.5*A9^2*E9*G9^2*J9*B9+1.5*A9^2*F9*G9^2*I9*B9-1.5*A9^2*D9*G9*H9^2*B9+1.5*A9^2*D9*G9*B9*I9^2-3*A9^2*D9*J9*I9*H9*B9+1.5*A9^2*C9*H9*B9*I9^2+1*H9*G9*J9*A9^3*D9)/((H9^4+2*J9^2*H9^2+2*G9^2*J9^2-2*G9^2*H9^2+2*I9^2*H9^2+I9^4+J9^4-8*G9*J9*I9*H9-2*I9^2*J9^2+G9^4+2*G9^2*I9^2)*B9*A9) -> -0.1128848528 | S45: =(-1*A9*J9^2*I9*E9*B9-2*J9*I9*H9*B9*C9*A9+1*J9*I9*H9*B9^2*E9-0.5*H9^3*B9^2*F9-1*G9*A9^2*J9*I9*F9-1*G9*I9*H9*B9^2*D9+0.5*J9^2*H9*A9^2*F9-0.5*I9^2*J9*B9^2*D9+0.5*I9^2*H9*A9^2*F9+0.5*B9^2*H9^2*I9*C9+1*G9^2*I9*A9*E9*B9+1*G9*J9*H9*A9^2*C9-2*G9*J9*H9*A9*E9*B9+1*G9*J9^2*B9*C9*A9-0.5*B9^2*J9^2*I9*C9+0.5*G9*A9^2*J9^2*E9-0.5*G9*A9^2*H9^2*E9+0.5*G9*A9^2*I9^2*E9+0.5*G9^2*I9*B9^2*C9-1*J9*I9*H9*A9^2*E9-1*G9*J9*H9*B9^2*C9-0.5*G9*J9^2*B9^2*E9+0.5*G9*H9^2*B9^2*E9-0.5*G9*B9^2*I9^2*E9-0.5*A9^2*H9^2*I9*C9+1*A9*I9^3*E9*B9+0.5*A9^2*J9^2*I9*C9+0.5*G9^2*J9*B9^2*D9-0.5*G9^2*H9*A9^2*F9+0.5*J9*H9^2*B9^2*D9+1*H9^3*B9*D9*A9-0.5*J9*H9^2*A9^2*D9+0.5*H9*B9^2*G9^2*F9-1*H9*B9*G9^2*D9*A9+1*J9*H9^2*A9*F9*B9+1*H9*G9*I9*A9^2*D9-2*H9*G9*I9*A9*F9*B9-0.5*H9*J9^2*B9^2*F9-1*G9*H9^2*B9*C9*A9+1*G9*B9*I9^2*C9*A9+1*A9*H9^2*I9*E9*B9-0.5*A9^2*I9^3*C9+0.5*H9^3*A9^2*F9+0.5*J9^3*B9^2*D9+0.5*A9^2*G9^3*E9+0.5*B9^2*I9^3*C9+1*H9*J9^2*B9*D9*A9+1*H9*B9*I9^2*D9*A9-0.5*H9*B9^2*I9^2*F9+0.5*A9^2*J9*I9^2*D9+1*A9*J9^3*F9*B9-0.5*J9*A9^2*G9^2*D9+1*B9*G9^3*C9*A9-0.5*G9^2*I9*A9^2*C9-0.5*A9^2*J9^3*D9-0.5*B9^2*G9^3*E9-1*A9*J9*I9^2*F9*B9+1*J9*A9*G9^2*F9*B9-2*I9*G9*J9*B9*D9*A9+1*I9*G9*J9*B9^2*F9)/((H9^4+2*J9^2*H9^2+2*G9^2*J9^2-2*G9^2*H9^2+2*I9^2*H9^2+I9^4+J9^4-8*G9*J9*I9*H9-2*I9^2*J9^2+G9^4+2*G9^2*I9^2)*B9*A9) -> 1.999729256
B46: K4calca2 | D46: =-(0.5*C9*A9*J9^3*SQRT(2*L9*K9)-0.5*C9*H9^2*I9*A9^4+0.5*D9*B9^4*J9*H9^2-0.5*D9*B9^4*I9^2*J9-0.5*D9*A9^4*J9*H9^2+0.5*D9*A9^4*I9^2*J9-1*D9*A9^3*H9^3*B9+0.5*D9*A9*I9^3*SQRT(2*L9*K9)-1*D9*A9*B9^3*H9^3+0.5*D9*G9^3*B9*SQRT(2*L9*K9)-0.5*D9*G9^2*J9*A9^4+0.5*D9*G9^2*B9^4*J9-0.5*E9*H9^3*A9*SQRT(2*L9*K9)-1*E9*A9*B9^3*I9^3-1*E9*A9^3*B9*I9^3-0.5*E9*G9*H9^2*A9^4+0.5*E9*G9*A9^4*I9^2+0.5*E9*G9*A9^4*J9^2-0.5*E9*G9*B9^4*I9^2+0.5*E9*G9*H9^2*B9^4+0.5*E9*J9^3*B9*SQRT(2*L9*K9)-0.5*E9*G9*B9^4*J9^2+0.5*F9*B9*I9^3*SQRT(2*L9*K9)-1*F9*A9^3*B9*J9^3-1*F9*A9*B9^3*J9^3-0.5*F9*G9^3*A9*SQRT(2*L9*K9)-0.5*F9*G9^2*H9*A9^4+0.5*F9*G9^2*H9*B9^4+0.5*F9*A9^4*J9^2*H9-0.5*F9*B9^4*I9^2*H9-0.5*F9*B9^4*J9^2*H9+2*C9*A9^3*B9*H9*I9*J9-1*C9*A9^3*B9*G9*J9^2-1*C9*A9*B9^3*G9*J9^2-1*C9*A9^3*B9*G9*I9^2+1*C9*A9*B9^3*G9*H9^2+0.5*C9*A9*J9*H9^2*SQRT(2*L9*K9)-0.5*C9*H9*G9^2*B9*SQRT(2*L9*K9)-1*C9*A9*B9^3*G9*I9^2+2*C9*A9*B9^3*H9*I9*J9+1*C9*A9^3*B9*G9*H9^2-1*C9*H9*G9*A9*I9*SQRT(2*L9*K9)-1*C9*H9*G9*B9^4*J9+1*C9*H9*G9*J9*A9^4+0.5*C9*H9*B9*I9^2*SQRT(2*L9*K9)+0.5*C9*H9*J9^2*B9*SQRT(2*L9*K9)-0.5*C9*A9*J9*I9^2*SQRT(2*L9*K9)-1*C9*I9*G9*B9*J9*SQRT(2*L9*K9)+0.5*C9*J9*G9^2*A9*SQRT(2*L9*K9)+0.5*D9*J9^3*B9^4-0.5*F9*B9^4*H9^3+0.5*F9*A9^4*H9^3+0.5*E9*G9^3*A9^4-0.5*E9*G9^3*B9^4-0.5*D9*A9^4*J9^3-0.5*C9*A9^4*I9^3+0.5*C9*B9^4*I9^3-1*D9*J9*I9*H9*B9*SQRT(2*L9*K9)-1*D9*A9^3*B9*I9^2*H9-1*D9*A9^3*J9^2*B9*H9-1*D9*A9*B9^3*H9*J9^2-0.5*D9*A9*J9^2*I9*SQRT(2*L9*K9)+1*D9*G9^2*A9*B9^3*H9+1*D9*G9*H9*I9*A9^4+0.5*D9*G9*B9*I9^2*SQRT(2*L9*K9)-1*D9*A9*B9^3*I9^2*H9+0.5*D9*A9*H9^2*I9*SQRT(2*L9*K9)+1*D9*G9^2*A9^3*B9*H9+0.5*D9*G9^2*A9*I9*SQRT(2*L9*K9)+2*D9*G9*A9^3*J9*B9*I9+2*D9*G9*A9*B9^3*J9*I9-1*D9*G9*A9*J9*H9*SQRT(2*L9*K9)+0.5*D9*G9*J9^2*B9*SQRT(2*L9*K9)-1*D9*G9*H9*B9^4*I9-0.5*D9*G9*H9^2*B9*SQRT(2*L9*K9)+0.5*E9*G9^2*B9*J9*SQRT(2*L9*K9)-1*E9*G9^2*A9^3*B9*I9-1*E9*G9*I9*H9*B9*SQRT(2*L9*K9)-1*E9*G9^2*A9*B9^3*I9+0.5*E9*G9^2*H9*A9*SQRT(2*L9*K9)+1*E9*G9*A9*J9*I9*SQRT(2*L9*K9)+2*E9*G9*J9*A9^3*B9*H9+2*E9*G9*J9*A9*B9^3*H9+1*E9*J9^2*A9*B9^3*I9-1*E9*I9*H9^2*A9^3*B9-0.5*E9*J9^2*A9*H9*SQRT(2*L9*K9)-1*E9*J9*H9*I9*A9^4+1*E9*J9^2*A9^3*B9*I9-0.5*E9*I9^2*B9*J9*SQRT(2*L9*K9)-0.5*E9*I9^2*H9*A9*SQRT(2*L9*K9)-1*E9*I9*H9^2*A9*B9^3+1*E9*J9*H9*B9^4*I9+0.5*E9*J9*H9^2*B9*SQRT(2*L9*K9)-0.5*F9*B9*J9^2*I9*SQRT(2*L9*K9)+1*F9*A9^3*B9*I9^2*J9-1*F9*A9*B9^3*J9*H9^2+0.5*F9*B9*H9^2*I9*SQRT(2*L9*K9)-1*F9*A9^3*B9*J9*H9^2-1*F9*G9*J9*I9*A9^4+2*F9*G9*A9^3*B9*H9*I9+2*F9*G9*A9*B9^3*H9*I9+1*F9*A9*B9^3*I9^2*J9+1*F9*A9*J9*I9*H9*SQRT(2*L9*K9)-1*F9*G9^2*A9^3*B9*J9-1*F9*G9^2*A9*B9^3*J9+0.5*F9*G9^2*B9*I9*SQRT(2*L9*K9)+0.5*F9*A9^4*I9^2*H9+0.5*F9*G9*A9*H9^2*SQRT(2*L9*K9)-1*C9*A9*B9^3*G9^3-1*C9*A9^3*B9*G9^3-0.5*C9*I9*G9^2*A9^4+0.5*C9*I9*G9^2*B9^4+0.5*C9*H9^2*B9^4*I9+0.5*C9*H9^3*B9*SQRT(2*L9*K9)-0.5*C9*I9*B9^4*J9^2+0.5*C9*I9*A9^4*J9^2-0.5*F9*G9*A9*I9^2*SQRT(2*L9*K9)-0.5*F9*G9*A9*J9^2*SQRT(2*L9*K9)+1*F9*G9*J9*I9*B9^4-1*F9*G9*B9*J9*H9*SQRT(2*L9*K9))/(A9*B9*(A9^2*I9^4+B9^2*I9^4+G9^4*B9^2+A9^2*H9^4-2*B9^2*I9^2*J9^2+2*G9^2*A9^2*J9^2+2*B9^2*J9^2*H9^2+2*B9^2*I9^2*H9^2-8*G9*A9^2*H9*I9*J9+B9^2*H9^4+2*G9^2*A9^2*I9^2+B9^2*J9^4+G9^4*A9^2-2*G9^2*B9^2*H9^2+2*G9^2*B9^2*J9^2+2*G9^2*B9^2*I9^2+A9^2*J9^4+2*A9^2*J9^2*H9^2+2*A9^2*I9^2*H9^2-2*A9^2*I9^2*J9^2-8*G9*B9^2*H9*I9*J9-2*G9^2*A9^2*H9^2)) -> -0.1285974959 | E46: =-0.5*(-2*E9*J9^2*A9*H9*K9-2*F9*G9*K9*A9*I9^2+6*F9*B9^2*H9*A9*I9*J9+3*F9*A9^2*J9^2*B9*I9+4*F9*K9*A9*J9*I9*H9-3*F9*A9^2*H9^2*I9*B9-2*F9*A9^3*J9*I9*H9+2*F9*G9^2*K9*B9*I9-3*F9*G9^2*A9^2*I9*B9+2*F9*K9*B9*H9^2*I9-2*F9*K9*B9*J9^2*I9-2*F9*G9*K9*A9*J9^2+3*F9*G9*B9^2*H9^2*A9+2*F9*G9*K9*A9*H9^2-4*F9*G9*K9*B9*H9*J9-3*F9*G9*B9^2*J9^2*A9-2*F9*G9*B9^3*H9*J9-3*F9*G9*B9^2*A9*I9^2+6*F9*G9*A9^2*J9*B9*H9-3*E9*J9^2*A9*H9*B9^2+C9*H9*B9^3*I9^2-1*C9*A9^3*J9*H9^2-3*C9*A9^2*B9*H9^3+2*C9*B9*H9^3*K9-1*C9*J9*G9^2*A9^3-1*C9*H9*G9^2*B9^3-1*D9*A9^3*I9*H9^2+D9*A9^3*I9*J9^2+2*D9*A9*I9^3*K9+3*D9*A9*B9^2*I9^3-3*D9*G9^3*B9*A9^2-1*D9*G9^2*A9^3*I9+2*D9*G9^3*B9*K9-1*D9*G9*B9^3*H9^2+D9*G9*B9^3*J9^2+D9*G9*B9^3*I9^2-1*E9*I9^2*B9^3*J9+2*E9*J9^3*B9*K9-3*E9*J9^3*A9^2*B9+2*C9*K9*A9*J9^3+3*C9*B9^2*J9^3*A9+C9*I9^2*J9*A9^3+C9*H9*B9^3*J9^2-1*C9*A9^3*J9^3+C9*B9^3*H9^3+D9*G9^3*B9^3-1*D9*A9^3*I9^3+E9*H9^3*A9^3+E9*J9^3*B9^3+F9*G9^3*A9^3+F9*B9^3*I9^3+3*C9*J9*G9^2*B9^2*A9+2*C9*J9*G9^2*K9*A9-2*C9*I9*G9*B9^3*J9-6*C9*H9*G9*A9*B9^2*I9-3*C9*I9^2*J9*B9^2*A9-2*C9*I9^2*J9*K9*A9-2*C9*H9*G9^2*B9*K9-3*C9*H9*A9^2*B9*J9^2+3*C9*H9*G9^2*B9*A9^2+2*C9*H9*G9*A9^3*I9+2*C9*A9*J9*H9^2*K9+3*C9*A9*J9*H9^2*B9^2-3*C9*H9*A9^2*B9*I9^2+2*C9*H9*B9*I9^2*K9+2*C9*H9*B9*K9*J9^2+6*C9*I9*G9*B9*J9*A9^2-4*C9*H9*G9*A9*I9*K9-4*C9*I9*G9*B9*K9*J9-4*D9*G9*A9*J9*H9*K9+3*D9*A9*B9^2*H9^2*I9+2*D9*A9*I9*K9*H9^2-3*D9*A9*B9^2*J9^2*I9-3*D9*G9*A9^2*B9*I9^2+2*D9*G9*A9^3*J9*H9+2*D9*G9^2*A9*I9*K9+3*D9*G9^2*A9*B9^2*I9-3*D9*G9*A9^2*B9*J9^2-4*D9*B9*K9*J9*I9*H9+6*D9*B9*J9*I9*H9*A9^2-2*D9*B9^3*J9*I9*H9-2*D9*A9*I9*K9*J9^2+3*D9*G9*A9^2*B9*H9^2+2*D9*G9*B9*I9^2*K9+2*D9*G9*B9*K9*J9^2-2*D9*G9*B9*H9^2*K9-6*D9*G9*A9*J9*H9*B9^2+E9*J9*B9^3*H9^2+E9*J9^2*A9^3*H9-1*E9*G9^2*H9*A9^3+E9*G9^2*B9^3*J9+E9*I9^2*H9*A9^3-3*E9*H9^3*B9^2*A9-2*E9*H9^3*K9*A9+F9*B9^3*H9^2*I9+2*F9*K9*B9*I9^3-1*F9*B9^3*J9^2*I9-3*F9*G9^3*B9^2*A9-2*F9*G9^3*K9*A9+F9*G9^2*B9^3*I9-1*F9*G9*A9^3*H9^2+F9*G9*A9^3*J9^2+F9*G9*A9^3*I9^2-2*E9*I9^2*B9*K9*J9+3*E9*I9^2*B9*J9*A9^2+6*E9*G9*I9*H9*B9*A9^2+2*E9*G9^2*H9*K9*A9+3*E9*G9^2*H9*B9^2*A9-2*E9*G9*I9*J9*A9^3-3*E9*I9^2*H9*B9^2*A9-3*E9*G9^2*B9*J9*A9^2+2*E9*G9^2*B9*K9*J9-2*E9*G9*I9*H9*B9^3-2*E9*I9^2*H9*K9*A9-3*E9*J9*A9^2*B9*H9^2+2*E9*J9*B9*H9^2*K9+6*E9*G9*I9*J9*B9^2*A9-4*E9*G9*I9*H9*B9*K9+4*E9*G9*I9*J9*K9*A9-3*F9*A9^2*I9^3*B9)/(G9^4*B9^2+G9^4*A9^2-2*G9^2*A9^2*H9^2+2*G9^2*A9^2*I9^2+2*G9^2*B9^2*I9^2+2*G9^2*B9^2*J9^2-2*G9^2*B9^2*H9^2+2*G9^2*A9^2*J9^2-8*G9*B9^2*J9*I9*H9-8*G9*A9^2*J9*I9*H9+A9^2*I9^4+2*B9^2*H9^2*J9^2+J9^4*A9^2+2*A9^2*J9^2*H9^2+B9^2*J9^4+B9^2*I9^4+H9^4*A9^2+B9^2*H9^4+2*I9^2*A9^2*H9^2-2*B9^2*I9^2*J9^2+2*I9^2*B9^2*H9^2-2*A9^2*J9^2*I9^2)/A9/B9 -> 1.815227718e-07 | F46: 0 | G46: 0 | H46: =-(-0.5*B9^3*H9^3*C9-0.5*B9^3*G9^3*D9+0.5*I9^3*SQRT(2*L9*K9)*C9-0.5*B9^3*J9^3*E9+0.5*A9^3*G9^3*F9-0.5*B9^3*I9^3*F9-0.5*H9^3*SQRT(2*L9*K9)*F9+0.5*J9^3*SQRT(2*L9*K9)*D9+0.5*A9^3*H9^3*E9-0.5*A9^3*J9^3*C9-0.5*G9^3*SQRT(2*L9*K9)*E9-0.5*A9^3*I9^3*D9-0.5*B9^3*G9*I9^2*D9+0.5*B9^3*G9*H9^2*D9-0.5*B9^3*G9*J9^2*D9-0.5*I9^2*H9*SQRT(2*L9*K9)*F9-0.5*G9^2*B9^3*I9*F9+0.5*J9*H9^2*SQRT(2*L9*K9)*D9+0.5*G9^2*H9*SQRT(2*L9*K9)*F9+1*B9^3*H9*I9*J9*D9+1*G9*J9*B9^3*H9*F9+1*G9*J9*I9*SQRT(2*L9*K9)*F9-0.5*J9*I9^2*SQRT(2*L9*K9)*D9+0.5*J9*G9^2*SQRT(2*L9*K9)*D9-0.5*B9^3*J9*H9^2*E9+0.5*B9^3*I9^2*J9*E9-0.5*G9^2*B9^3*J9*E9+0.5*J9^2*B9^3*I9*F9+1*G9*B9^3*J9*I9*C9-1*G9*J9*H9*SQRT(2*L9*K9)*C9-1*H9*G9*I9*SQRT(2*L9*K9)*D9-0.5*J9^2*H9*SQRT(2*L9*K9)*F9-0.5*I9*H9^2*B9^3*F9+0.5*G9*H9^2*SQRT(2*L9*K9)*E9-0.5*G9*I9^2*SQRT(2*L9*K9)*E9-0.5*G9*J9^2*SQRT(2*L9*K9)*E9+1*J9*I9*H9*SQRT(2*L9*K9)*E9-0.5*B9^3*H9*J9^2*C9-0.5*J9^2*I9*SQRT(2*L9*K9)*C9-0.5*B9^3*I9^2*H9*C9+0.5*H9^2*I9*SQRT(2*L9*K9)*C9+0.5*G9^2*I9*SQRT(2*L9*K9)*C9+0.5*G9^2*B9^3*H9*C9+0.5*A9^3*G9*J9^2*F9+0.5*A9^3*G9*I9^2*F9-0.5*G9^2*A9^3*I9*D9+1*G9*B9^3*H9*I9*E9-1*A9^3*H9*I9*J9*F9-0.5*A9^3*G9*H9^2*F9+1*G9*J9*A9^3*H9*D9-0.5*G9^2*A9^3*J9*C9+0.5*J9^2*A9^3*I9*D9-0.5*I9*H9^2*A9^3*D9-1*G9*A9^3*J9*I9*E9+0.5*A9^3*I9^2*H9*E9-0.5*A9^3*J9*H9^2*C9+0.5*A9^3*I9^2*J9*C9+0.5*A9^3*J9^2*H9*E9+1*G9*A9^3*H9*I9*C9-0.5*G9^2*A9^3*H9*E9-0.5*A9^2*I9^3*B9*F9+1*A9^2*G9*J9*B9*I9*C9+0.5*A9^2*I9^2*J9*B9*E9-0.5*A9^2*B9*G9*I9^2*D9-0.5*A9^2*H9^2*I9*B9*F9+1*A9^2*B9*H9*I9*J9*D9-0.5*A9^2*J9^2*B9*H9*C9-0.5*A9^2*G9^2*J9*B9*E9+1*A9^2*G9*H9*I9*B9*E9-0.5*A9^2*J9*H9^2*B9*E9-0.5*A9^2*B9*G9*J9^2*D9-0.5*A9^2*B9*G9^3*D9-0.5*A9^2*H9^3*B9*C9-0.5*A9^2*J9^3*B9*E9-0.5*A9*B9^2*I9^3*D9+0.5*A9*H9^3*B9^2*E9+0.5*A9*B9^2*G9^3*F9-0.5*A9*B9^2*J9^3*C9+0.5*A9^2*I9*J9^2*B9*F9+1*A9^2*H9*G9*J9*B9*F9-0.5*A9^2*I9*G9^2*B9*F9+0.5*A9^2*B9*G9*H9^2*D9-0.5*A9^2*B9*I9^2*H9*C9+0.5*A9^2*G9^2*B9*H9*C9+0.5*A9*B9^2*G9*J9^2*F9+0.5*A9*B9^2*G9*I9^2*F9-0.5*A9*G9^2*B9^2*I9*D9-0.5*A9*B9^2*G9*H9^2*F9-1*A9*B9^2*H9*I9*J9*F9+1*A9*G9*J9*B9^2*H9*D9-0.5*A9*G9^2*B9^2*J9*C9+0.5*A9*J9^2*B9^2*I9*D9-1*A9*G9*J9*B9^2*I9*E9-0.5*A9*I9*H9^2*B9^2*D9+0.5*A9*B9^2*I9^2*H9*E9-0.5*A9*B9^2*J9*H9^2*C9+0.5*A9*B9^2*I9^2*J9*C9+0.5*A9*J9^2*B9^2*H9*E9-0.5*A9*G9^2*B9^2*H9*E9+1*A9*G9*B9^2*H9*I9*C9)/((I9^4+H9^4+2*G9^2*J9^2-8*G9*H9*I9*J9+2*G9^2*I9^2+G9^4+J9^4+2*J9^2*H9^2+2*I9^2*H9^2-2*I9^2*J9^2-2*G9^2*H9^2)*B9*A9) -> -6.85366809e+22 | I46: =0.5*(2*A9*I9^3*E9*B9+2*I9*K9*J9^2*C9+2*I9^2*J9*K9*D9-2*I9^3*K9*C9-2*A9*I9^2*J9*F9*B9-2*J9*H9^2*K9*D9-2*I9*K9*H9^2*C9-4*K9*J9*I9*H9*E9-2*A9*I9*J9^2*E9*B9+A9^2*I9^3*C9+2*A9*I9*H9^2*E9*B9+2*A9*J9*H9^2*F9*B9+2*H9^3*K9*F9+2*G9*K9*I9^2*E9+2*G9*K9*J9^2*E9-2*G9*K9*H9^2*E9+2*A9*H9*B9*I9^2*D9+2*A9*B9*H9^3*D9-4*A9*B9*J9*I9*H9*C9+2*A9*H9*B9*J9^2*D9+2*G9^3*K9*E9+4*H9*G9*I9*K9*D9+2*J9^2*H9*K9*F9+2*I9^2*H9*K9*F9-2*G9^2*I9*K9*C9-2*J9*G9^2*K9*D9-4*G9*I9*J9*K9*F9-2*G9^2*H9*K9*F9-4*A9*G9*J9*H9*E9*B9+2*A9*G9^3*B9*C9+2*A9*G9*B9*J9^2*C9-2*A9*H9*G9^2*B9*D9-4*A9*H9*G9*I9*F9*B9+2*A9*G9^2*I9*E9*B9+4*G9*J9*H9*K9*C9+2*A9^2*J9*I9*H9*E9+2*A9*J9*G9^2*F9*B9-2*A9*G9*B9*H9^2*C9-4*A9*I9*G9*B9*J9*D9+2*A9*G9*B9*I9^2*C9-1*G9^2*B9^2*I9*C9+2*G9*I9*J9*A9^2*F9+2*G9*B9^2*H9*J9*C9+2*G9*I9*H9*B9^2*D9-1*G9*A9^2*J9^2*E9+B9^2*J9^2*I9*C9-1*B9^2*H9^2*I9*C9-1*I9^2*J9*A9^2*D9+G9*B9^2*I9^2*E9-2*I9*G9*B9^2*J9*F9-2*H9*G9*A9^2*I9*D9-1*A9^2*I9*J9^2*C9-2*B9^2*J9*I9*H9*E9+G9^2*A9^2*I9*C9-1*G9*B9^2*H9^2*E9+G9*B9^2*J9^2*E9+A9^2*I9*H9^2*C9+G9^2*H9*A9^2*F9+I9^2*B9^2*J9*D9-1*I9^2*H9*A9^2*F9-2*G9*A9^2*J9*H9*C9-1*J9*B9^2*H9^2*D9-1*G9^2*B9^2*J9*D9-1*G9*A9^2*I9^2*E9+G9*A9^2*H9^2*E9+J9*G9^2*A9^2*D9+H9*B9^2*J9^2*F9+H9*B9^2*I9^2*F9+A9^2*J9*H9^2*D9-1*H9*G9^2*B9^2*F9+G9^3*B9^2*E9+A9^2*J9^3*D9+B9^2*H9^3*F9-2*K9*J9^3*D9-1*J9^2*A9^2*H9*F9-1*H9^3*A9^2*F9-1*J9^3*B9^2*D9-1*G9^3*A9^2*E9-1*B9^2*I9^3*C9+2*A9*J9^3*F9*B9)/B9/A9/(I9^4+J9^4-8*H9*I9*J9*G9+G9^4+2*I9^2*G9^2+H9^4+2*J9^2*H9^2+2*H9^2*I9^2-2*H9^2*G9^2+2*J9^2*G9^2-2*J9^2*I9^2) ->  | J46: 0 | K46: 0 | L46: =-(0.5*B9^4*H9^3*F9-0.5*A9^4*J9^3*D9+0.5*G9^3*B9^4*E9-0.5*A9^4*I9^3*C9+0.5*H9^3*A9^4*F9-0.5*J9^3*B9^4*D9+0.5*G9^3*A9^4*E9-0.5*B9^4*I9^3*C9-0.5*J9*G9^2*A9^4*D9-0.5*A9^4*H9^2*J9*D9+0.5*H9*B9^4*J9^2*F9+0.5*H9*B9^4*I9^2*F9+0.5*A9^4*J9*I9^2*D9-0.5*H9*G9^2*B9^4*F9-1*I9*G9*J9*B9^4*F9+1*H9*G9*A9^4*I9*D9+1*G9*A9^4*H9*J9*C9-1*B9^4*H9*I9*J9*E9+0.5*G9*B9^4*J9^2*E9-0.5*G9*B9^4*H9^2*E9+0.5*G9*B9^4*I9^2*E9+0.5*J9^2*A9^4*H9*F9-0.5*J9*B9^4*H9^2*D9+0.5*A9^4*J9^2*I9*C9-0.5*A9^4*H9^2*I9*C9-0.5*G9^2*A9^4*I9*C9-0.5*B9^4*H9^2*I9*C9+0.5*B9^4*J9^2*I9*C9-0.5*G9^2*I9*B9^4*C9+0.5*G9*A9^4*J9^2*E9-0.5*G9*A9^4*H9^2*E9+0.5*G9*A9^4*I9^2*E9+1*G9*I9*H9*B9^4*D9-1*G9*A9^4*J9*I9*F9+0.5*I9^2*H9*A9^4*F9+0.5*I9^2*J9*B9^4*D9-0.5*G9^2*H9*A9^4*F9-0.5*G9^2*J9*B9^4*D9-1*A9^4*J9*I9*H9*E9+1*G9*H9*J9*B9^4*C9+1*G9*J9*H9*SQRT(2*L9*K9)*B9*F9-0.5*G9*B9*I9^2*SQRT(2*L9*K9)*D9-0.5*G9^3*B9*SQRT(2*L9*K9)*D9-0.5*G9*J9^2*B9*SQRT(2*L9*K9)*D9+0.5*H9*G9^2*B9*SQRT(2*L9*K9)*C9+0.5*J9*I9^2*SQRT(2*L9*K9)*B9*E9+0.5*G9*H9^2*B9*SQRT(2*L9*K9)*D9-0.5*G9^2*I9*SQRT(2*L9*K9)*B9*F9-0.5*I9^3*SQRT(2*L9*K9)*B9*F9+1*I9*G9*B9*J9*SQRT(2*L9*K9)*C9-0.5*H9*B9*I9^2*SQRT(2*L9*K9)*C9-0.5*H9*J9^2*B9*SQRT(2*L9*K9)*C9+0.5*J9^2*I9*SQRT(2*L9*K9)*B9*F9-0.5*H9^2*I9*SQRT(2*L9*K9)*B9*F9+1*H9*G9*I9*SQRT(2*L9*K9)*B9*E9-0.5*J9*H9^2*SQRT(2*L9*K9)*B9*E9-0.5*J9^3*SQRT(2*L9*K9)*B9*E9-0.5*H9^3*B9*SQRT(2*L9*K9)*C9-0.5*G9^3*SQRT(2*L9*K9)*A9*F9-0.5*J9*G9^2*SQRT(2*L9*K9)*B9*E9+1*J9*I9*H9*B9*SQRT(2*L9*K9)*D9-0.5*G9*I9^2*SQRT(2*L9*K9)*A9*F9+0.5*G9*H9^2*SQRT(2*L9*K9)*A9*F9+0.5*H9*G9^2*SQRT(2*L9*K9)*A9*E9-0.5*A9*J9*I9^2*SQRT(2*L9*K9)*C9-0.5*H9*J9^2*SQRT(2*L9*K9)*A9*E9+0.5*A9*H9^2*I9*SQRT(2*L9*K9)*D9+0.5*G9^2*A9*I9*SQRT(2*L9*K9)*D9+1*I9*G9*J9*SQRT(2*L9*K9)*A9*E9-0.5*H9*I9^2*SQRT(2*L9*K9)*A9*E9+0.5*A9*I9^3*SQRT(2*L9*K9)*D9+0.5*A9*J9^3*SQRT(2*L9*K9)*C9-0.5*H9^3*SQRT(2*L9*K9)*A9*E9-1*H9*G9*A9*I9*SQRT(2*L9*K9)*C9+0.5*A9*J9*H9^2*SQRT(2*L9*K9)*C9-0.5*A9*J9^2*I9*SQRT(2*L9*K9)*D9+0.5*J9*G9^2*A9*SQRT(2*L9*K9)*C9+1*J9*I9*H9*SQRT(2*L9*K9)*A9*F9-0.5*G9*J9^2*SQRT(2*L9*K9)*A9*F9-1*G9*A9*J9*H9*SQRT(2*L9*K9)*D9+1*A9^2*H9^3*B9^2*F9-1*A9^2*B9^2*J9^3*D9-1*A9^2*B9^2*I9^3*C9+1*G9^3*A9^2*B9^2*E9-1*A9^2*B9^2*H9^2*J9*D9-1*H9*G9^2*A9^2*B9^2*F9+1*H9*A9^2*B9^2*J9^2*F9+2*H9*G9*A9^2*B9^2*I9*D9+1*H9*A9^2*I9^2*B9^2*F9-1*J9*G9^2*A9^2*B9^2*D9+1*A9^2*J9*I9^2*B9^2*D9-2*I9*G9*J9*B9^2*A9^2*F9-1*G9^2*A9^2*B9^2*I9*C9-2*J9*I9*H9*B9^2*A9^2*E9+2*G9*A9^2*B9^2*H9*J9*C9+1*A9^2*J9^2*B9^2*I9*C9-1*A9^2*H9^2*I9*B9^2*C9-1*G9*A9^2*H9^2*B9^2*E9+1*G9*A9^2*I9^2*B9^2*E9+1*G9*A9^2*B9^2*J9^2*E9)/((I9^4+H9^4+2*G9^2*J9^2-8*G9*H9*I9*J9+2*G9^2*I9^2+G9^4+J9^4+2*J9^2*H9^2+2*I9^2*H9^2-2*I9^2*J9^2-2*G9^2*H9^2)*B9*A9) -> 1.954747778e+24 | M46: =-0.5*(-1*J9*B9^3*H9^2*E9-1*G9^2*A9*I9*B9^2*D9-1*G9^2*A9^2*I9*F9*B9-1*G9*B9*I9^2*A9^2*D9-1*G9^3*B9^3*D9+2*A9*K9*J9^3*C9+2*I9^2*J9*K9*E9*B9-2*I9^3*K9*F9*B9+2*I9*K9*J9^2*F9*B9-2*K9*J9^3*E9*B9-2*G9*B9*K9*J9^2*D9+2*G9*B9*H9^2*K9*D9-2*G9^3*B9*K9*D9-2*A9*G9^3*K9*F9+4*H9*G9*I9*K9*E9*B9+4*I9*G9*B9*K9*J9*C9-2*J9*G9^2*K9*E9*B9+2*H9*G9^2*B9*K9*C9+4*A9*K9*J9*I9*H9*F9-2*A9*J9^2*H9*K9*E9-2*A9*I9^2*H9*K9*E9+2*A9*I9*K9*H9^2*D9+2*A9*J9*H9^2*K9*C9-2*A9*H9^3*K9*E9+4*G9*J9*H9*K9*F9*B9+4*B9*K9*J9*I9*H9*D9-2*H9*B9*K9*J9^2*C9-2*J9*H9^2*K9*E9*B9-2*H9*B9*I9^2*K9*C9-2*I9*K9*H9^2*F9*B9-2*B9*H9^3*K9*C9-2*A9*I9*K9*J9^2*D9-2*A9*I9^2*J9*K9*C9+2*A9*I9^3*K9*D9-4*A9*G9*J9*H9*K9*D9+2*A9*G9^2*I9*K9*D9+2*A9*G9*K9*H9^2*F9-2*A9*G9*K9*J9^2*F9+4*A9*G9*I9*J9*K9*E9-2*A9*G9*K9*I9^2*F9+2*A9*G9^2*H9*K9*E9-4*A9*H9*G9*I9*K9*C9+2*A9*J9*G9^2*K9*C9-2*G9^2*I9*K9*F9*B9-2*G9*B9*I9^2*K9*D9+2*H9*G9*A9^2*I9*E9*B9+2*I9*G9*B9*J9*A9^2*C9+A9^3*I9*J9^2*D9-1*J9*G9^2*A9^3*C9-1*A9*J9^3*B9^2*C9-1*A9^2*J9^3*E9*B9+2*H9*G9*A9*I9*B9^2*C9-1*J9*G9^2*A9^2*E9*B9+A9^2*I9*J9^2*F9*B9-1*A9^3*I9*H9^2*D9+2*H9*G9*A9^3*I9*C9-1*A9^2*I9*H9^2*F9*B9+2*G9*A9^2*J9*H9*F9*B9+A9*I9*J9^2*B9^2*D9-1*A9^3*I9^3*D9-1*A9^3*J9*H9^2*C9-1*A9*I9*H9^2*B9^2*D9-1*B9*H9^3*A9^2*C9+B9^2*H9^3*A9*E9-1*J9*G9^2*A9*B9^2*C9+2*G9*B9^3*H9*J9*F9+G9*A9^3*J9^2*F9-2*A9^3*J9*I9*H9*F9+B9^3*J9^2*I9*F9-1*G9*A9^3*H9^2*F9+G9^3*B9^2*A9*F9-1*G9^2*A9^3*I9*D9-1*G9^3*B9*A9^2*D9+2*G9*A9^3*J9*H9*D9-1*G9^2*B9^3*I9*F9-2*B9^2*J9*I9*H9*A9*F9-1*G9*B9*J9^2*A9^2*D9-1*G9*B9^3*J9^2*D9+G9*B9^2*J9^2*A9*F9+2*B9*J9*I9*H9*A9^2*D9-1*G9*B9^3*I9^2*D9+2*G9*A9*J9*H9*B9^2*D9+G9^3*A9^3*F9-2*G9*I9*J9*A9^3*E9+G9*A9^3*I9^2*F9+I9^2*B9^3*J9*E9+J9^2*A9^3*H9*E9-1*B9^3*H9^2*I9*F9-1*G9^2*H9*A9^3*E9+I9^2*H9*A9^3*E9+2*G9*I9*H9*B9^3*E9-1*G9^2*B9^3*J9*E9-1*A9*I9^3*B9^2*D9+H9*G9^2*B9^3*C9-1*A9^2*J9*H9^2*E9*B9-1*H9*B9*I9^2*A9^2*C9+H9*B9^2*I9^2*A9*E9-1*A9*J9*H9^2*B9^2*C9+H9*B9^2*J9^2*A9*E9+H9*G9^2*B9*A9^2*C9+2*B9^3*J9*I9*H9*D9+G9*B9*H9^2*A9^2*D9+G9*B9^3*H9^2*D9-1*G9*B9^2*H9^2*A9*F9+G9*B9^2*I9^2*A9*F9-1*A9^2*I9^3*F9*B9-1*A9^3*J9^3*C9+2*I9*G9*B9^3*J9*C9-2*I9*G9*B9^2*J9*A9*E9+I9^2*J9*A9*B9^2*C9-1*J9^3*B9^3*E9-1*B9^3*I9^3*F9-1*B9^3*H9^3*C9+H9^3*A9^3*E9+I9^2*J9*A9^2*E9*B9-1*H9*G9^2*B9^2*A9*E9-1*H9*B9*J9^2*A9^2*C9-1*H9*B9^3*J9^2*C9-1*H9*B9^3*I9^2*C9+I9^2*J9*A9^3*C9)/B9/A9/(I9^4+J9^4-8*H9*I9*J9*G9+G9^4+2*I9^2*G9^2+H9^4+2*J9^2*H9^2+2*H9^2*I9^2-2*H9^2*G9^2+2*J9^2*G9^2-2*J9^2*I9^2) ->  | N46: 0 | O46: 0 | P46: =T46/((I9^4+H9^4+2*G9^2*J9^2-8*G9*H9*I9*J9+2*G9^2*I9^2+G9^4+J9^4+2*J9^2*H9^2+2*I9^2*H9^2-2*I9^2*J9^2-2*G9^2*H9^2)*B9*A9) -> -2.438476759e+25 | Q46: =0.5*(-1*G9*J9^2*B9^4*E9+J9^3*B9^4*D9-1*J9*B9^4*I9^2*D9-1*I9*B9^4*J9^2*C9+2*A9^2*J9^3*B9^2*D9+A9^4*J9^3*D9+2*A9^2*B9^2*I9^3*C9-2*A9^2*B9^2*J9^2*I9*C9-2*A9^2*I9^2*B9^2*J9*D9+A9^4*I9^3*C9-1*A9^4*I9*J9^2*C9-1*A9^4*J9*I9^2*D9+2*H9*B9^4*J9*I9*E9-1*B9^4*H9*I9^2*F9+B9^4*H9^2*I9*C9-1*B9^4*H9*J9^2*F9-1*B9^4*H9^3*F9+J9*B9^4*H9^2*D9-1*A9^4*J9^2*H9*F9-1*A9^4*H9^3*F9+A9^4*J9*H9^2*D9-2*A9^2*B9^2*H9^3*F9+4*A9^2*B9^2*J9*I9*H9*E9+2*A9^2*J9*B9^2*H9^2*D9-2*A9^2*H9*B9^2*J9^2*F9+2*A9^2*B9^2*H9^2*I9*C9-2*A9^2*H9*B9^2*I9^2*F9-1*A9^4*I9^2*H9*F9+2*G9*B9^4*J9*I9*F9+G9^2*J9*B9^4*D9+G9^2*B9^4*H9*F9-1*B9^4*G9^3*E9+2*A9^4*J9*I9*H9*E9+A9^4*H9^2*I9*C9-1*A9^4*G9^3*E9-2*H9*G9*J9*B9^4*C9-2*G9*B9^4*H9*I9*D9+G9*B9^4*H9^2*E9+2*A9^2*H9*G9^2*B9^2*F9-2*A9^2*G9*B9^2*J9^2*E9+4*A9^2*I9*G9*B9^2*J9*F9+2*A9^2*G9^2*B9^2*J9*D9-2*A9^2*G9*B9^2*I9^2*E9+2*A9^2*G9*B9^2*H9^2*E9-4*A9^2*G9*B9^2*H9*J9*C9-4*A9^2*G9*I9*H9*B9^2*D9+2*A9^2*G9^2*B9^2*I9*C9-2*A9^2*G9^3*B9^2*E9-2*A9^4*H9*G9*J9*C9+2*A9^4*G9*J9*I9*F9+A9^4*G9^2*H9*F9+A9^4*I9*G9^2*C9-1*A9^4*G9*I9^2*E9+A9^4*G9*H9^2*E9+A9^4*G9^2*J9*D9-2*A9^4*G9*H9*I9*D9-1*A9^4*G9*J9^2*E9-4*G9^2*A9^2*I9*K9*C9-4*G9*B9^2*I9^2*K9*E9+4*G9*B9^2*H9^2*K9*E9-4*A9^2*I9^3*K9*C9-4*G9^3*B9^2*K9*E9+4*H9^3*K9*A9^2*F9+4*J9^3*B9^2*K9*D9-4*J9*G9^2*K9*A9^2*D9+B9^4*I9^3*C9+4*G9^2*K9*B9^2*I9*C9-4*G9*K9*A9^2*H9^2*E9-8*G9*K9*B9^2*H9*J9*C9+4*K9*B9^2*H9^2*I9*C9-4*K9*B9^2*J9^2*I9*C9+4*G9*K9*A9^2*J9^2*E9+4*G9*K9*A9^2*I9^2*E9+4*J9*B9^2*H9^2*K9*D9-8*G9*I9*H9*B9^2*K9*D9-8*G9*I9*J9*K9*A9^2*F9-4*G9^2*H9*K9*A9^2*F9+4*G9^2*B9^2*K9*J9*D9+4*I9^2*H9*K9*A9^2*F9+4*J9^2*A9^2*H9*K9*F9-4*I9^2*B9^2*K9*J9*D9-8*K9*A9^2*J9*I9*H9*E9+4*K9*B9^2*I9^3*C9+4*G9^3*K9*A9^2*E9-4*G9*B9^2*K9*J9^2*E9+8*B9^2*K9*J9*I9*H9*E9+8*G9*A9^2*J9*H9*K9*C9+4*A9^2*I9*K9*J9^2*C9-4*A9^2*I9*K9*H9^2*C9+8*H9*G9*A9^2*I9*K9*D9+8*I9*G9*B9^2*K9*J9*F9+4*I9^2*J9*K9*A9^2*D9+4*H9*G9^2*B9^2*K9*F9-4*H9*B9^2*I9^2*K9*F9-4*H9*B9^2*K9*J9^2*F9-4*A9^2*J9*H9^2*K9*D9+I9*G9^2*B9^4*C9-1*G9*B9^4*I9^2*E9-4*K9*A9^2*J9^3*D9-4*B9^2*H9^3*K9*F9+4*K9^2*J9^3*D9+4*I9*K9^2*H9^2*C9+4*J9*H9^2*K9^2*D9-4*I9^2*H9*K9^2*F9-4*J9^2*H9*K9^2*F9-4*H9^3*K9^2*F9-4*I9*K9^2*J9^2*C9-4*I9^2*J9*K9^2*D9+4*I9^3*K9^2*C9+8*K9^2*J9*I9*H9*E9+8*G9*I9*J9*K9^2*F9-4*G9^3*K9^2*E9-8*G9*J9*H9*K9^2*C9-8*H9*G9*I9*K9^2*D9+4*G9^2*I9*K9^2*C9+4*J9*G9^2*K9^2*D9+4*G9*K9^2*H9^2*E9-4*G9*K9^2*J9^2*E9-4*G9*K9^2*I9^2*E9+4*G9^2*H9*K9^2*F9)/B9/A9/(I9^4+J9^4-8*H9*I9*J9*G9+G9^4+2*I9^2*G9^2+H9^4+2*J9^2*H9^2+2*H9^2*I9^2-2*H9^2*G9^2+2*J9^2*G9^2-2*J9^2*I9^2) ->  | R46: 0 | S46: 0 | T46: =-(-1*I9*G9*B9^2*J9*SQRT(2*L9*K9)*F9+0.5*J9*G9^2*A9^2*SQRT(2*L9*K9)*D9-1*J9*G9^2*A9*SQRT(2*L9*K9)*B9*F9-1*H9*G9*A9^2*I9*SQRT(2*L9*K9)*D9+2*H9*G9*A9*I9*SQRT(2*L9*K9)*B9*F9+1*H9*G9*B9^4*J9*A9*D9-1*H9*G9*B9^5*J9*F9-1*H9*B9*I9^2*SQRT(2*L9*K9)*A9*D9+0.5*H9*B9^2*I9^2*SQRT(2*L9*K9)*F9-1*H9*J9^2*B9*SQRT(2*L9*K9)*A9*D9+0.5*H9*J9^2*B9^2*SQRT(2*L9*K9)*F9-0.5*A9^2*J9*I9^2*SQRT(2*L9*K9)*D9+1*A9*J9*I9^2*SQRT(2*L9*K9)*B9*F9-0.5*H9^2*I9*A9^5*D9+0.5*H9^2*B9^5*I9*F9+0.5*H9^3*B9^2*SQRT(2*L9*K9)*F9+0.5*I9*A9^5*J9^2*D9-0.5*I9*B9^5*J9^2*F9+0.5*A9^2*J9^3*SQRT(2*L9*K9)*D9+0.5*I9*G9^2*B9^5*F9+1*A9^2*B9^3*G9^3*D9+0.5*A9*B9^4*G9^3*F9+0.5*A9^4*B9*G9^3*D9+1*A9^3*B9^2*G9^3*F9+0.5*A9^4*I9^3*B9*F9-0.5*I9*G9^2*A9^5*D9+0.5*A9^4*J9*H9^2*B9*E9+0.5*B9^4*I9^2*J9*A9*C9-0.5*A9^4*I9^2*J9*B9*E9-0.5*B9^4*J9*H9^2*A9*C9-1*A9*I9^3*SQRT(2*L9*K9)*B9*E9-1*G9^3*B9*SQRT(2*L9*K9)*A9*C9+0.5*G9^2*J9*A9^4*B9*E9-0.5*G9^2*B9^4*J9*A9*C9+0.5*G9^2*B9^5*J9*E9-1*K9*B9^3*G9*H9^2*D9-1*K9*J9*H9^2*SQRT(2*L9*K9)*D9-0.5*A9^5*J9^3*C9+0.5*J9^3*B9^5*E9+1*K9*B9^3*G9*J9^2*D9-1*K9*J9*G9^2*SQRT(2*L9*K9)*D9+2*K9*H9*G9*I9*SQRT(2*L9*K9)*D9+1*K9*J9*I9^2*SQRT(2*L9*K9)*D9-1*K9*J9^3*SQRT(2*L9*K9)*D9+1*K9*B9^3*G9^3*D9+1*K9*B9^3*J9^3*E9+1*K9*G9^3*SQRT(2*L9*K9)*E9-2*K9*J9*I9*H9*SQRT(2*L9*K9)*E9+1*K9*B9^3*J9*H9^2*E9-1*K9*B9^3*I9^2*J9*E9+1*K9*B9^3*G9*I9^2*D9-2*K9*B9^3*H9*I9*J9*D9-2*K9*G9*B9^3*H9*I9*E9+1*K9*G9^2*B9^3*J9*E9-1*K9*G9*H9^2*SQRT(2*L9*K9)*E9+1*K9*G9*I9^2*SQRT(2*L9*K9)*E9+1*K9*G9*J9^2*SQRT(2*L9*K9)*E9+0.5*G9^3*A9^5*F9-0.5*G9^2*A9*B9^4*H9*E9+1*G9*H9*I9*A9^5*C9-1*G9*H9*I9*A9^4*B9*E9+0.5*A9^2*H9^2*I9*SQRT(2*L9*K9)*C9-1*A9*H9^2*I9*SQRT(2*L9*K9)*B9*E9-0.5*G9^2*A9^4*B9*H9*C9-1*G9^2*A9^3*B9^2*H9*E9+0.5*G9^2*A9^2*I9*SQRT(2*L9*K9)*C9-1*G9^2*A9*I9*SQRT(2*L9*K9)*B9*E9+1*G9*H9*B9^4*I9*A9*C9-1*G9*H9*B9^5*I9*E9+1*G9*H9^2*B9*SQRT(2*L9*K9)*A9*C9-0.5*G9*H9^2*B9^2*SQRT(2*L9*K9)*E9-1*G9*J9^2*B9*SQRT(2*L9*K9)*A9*C9+0.5*G9*J9^2*B9^2*SQRT(2*L9*K9)*E9-2*G9*A9^2*B9^3*J9*I9*C9-1*G9*A9*B9^4*J9*I9*E9-1*G9*A9^2*J9*H9*SQRT(2*L9*K9)*C9+2*G9*A9*J9*H9*SQRT(2*L9*K9)*B9*E9-1*G9*B9*I9^2*SQRT(2*L9*K9)*A9*C9+0.5*G9*B9^2*I9^2*SQRT(2*L9*K9)*E9-1*G9*A9^4*J9*B9*I9*C9-2*G9*A9^3*J9*B9^2*I9*E9+2*J9*I9*H9*B9*SQRT(2*L9*K9)*A9*C9-1*J9*I9*H9*B9^2*SQRT(2*L9*K9)*E9+0.5*A9^4*J9^2*B9*H9*C9+1*A9^3*J9^2*B9^2*H9*E9+1*A9^2*B9^3*I9^2*H9*C9+0.5*A9*B9^4*I9^2*H9*E9+0.5*A9^4*B9*I9^2*H9*C9+1*A9^3*B9^2*I9^2*H9*E9+1*A9^2*B9^3*H9*J9^2*C9+0.5*A9*B9^4*H9*J9^2*E9-0.5*A9^2*J9^2*I9*SQRT(2*L9*K9)*C9+1*A9*J9^2*I9*SQRT(2*L9*K9)*B9*E9-1*G9^2*A9^2*B9^3*H9*C9+1*K9*G9^2*A9^3*H9*E9-1*K9*A9^3*H9^3*E9+1*K9*A9^3*I9^3*D9-1*A9^4*B9*H9*I9*J9*D9-2*A9^3*B9^2*H9*I9*J9*F9+0.5*A9^4*B9*G9*J9^2*D9+1*A9^3*B9^2*G9*J9^2*F9+0.5*A9^4*B9*G9*I9^2*D9+1*A9^3*B9^2*G9*I9^2*F9-1*A9^2*B9^3*G9*H9^2*D9-0.5*A9*B9^4*G9*H9^2*F9+0.5*A9^2*J9*H9^2*SQRT(2*L9*K9)*D9-1*A9*J9*H9^2*SQRT(2*L9*K9)*B9*F9+1*H9*G9^2*B9*SQRT(2*L9*K9)*A9*D9-0.5*H9*G9^2*B9^2*SQRT(2*L9*K9)*F9+1*H9*G9*J9*A9^5*D9-1*H9*G9*J9*A9^4*B9*F9+1*A9^2*B9^3*G9*J9^2*D9+0.5*A9*B9^4*G9*J9^2*F9+1*A9^2*B9^3*G9*I9^2*D9+0.5*A9*B9^4*G9*I9^2*F9-2*A9^2*B9^3*H9*I9*J9*D9-1*A9*B9^4*H9*I9*J9*F9-0.5*A9^4*B9*G9*H9^2*D9-1*A9^3*B9^2*G9*H9^2*F9+2*I9*G9*B9*J9*SQRT(2*L9*K9)*A9*D9+0.5*I9*G9^2*A9^4*B9*F9-0.5*A9^5*I9^3*D9+0.5*H9^2*I9*A9^4*B9*F9-0.5*H9^2*B9^4*I9*A9*D9-1*H9^3*B9*SQRT(2*L9*K9)*A9*D9-0.5*I9*A9^4*J9^2*B9*F9+0.5*I9*B9^4*J9^2*A9*D9-1*A9*J9^3*SQRT(2*L9*K9)*B9*F9-0.5*I9*G9^2*B9^4*A9*D9-0.5*B9^4*I9^3*A9*D9-0.5*A9^5*J9*H9^2*C9-0.5*B9^5*I9^2*J9*E9+0.5*A9^5*I9^2*J9*C9+0.5*B9^5*J9*H9^2*E9+0.5*A9^4*H9^3*B9*C9+1*A9^3*H9^3*B9^2*E9+0.5*A9^2*I9^3*SQRT(2*L9*K9)*C9+1*A9^2*B9^3*H9^3*C9+0.5*A9*B9^4*H9^3*E9+0.5*G9^3*B9^2*SQRT(2*L9*K9)*E9-0.5*G9^2*J9*A9^5*C9+0.5*A9^4*J9^3*B9*E9-0.5*J9^3*B9^4*A9*C9-0.5*G9*H9^2*B9^5*D9-0.5*J9^3*B9^2*SQRT(2*L9*K9)*D9-0.5*H9^3*A9^2*SQRT(2*L9*K9)*F9-1*A9^3*B9^2*I9^3*D9+1*A9^2*B9^3*I9^3*F9+0.5*G9*B9^5*J9^2*D9-0.5*G9*H9^2*A9^5*F9+0.5*G9*A9^5*I9^2*F9+0.5*G9*A9^5*J9^2*F9+0.5*G9*B9^5*I9^2*D9+0.5*B9^5*I9^3*F9-2*K9*G9*B9^3*J9*I9*C9+2*K9*G9*J9*H9*SQRT(2*L9*K9)*C9+1*K9*B9^3*I9^2*H9*C9+1*K9*B9^3*H9*J9^2*C9-1*K9*A9^3*G9^3*F9+1*K9*A9^3*J9^3*C9+1*A9^3*B9^2*I9^2*J9*C9-1*G9^2*A9^3*B9^2*J9*C9+1*A9^2*B9^3*J9*H9^2*E9-1*A9^2*B9^3*I9^2*J9*E9+2*G9*A9^3*B9^2*H9*I9*C9-2*G9*A9^2*B9^3*H9*I9*E9+1*G9^2*A9^2*B9^3*J9*E9-0.5*G9^2*B9^2*I9*SQRT(2*L9*K9)*C9-1*G9*J9*I9*A9^5*E9+1*G9*B9^2*J9*H9*SQRT(2*L9*K9)*C9+0.5*G9*A9^2*H9^2*SQRT(2*L9*K9)*E9-0.5*G9*A9^2*I9^2*SQRT(2*L9*K9)*E9-0.5*G9*A9^2*J9^2*SQRT(2*L9*K9)*E9+2*K9*A9^3*H9*I9*J9*F9-1*K9*A9^3*G9*J9^2*F9-1*K9*A9^3*G9*I9^2*F9+2*K9*G9*A9^3*J9*I9*E9-1*K9*A9^3*J9^2*H9*E9-1*K9*A9^3*I9^2*H9*E9-1*K9*J9^2*A9^3*I9*D9+1*K9*I9*H9^2*A9^3*D9+1*K9*G9^2*A9^3*I9*D9-2*K9*G9*J9*A9^3*H9*D9-1*K9*H9^2*I9*SQRT(2*L9*K9)*C9-1*K9*G9^2*I9*SQRT(2*L9*K9)*C9+1*K9*J9^2*I9*SQRT(2*L9*K9)*C9-1*K9*G9^2*B9^3*H9*C9-1*K9*I9^3*SQRT(2*L9*K9)*C9+1*K9*B9^3*H9^3*C9+1*K9*H9^3*SQRT(2*L9*K9)*F9+1*K9*B9^3*I9^3*F9+0.5*G9^3*B9^5*D9-1*J9^2*A9^2*B9^3*I9*F9-0.5*J9^2*A9^2*H9*SQRT(2*L9*K9)*F9-1*J9*H9*I9*A9^5*F9-2*G9*J9*A9^2*B9^3*H9*F9+1*J9^2*A9^3*B9^2*I9*D9-1*I9*H9^2*A9^3*B9^2*D9+0.5*I9^2*B9^2*J9*SQRT(2*L9*K9)*D9+1*I9*H9^2*A9^2*B9^3*F9-1*J9*H9*B9^5*I9*D9-0.5*J9*H9^2*B9^2*SQRT(2*L9*K9)*D9-1*G9^2*A9^3*B9^2*I9*D9+1*G9^2*A9^2*B9^3*I9*F9-0.5*I9^2*H9*A9^2*SQRT(2*L9*K9)*F9+0.5*B9^5*I9^2*H9*C9+0.5*B9^5*J9^2*H9*C9-0.5*B9^2*I9^3*SQRT(2*L9*K9)*C9+0.5*A9^5*I9^2*H9*E9-1*A9^3*B9^2*J9^3*C9+1*A9^2*B9^3*J9^3*E9-0.5*G9^3*A9^2*SQRT(2*L9*K9)*E9-0.5*G9^2*H9*A9^5*E9-0.5*G9^2*H9*B9^5*C9+0.5*A9^5*J9^2*H9*E9+1*K9*A9^3*G9*H9^2*F9+1*K9*A9^3*J9*H9^2*C9-1*K9*A9^3*I9^2*J9*C9+1*K9*G9^2*A9^3*J9*C9-2*K9*G9*A9^3*H9*I9*C9-0.5*G9^2*B9^2*J9*SQRT(2*L9*K9)*D9+2*G9*J9*A9^3*B9^2*H9*D9+0.5*G9^2*H9*A9^2*SQRT(2*L9*K9)*F9+1*G9*I9*H9*B9^2*SQRT(2*L9*K9)*D9+1*G9*A9^2*J9*I9*SQRT(2*L9*K9)*F9+0.5*B9^5*H9^3*C9+0.5*A9^5*H9^3*E9+1*K9*I9*H9^2*B9^3*F9+1*K9*G9^2*B9^3*I9*F9+1*K9*I9^2*H9*SQRT(2*L9*K9)*F9-1*K9*G9^2*H9*SQRT(2*L9*K9)*F9-2*K9*G9*J9*I9*SQRT(2*L9*K9)*F9-1*K9*J9^2*B9^3*I9*F9+1*K9*J9^2*H9*SQRT(2*L9*K9)*F9-2*K9*G9*J9*B9^3*H9*F9+0.5*B9^2*J9^2*I9*SQRT(2*L9*K9)*C9-0.5*B9^2*H9^2*I9*SQRT(2*L9*K9)*C9+1*A9^2*J9*I9*H9*SQRT(2*L9*K9)*E9-1*A9^3*B9^2*J9*H9^2*C9-1*G9*J9*I9*B9^5*C9+1*A9^2*K9*B9*G9^3*D9+1*A9^2*K9*I9^3*B9*F9-2*A9^2*K9*B9*H9*I9*J9*D9+1*A9^2*K9*B9*G9*J9^2*D9+1*A9^2*K9*B9*G9*I9^2*D9-2*A9^2*K9*H9*G9*J9*B9*F9-1*A9^2*K9*I9*J9^2*B9*F9-1*A9^2*K9*B9*G9*H9^2*D9+1*A9^2*K9*I9*G9^2*B9*F9+1*A9^2*K9*H9^2*I9*B9*F9-2*A9^2*K9*G9*J9*B9*I9*C9+1*A9^2*K9*J9^2*B9*H9*C9+1*A9^2*K9*B9*I9^2*H9*C9+1*A9^2*K9*J9*H9^2*B9*E9-1*A9^2*K9*I9^2*J9*B9*E9+1*A9^2*K9*G9^2*J9*B9*E9-2*A9^2*K9*G9*H9*I9*B9*E9-1*A9^2*K9*G9^2*B9*H9*C9+1*A9^2*K9*H9^3*B9*C9+1*A9^2*K9*J9^3*B9*E9-1*A9*K9*B9^2*G9*I9^2*F9-1*A9*K9*B9^2*G9^3*F9+2*A9*K9*B9^2*H9*I9*J9*F9-1*A9*K9*B9^2*G9*J9^2*F9+1*A9*K9*B9^2*J9^3*C9+1*A9*K9*B9^2*J9*H9^2*C9-1*A9*K9*B9^2*I9^2*J9*C9+1*A9*K9*G9^2*B9^2*J9*C9-2*A9*K9*G9*B9^2*H9*I9*C9+1*A9*K9*B9^2*G9*H9^2*F9+2*A9*K9*G9*J9*B9^2*I9*E9-1*A9*K9*J9^2*B9^2*H9*E9-1*A9*K9*B9^2*I9^2*H9*E9+1*A9*K9*G9^2*B9^2*H9*E9-1*A9*K9*H9^3*B9^2*E9+1*A9*K9*B9^2*I9^3*D9-1*A9*K9*J9^2*B9^2*I9*D9+1*A9*K9*I9*H9^2*B9^2*D9+1*A9*K9*G9^2*B9^2*I9*D9-2*A9*K9*G9*J9*B9^2*H9*D9) -> 120642.5
B47: K4calcb1 | D47: 0 | E47: 0 | F47: =-1*(G9*C9*J9^2-1*H9*D9*J9^2+I9*E9*G9^2-1*I9*E9*H9^2+H9*D9*I9^2-1*G9*C9*I9^2-1*J9*F9*G9^2+J9*F9*H9^2)/(A9^2*I9^2+B9^2*J9^2-1*I9^2*B9^2-1*A9^2*J9^2)/(G9^2-1*H9^2) -> 0.008436146882 | G47: =-1*(-1*A9*J9*E9*G9^2+A9*J9*E9*H9^2+A9*I9*F9*G9^2-1*A9*I9*F9*H9^2-1*H9*C9*B9*J9^2+G9*D9*B9*J9^2-1*G9*D9*B9*I9^2+H9*C9*B9*I9^2)/(A9^2*I9^2+B9^2*J9^2-1*I9^2*B9^2-1*A9^2*J9^2)/B9/A9/(G9^2-1*H9^2) -> -0.0006117759638 | H47: 0 | I47: 0 | J47: =-1*(-1*A9*H9*C9*J9^2+A9*G9*D9*J9^2-1*A9*G9*D9*I9^2+A9*H9*C9*I9^2-1*B9*I9*F9*H9^2+B9*J9*E9*H9^2+B9*I9*F9*G9^2-1*B9*J9*E9*G9^2)/(A9^2*I9^2+B9^2*J9^2-1*I9^2*B9^2-1*A9^2*J9^2)/(G9^2-1*H9^2) -> -0.09648414736 | K47: =-1*(G9*C9*J9^2-1*H9*D9*J9^2+I9*E9*G9^2-1*I9*E9*H9^2+H9*D9*I9^2-1*G9*C9*I9^2-1*J9*F9*G9^2+J9*F9*H9^2)/(A9^2*I9^2+B9^2*J9^2-1*I9^2*B9^2-1*A9^2*J9^2)/(G9^2-1*H9^2) -> 0.008436146882 | L47: 0 | M47: 0 | N47: =-1*(G9*C9*A9^2*J9^2+H9*D9*A9^2*I9^2-1*G9*C9*A9^2*I9^2-1*H9*D9*A9^2*J9^2-1*I9*E9*B9^2*H9^2+J9*F9*B9^2*H9^2+I9*E9*B9^2*G9^2-1*J9*F9*B9^2*G9^2)/(A9^2*I9^2+B9^2*J9^2-1*I9^2*B9^2-1*A9^2*J9^2)/(G9^2-1*H9^2) -> 1.330474512 | O47: =-1*(-1*A9*H9*C9*J9^2+A9*G9*D9*J9^2-1*A9*G9*D9*I9^2+A9*H9*C9*I9^2-1*B9*I9*F9*H9^2+B9*J9*E9*H9^2+B9*I9*F9*G9^2-1*B9*J9*E9*G9^2)/(A9^2*I9^2+B9^2*J9^2-1*I9^2*B9^2-1*A9^2*J9^2)/(G9^2-1*H9^2) -> -0.09648414736 | P47: 0 | Q47: 0 | R47: =-1*(-1*A9^3*H9*C9*J9^2+A9^3*G9*D9*J9^2-1*A9^3*G9*D9*I9^2+A9^3*H9*C9*I9^2+B9^3*J9*E9*H9^2-1*B9^3*I9*F9*H9^2+B9^3*I9*F9*G9^2-1*B9^3*J9*E9*G9^2)/(A9^2*I9^2+B9^2*J9^2-1*I9^2*B9^2-1*A9^2*J9^2)/(G9^2-1*H9^2) -> -15.21661683 | S47: =-1*(G9*C9*A9^2*J9^2+H9*D9*A9^2*I9^2-1*G9*C9*A9^2*I9^2-1*H9*D9*A9^2*J9^2-1*I9*E9*B9^2*H9^2+J9*F9*B9^2*H9^2+I9*E9*B9^2*G9^2-1*J9*F9*B9^2*G9^2)/(A9^2*I9^2+B9^2*J9^2-1*I9^2*B9^2-1*A9^2*J9^2)/(G9^2-1*H9^2) -> 1.330474512
B48: K4calcb2 | D48: =(A9^3*E9*B9*I9*G9^2-1*A9^3*E9*B9*I9*H9^2-1*A9^3*F9*B9*J9*G9^2+A9^3*F9*B9*J9*H9^2-1*A9*D9*B9^3*H9*J9^2+A9*D9*B9^3*H9*I9^2+A9*F9*I9*SQRT(2*L9*K9)*H9^2+A9*E9*J9*SQRT(2*L9*K9)*G9^2-1*A9*E9*J9*SQRT(2*L9*K9)*H9^2-1*A9*F9*I9*SQRT(2*L9*K9)*G9^2+A9*C9*B9^3*G9*J9^2-1*A9*C9*B9^3*G9*I9^2-1*D9*B9*SQRT(2*L9*K9)*G9*J9^2+D9*B9*SQRT(2*L9*K9)*G9*I9^2-1*C9*B9*H9*SQRT(2*L9*K9)*I9^2+C9*B9*H9*SQRT(2*L9*K9)*J9^2)/(B9*(A9^2*I9^2-1*I9^2*B9^2+B9^2*J9^2-1*A9^2*J9^2)*(G9^2-1*H9^2)*A9) -> -2.520785888 | E48: =-1*(2*J9^2*D9*B9*G9*K9+J9^2*H9*C9*B9^3-1*J9^2*D9*B9^3*G9-2*J9^2*H9*C9*B9*K9+2*J9*A9*H9^2*E9*K9+J9*A9^3*E9*G9^2-1*J9*H9^2*A9^3*E9-2*J9*A9*E9*K9*G9^2-1*A9^3*F9*I9*G9^2+H9^2*A9^3*F9*I9-1*H9*C9*B9^3*I9^2-2*D9*B9*G9*K9*I9^2+D9*B9^3*G9*I9^2-2*A9*H9^2*F9*I9*K9+2*A9*F9*I9*K9*G9^2+2*H9*C9*B9*K9*I9^2)/(J9^2*A9^2-1*B9^2*J9^2-1*I9^2*A9^2+B9^2*I9^2)/B9/(H9^2-1*G9^2)/A9 -> 0.01363115703 | F48: 0 | G48: 0 | H48: =(-1*A9^2*E9*B9*J9*H9^2+A9^2*E9*B9*J9*G9^2-1*A9^2*F9*B9*I9*G9^2+A9^2*F9*B9*I9*H9^2-1*A9*C9*B9^2*H9*I9^2-1*A9*D9*B9^2*G9*J9^2+A9*C9*B9^2*H9*J9^2+A9*D9*B9^2*G9*I9^2-1*E9*I9*SQRT(2*L9*K9)*H9^2-1*C9*SQRT(2*L9*K9)*G9*I9^2-1*D9*H9*SQRT(2*L9*K9)*J9^2-1*F9*J9*SQRT(2*L9*K9)*G9^2+C9*SQRT(2*L9*K9)*G9*J9^2+D9*H9*SQRT(2*L9*K9)*I9^2+E9*I9*SQRT(2*L9*K9)*G9^2+F9*J9*SQRT(2*L9*K9)*H9^2)/((A9^2*I9^2-1*I9^2*B9^2+B9^2*J9^2-1*A9^2*J9^2)*(-1*G9^2+H9^2)) -> 32.52647361 | I48: =(-2*J9^2*G9*C9*K9-1*J9^2*H9*D9*B9^2+J9^2*G9*C9*B9^2+2*J9^2*H9*D9*K9+J9*H9^2*A9^2*F9+2*J9*F9*K9*G9^2-2*J9*H9^2*F9*K9-1*J9*A9^2*F9*G9^2-2*I9*E9*K9*G9^2+2*G9*C9*K9*I9^2+2*H9^2*I9*E9*K9-2*H9*D9*K9*I9^2+H9*D9*B9^2*I9^2-1*G9*C9*B9^2*I9^2-1*H9^2*A9^2*I9*E9+A9^2*I9*E9*G9^2)/(H9^2-1*G9^2)/(J9^2*A9^2-1*B9^2*J9^2-1*I9^2*A9^2+B9^2*I9^2) -> -0.1879716073 | J48: 0 | K48: 0 | L48: =(-1*A9^2*D9*B9^2*H9*I9^2-1*A9^2*C9*B9^2*G9*J9^2+A9^2*B9^2*F9*J9*G9^2-1*A9^2*B9^2*F9*J9*H9^2+A9^2*C9*B9^2*G9*I9^2+A9^2*D9*B9^2*H9*J9^2-1*A9^2*B9^2*E9*I9*G9^2+A9^2*B9^2*E9*I9*H9^2-1*A9*C9*H9*SQRT(2*L9*K9)*J9^2+A9*C9*H9*SQRT(2*L9*K9)*I9^2-1*A9*D9*SQRT(2*L9*K9)*G9*I9^2+A9*D9*SQRT(2*L9*K9)*G9*J9^2-1*B9*F9*I9*SQRT(2*L9*K9)*H9^2+B9*E9*J9*SQRT(2*L9*K9)*H9^2-1*B9*E9*J9*SQRT(2*L9*K9)*G9^2+B9*F9*I9*SQRT(2*L9*K9)*G9^2)/((A9^2*I9^2-1*I9^2*B9^2+B9^2*J9^2-1*A9^2*J9^2)*(-1*G9^2+H9^2)) -> -397.556146 | M48: =-1*(-1*J9^2*A9*D9*B9^2*G9+2*J9^2*A9*G9*D9*K9-2*J9^2*A9*H9*C9*K9+J9^2*A9*H9*C9*B9^2+2*J9*H9^2*B9*E9*K9-2*J9*B9*E9*K9*G9^2-1*J9*A9^2*H9^2*E9*B9+J9*A9^2*E9*B9*G9^2-1*A9*H9*C9*B9^2*I9^2-1*A9^2*F9*B9*I9*G9^2-2*A9*G9*D9*K9*I9^2-2*H9^2*I9*B9*F9*K9+A9*D9*B9^2*G9*I9^2+2*I9*B9*F9*K9*G9^2+A9^2*H9^2*F9*B9*I9+2*A9*H9*C9*K9*I9^2)/(H9^2-1*G9^2)/(J9^2*A9^2-1*B9^2*J9^2-1*I9^2*A9^2+B9^2*I9^2) -> 2.149796228 | N48: 0 | O48: 0 | P48: =-(1*D9*A9^3*B9^2*G9*I9^2-1*D9*A9^3*B9^2*G9*J9^2+1*D9*H9*SQRT(2*L9*K9)*A9^2*I9^2-1*D9*H9*SQRT(2*L9*K9)*A9^2*J9^2-1*C9*SQRT(2*L9*K9)*G9*A9^2*I9^2+1*C9*B9^2*A9^3*H9*J9^2+1*C9*SQRT(2*L9*K9)*G9*A9^2*J9^2-1*C9*B9^2*A9^3*H9*I9^2-1*F9*A9^2*B9^3*I9*G9^2+1*F9*A9^2*B9^3*I9*H9^2+1*E9*I9*SQRT(2*L9*K9)*B9^2*G9^2-1*E9*I9*SQRT(2*L9*K9)*B9^2*H9^2-1*F9*J9*SQRT(2*L9*K9)*B9^2*G9^2+1*F9*J9*SQRT(2*L9*K9)*B9^2*H9^2+1*E9*B9^3*J9*A9^2*G9^2-1*E9*B9^3*J9*A9^2*H9^2-2*K9*D9*H9*SQRT(2*L9*K9)*I9^2+2*K9*D9*H9*SQRT(2*L9*K9)*J9^2+2*K9*C9*SQRT(2*L9*K9)*G9*I9^2+2*K9*F9*J9*SQRT(2*L9*K9)*G9^2-2*K9*F9*J9*SQRT(2*L9*K9)*H9^2-2*K9*C9*SQRT(2*L9*K9)*G9*J9^2-2*K9*E9*I9*SQRT(2*L9*K9)*G9^2+2*K9*E9*I9*SQRT(2*L9*K9)*H9^2-2*A9^2*K9*E9*B9*J9*G9^2+2*A9^2*K9*E9*B9*J9*H9^2+2*A9^2*K9*F9*B9*I9*G9^2-2*A9^2*K9*F9*B9*I9*H9^2+2*A9*K9*C9*B9^2*H9*I9^2-2*A9*K9*C9*B9^2*H9*J9^2+2*A9*K9*D9*B9^2*G9*J9^2-2*A9*K9*D9*B9^2*G9*I9^2)/((A9^2*I9^2-1*I9^2*B9^2+B9^2*J9^2-1*A9^2*J9^2)*(G9^2-1*H9^2)) -> 2193.077691 | Q48: =(A9^2*H9*D9*B9^2*I9^2+4*J9*H9^2*K9^2*F9+4*I9*K9^2*E9*G9^2-4*H9^2*I9*K9^2*E9+4*H9*K9^2*D9*I9^2-4*G9*K9^2*C9*I9^2+2*K9*C9*G9*B9^2*I9^2+2*H9^2*K9*E9*I9*B9^2+2*H9^2*K9*E9*I9*A9^2-2*H9*K9*D9*B9^2*I9^2-2*H9*K9*D9*A9^2*I9^2-1*A9^2*H9^2*B9^2*E9*I9-2*K9*E9*I9*B9^2*G9^2+2*K9*C9*G9*A9^2*I9^2-2*K9*E9*I9*A9^2*G9^2+A9^2*B9^2*E9*I9*G9^2-1*A9^2*C9*G9*B9^2*I9^2-2*J9*H9^2*K9*F9*B9^2-1*J9*A9^2*B9^2*F9*G9^2-2*J9*H9^2*K9*F9*A9^2-4*J9*K9^2*F9*G9^2+2*J9*K9*F9*A9^2*G9^2+2*J9*K9*F9*G9^2*B9^2+J9*A9^2*H9^2*B9^2*F9-2*J9^2*K9*C9*G9*B9^2+4*J9^2*G9*K9^2*C9-2*J9^2*K9*C9*G9*A9^2+2*J9^2*H9*K9*D9*B9^2+J9^2*A9^2*C9*G9*B9^2-4*J9^2*H9*K9^2*D9-1*J9^2*A9^2*H9*D9*B9^2+2*J9^2*H9*K9*D9*A9^2)/(J9^2*A9^2-1*B9^2*J9^2-1*I9^2*A9^2+B9^2*I9^2)/(H9^2-1*G9^2) -> -12.67326732 | R48: 0 | S48: 0
B49: K4calcalong | D49: =(-C8*A8*H8+C8*B8*G8+D8*A8*G8+D8*B8*H8)/(B8*(G8^2+H8^2)) -> 1 | E49: =(-C8*H8+D8*G8)/(B8*(G8^2+H8^2)) -> 0 | F49: 0 | G49: 0 | H49: =-(-H8*A8^2*C8+B8^2*G8*D8-B8^2*H8*C8+A8^2*G8*D8)/(B8*(G8^2+H8^2)) -> 0 | I49: =-(-C8*A8*H8-D8*B8*H8+D8*A8*G8-C8*B8*G8)/(B8*(G8^2+H8^2)) -> 1 | J49: 0 | K49: 0 | L49: =(-A8^3*H8*C8-A8*H8*B8^2*C8-A8^2*H8*B8*D8-B8*G8*A8^2*C8-B8^3*G8*C8+B8^2*G8*A8*D8+A8^3*G8*D8-B8^3*H8*D8)/(B8*(G8^2+H8^2)) -> -270.2787422 | M49: =(-H8*A8^2*C8+B8^2*H8*C8-2*A8*H8*D8*B8+A8^2*G8*D8-B8^2*G8*D8-2*B8*G8*C8*A8)/(B8*(G8^2+H8^2)) -> -25.11661065 | N49: 0 | O49: 0 | P49: =-(-(A8^4)*H8*C8-2*A8*H8*B8^3*D8-2*A8^3*H8*B8*D8-2*B8*G8*A8^3*C8-2*B8^3*G8*A8*C8-B8^4*G8*D8+A8^4*G8*D8+B8^4*H8*C8+2*K8*H8*A8^2*C8-2*K8*B8^2*G8*D8+2*K8*B8^2*H8*C8-2*K8*A8^2*G8*D8)/(B8*(G8^2+H8^2)) -> 6788.485935 | Q49: =-(-A8^3*H8*C8+3*A8*H8*B8^2*C8+B8^3*H8*D8-3*A8^2*H8*B8*D8+A8^3*G8*D8-3*B8^2*G8*A8*D8+B8^3*G8*C8-3*B8*G8*A8^2*C8+2*K8*C8*A8*H8+2*K8*D8*B8*H8-2*K8*D8*A8*G8+2*K8*C8*B8*G8)/(B8*(G8^2+H8^2)) -> 270.2787422 | R49: 0 | S49: 0
B50: K4calcblong | D50: =(-B8*C8*H8+A8*D8*G8)/(G8*(-B8+A8)*H8) -> 1 | E50: =(-C8*H8+D8*G8)/(G8*(-B8+A8)*H8) -> 0 | F50: 0 | G50: 0 | H50: =-A8*B8*(-C8*H8+D8*G8)/(G8*(-B8+A8)*H8) -> 0 | I50: =-(-A8*C8*H8+B8*D8*G8)/(G8*(-B8+A8)*H8) -> 1 | J50: 0 | K50: 0 | L50: =A8*B8*(-A8*C8*H8+B8*D8*G8)/(G8*(-B8+A8)*H8) -> -133.2410211 | M50: =(-A8^2*C8*H8+B8^2*D8*G8)/(G8*(-B8+A8)*H8) -> 138.7103133 | N50: 0 | O50: 0 | P50: =-A8*B8*(-A8^2*C8*H8+B8^2*D8*G8+2*K8*C8*H8-2*K8*D8*G8)/(G8*(-B8+A8)*H8) -> -18481.90379 | Q50: =-(-A8^3*C8*H8+B8^3*D8*G8+2*K8*A8*C8*H8-2*K8*B8*D8*G8)/(G8*(-B8+A8)*H8) -> 313.233117 | R50: 0 | S50: 0
D52: Kww | E52: Kwq | F52: KwM | G52: KwS | H52: Kqw | I52: Kqq | J52: KqM | K52: KqS | L52: KMw | M52: KMq | N52: KMM | O52: KMS | P52: KSw | Q52: KSq | R52: KSM | S52: KSS

Sheet Matrix (hidden)
A1: =IF('Initial Parameter'!$U$17<>1,IF('Initial Parameter'!N17>'Initial Parameter'!P17,IF('Initial Parameter'!$B$13=1,'K value'!D18,'K value'!D19),IF('Initial Parameter'!$B$13=1,'K value'!D20,'K value'!D21)),0) -> -5.818206225 | B1: =IF('Initial Parameter'!$U$17<>1,IF('Initial Parameter'!N17>'Initial Parameter'!P17,IF('Initial Parameter'!$B$13=1,'K value'!F18,'K value'!E19),IF('Initial Parameter'!$B$13=1,'K value'!F20,'K value'!E21)),0) -> -0.01360668514 | C1: =IF(OR('Initial Parameter'!$U$18=0,'Initial Parameter'!$U$18=3,'Initial Parameter'!$U$18=4),IF('Initial Parameter'!N18>'Initial Parameter'!P18,-'K value'!D27,-'K value'!D29),IF(OR('Initial Parameter'!$U$18=2),-1,0)) -> -1 | D1: =IF(OR('Initial Parameter'!$U$18=0,'Initial Parameter'!$U$18=3,'Initial Parameter'!$U$18=4),IF('Initial Parameter'!N18>'Initial Parameter'!P18,-'K value'!E27,-'K value'!E29),IF(OR('Initial Parameter'!$U$18=2),0,0)) -> -6.847427428e-14 | E1: =IF(OR('Initial Parameter'!$U$18=0,'Initial Parameter'!$U$18=3,'Initial Parameter'!$U$18=4),IF('Initial Parameter'!N18>'Initial Parameter'!P18,-'K value'!F27,-'K value'!F29),IF(OR('Initial Parameter'!$U$18=2),0,0)) -> 1.238426239e-14 | F1: =IF(OR('Initial Parameter'!$U$18=0,'Initial Parameter'!$U$18=3,'Initial Parameter'!$U$18=4),IF('Initial Parameter'!N18>'Initial Parameter'!P18,-'K value'!G27,-'K value'!G29),IF(OR('Initial Parameter'!$U$18=2),0,0)) -> 8.91592113e-17 | G1: 0 | H1: 0 | I1: 0 | J1: 0 | K1: 0 | L1: 0 | P1: =IF('Initial Parameter'!$U$17<>1,IF('Initial Parameter'!N17>'Initial Parameter'!P17,IF('Initial Parameter'!$B$13=1,-'K value'!$M$3*'K value'!G18,-'K value'!$M$3*'K value'!G19-'K value'!$N$3*'K value'!F19),IF('Initial Parameter'!$B$13=1,-'K value'!$M$3*'K value'!G20,-'K value'!$M$3*'K value'!G21-'K value'!$N$3*'K value'!F21)),0) -> -0.005354925625
A2: =IF('Initial Parameter'!$U$17<>1,IF('Initial Parameter'!N17>'Initial Parameter'!P17,IF('Initial Parameter'!$B$13=1,'K value'!H18,'K value'!H19),IF('Initial Parameter'!$B$13=1,'K value'!H20,'K value'!H21)),0) -> -85.03329486 | B2: =IF('Initial Parameter'!$U$17<>1,IF('Initial Parameter'!N17>'Initial Parameter'!P17,IF('Initial Parameter'!$B$13=1,'K value'!J18,'K value'!I19),IF('Initial Parameter'!$B$13=1,'K value'!J20,'K value'!I21)),0) -> -4.991948136 | C2: =IF(OR('Initial Parameter'!$U$18=0,'Initial Parameter'!$U$18=3,'Initial Parameter'!$U$18=4),IF('Initial Parameter'!N18>'Initial Parameter'!P18,-'K value'!H27,-'K value'!H29),IF(OR('Initial Parameter'!$U$18=2),0,0)) -> 7.341912185e-12 | D2: =IF(OR('Initial Parameter'!$U$18=0,'Initial Parameter'!$U$18=3,'Initial Parameter'!$U$18=4),IF('Initial Parameter'!N18>'Initial Parameter'!P18,-'K value'!I27,-'K value'!I29),IF(OR('Initial Parameter'!$U$18=2),-1,0)) -> -1 | E2: =IF(OR('Initial Parameter'!$U$18=0,'Initial Parameter'!$U$18=3,'Initial Parameter'!$U$18=4),IF('Initial Parameter'!N18>'Initial Parameter'!P18,-'K value'!J27,-'K value'!J29),IF(OR('Initial Parameter'!$U$18=2),0,0)) -> 7.821639402e-14 | F2: =IF(OR('Initial Parameter'!$U$18=0,'Initial Parameter'!$U$18=3,'Initial Parameter'!$U$18=4),IF('Initial Parameter'!N18>'Initial Parameter'!P18,-'K value'!K27,-'K value'!K29),IF(OR('Initial Parameter'!$U$18=2),0,0)) -> 1.238426239e-14 | G2: 0 | H2: 0 | I2: 0 | J2: 0 | K2: 0 | L2: 0 | P2: =IF('Initial Parameter'!$U$17<>1,IF('Initial Parameter'!N17>'Initial Parameter'!P17,IF('Initial Parameter'!$B$13=1,-'K value'!$M$3*'K value'!K18,-'K value'!$M$3*'K value'!K19-'K value'!$N$3*'K value'!J19),IF('Initial Parameter'!$B$13=1,-'K value'!$M$3*'K value'!K20,-'K value'!$M$3*'K value'!K21-'K value'!$N$3*'K value'!J21)),0) -> -0.03696126678
A3: =IF('Initial Parameter'!$U$17<>1,IF('Initial Parameter'!N17>'Initial Parameter'!P17,IF('Initial Parameter'!$B$13=1,'K value'!L18,'K value'!L19),IF('Initial Parameter'!$B$13=1,'K value'!L20,'K value'!L21)),0) -> -668.5224269 | B3: =IF('Initial Parameter'!$U$17<>1,IF('Initial Parameter'!N17>'Initial Parameter'!P17,IF('Initial Parameter'!$B$13=1,'K value'!N18,'K value'!M19),IF('Initial Parameter'!$B$13=1,'K value'!N20,'K value'!M21)),0) -> -85.38124324 | C3: =IF(OR('Initial Parameter'!$U$18=0,'Initial Parameter'!$U$18=3,'Initial Parameter'!$U$18=4),IF('Initial Parameter'!N18>'Initial Parameter'!P18,-'K value'!L27,-'K value'!L29),IF(OR('Initial Parameter'!$U$18=2),IF('Initial Parameter'!N18>'Initial Parameter'!P18,-'K value'!L31,-'K value'!L33),0)) -> -3.203743499e-10 | D3: =IF(OR('Initial Parameter'!$U$18=0,'Initial Parameter'!$U$18=3,'Initial Parameter'!$U$18=4),IF('Initial Parameter'!N18>'Initial Parameter'!P18,-'K value'!M27,-'K value'!M29),IF(OR('Initial Parameter'!$U$18=2),IF('Initial Parameter'!N18>'Initial Parameter'!P18,-'K value'!M31,-'K value'!M33),0)) -> 1.001169843e-11 | E3: =IF(OR('Initial Parameter'!$U$18=0,'Initial Parameter'!$U$18=3,'Initial Parameter'!$U$18=4),IF('Initial Parameter'!N18>'Initial Parameter'!P18,-'K value'!N27,-'K value'!N29),IF(OR('Initial Parameter'!$U$18=2),0,0)) -> -1 | F3: =IF(OR('Initial Parameter'!$U$18=0,'Initial Parameter'!$U$18=3,'Initial Parameter'!$U$18=4),IF('Initial Parameter'!N18>'Initial Parameter'!P18,-'K value'!O27,-'K value'!O29),IF(OR('Initial Parameter'!$U$18=2),0,0)) -> 2.92007871e-13 | G3: 0 | H3: 0 | I3: 0 | J3: 0 | K3: 0 | L3: 0 | P3: =IF('Initial Parameter'!$U$17<>1,IF('Initial Parameter'!N17>'Initial Parameter'!P17,IF('Initial Parameter'!$B$13=1,-'K value'!$M$3*'K value'!O18,-'K value'!$M$3*'K value'!O19-'K value'!$N$3*'K value'!N19),IF('Initial Parameter'!$B$13=1,-'K value'!$M$3*'K value'!O20,-'K value'!$M$3*'K value'!O21-'K value'!$N$3*'K value'!N21)),0) -> 0.1115203055
A4: =IF('Initial Parameter'!$U$17<>1,IF('Initial Parameter'!N17>'Initial Parameter'!P17,IF('Initial Parameter'!$B$13=1,'K value'!P18,'K value'!P19),IF('Initial Parameter'!$B$13=1,'K value'!P20,'K value'!P21)),0) -> 2455.98414 | B4: =IF('Initial Parameter'!$U$17<>1,IF('Initial Parameter'!N17>'Initial Parameter'!P17,IF('Initial Parameter'!$B$13=1,'K value'!R18,'K value'!Q19),IF('Initial Parameter'!$B$13=1,'K value'!R20,'K value'!Q21)),0) -> -668.5224269 | C4: =IF(OR('Initial Parameter'!$U$18=0,'Initial Parameter'!$U$18=3,'Initial Parameter'!$U$18=4),IF('Initial Parameter'!N18>'Initial Parameter'!P18,-'K value'!P27,-'K value'!P29),IF(OR('Initial Parameter'!$U$18=2),IF('Initial Parameter'!N18>'Initial Parameter'!P18,-'K value'!P31,-'K value'!P33),0)) -> 0 | D4: =IF(OR('Initial Parameter'!$U$18=0,'Initial Parameter'!$U$18=3,'Initial Parameter'!$U$18=4),IF('Initial Parameter'!N18>'Initial Parameter'!P18,-'K value'!Q27,-'K value'!Q29),IF(OR('Initial Parameter'!$U$18=2),IF('Initial Parameter'!N18>'Initial Parameter'!P18,-'K value'!Q31,-'K value'!Q33),0)) -> -6.621069898e-10 | E4: =IF(OR('Initial Parameter'!$U$18=0,'Initial Parameter'!$U$18=3,'Initial Parameter'!$U$18=4),IF('Initial Parameter'!N18>'Initial Parameter'!P18,-'K value'!R27,-'K value'!R29),IF(OR('Initial Parameter'!$U$18=2),0,0)) -> 4.538636624e-11 | F4: =IF(OR('Initial Parameter'!$U$18=0,'Initial Parameter'!$U$18=3,'Initial Parameter'!$U$18=4),IF('Initial Parameter'!N18>'Initial Parameter'!P18,-'K value'!S27,-'K value'!S29),IF(OR('Initial Parameter'!$U$18=2),0,0)) -> -1 | G4: 0 | H4: 0 | I4: 0 | J4: 0 | K4: 0 | L4: 0 | P4: =IF('Initial Parameter'!$U$17<>1,IF('Initial Parameter'!N17>'Initial Parameter'!P17,IF('Initial Parameter'!$B$13=1,-'K value'!$M$3*'K value'!S18,-'K value'!$M$3*'K value'!S19-'K value'!$N$3*'K value'!R19),IF('Initial Parameter'!$B$13=1,-'K value'!$M$3*'K value'!S20,-'K value'!$M$3*'K value'!S21-'K value'!$N$3*'K value'!R21)),0) -> 8.335212833
A5: 0 | B5: 0 | C5: =IF(OR('Initial Parameter'!$U$18=0,'Initial Parameter'!$U$18=3,'Initial Parameter'!$U$18=4),IF('Initial Parameter'!N18>'Initial Parameter'!P18,'K value'!D28,'K value'!D30),IF(OR('Initial Parameter'!$U$18=2),IF('Initial Parameter'!N18>'Initial Parameter'!P18,'K value'!D32,'K value'!D34),0)) -> -15.84962273 | D5: =IF(OR('Initial Parameter'!$U$18=0,'Initial Parameter'!$U$18=3,'Initial Parameter'!$U$18=4),IF('Initial Parameter'!N18>'Initial Parameter'!P18,'K value'!E28,'K value'!E30),IF(OR('Initial Parameter'!$U$18=2),IF('Initial Parameter'!N18>'Initial Parameter'!P18,'K value'!E32,'K value'!E34),0)) -> -0.7567833782 | E5: =IF(OR('Initial Parameter'!$U$18=0,'Initial Parameter'!$U$18=3,'Initial Parameter'!$U$18=4),IF('Initial Parameter'!N18>'Initial Parameter'!P18,'K value'!F28,'K value'!F30),IF(OR('Initial Parameter'!$U$18=2),-1,0)) -> 0.004173780431 | F5: =IF(OR('Initial Parameter'!$U$18=0,'Initial Parameter'!$U$18=3,'Initial Parameter'!$U$18=4),IF('Initial Parameter'!N18>'Initial Parameter'!P18,'K value'!G28,'K value'!G30),IF(OR('Initial Parameter'!$U$18=2),0,0)) -> 0.004783403308 | G5: =IF(OR('Initial Parameter'!$U$20=0,'Initial Parameter'!$U$20=4),IF('Initial Parameter'!N20>'Initial Parameter'!P20,-'K value'!D36,-'K value'!D38),IF(OR('Initial Parameter'!$U$20=3),IF('Initial Parameter'!N20>'Initial Parameter'!P20,-1,-1),0)) -> -1 | H5: =IF(OR('Initial Parameter'!$U$20=0,'Initial Parameter'!$U$20=4),IF('Initial Parameter'!N20>'Initial Parameter'!P20,-'K value'!E36,-'K value'!E38),IF(OR('Initial Parameter'!$U$20=3),IF('Initial Parameter'!N20>'Initial Parameter'!P20,0,0),0)) -> 0 | I5: =IF(OR('Initial Parameter'!$U$20=0,'Initial Parameter'!$U$20=4),IF('Initial Parameter'!N20>'Initial Parameter'!P20,-'K value'!F36,-'K value'!F38),IF(OR('Initial Parameter'!$U$20=3),IF('Initial Parameter'!N20>'Initial Parameter'!P20,0,0),0)) -> 0 | J5: =IF(OR('Initial Parameter'!$U$20=0,'Initial Parameter'!$U$20=4),IF('Initial Parameter'!N20>'Initial Parameter'!P20,-'K value'!G36,-'K value'!G38),IF(OR('Initial Parameter'!$U$20=3),IF('Initial Parameter'!N20>'Initial Parameter'!P20,0,0),0)) -> 0 | K5: 0 | L5: 0 | P5: 0
A6: 0 | B6: 0 | C6: =IF(OR('Initial Parameter'!$U$18=0,'Initial Parameter'!$U$18=3,'Initial Parameter'!$U$18=4),IF('Initial Parameter'!N18>'Initial Parameter'!P18,'K value'!H28,'K value'!H30),IF(OR('Initial Parameter'!$U$18=2),IF('Initial Parameter'!N18>'Initial Parameter'!P18,'K value'!H32,'K value'!H34),0)) -> -147.2516381 | D6: =IF(OR('Initial Parameter'!$U$18=0,'Initial Parameter'!$U$18=3,'Initial Parameter'!$U$18=4),IF('Initial Parameter'!N18>'Initial Parameter'!P18,'K value'!I28,'K value'!I30),IF(OR('Initial Parameter'!$U$18=2),IF('Initial Parameter'!N18>'Initial Parameter'!P18,'K value'!I32,'K value'!I34),0)) -> -15.690822 | E6: =IF(OR('Initial Parameter'!$U$18=0,'Initial Parameter'!$U$18=3,'Initial Parameter'!$U$18=4),IF('Initial Parameter'!N18>'Initial Parameter'!P18,'K value'!J28,'K value'!J30),IF(OR('Initial Parameter'!$U$18=2),0,0)) -> -0.7567833782 | F6: =IF(OR('Initial Parameter'!$U$18=0,'Initial Parameter'!$U$18=3,'Initial Parameter'!$U$18=4),IF('Initial Parameter'!N18>'Initial Parameter'!P18,'K value'!K28,'K value'!K30),IF(OR('Initial Parameter'!$U$18=2),-1,0)) -> 0.004173780431 | G6: =IF(OR('Initial Parameter'!$U$20=0,'Initial Parameter'!$U$20=4),IF('Initial Parameter'!N20>'Initial Parameter'!P20,-'K value'!H36,-'K value'!H38),IF(OR('Initial Parameter'!$U$20=3),IF('Initial Parameter'!N20>'Initial Parameter'!P20,0,0),0)) -> 0 | H6: =IF(OR('Initial Parameter'!$U$20=0,'Initial Parameter'!$U$20=4),IF('Initial Parameter'!N20>'Initial Parameter'!P20,-'K value'!I36,-'K value'!I38),IF(OR('Initial Parameter'!$U$20=3),IF('Initial Parameter'!N20>'Initial Parameter'!P20,-1,-1),0)) -> -1 | I6: =IF(OR('Initial Parameter'!$U$20=0,'Initial Parameter'!$U$20=4),IF('Initial Parameter'!N20>'Initial Parameter'!P20,-'K value'!J36,-'K value'!J38),IF(OR('Initial Parameter'!$U$20=3),IF('Initial Parameter'!N20>'Initial Parameter'!P20,0,0),0)) -> 0 | J6: =IF(OR('Initial Parameter'!$U$20=0,'Initial Parameter'!$U$20=4),IF('Initial Parameter'!N20>'Initial Parameter'!P20,-'K value'!K36,-'K value'!K38),IF(OR('Initial Parameter'!$U$20=3),IF('Initial Parameter'!N20>'Initial Parameter'!P20,0,0),0)) -> 0 | K6: 0 | L6: 0 | P6: 0
A7: 0 | B7: 0 | C7: =IF(OR('Initial Parameter'!$U$18=0,'Initial Parameter'!$U$18=3,'Initial Parameter'!$U$18=4),IF('Initial Parameter'!N18>'Initial Parameter'!P18,'K value'!L28,'K value'!L30),IF(OR('Initial Parameter'!$U$18=2),0,0)) -> -128.4850902 | D7: =IF(OR('Initial Parameter'!$U$18=0,'Initial Parameter'!$U$18=3,'Initial Parameter'!$U$18=4),IF('Initial Parameter'!N18>'Initial Parameter'!P18,'K value'!M28,'K value'!M30),IF(OR('Initial Parameter'!$U$18=2),0,0)) -> -176.0451383 | E7: =IF(OR('Initial Parameter'!$U$18=0,'Initial Parameter'!$U$18=3,'Initial Parameter'!$U$18=4),IF('Initial Parameter'!N18>'Initial Parameter'!P18,'K value'!N28,'K value'!N30),IF(OR('Initial Parameter'!$U$20=2),IF('Initial Parameter'!N20>'Initial Parameter'!P20,'K value'!D41,'K value'!D43),0)) -> -15.690822 | F7: =IF(OR('Initial Parameter'!$U$18=0,'Initial Parameter'!$U$18=3,'Initial Parameter'!$U$18=4),IF('Initial Parameter'!N18>'Initial Parameter'!P18,'K value'!O28,'K value'!O30),IF(OR('Initial Parameter'!$U$20=2),IF('Initial Parameter'!N20>'Initial Parameter'!P20,'K value'!E41,'K value'!E43),0)) -> -0.7567833782 | G7: =IF(OR('Initial Parameter'!$U$20=0,'Initial Parameter'!$U$20=4),IF('Initial Parameter'!N20>'Initial Parameter'!P20,-'K value'!L36,-'K value'!L38),IF(OR('Initial Parameter'!$U$20=3),IF('Initial Parameter'!N20>'Initial Parameter'!P20,-'K value'!L40,-'K value'!L42),IF(OR('Initial Parameter'!$U$20=2),-1,0))) -> 248.5237497 | H7: =IF(OR('Initial Parameter'!$U$20=0,'Initial Parameter'!$U$20=4),IF('Initial Parameter'!N20>'Initial Parameter'!P20,-'K value'!M36,-'K value'!M38),IF(OR('Initial Parameter'!$U$20=3),IF('Initial Parameter'!N20>'Initial Parameter'!P20,-'K value'!M40,-'K value'!M42),0)) -> 23.94545006 | I7: =IF(OR('Initial Parameter'!$U$20=0,'Initial Parameter'!$U$20=4),IF('Initial Parameter'!N20>'Initial Parameter'!P20,-'K value'!N36,-'K value'!N38),IF(OR('Initial Parameter'!$U$20=3),IF('Initial Parameter'!N20>'Initial Parameter'!P20,0,0),0)) -> 0 | J7: =IF(OR('Initial Parameter'!$U$20=0,'Initial Parameter'!$U$20=4),IF('Initial Parameter'!N20>'Initial Parameter'!P20,-'K value'!O36,-'K value'!O38),IF(OR('Initial Parameter'!$U$20=3),IF('Initial Parameter'!N20>'Initial Parameter'!P20,0,0),0)) -> 0 | K7: 0 | L7: 0 | P7: 0
A8: 0 | B8: 0 | C8: =IF(OR('Initial Parameter'!$U$18=0,'Initial Parameter'!$U$18=3,'Initial Parameter'!$U$18=4),IF('Initial Parameter'!N18>'Initial Parameter'!P18,'K value'!P28,'K value'!P30),IF(OR('Initial Parameter'!$U$18=2),0,0)) -> 28899.23158 | D8: =IF(OR('Initial Parameter'!$U$18=0,'Initial Parameter'!$U$18=3,'Initial Parameter'!$U$18=4),IF('Initial Parameter'!N18>'Initial Parameter'!P18,'K value'!Q28,'K value'!Q30),IF(OR('Initial Parameter'!$U$18=2),0,0)) -> -128.4850902 | E8: =IF(OR('Initial Parameter'!$U$18=0,'Initial Parameter'!$U$18=3,'Initial Parameter'!$U$18=4),IF('Initial Parameter'!N18>'Initial Parameter'!P18,'K value'!R28,'K value'!R30),IF(OR('Initial Parameter'!$U$18=2),IF('Initial Parameter'!N18>'Initial Parameter'!P18,'K value'!H41,'K value'!H43),0)) -> -147.2516381 | F8: =IF(OR('Initial Parameter'!$U$18=0,'Initial Parameter'!$U$18=3,'Initial Parameter'!$U$18=4),IF('Initial Parameter'!N18>'Initial Parameter'!P18,'K value'!S28,'K value'!S30),IF(OR('Initial Parameter'!$U$18=2),IF('Initial Parameter'!N18>'Initial Parameter'!P18,'K value'!I41,'K value'!I43),0)) -> -15.84962273 | G8: =IF(OR('Initial Parameter'!$U$20=0,'Initial Parameter'!$U$20=4),IF('Initial Parameter'!N20>'Initial Parameter'!P20,-'K value'!P36,-'K value'!P38),IF(OR('Initial Parameter'!$U$20=3),IF('Initial Parameter'!N20>'Initial Parameter'!P20,-'K value'!P40,-'K value'!P42),0)) -> -5951.013036 | H8: =IF(OR('Initial Parameter'!$U$20=0,'Initial Parameter'!$U$20=4),IF('Initial Parameter'!N20>'Initial Parameter'!P20,-'K value'!Q36,-'K value'!Q38),IF(OR('Initial Parameter'!$U$20=3),IF('Initial Parameter'!N20>'Initial Parameter'!P20,-'K value'!Q40,-'K value'!Q42),IF(OR('Initial Parameter'!$U$20=2),-1,0))) -> -248.5237497 | I8: =IF(OR('Initial Parameter'!$U$20=0,'Initial Parameter'!$U$20=4),IF('Initial Parameter'!N20>'Initial Parameter'!P20,-'K value'!R36,-'K value'!R38),IF(OR('Initial Parameter'!$U$20=3),IF('Initial Parameter'!N20>'Initial Parameter'!P20,0,0),0)) -> 0 | J8: =IF(OR('Initial Parameter'!$U$20=0,'Initial Parameter'!$U$20=4),IF('Initial Parameter'!N20>'Initial Parameter'!P20,-'K value'!S36,-'K value'!S38),IF(OR('Initial Parameter'!$U$20=3),IF('Initial Parameter'!N20>'Initial Parameter'!P20,0,0),0)) -> 0 | K8: 0 | L8: 0 | P8: 0
A9: 0 | B9: 0 | C9: 0 | D9: 0 | E9: 0 | F9: 0 | G9: =IF(OR('Initial Parameter'!$U$20=0,'Initial Parameter'!$U$20=4),IF('Initial Parameter'!N20>'Initial Parameter'!P20,'K value'!D37,'K value'!D39),IF(OR('Initial Parameter'!$U$20=3),IF('Initial Parameter'!N20>'Initial Parameter'!P20,'K value'!D41,'K value'!D43),0)) -> -0.00575710896 | H9: =IF(OR('Initial Parameter'!$U$20=0,'Initial Parameter'!$U$20=4),IF('Initial Parameter'!N20>'Initial Parameter'!P20,'K value'!E37,'K value'!E39),IF(OR('Initial Parameter'!$U$20=3),IF('Initial Parameter'!N20>'Initial Parameter'!P20,'K value'!E41,'K value'!E43),0)) -> -0.0004437280231 | I9: =IF(OR('Initial Parameter'!$U$20=0,'Initial Parameter'!$U$20=4),IF('Initial Parameter'!N20>'Initial Parameter'!P20,'K value'!F37,'K value'!F39),IF(OR('Initial Parameter'!$U$20=3),IF('Initial Parameter'!N20>'Initial Parameter'!P20,-1,-1),0)) -> -1 | J9: =IF(OR('Initial Parameter'!$U$20=0,'Initial Parameter'!$U$20=4),IF('Initial Parameter'!N20>'Initial Parameter'!P20,'K value'!G37,'K value'!G39),IF(OR('Initial Parameter'!$U$20=3),IF('Initial Parameter'!N20>'Initial Parameter'!P20,0,0),0)) -> 0 | K9: =IF('Initial Parameter'!U22=0,IF('Initial Parameter'!$B$14=1,IF('Initial Parameter'!N22>'Initial Parameter'!P22,-'K value'!F45,-'K value'!F47),IF('Initial Parameter'!N22>'Initial Parameter'!P22,-'K value'!D46,-'K value'!D48)),IF('Initial Parameter'!U22=4,-1,0)) -> 0 | L9: =IF('Initial Parameter'!U22=0,IF('Initial Parameter'!$B$14=1,IF('Initial Parameter'!N22>'Initial Parameter'!P22,-'K value'!G45,-'K value'!G47),IF('Initial Parameter'!N22>'Initial Parameter'!P22,-'K value'!E46,-'K value'!E48)),IF('Initial Parameter'!U22=4,0,0)) -> 0 | P9: 0
A10: 0 | B10: 0 | C10: 0 | D10: 0 | E10: 0 | F10: 0 | G10: =IF(OR('Initial Parameter'!$U$20=0,'Initial Parameter'!$U$20=4),IF('Initial Parameter'!N20>'Initial Parameter'!P20,'K value'!H37,'K value'!H39),IF(OR('Initial Parameter'!$U$20=3),IF('Initial Parameter'!N20>'Initial Parameter'!P20,'K value'!H41,'K value'!H43),0)) -> 0.1102769521 | H10: =IF(OR('Initial Parameter'!$U$20=0,'Initial Parameter'!$U$20=4),IF('Initial Parameter'!N20>'Initial Parameter'!P20,'K value'!I37,'K value'!I39),IF(OR('Initial Parameter'!$U$20=3),IF('Initial Parameter'!N20>'Initial Parameter'!P20,'K value'!I41,'K value'!I43),0)) -> 0.004868158257 | I10: =IF(OR('Initial Parameter'!$U$20=0,'Initial Parameter'!$U$20=4),IF('Initial Parameter'!N20>'Initial Parameter'!P20,'K value'!J37,'K value'!J39),IF(OR('Initial Parameter'!$U$20=3),IF('Initial Parameter'!N20>'Initial Parameter'!P20,0,0),0)) -> 0 | J10: =IF(OR('Initial Parameter'!$U$20=0,'Initial Parameter'!$U$20=4),IF('Initial Parameter'!N20>'Initial Parameter'!P20,'K value'!K37,'K value'!K39),IF(OR('Initial Parameter'!$U$20=3),IF('Initial Parameter'!N20>'Initial Parameter'!P20,-1,-1),0)) -> -1 | K10: =IF('Initial Parameter'!U22=0,IF('Initial Parameter'!$B$14=1,IF('Initial Parameter'!N22>'Initial Parameter'!P22,-'K value'!J45,-'K value'!J47),IF('Initial Parameter'!N22>'Initial Parameter'!P22,-'K value'!H46,-'K value'!H48)),IF('Initial Parameter'!U22=4,0,0)) -> 0 | L10: =IF('Initial Parameter'!U22=0,IF('Initial Parameter'!$B$14=1,IF('Initial Parameter'!N22>'Initial Parameter'!P22,-'K value'!K45,-'K value'!K47),IF('Initial Parameter'!N22>'Initial Parameter'!P22,-'K value'!I46,-'K value'!I48)),IF('Initial Parameter'!U22=4,-1,0)) -> 0 | P10: 0
A11: 0 | B11: 0 | C11: 0 | D11: 0 | E11: 0 | F11: 0 | G11: =IF(OR('Initial Parameter'!$U$20=0,'Initial Parameter'!$U$20=4),IF('Initial Parameter'!N20>'Initial Parameter'!P20,'K value'!L37,'K value'!L39),IF(OR('Initial Parameter'!$U$20=3),IF('Initial Parameter'!N20>'Initial Parameter'!P20,0,0),0)) -> 0 | H11: =IF(OR('Initial Parameter'!$U$20=0,'Initial Parameter'!$U$20=4),IF('Initial Parameter'!N20>'Initial Parameter'!P20,'K value'!M37,'K value'!M39),IF(OR('Initial Parameter'!$U$20=3),IF('Initial Parameter'!N20>'Initial Parameter'!P20,0,0),0)) -> 0 | I11: =IF(OR('Initial Parameter'!$U$20=0,'Initial Parameter'!$U$20=4),IF('Initial Parameter'!N20>'Initial Parameter'!P20,'K value'!N37,'K value'!N39),IF(OR('Initial Parameter'!$U$20=3),IF('Initial Parameter'!N20>'Initial Parameter'!P20,0,0),0)) -> 0 | J11: =IF(OR('Initial Parameter'!$U$20=0,'Initial Parameter'!$U$20=4),IF('Initial Parameter'!N20>'Initial Parameter'!P20,'K value'!O37,'K value'!O39),IF(OR('Initial Parameter'!$U$20=3),IF('Initial Parameter'!N20>'Initial Parameter'!P20,0,0),0)) -> 0 | K11: =IF('Initial Parameter'!U22=0,IF('Initial Parameter'!$B$14=1,IF('Initial Parameter'!N22>'Initial Parameter'!P22,-'K value'!N45,-'K value'!N47),IF('Initial Parameter'!N22>'Initial Parameter'!P22,-'K value'!L46,-'K value'!L48)),IF('Initial Parameter'!U22=4,IF('Initial Parameter'!N22>'Initial Parameter'!P22,-'K value'!L49,-'K value'!L50),0)) -> 0 | L11: =IF('Initial Parameter'!U22=0,IF('Initial Parameter'!$B$14=1,IF('Initial Parameter'!N22>'Initial Parameter'!P22,-'K value'!O45,-'K value'!O47),IF('Initial Parameter'!N22>'Initial Parameter'!P22,-'K value'!M46,-'K value'!M48)),IF('Initial Parameter'!U22=4,IF('Initial Parameter'!N22>'Initial Parameter'!P22,-'K value'!M49,-'K value'!M50),0)) -> 0 | P11: 0
A12: 0 | B12: 0 | C12: 0 | D12: 0 | E12: 0 | F12: 0 | G12: =IF(OR('Initial Parameter'!$U$20=0,'Initial Parameter'!$U$20=4),IF('Initial Parameter'!N20>'Initial Parameter'!P20,'K value'!P37,'K value'!P39),IF(OR('Initial Parameter'!$U$20=3),IF('Initial Parameter'!N20>'Initial Parameter'!P20,0,0),0)) -> 0 | H12: =IF(OR('Initial Parameter'!$U$20=0,'Initial Parameter'!$U$20=4),IF('Initial Parameter'!N20>'Initial Parameter'!P20,'K value'!Q37,'K value'!Q39),IF(OR('Initial Parameter'!$U$20=3),IF('Initial Parameter'!N20>'Initial Parameter'!P20,0,0),0)) -> 0 | I12: =IF(OR('Initial Parameter'!$U$20=0,'Initial Parameter'!$U$20=4),IF('Initial Parameter'!N20>'Initial Parameter'!P20,'K value'!R37,'K value'!R39),IF(OR('Initial Parameter'!$U$20=3),IF('Initial Parameter'!N20>'Initial Parameter'!P20,0,0),0)) -> 0 | J12: =IF(OR('Initial Parameter'!$U$20=0,'Initial Parameter'!$U$20=4),IF('Initial Parameter'!N20>'Initial Parameter'!P20,'K value'!S37,'K value'!S39),IF(OR('Initial Parameter'!$U$20=3),IF('Initial Parameter'!N20>'Initial Parameter'!P20,0,0),0)) -> 0 | K12: =IF('Initial Parameter'!U22=0,IF('Initial Parameter'!$B$14=1,IF('Initial Parameter'!N22>'Initial Parameter'!P22,-'K value'!R45,-'K value'!R47),IF('Initial Parameter'!N22>'Initial Parameter'!P22,-'K value'!P46,-'K value'!P48)),IF('Initial Parameter'!U22=4,IF('Initial Parameter'!N22>'Initial Parameter'!P22,-'K value'!P49,-'K value'!P50),0)) -> 0 | L12: =IF('Initial Parameter'!U22=0,IF('Initial Parameter'!$B$14=1,IF('Initial Parameter'!N22>'Initial Parameter'!P22,-'K value'!S45,-'K value'!S47),IF('Initial Parameter'!N22>'Initial Parameter'!P22,-'K value'!Q46,-'K value'!Q48)),IF('Initial Parameter'!U22=4,IF('Initial Parameter'!N22>'Initial Parameter'!P22,-'K value'!Q49,-'K value'!Q50),0)) -> 0 | P12: 0
R13: w1 | S13: th1 | T13: w2 | U13: th2 | V13: w3 | W13: th3 | X13: w4 | Y13: th4 | Z13: M01 | AA13: M02 | AB13: M03 | AC13: M04 | AD13: N01 | AE13: N02 | AF13: N03 | AG13: N04
R14: =IF(OR('Initial Parameter'!$U$16=0,'Initial Parameter'!$U$16=4),P35,IF('Initial Parameter'!$U$16=3,P25,IF('Initial Parameter'!$U$16=2,P15,0))) -> 0.0009487584231 | S14: =IF(OR('Initial Parameter'!$U$16=0,'Initial Parameter'!$U$16=4),IF('Initial Parameter'!B13=1,0,Matrix!P36),IF('Initial Parameter'!$U$16=3,IF('Initial Parameter'!B13=1,0,Matrix!P26),IF('Initial Parameter'!$U$16=2,IF('Initial Parameter'!B13=1,0,Matrix!P16),0))) -> -0.008790186432 | T14: =IF(OR('Initial Parameter'!$U$16=0,'Initial Parameter'!$U$16=4),P37,IF('Initial Parameter'!$U$16=3,P27,IF('Initial Parameter'!$U$16=2,P17,0))) -> -4.554123977e-05 | U14: =IF(OR('Initial Parameter'!$U$16=0,'Initial Parameter'!$U$16=4),P38,IF('Initial Parameter'!$U$16=3,P28,IF('Initial Parameter'!$U$16=2,P18,0))) -> 0.0001653668221 | V14: =IF(OR('Initial Parameter'!$U$16=0,'Initial Parameter'!$U$16=4),IF('Initial Parameter'!U17=2,Matrix!P39,Matrix!P41),IF('Initial Parameter'!$U$16=3,IF('Initial Parameter'!U17=2,Matrix!P29,Matrix!P31),IF('Initial Parameter'!$U$16=2,IF('Initial Parameter'!U17=2,Matrix!P19,Matrix!P21),0))) -> 1.069448902e-06 | W14: =IF(OR('Initial Parameter'!$U$16=0,'Initial Parameter'!$U$16=4),IF('Initial Parameter'!U17=2,Matrix!P40,Matrix!P42),IF('Initial Parameter'!$U$16=3,IF('Initial Parameter'!U17=2,Matrix!P30,Matrix!P32),IF('Initial Parameter'!$U$16=2,IF('Initial Parameter'!U17=2,Matrix!P20,Matrix!P22),0))) -> -5.567221712e-06 | X14: =IF('Initial Parameter'!U17=2,Matrix!P21,IF('Initial Parameter'!U17=3,Matrix!P33,IF('Initial Parameter'!U17=4,P45,IF('Initial Parameter'!U17=0,IF('Initial Parameter'!B14=1,0,Matrix!P45))))) -> -3.68660157e-09 | Y14: =IF('Initial Parameter'!U17=2,Matrix!P22,IF('Initial Parameter'!U17=3,Matrix!P34,IF('Initial Parameter'!U17=4,P46,IF('Initial Parameter'!U17=0,IF('Initial Parameter'!B14=1,0,Matrix!P46))))) -> 9.083344902e-08 | Z14: =IF(OR('Initial Parameter'!$U$16=0,'Initial Parameter'!$U$16=4),IF('Initial Parameter'!B13=2,0,Matrix!P36),IF('Initial Parameter'!$U$16=3,IF('Initial Parameter'!B13=2,0,Matrix!P26),IF('Initial Parameter'!$U$16=2,IF('Initial Parameter'!B13=2,0,Matrix!P16),0))) -> 0 | AA14: =IF(OR('Initial Parameter'!$U$16=0,'Initial Parameter'!$U$16=4),IF('Initial Parameter'!U17=2,0,P39),IF('Initial Parameter'!$U$16=3,IF('Initial Parameter'!U17=2,0,P29),IF('Initial Parameter'!$U$16=2,IF('Initial Parameter'!U17=2,0,P19),0))) -> 0.004730456839 | AB14: =IF(OR('Initial Parameter'!U17=2,'Initial Parameter'!U17=3),0,P43) -> 0 | AC14: =IF('Initial Parameter'!U17=0,IF('Initial Parameter'!B14=1,P45,0),0) -> 0 | AE14: =IF(OR('Initial Parameter'!$U$16=0,'Initial Parameter'!$U$16=4),IF('Initial Parameter'!U17=2,0,P40),IF('Initial Parameter'!$U$16=3,IF('Initial Parameter'!U17=2,0,P30),IF('Initial Parameter'!$U$16=2,IF('Initial Parameter'!U17=2,0,P20),0))) -> -0.1286404274 | AF14: =IF(OR('Initial Parameter'!U17=2,'Initial Parameter'!U17=3),0,P44) -> 0 | AG14: =IF('Initial Parameter'!U17=0,IF('Initial Parameter'!B14=1,P46,0),0) -> 0
A15: =MINVERSE(A1:H8) -> -0.09788027275 | B15: -0.0045120242 | C15: 4.153920477e-05 | D15: 3.037885804e-05 | E15: 0.003699618832 | F15: 0.000132749869 | G15: -1.603343429e-06 | H15: -6.886369982e-07 | O15: 1 | P15: =MMULT(A15:H22,P1:P8) -> 0.0009487584231 | Q15: w1
A16: 0.8272058948 | B16: -0.02434349164 | C16: -0.006120503031 | D16: -0.0005492080888 | E16: -0.03743524138 | F16: 0.001065313936 | G16: 0.0001937588575 | H16: 1.43822436e-05 | O16: 2 | P16: -0.008790186432 | Q16: th1
A17: -0.4417679179 | B17: 0.02658312152 | C17: -0.0001584039022 | D17: -0.0001692775594 | E17: -0.02101577578 | F17: -0.0007868615053 | G17: 6.692166955e-06 | H17: 3.81093741e-06 | O17: 3 | P17: -4.554123977e-05 | Q17: w2
A18: 4.193713168 | B18: -0.4948062681 | C18: 0.02702101825 | D18: 0.0001584039022 | E18: -0.1277159956 | F18: -0.01660615066 | G18: -0.0008308965929 | H18: -1.323834124e-05 | O18: 4 | P18: 0.0001653668221 | Q18: th2
A19: -5.192710237 | B19: 5.09486695 | C19: -0.5051937319 | D19: 0.02658312152 | E19: 0.7229892896 | F19: -0.1797040928 | G19: -0.0154715011 | H19: -0.0007676045622 | O19: 5 | P19: 0.004730456839 | Q19: w3
A20: -793.3980898 | B20: 5.192710238 | C20: 4.193713168 | D20: -0.5582320821 | E20: 34.11250359 | F20: -0.3861546849 | G20: -0.1334699277 | H20: -0.01130613394 | O20: 6 | P20: -0.1286404274 | Q20: th3
A21: 0.01130613397 | B21: -0.0007676045642 | C21: 1.323834127e-05 | D21: 3.810937419e-06 | E21: -0.4040630789 | F21: 0.02244153777 | G21: -0.000180274733 | H21: -0.000107668975 | O21: 7 | P21: 1.069448902e-06 | Q21: w4
A22: -0.1334699279 | B22: 0.01547150112 | C22: -0.0008308965936 | D22: -6.692167011e-06 | E22: 4.693808185 | F22: -0.4891838546 | G22: 0.02320351869 | H22: 0.000180274733 | O22: 8 | P22: -5.567221712e-06 | Q22: th4
A25: =MINVERSE(A1:J10) -> -0.09788027275 | B25: -0.0045120242 | C25: 4.153920477e-05 | D25: 3.037885804e-05 | E25: 0.003699618832 | F25: 0.000132749869 | G25: -1.603343429e-06 | H25: -6.886369982e-07 | I25: 0 | J25: 0 | O25: 1 | P25: =MMULT(A25:J34,P1:P10) -> 0.0009487584231
A26: 0.8272058948 | B26: -0.02434349164 | C26: -0.006120503031 | D26: -0.0005492080888 | E26: -0.03743524138 | F26: 0.001065313936 | G26: 0.0001937588575 | H26: 1.43822436e-05 | I26: 0 | J26: 0 | O26: 2 | P26: -0.008790186432
A27: -0.4417679179 | B27: 0.02658312152 | C27: -0.0001584039022 | D27: -0.0001692775594 | E27: -0.02101577578 | F27: -0.0007868615053 | G27: 6.692166955e-06 | H27: 3.81093741e-06 | I27: 0 | J27: 0 | O27: 3 | P27: -4.554123977e-05
A28: 4.193713168 | B28: -0.4948062681 | C28: 0.02702101825 | D28: 0.0001584039022 | E28: -0.1277159956 | F28: -0.01660615066 | G28: -0.0008308965929 | H28: -1.323834124e-05 | I28: 0 | J28: 0 | O28: 4 | P28: 0.0001653668221
A29: -5.192710237 | B29: 5.09486695 | C29: -0.5051937319 | D29: 0.02658312152 | E29: 0.7229892896 | F29: -0.1797040928 | G29: -0.0154715011 | H29: -0.0007676045622 | I29: 0 | J29: 0 | O29: 5 | P29: 0.004730456839
A30: -793.3980898 | B30: 5.192710238 | C30: 4.193713168 | D30: -0.5582320821 | E30: 34.11250359 | F30: -0.3861546849 | G30: -0.1334699277 | H30: -0.01130613394 | I30: 0 | J30: 0 | O30: 6 | P30: -0.1286404274
A31: 0.01130613397 | B31: -0.0007676045642 | C31: 1.323834127e-05 | D31: 3.810937419e-06 | E31: -0.4040630789 | F31: 0.02244153777 | G31: -0.000180274733 | H31: -0.000107668975 | I31: 0 | J31: 0 | O31: 7 | P31: 1.069448902e-06
A32: -0.1334699279 | B32: 0.01547150112 | C32: -0.0008308965936 | D32: -6.692167011e-06 | E32: 4.693808185 | F32: -0.4891838546 | G32: 0.02320351869 | H32: 0.000180274733 | I32: 0 | J32: 0 | O32: 8 | P32: -5.567221712e-06
A33: -5.866297941e-06 | B33: -2.445955493e-06 | C33: 2.924775297e-07 | D33: -1.897047992e-08 | E33: 0.000243460945 | F33: 8.786620656e-05 | G33: -9.258190199e-06 | H33: 5.398690698e-07 | I33: -1 | J33: 0 | O33: 9 | P33: -3.68660157e-09
A34: 0.0005970532635 | B34: -9.331375872e-06 | C34: -2.585052185e-06 | D34: 3.876800353e-07 | E34: -0.02170864374 | F34: 9.335996628e-05 | G34: 9.307825301e-05 | H34: -1.099580047e-05 | I34: 0 | J34: -1 | O34: 10 | P34: 9.083344902e-08
A35: =MINVERSE(A1:L12) ->  | O35: 1 | P35: =MMULT(A35:L46,P1:P12) -> 
O36: 2
O37: 3
O38: 4
O39: 5
O40: 6
O41: 7
O42: 8
O43: 9
O44: 10
O45: 11
O46: 12

Sheet Depth_z (hidden)
A2: Layer | B2: z (m) | C2: Es | D2: usi | E2: l | F2: Gs (modifiled) | G2: g | H2: gx | I2: gy | J2: BESSELK0 | K2: BESSELK1 | L2: h | M2: h1 | N2: h2 | O2: x | P2: ki | Q2: ti | R2: ti2 | S2: a | T2: b | V2: z (m) | W2: F1 | X2: F2 | Y2: F3 | Z2: F4 | AA2: f1 | AB2: f2 | AC2: f3 | AD2: f4
A3: =IF($B3<'Initial Parameter'!$C$17,1,IF($B3<'Initial Parameter'!$C$19,2,IF($B3<'Initial Parameter'!$C$21,3,4))) -> 1 | B3: 0 | C3: =IF($B3<'Initial Parameter'!$C$17,'Initial Parameter'!$D$17,IF($B3<'Initial Parameter'!$C$19,'Initial Parameter'!$D$19,IF($B3<'Initial Parameter'!$C$21,'Initial Parameter'!$D$21,'Initial Parameter'!$D$22))) -> 1.00E+04 | D3: =IF($B3<'Initial Parameter'!$C$17,'Initial Parameter'!$E$17,IF($B3<'Initial Parameter'!$C$19,'Initial Parameter'!$E$19,IF($B3<'Initial Parameter'!$C$21,'Initial Parameter'!$E$21,'Initial Parameter'!$E$22))) -> 0.25 | E3: =IF($B3<'Initial Parameter'!$C$17,'Initial Parameter'!$H$3,IF($B3<'Initial Parameter'!$C$19,'Initial Parameter'!$H$4,IF($B3<'Initial Parameter'!$C$21,'Initial Parameter'!$H$5,'Initial Parameter'!$H$6))) -> 0.0 | F3: =IF($B3<'Initial Parameter'!$C$17,'Initial Parameter'!$J$3,IF($B3<'Initial Parameter'!$C$19,'Initial Parameter'!$J$4,IF($B3<'Initial Parameter'!$C$21,'Initial Parameter'!$J$5,'Initial Parameter'!$J$6))) -> 3325.0 | G3: ='Initial Parameter'!$M$2 -> 0.1805070847 | H3: ='Initial Parameter'!$F$16 -> 0.1805070847 | I3: ='Initial Parameter'!$G$16 -> 0.2579450041 | J3: =BESSELK($G$3,0) -> 1.851007386 | K3: =BESSELK($G$3,1) -> 5.328712875 | L3: =0.5*((((BESSELK($G$3,1)+$G$3*BESSELK($G$3,0))^2)-(G3^2+1)*((BESSELK($G$3,1))^2))/((BESSELK($G$3,0))^2)) -> 0.4009218993 | M3: =H3/'Initial Parameter'!$B$4*('Initial Parameter'!$B$4/I3+'Initial Parameter'!$B$3) -> 1.022689921 | N3: =(I3/'Initial Parameter'!$B$4)*('Initial Parameter'!$B$4/H3+'Initial Parameter'!$B$2) -> 2.005784669 | O3: =1/(H3*I3)+'Initial Parameter'!$B$3/(H3*'Initial Parameter'!$B$4)+'Initial Parameter'!$B$2/(I3*'Initial Parameter'!$B$4) -> 40.05618737 | P3: =('Initial Parameter'!$B$1^4/'Initial Parameter'!$B$6/'Initial Parameter'!$B$5)*((E3+2*F3)*M3+F3*N3) -> 20690.11 | Q3: ='Initial Parameter'!$B$4^2*O3*F3*'Initial Parameter'!$B$1^2/(2*'Initial Parameter'!$B$6*'Initial Parameter'!$B$5) -> 12.785935 | R3: =Q3^2 -> 163.48 | S3: =IF(P3>R3,((P3^0.5+Q3)/2)^0.5,SQRT(Q3+SQRT(Q3^2-P3))) -> 8.849477313 | T3: =IF(P3>R3,((P3^0.5-Q3)/2)^0.5,SQRT(Q3-SQRT(Q3^2-P3))) -> 8.094894298 | U3: ='Initial Parameter'!$U$17 -> 3 | V3: 0 | W3: =IF(U3=0,(IF(P3>R3,SINH(S3*V3)*COS(T3*V3),SINH(S3*V3))),IF(A3=1,IF(OR(U3=4,U3=3,U3=2),(IF(P3>R3,SINH(S3*V3)*COS(T3*V3),SINH(S3*V3))),(IF(P3>R3,EXP(-S3*V3)*COS(T3*V3),EXP(-S3*V3)))),IF(A3=2,IF(OR(U3=4,U3=3),(IF(P3>R3,SINH(S3*V3)*COS(T3*V3),SINH(S3*V3))),(IF(P3>R3,EXP(-S3*V3)*COS(T3*V3),EXP(-S3*V3)))),IF(A3=3,IF(U3=4,(IF(P3>R3,SINH(S3*V3)*COS(T3*V3),SINH(S3*V3))),(IF(P3>R3,EXP(-S3*V3)*COS(T3*V3),EXP(-S3*V3)))),IF(P3>R3,EXP(-S3*V3)*COS(T3*V3),EXP(-S3*V3)))))) -> 0 | X3: =IF(U3=0,IF(P3>R3,COSH(S3*V3)*COS(T3*V3),COSH(S3*V3)),IF(A3=1,IF(OR(U3=4,U3=3,U3=2),IF(P3>R3,COSH(S3*V3)*COS(T3*V3),COSH(S3*V3)),(IF(P3>R3,EXP(-S3*V3)*SIN(T3*V3),EXP(-T3*V3)))),IF(A3=2,IF(OR(U3=4,U3=3),IF(P3>R3,COSH(S3*V3)*COS(T3*V3),COSH(S3*V3)),(IF(P3>R3,EXP(-S3*V3)*SIN(T3*V3),EXP(-T3*V3)))),IF(A3=3,IF(U3=4,IF(P3>R3,COSH(S3*V3)*COS(T3*V3),COSH(S3*V3)),(IF(P3>R3,EXP(-S3*V3)*SIN(T3*V3),EXP(-T3*V3)))),IF(P3>R3,EXP(-S3*V3)*SIN(T3*V3),EXP(-T3*V3)))))) -> 1 | Y3: =IF(U3=0,(IF(P3>R3,COSH(S3*V3)*SIN(T3*V3),SINH(T3*V3))),IF(A3=1,IF(OR(U3=4,U3=3,U3=2),(IF(P3>R3,COSH(S3*V3)*SIN(T3*V3),SINH(T3*V3))),0),IF(A3=2,IF(OR(U3=4,U3=3),(IF(P3>R3,COSH(S3*V3)*SIN(T3*V3),SINH(T3*V3))),0),IF(A3=3,IF(U3=4,(IF(P3>R3,COSH(S3*V3)*SIN(T3*V3),SINH(T3*V3))),0),0)))) -> 0 | Z3: =IF(U3=0,IF(P3>R3,SINH(S3*V3)*SIN(T3*V3),COSH(T3*V3)),IF(A3=1,IF(OR(U3=4,U3=3,U3=2),IF(P3>R3,SINH(S3*V3)*SIN(T3*V3),COSH(T3*V3)),0),IF(A3=2,IF(OR(U3=4,U3=3),IF(P3>R3,SINH(S3*V3)*SIN(T3*V3),COSH(T3*V3)),0),IF(A3=3,IF(U3=4,IF(P3>R3,SINH(S3*V3)*SIN(T3*V3),COSH(T3*V3)),0),0)))) -> 0 | AA3: =IF($B3<'Initial Parameter'!$C$17,'Initial Parameter'!W$17,IF($B3<'Initial Parameter'!$C$19,'Initial Parameter'!W$19,IF($B3<'Initial Parameter'!$C$21,'Initial Parameter'!W$21,IF('Initial Parameter'!$U$22=0,'Initial Parameter'!W$23,'Initial Parameter'!W$22)))) -> 0.000000E+00 | AB3: =IF($B3<'Initial Parameter'!$C$17,'Initial Parameter'!X$17,IF($B3<'Initial Parameter'!$C$19,'Initial Parameter'!X$19,IF($B3<'Initial Parameter'!$C$21,'Initial Parameter'!X$21,IF('Initial Parameter'!$U$22=0,'Initial Parameter'!X$23,'Initial Parameter'!X$22)))) -> 1.000000E+00 | AC3: =IF($B3<'Initial Parameter'!$C$17,'Initial Parameter'!Y$17,IF($B3<'Initial Parameter'!$C$19,'Initial Parameter'!Y$19,IF($B3<'Initial Parameter'!$C$21,'Initial Parameter'!Y$21,IF('Initial Parameter'!$U$22=0,'Initial Parameter'!Y$23,'Initial Parameter'!Y$22)))) -> 0.000000E+00 | AD3: =IF($B3<'Initial Parameter'!$C$17,'Initial Parameter'!Z$17,IF($B3<'Initial Parameter'!$C$19,'Initial Parameter'!Z$19,IF($B3<'Initial Parameter'!$C$21,'Initial Parameter'!Z$21,IF('Initial Parameter'!$U$22=0,'Initial Parameter'!Z$23,'Initial Parameter'!Z$22)))) -> 0.000000E+00
A4: =IF($B4<'Initial Parameter'!$C$17,1,IF($B4<'Initial Parameter'!$C$19,2,IF($B4<'Initial Parameter'!$C$21,3,4))) -> 1 | B4: 0.001 | C4: =IF($B4<'Initial Parameter'!$C$17,'Initial Parameter'!$D$17,IF($B4<'Initial Parameter'!$C$19,'Initial Parameter'!$D$19,IF($B4<'Initial Parameter'!$C$21,'Initial Parameter'!$D$21,'Initial Parameter'!$D$22))) -> 1.00E+04 | D4: =IF($B4<'Initial Parameter'!$C$17,'Initial Parameter'!$E$17,IF($B4<'Initial Parameter'!$C$19,'Initial Parameter'!$E$19,IF($B4<'Initial Parameter'!$C$21,'Initial Parameter'!$E$21,'Initial Parameter'!$E$22))) -> 0.25 | E4: =IF($B4<'Initial Parameter'!$C$17,'Initial Parameter'!$H$3,IF($B4<'Initial Parameter'!$C$19,'Initial Parameter'!$H$4,IF($B4<'Initial Parameter'!$C$21,'Initial Parameter'!$H$5,'Initial Parameter'!$H$6))) -> 0.0 | F4: =IF($B4<'Initial Parameter'!$C$17,'Initial Parameter'!$J$3,IF($B4<'Initial Parameter'!$C$19,'Initial Parameter'!$J$4,IF($B4<'Initial Parameter'!$C$21,'Initial Parameter'!$J$5,'Initial Parameter'!$J$6))) -> 3325.0 | G4: ='Initial Parameter'!$M$2 -> 0.1805070847 | H4: ='Initial Parameter'!$F$16 -> 0.1805070847 | I4: ='Initial Parameter'!$G$16 -> 0.2579450041 | J4: 1.851007386 | K4: 5.328712875 | L4: =0.5*((((BESSELK($G$3,1)+$G$3*BESSELK($G$3,0))^2)-(G4^2+1)*((BESSELK($G$3,1))^2))/((BESSELK($G$3,0))^2)) -> 0.4009218993 | M4: =H4/'Initial Parameter'!$B$4*('Initial Parameter'!$B$4/I4+'Initial Parameter'!$B$3) -> 1.022689921 | N4: =(I4/'Initial Parameter'!$B$4)*('Initial Parameter'!$B$4/H4+'Initial Parameter'!$B$2) -> 2.005784669 | O4: =1/(H4*I4)+'Initial Parameter'!$B$3/(H4*'Initial Parameter'!$B$4)+'Initial Parameter'!$B$2/(I4*'Initial Parameter'!$B$4) -> 40.05618737 | P4: =('Initial Parameter'!$B$1^4/'Initial Parameter'!$B$6/'Initial Parameter'!$B$5)*((E4+2*F4)*M4+F4*N4) -> 20690.11 | Q4: ='Initial Parameter'!$B$4^2*O4*F4*'Initial Parameter'!$B$1^2/(2*'Initial Parameter'!$B$6*'Initial Parameter'!$B$5) -> 12.785935 | R4: =Q4^2 -> 163.48 | S4: =IF(P4>R4,((P4^0.5+Q4)/2)^0.5,SQRT(Q4+SQRT(Q4^2-P4))) -> 8.849477313 | T4: =IF(P4>R4,((P4^0.5-Q4)/2)^0.5,SQRT(Q4-SQRT(Q4^2-P4))) -> 8.094894298 | U4: ='Initial Parameter'!$U$17 -> 3 | V4: 0.001 | W4: 0.008849302875 | X4: 1.000006392 | Y4: 0.00809512286 | Z4: 7.163573609e-05 | AA4: =IF($B4<'Initial Parameter'!$C$17,'Initial Parameter'!W$17,IF($B4<'Initial Parameter'!$C$19,'Initial Parameter'!W$19,IF($B4<'Initial Parameter'!$C$21,'Initial Parameter'!W$21,IF('Initial Parameter'!$U$22=0,'Initial Parameter'!W$23,'Initial Parameter'!W$22)))) -> 0.000000E+00 | AB4: =IF($B4<'Initial Parameter'!$C$17,'Initial Parameter'!X$17,IF($B4<'Initial Parameter'!$C$19,'Initial Parameter'!X$19,IF($B4<'Initial Parameter'!$C$21,'Initial Parameter'!X$21,IF('Initial Parameter'!$U$22=0,'Initial Parameter'!X$23,'Initial Parameter'!X$22)))) -> 1.000000E+00 | AC4: =IF($B4<'Initial Parameter'!$C$17,'Initial Parameter'!Y$17,IF($B4<'Initial Parameter'!$C$19,'Initial Parameter'!Y$19,IF($B4<'Initial Parameter'!$C$21,'Initial Parameter'!Y$21,IF('Initial Parameter'!$U$22=0,'Initial Parameter'!Y$23,'Initial Parameter'!Y$22)))) -> 0.000000E+00 | AD4: =IF($B4<'Initial Parameter'!$C$17,'Initial Parameter'!Z$17,IF($B4<'Initial Parameter'!$C$19,'Initial Parameter'!Z$19,IF($B4<'Initial Parameter'!$C$21,'Initial Parameter'!Z$21,IF('Initial Parameter'!$U$22=0,'Initial Parameter'!Z$23,'Initial Parameter'!Z$22)))) -> 0.000000E+00
A5: =IF($B5<'Initial Parameter'!$C$17,1,IF($B5<'Initial Parameter'!$C$19,2,IF($B5<'Initial Parameter'!$C$21,3,4))) -> 1 | B5: 0.002 | C5: =IF($B5<'Initial Parameter'!$C$17,'Initial Parameter'!$D$17,IF($B5<'Initial Parameter'!$C$19,'Initial Parameter'!$D$19,IF($B5<'Initial Parameter'!$C$21,'Initial Parameter'!$D$21,'Initial Parameter'!$D$22))) -> 1.00E+04 | D5: =IF($B5<'Initial Parameter'!$C$17,'Initial Parameter'!$E$17,IF($B5<'Initial Parameter'!$C$19,'Initial Parameter'!$E$19,IF($B5<'Initial Parameter'!$C$21,'Initial Parameter'!$E$21,'Initial Parameter'!$E$22))) -> 0.25 | E5: =IF($B5<'Initial Parameter'!$C$17,'Initial Parameter'!$H$3,IF($B5<'Initial Parameter'!$C$19,'Initial Parameter'!$H$4,IF($B5<'Initial Parameter'!$C$21,'Initial Parameter'!$H$5,'Initial Parameter'!$H$6))) -> 0.0 | F5: =IF($B5<'Initial Parameter'!$C$17,'Initial Parameter'!$J$3,IF($B5<'Initial Parameter'!$C$19,'Initial Parameter'!$J$4,IF($B5<'Initial Parameter'!$C$21,'Initial Parameter'!$J$5,'Initial Parameter'!$J$6))) -> 3325.0 | G5: ='Initial Parameter'!$M$2 -> 0.1805070847 | H5: ='Initial Parameter'!$F$16 -> 0.1805070847 | I5: ='Initial Parameter'!$G$16 -> 0.2579450041 | J5: 1.851007386 | K5: 5.328712875 | L5: 0.4009218993 | M5: =H5/'Initial Parameter'!$B$4*('Initial Parameter'!$B$4/I5+'Initial Parameter'!$B$3) -> 1.022689921 | N5: =(I5/'Initial Parameter'!$B$4)*('Initial Parameter'!$B$4/H5+'Initial Parameter'!$B$2) -> 2.005784669 | O5: =1/(H5*I5)+'Initial Parameter'!$B$3/(H5*'Initial Parameter'!$B$4)+'Initial Parameter'!$B$2/(I5*'Initial Parameter'!$B$4) -> 40.05618737 | P5: =('Initial Parameter'!$B$1^4/'Initial Parameter'!$B$6/'Initial Parameter'!$B$5)*((E5+2*F5)*M5+F5*N5) -> 20690.11 | Q5: ='Initial Parameter'!$B$4^2*O5*F5*'Initial Parameter'!$B$1^2/(2*'Initial Parameter'!$B$6*'Initial Parameter'!$B$5) -> 12.785935 | R5: 163.48 | S5: 8.849477313 | T5: 8.094894298 | U5: ='Initial Parameter'!$U$17 -> 3 | V5: 0.002 | W5: 0.01769755908 | X5: 1.000025558 | Y5: 0.01619161706 | Z5: 0.000286544776 | AA5: =IF($B5<'Initial Parameter'!$C$17,'Initial Parameter'!W$17,IF($B5<'Initial Parameter'!$C$19,'Initial Parameter'!W$19,IF($B5<'Initial Parameter'!$C$21,'Initial Parameter'!W$21,IF('Initial Parameter'!$U$22=0,'Initial Parameter'!W$23,'Initial Parameter'!W$22)))) -> 0.000000E+00 | AB5: =IF($B5<'Initial Parameter'!$C$17,'Initial Parameter'!X$17,IF($B5<'Initial Parameter'!$C$19,'Initial Parameter'!X$19,IF($B5<'Initial Parameter'!$C$21,'Initial Parameter'!X$21,IF('Initial Parameter'!$U$22=0,'Initial Parameter'!X$23,'Initial Parameter'!X$22)))) -> 1.000000E+00 | AC5: =IF($B5<'Initial Parameter'!$C$17,'Initial Parameter'!Y$17,IF($B5<'Initial Parameter'!$C$19,'Initial Parameter'!Y$19,IF($B5<'Initial Parameter'!$C$21,'Initial Parameter'!Y$21,IF('Initial Parameter'!$U$22=0,'Initial Parameter'!Y$23,'Initial Parameter'!Y$22)))) -> 0.000000E+00 | AD5: =IF($B5<'Initial Parameter'!$C$17,'Initial Parameter'!Z$17,IF($B5<'Initial Parameter'!$C$19,'Initial Parameter'!Z$19,IF($B5<'Initial Parameter'!$C$21,'Initial Parameter'!Z$21,IF('Initial Parameter'!$U$22=0,'Initial Parameter'!Z$23,'Initial Parameter'!Z$22)))) -> 0.000000E+00
A6: =IF($B6<'Initial Parameter'!$C$17,1,IF($B6<'Initial Parameter'!$C$19,2,IF($B6<'Initial Parameter'!$C$21,3,4))) -> 1 | B6: 0.003 | C6: =IF($B6<'Initial Parameter'!$C$17,'Initial Parameter'!$D$17,IF($B6<'Initial Parameter'!$C$19,'Initial Parameter'!$D$19,IF($B6<'Initial Parameter'!$C$21,'Initial Parameter'!$D$21,'Initial Parameter'!$D$22))) -> 1.00E+04 | D6: =IF($B6<'Initial Parameter'!$C$17,'Initial Parameter'!$E$17,IF($B6<'Initial Parameter'!$C$19,'Initial Parameter'!$E$19,IF($B6<'Initial Parameter'!$C$21,'Initial Parameter'!$E$21,'Initial Parameter'!$E$22))) -> 0.25 | E6: =IF($B6<'Initial Parameter'!$C$17,'Initial Parameter'!$H$3,IF($B6<'Initial Parameter'!$C$19,'Initial Parameter'!$H$4,IF($B6<'Initial Parameter'!$C$21,'Initial Parameter'!$H$5,'Initial Parameter'!$H$6))) -> 0.0 | F6: =IF($B6<'Initial Parameter'!$C$17,'Initial Parameter'!$J$3,IF($B6<'Initial Parameter'!$C$19,'Initial Parameter'!$J$4,IF($B6<'Initial Parameter'!$C$21,'Initial Parameter'!$J$5,'Initial Parameter'!$J$6))) -> 3325.0 | G6: ='Initial Parameter'!$M$2 -> 0.1805070847 | H6: ='Initial Parameter'!$F$16 -> 0.1805070847 | I6: ='Initial Parameter'!$G$16 -> 0.2579450041 | J6: 1.851007386 | K6: 5.328712875 | L6: 0.4009218993 | M6: =H6/'Initial Parameter'!$B$4*('Initial Parameter'!$B$4/I6+'Initial Parameter'!$B$3) -> 1.022689921 | N6: =(I6/'Initial Parameter'!$B$4)*('Initial Parameter'!$B$4/H6+'Initial Parameter'!$B$2) -> 2.005784669 | O6: =1/(H6*I6)+'Initial Parameter'!$B$3/(H6*'Initial Parameter'!$B$4)+'Initial Parameter'!$B$2/(I6*'Initial Parameter'!$B$4) -> 40.05618737 | P6: =('Initial Parameter'!$B$1^4/'Initial Parameter'!$B$6/'Initial Parameter'!$B$5)*((E6+2*F6)*M6+F6*N6) -> 20690.11 | Q6: ='Initial Parameter'!$B$4^2*O6*F6*'Initial Parameter'!$B$1^2/(2*'Initial Parameter'!$B$6*'Initial Parameter'!$B$5) -> 12.785935 | R6: 163.48 | S6: 8.849477313 | T6: 8.094894298 | U6: ='Initial Parameter'!$U$17 -> 3 | V6: 0.003 | W6: 0.02654372174 | X6: 1.000057468 | Y6: 0.02429085382 | Z6: 0.0006447326131 | AA6: =IF($B6<'Initial Parameter'!$C$17,'Initial Parameter'!W$17,IF($B6<'Initial Parameter'!$C$19,'Initial Parameter'!W$19,IF($B6<'Initial Parameter'!$C$21,'Initial Parameter'!W$21,IF('Initial Parameter'!$U$22=0,'Initial Parameter'!W$23,'Initial Parameter'!W$22)))) -> 0.000000E+00 | AB6: =IF($B6<'Initial Parameter'!$C$17,'Initial Parameter'!X$17,IF($B6<'Initial Parameter'!$C$19,'Initial Parameter'!X$19,IF($B6<'Initial Parameter'!$C$21,'Initial Parameter'!X$21,IF('Initial Parameter'!$U$22=0,'Initial Parameter'!X$23,'Initial Parameter'!X$22)))) -> 1.000000E+00 | AC6: =IF($B6<'Initial Parameter'!$C$17,'Initial Parameter'!Y$17,IF($B6<'Initial Parameter'!$C$19,'Initial Parameter'!Y$19,IF($B6<'Initial Parameter'!$C$21,'Initial Parameter'!Y$21,IF('Initial Parameter'!$U$22=0,'Initial Parameter'!Y$23,'Initial Parameter'!Y$22)))) -> 0.000000E+00 | AD6: =IF($B6<'Initial Parameter'!$C$17,'Initial Parameter'!Z$17,IF($B6<'Initial Parameter'!$C$19,'Initial Parameter'!Z$19,IF($B6<'Initial Parameter'!$C$21,'Initial Parameter'!Z$21,IF('Initial Parameter'!$U$22=0,'Initial Parameter'!Z$23,'Initial Parameter'!Z$22)))) -> 0.000000E+00
A7: =IF($B7<'Initial Parameter'!$C$17,1,IF($B7<'Initial Parameter'!$C$19,2,IF($B7<'Initial Parameter'!$C$21,3,4))) -> 1 | B7: 0.004 | C7: =IF($B7<'Initial Parameter'!$C$17,'Initial Parameter'!$D$17,IF($B7<'Initial Parameter'!$C$19,'Initial Parameter'!$D$19,IF($B7<'Initial Parameter'!$C$21,'Initial Parameter'!$D$21,'Initial Parameter'!$D$22))) -> 1.00E+04 | D7: =IF($B7<'Initial Parameter'!$C$17,'Initial Parameter'!$E$17,IF($B7<'Initial Parameter'!$C$19,'Initial Parameter'!$E$19,IF($B7<'Initial Parameter'!$C$21,'Initial Parameter'!$E$21,'Initial Parameter'!$E$22))) -> 0.25 | E7: =IF($B7<'Initial Parameter'!$C$17,'Initial Parameter'!$H$3,IF($B7<'Initial Parameter'!$C$19,'Initial Parameter'!$H$4,IF($B7<'Initial Parameter'!$C$21,'Initial Parameter'!$H$5,'Initial Parameter'!$H$6))) -> 0.0 | F7: =IF($B7<'Initial Parameter'!$C$17,'Initial Parameter'!$J$3,IF($B7<'Initial Parameter'!$C$19,'Initial Parameter'!$J$4,IF($B7<'Initial Parameter'!$C$21,'Initial Parameter'!$J$5,'Initial Parameter'!$J$6))) -> 3325.0 | G7: ='Initial Parameter'!$M$2 -> 0.1805070847 | H7: ='Initial Parameter'!$F$16 -> 0.1805070847 | I7: ='Initial Parameter'!$G$16 -> 0.2579450041 | J7: 1.851007386 | K7: 5.328712875 | L7: 0.4009218993 | M7: =H7/'Initial Parameter'!$B$4*('Initial Parameter'!$B$4/I7+'Initial Parameter'!$B$3) -> 1.022689921 | N7: =(I7/'Initial Parameter'!$B$4)*('Initial Parameter'!$B$4/H7+'Initial Parameter'!$B$2) -> 2.005784669 | O7: =1/(H7*I7)+'Initial Parameter'!$B$3/(H7*'Initial Parameter'!$B$4)+'Initial Parameter'!$B$2/(I7*'Initial Parameter'!$B$4) -> 40.05618737 | P7: =('Initial Parameter'!$B$1^4/'Initial Parameter'!$B$6/'Initial Parameter'!$B$5)*((E7+2*F7)*M7+F7*N7) -> 20690.11 | Q7: ='Initial Parameter'!$B$4^2*O7*F7*'Initial Parameter'!$B$1^2/(2*'Initial Parameter'!$B$6*'Initial Parameter'!$B$5) -> 12.785935 | R7: 163.48 | S7: 8.849477313 | T7: 8.094894298 | U7: ='Initial Parameter'!$U$17 -> 3 | V7: 0.004 | W7: 0.03538674356 | X7: 1.00010207 | Y7: 0.03239420407 | Z7: 0.001146208398 | AA7: =IF($B7<'Initial Parameter'!$C$17,'Initial Parameter'!W$17,IF($B7<'Initial Parameter'!$C$19,'Initial Parameter'!W$19,IF($B7<'Initial Parameter'!$C$21,'Initial Parameter'!W$21,IF('Initial Parameter'!$U$22=0,'Initial Parameter'!W$23,'Initial Parameter'!W$22)))) -> 0.000000E+00 | AB7: =IF($B7<'Initial Parameter'!$C$17,'Initial Parameter'!X$17,IF($B7<'Initial Parameter'!$C$19,'Initial Parameter'!X$19,IF($B7<'Initial Parameter'!$C$21,'Initial Parameter'!X$21,IF('Initial Parameter'!$U$22=0,'Initial Parameter'!X$23,'Initial Parameter'!X$22)))) -> 1.000000E+00 | AC7: =IF($B7<'Initial Parameter'!$C$17,'Initial Parameter'!Y$17,IF($B7<'Initial Parameter'!$C$19,'Initial Parameter'!Y$19,IF($B7<'Initial Parameter'!$C$21,'Initial Parameter'!Y$21,IF('Initial Parameter'!$U$22=0,'Initial Parameter'!Y$23,'Initial Parameter'!Y$22)))) -> 0.000000E+00 | AD7: =IF($B7<'Initial Parameter'!$C$17,'Initial Parameter'!Z$17,IF($B7<'Initial Parameter'!$C$19,'Initial Parameter'!Z$19,IF($B7<'Initial Parameter'!$C$21,'Initial Parameter'!Z$21,IF('Initial Parameter'!$U$22=0,'Initial Parameter'!Z$23,'Initial Parameter'!Z$22)))) -> 0.000000E+00
A8: =IF($B8<'Initial Parameter'!$C$17,1,IF($B8<'Initial Parameter'!$C$19,2,IF($B8<'Initial Parameter'!$C$21,3,4))) -> 1 | B8: 0.005 | C8: =IF($B8<'Initial Parameter'!$C$17,'Initial Parameter'!$D$17,IF($B8<'Initial Parameter'!$C$19,'Initial Parameter'!$D$19,IF($B8<'Initial Parameter'!$C$21,'Initial Parameter'!$D$21,'Initial Parameter'!$D$22))) -> 1.00E+04 | D8: =IF($B8<'Initial Parameter'!$C$17,'Initial Parameter'!$E$17,IF($B8<'Initial Parameter'!$C$19,'Initial Parameter'!$E$19,IF($B8<'Initial Parameter'!$C$21,'Initial Parameter'!$E$21,'Initial Parameter'!$E$22))) -> 0.25 | E8: =IF($B8<'Initial Parameter'!$C$17,'Initial Parameter'!$H$3,IF($B8<'Initial Parameter'!$C$19,'Initial Parameter'!$H$4,IF($B8<'Initial Parameter'!$C$21,'Initial Parameter'!$H$5,'Initial Parameter'!$H$6))) -> 0.0 | F8: =IF($B8<'Initial Parameter'!$C$17,'Initial Parameter'!$J$3,IF($B8<'Initial Parameter'!$C$19,'Initial Parameter'!$J$4,IF($B8<'Initial Parameter'!$C$21,'Initial Parameter'!$J$5,'Initial Parameter'!$J$6))) -> 3325.0 | G8: ='Initial Parameter'!$M$2 -> 0.1805070847 | H8: ='Initial Parameter'!$F$16 -> 0.1805070847 | I8: ='Initial Parameter'!$G$16 -> 0.2579450041 | J8: 1.851007386 | K8: 5.328712875 | L8: 0.4009218993 | M8: =H8/'Initial Parameter'!$B$4*('Initial Parameter'!$B$4/I8+'Initial Parameter'!$B$3) -> 1.022689921 | N8: =(I8/'Initial Parameter'!$B$4)*('Initial Parameter'!$B$4/H8+'Initial Parameter'!$B$2) -> 2.005784669 | O8: =1/(H8*I8)+'Initial Parameter'!$B$3/(H8*'Initial Parameter'!$B$4)+'Initial Parameter'!$B$2/(I8*'Initial Parameter'!$B$4) -> 40.05618737 | P8: =('Initial Parameter'!$B$1^4/'Initial Parameter'!$B$6/'Initial Parameter'!$B$5)*((E8+2*F8)*M8+F8*N8) -> 20690.11 | Q8: ='Initial Parameter'!$B$4^2*O8*F8*'Initial Parameter'!$B$1^2/(2*'Initial Parameter'!$B$6*'Initial Parameter'!$B$5) -> 12.785935 | R8: 163.48 | S8: 8.849477313 | T8: 8.094894298 | U8: ='Initial Parameter'!$U$17 -> 3 | V8: 0.005 | W8: 0.0442255766 | X8: 1.000159294 | Y8: 0.04050303837 | Z8: 0.001790984933 | AA8: =IF($B8<'Initial Parameter'!$C$17,'Initial Parameter'!W$17,IF($B8<'Initial Parameter'!$C$19,'Initial Parameter'!W$19,IF($B8<'Initial Parameter'!$C$21,'Initial Parameter'!W$21,IF('Initial Parameter'!$U$22=0,'Initial Parameter'!W$23,'Initial Parameter'!W$22)))) -> 0.000000E+00 | AB8: =IF($B8<'Initial Parameter'!$C$17,'Initial Parameter'!X$17,IF($B8<'Initial Parameter'!$C$19,'Initial Parameter'!X$19,IF($B8<'Initial Parameter'!$C$21,'Initial Parameter'!X$21,IF('Initial Parameter'!$U$22=0,'Initial Parameter'!X$23,'Initial Parameter'!X$22)))) -> 1.000000E+00 | AC8: =IF($B8<'Initial Parameter'!$C$17,'Initial Parameter'!Y$17,IF($B8<'Initial Parameter'!$C$19,'Initial Parameter'!Y$19,IF($B8<'Initial Parameter'!$C$21,'Initial Parameter'!Y$21,IF('Initial Parameter'!$U$22=0,'Initial Parameter'!Y$23,'Initial Parameter'!Y$22)))) -> 0.000000E+00 | AD8: =IF($B8<'Initial Parameter'!$C$17,'Initial Parameter'!Z$17,IF($B8<'Initial Parameter'!$C$19,'Initial Parameter'!Z$19,IF($B8<'Initial Parameter'!$C$21,'Initial Parameter'!Z$21,IF('Initial Parameter'!$U$22=0,'Initial Parameter'!Z$23,'Initial Parameter'!Z$22)))) -> 0.000000E+00
A9: =IF($B9<'Initial Parameter'!$C$17,1,IF($B9<'Initial Parameter'!$C$19,2,IF($B9<'Initial Parameter'!$C$21,3,4))) -> 1 | B9: 0.006 | C9: =IF($B9<'Initial Parameter'!$C$17,'Initial Parameter'!$D$17,IF($B9<'Initial Parameter'!$C$19,'Initial Parameter'!$D$19,IF($B9<'Initial Parameter'!$C$21,'Initial Parameter'!$D$21,'Initial Parameter'!$D$22))) -> 1.00E+04 | D9: =IF($B9<'Initial Parameter'!$C$17,'Initial Parameter'!$E$17,IF($B9<'Initial Parameter'!$C$19,'Initial Parameter'!$E$19,IF($B9<'Initial Parameter'!$C$21,'Initial Parameter'!$E$21,'Initial Parameter'!$E$22))) -> 0.25 | E9: =IF($B9<'Initial Parameter'!$C$17,'Initial Parameter'!$H$3,IF($B9<'Initial Parameter'!$C$19,'Initial Parameter'!$H$4,IF($B9<'Initial Parameter'!$C$21,'Initial Parameter'!$H$5,'Initial Parameter'!$H$6))) -> 0.0 | F9: =IF($B9<'Initial Parameter'!$C$17,'Initial Parameter'!$J$3,IF($B9<'Initial Parameter'!$C$19,'Initial Parameter'!$J$4,IF($B9<'Initial Parameter'!$C$21,'Initial Parameter'!$J$5,'Initial Parameter'!$J$6))) -> 3325.0 | G9: ='Initial Parameter'!$M$2 -> 0.1805070847 | H9: ='Initial Parameter'!$F$16 -> 0.1805070847 | I9: ='Initial Parameter'!$G$16 -> 0.2579450041 | J9: 1.851007386 | K9: 5.328712875 | L9: 0.4009218993 | M9: =H9/'Initial Parameter'!$B$4*('Initial Parameter'!$B$4/I9+'Initial Parameter'!$B$3) -> 1.022689921 | N9: =(I9/'Initial Parameter'!$B$4)*('Initial Parameter'!$B$4/H9+'Initial Parameter'!$B$2) -> 2.005784669 | O9: =1/(H9*I9)+'Initial Parameter'!$B$3/(H9*'Initial Parameter'!$B$4)+'Initial Parameter'!$B$2/(I9*'Initial Parameter'!$B$4) -> 40.05618737 | P9: =('Initial Parameter'!$B$1^4/'Initial Parameter'!$B$6/'Initial Parameter'!$B$5)*((E9+2*F9)*M9+F9*N9) -> 20690.11 | Q9: ='Initial Parameter'!$B$4^2*O9*F9*'Initial Parameter'!$B$1^2/(2*'Initial Parameter'!$B$6*'Initial Parameter'!$B$5) -> 12.785935 | R9: 163.48 | S9: 8.849477313 | T9: 8.094894298 | U9: ='Initial Parameter'!$U$17 -> 3 | V9: 0.006 | W9: 0.0530591721 | X9: 1.000229047 | Y9: 0.04861872673 | Z9: 0.002579078658 | AA9: =IF($B9<'Initial Parameter'!$C$17,'Initial Parameter'!W$17,IF($B9<'Initial Parameter'!$C$19,'Initial Parameter'!W$19,IF($B9<'Initial Parameter'!$C$21,'Initial Parameter'!W$21,IF('Initial Parameter'!$U$22=0,'Initial Parameter'!W$23,'Initial Parameter'!W$22)))) -> 0.000000E+00 | AB9: =IF($B9<'Initial Parameter'!$C$17,'Initial Parameter'!X$17,IF($B9<'Initial Parameter'!$C$19,'Initial Parameter'!X$19,IF($B9<'Initial Parameter'!$C$21,'Initial Parameter'!X$21,IF('Initial Parameter'!$U$22=0,'Initial Parameter'!X$23,'Initial Parameter'!X$22)))) -> 1.000000E+00 | AC9: =IF($B9<'Initial Parameter'!$C$17,'Initial Parameter'!Y$17,IF($B9<'Initial Parameter'!$C$19,'Initial Parameter'!Y$19,IF($B9<'Initial Parameter'!$C$21,'Initial Parameter'!Y$21,IF('Initial Parameter'!$U$22=0,'Initial Parameter'!Y$23,'Initial Parameter'!Y$22)))) -> 0.000000E+00 | AD9: =IF($B9<'Initial Parameter'!$C$17,'Initial Parameter'!Z$17,IF($B9<'Initial Parameter'!$C$19,'Initial Parameter'!Z$19,IF($B9<'Initial Parameter'!$C$21,'Initial Parameter'!Z$21,IF('Initial Parameter'!$U$22=0,'Initial Parameter'!Z$23,'Initial Parameter'!Z$22)))) -> 0.000000E+00
A10: =IF($B10<'Initial Parameter'!$C$17,1,IF($B10<'Initial Parameter'!$C$19,2,IF($B10<'Initial Parameter'!$C$21,3,4))) -> 1 | B10: 0.007 | C10: =IF($B10<'Initial Parameter'!$C$17,'Initial Parameter'!$D$17,IF($B10<'Initial Parameter'!$C$19,'Initial Parameter'!$D$19,IF($B10<'Initial Parameter'!$C$21,'Initial Parameter'!$D$21,'Initial Parameter'!$D$22))) -> 1.00E+04 | D10: =IF($B10<'Initial Parameter'!$C$17,'Initial Parameter'!$E$17,IF($B10<'Initial Parameter'!$C$19,'Initial Parameter'!$E$19,IF($B10<'Initial Parameter'!$C$21,'Initial Parameter'!$E$21,'Initial Parameter'!$E$22))) -> 0.25 | E10: =IF($B10<'Initial Parameter'!$C$17,'Initial Parameter'!$H$3,IF($B10<'Initial Parameter'!$C$19,'Initial Parameter'!$H$4,IF($B10<'Initial Parameter'!$C$21,'Initial Parameter'!$H$5,'Initial Parameter'!$H$6))) -> 0.0 | F10: =IF($B10<'Initial Parameter'!$C$17,'Initial Parameter'!$J$3,IF($B10<'Initial Parameter'!$C$19,'Initial Parameter'!$J$4,IF($B10<'Initial Parameter'!$C$21,'Initial Parameter'!$J$5,'Initial Parameter'!$J$6))) -> 3325.0 | G10: ='Initial Parameter'!$M$2 -> 0.1805070847 | H10: ='Initial Parameter'!$F$16 -> 0.1805070847 | I10: ='Initial Parameter'!$G$16 -> 0.2579450041 | J10: 1.851007386 | K10: 5.328712875 | L10: 0.4009218993 | M10: =H10/'Initial Parameter'!$B$4*('Initial Parameter'!$B$4/I10+'Initial Parameter'!$B$3) -> 1.022689921 | N10: =(I10/'Initial Parameter'!$B$4)*('Initial Parameter'!$B$4/H10+'Initial Parameter'!$B$2) -> 2.005784669 | O10: =1/(H10*I10)+'Initial Parameter'!$B$3/(H10*'Initial Parameter'!$B$4)+'Initial Parameter'!$B$2/(I10*'Initial Parameter'!$B$4) -> 40.05618737 | P10: =('Initial Parameter'!$B$1^4/'Initial Parameter'!$B$6/'Initial Parameter'!$B$5)*((E10+2*F10)*M10+F10*N10) -> 20690.11 | Q10: ='Initial Parameter'!$B$4^2*O10*F10*'Initial Parameter'!$B$1^2/(2*'Initial Parameter'!$B$6*'Initial Parameter'!$B$5) -> 12.785935 | R10: 163.48 | S10: 8.849477313 | T10: 8.094894298 | U10: ='Initial Parameter'!$U$17 -> 3 | V10: 0.007 | W10: 0.06188648025 | X10: 1.000311218 | Y10: 0.05674263852 | Z10: 0.003510509643 | AA10: =IF($B10<'Initial Parameter'!$C$17,'Initial Parameter'!W$17,IF($B10<'Initial Parameter'!$C$19,'Initial Parameter'!W$19,IF($B10<'Initial Parameter'!$C$21,'Initial Parameter'!W$21,IF('Initial Parameter'!$U$22=0,'Initial Parameter'!W$23,'Initial Parameter'!W$22)))) -> 0.000000E+00 | AB10: =IF($B10<'Initial Parameter'!$C$17,'Initial Parameter'!X$17,IF($B10<'Initial Parameter'!$C$19,'Initial Parameter'!X$19,IF($B10<'Initial Parameter'!$C$21,'Initial Parameter'!X$21,IF('Initial Parameter'!$U$22=0,'Initial Parameter'!X$23,'Initial Parameter'!X$22)))) -> 1.000000E+00 | AC10: =IF($B10<'Initial Parameter'!$C$17,'Initial Parameter'!Y$17,IF($B10<'Initial Parameter'!$C$19,'Initial Parameter'!Y$19,IF($B10<'Initial Parameter'!$C$21,'Initial Parameter'!Y$21,IF('Initial Parameter'!$U$22=0,'Initial Parameter'!Y$23,'Initial Parameter'!Y$22)))) -> 0.000000E+00 | AD10: =IF($B10<'Initial Parameter'!$C$17,'Initial Parameter'!Z$17,IF($B10<'Initial Parameter'!$C$19,'Initial Parameter'!Z$19,IF($B10<'Initial Parameter'!$C$21,'Initial Parameter'!Z$21,IF('Initial Parameter'!$U$22=0,'Initial Parameter'!Z$23,'Initial Parameter'!Z$22)))) -> 0.000000E+00
A11: =IF($B11<'Initial Parameter'!$C$17,1,IF($B11<'Initial Parameter'!$C$19,2,IF($B11<'Initial Parameter'!$C$21,3,4))) -> 1 | B11: 0.008 | C11: =IF($B11<'Initial Parameter'!$C$17,'Initial Parameter'!$D$17,IF($B11<'Initial Parameter'!$C$19,'Initial Parameter'!$D$19,IF($B11<'Initial Parameter'!$C$21,'Initial Parameter'!$D$21,'Initial Parameter'!$D$22))) -> 1.00E+04 | D11: =IF($B11<'Initial Parameter'!$C$17,'Initial Parameter'!$E$17,IF($B11<'Initial Parameter'!$C$19,'Initial Parameter'!$E$19,IF($B11<'Initial Parameter'!$C$21,'Initial Parameter'!$E$21,'Initial Parameter'!$E$22))) -> 0.25 | E11: =IF($B11<'Initial Parameter'!$C$17,'Initial Parameter'!$H$3,IF($B11<'Initial Parameter'!$C$19,'Initial Parameter'!$H$4,IF($B11<'Initial Parameter'!$C$21,'Initial Parameter'!$H$5,'Initial Parameter'!$H$6))) -> 0.0 | F11: =IF($B11<'Initial Parameter'!$C$17,'Initial Parameter'!$J$3,IF($B11<'Initial Parameter'!$C$19,'Initial Parameter'!$J$4,IF($B11<'Initial Parameter'!$C$21,'Initial Parameter'!$J$5,'Initial Parameter'!$J$6))) -> 3325.0 | G11: ='Initial Parameter'!$M$2 -> 0.1805070847 | H11: ='Initial Parameter'!$F$16 -> 0.1805070847 | I11: ='Initial Parameter'!$G$16 -> 0.2579450041 | J11: 1.851007386 | K11: 5.328712875 | L11: 0.4009218993 | M11: =H11/'Initial Parameter'!$B$4*('Initial Parameter'!$B$4/I11+'Initial Parameter'!$B$3) -> 1.022689921 | N11: =(I11/'Initial Parameter'!$B$4)*('Initial Parameter'!$B$4/H11+'Initial Parameter'!$B$2) -> 2.005784669 | O11: =1/(H11*I11)+'Initial Parameter'!$B$3/(H11*'Initial Parameter'!$B$4)+'Initial Parameter'!$B$2/(I11*'Initial Parameter'!$B$4) -> 40.05618737 | P11: =('Initial Parameter'!$B$1^4/'Initial Parameter'!$B$6/'Initial Parameter'!$B$5)*((E11+2*F11)*M11+F11*N11) -> 20690.11 | Q11: ='Initial Parameter'!$B$4^2*O11*F11*'Initial Parameter'!$B$1^2/(2*'Initial Parameter'!$B$6*'Initial Parameter'!$B$5) -> 12.785935 | R11: 163.48 | S11: 8.849477313 | T11: 8.094894298 | U11: ='Initial Parameter'!$U$17 -> 3 | V11: 0.008 | W11: 0.07070644996 | X11: 1.000405674 | Y11: 0.06487614228 | Z11: 0.004585301569 | AA11: =IF($B11<'Initial Parameter'!$C$17,'Initial Parameter'!W$17,IF($B11<'Initial Parameter'!$C$19,'Initial Parameter'!W$19,IF($B11<'Initial Parameter'!$C$21,'Initial Parameter'!W$21,IF('Initial Parameter'!$U$22=0,'Initial Parameter'!W$23,'Initial Parameter'!W$22)))) -> 0.000000E+00 | AB11: =IF($B11<'Initial Parameter'!$C$17,'Initial Parameter'!X$17,IF($B11<'Initial Parameter'!$C$19,'Initial Parameter'!X$19,IF($B11<'Initial Parameter'!$C$21,'Initial Parameter'!X$21,IF('Initial Parameter'!$U$22=0,'Initial Parameter'!X$23,'Initial Parameter'!X$22)))) -> 1.000000E+00 | AC11: =IF($B11<'Initial Parameter'!$C$17,'Initial Parameter'!Y$17,IF($B11<'Initial Parameter'!$C$19,'Initial Parameter'!Y$19,IF($B11<'Initial Parameter'!$C$21,'Initial Parameter'!Y$21,IF('Initial Parameter'!$U$22=0,'Initial Parameter'!Y$23,'Initial Parameter'!Y$22)))) -> 0.000000E+00 | AD11: =IF($B11<'Initial Parameter'!$C$17,'Initial Parameter'!Z$17,IF($B11<'Initial Parameter'!$C$19,'Initial Parameter'!Z$19,IF($B11<'Initial Parameter'!$C$21,'Initial Parameter'!Z$21,IF('Initial Parameter'!$U$22=0,'Initial Parameter'!Z$23,'Initial Parameter'!Z$22)))) -> 0.000000E+00
A12: =IF($B12<'Initial Parameter'!$C$17,1,IF($B12<'Initial Parameter'!$C$19,2,IF($B12<'Initial Parameter'!$C$21,3,4))) -> 1 | B12: 0.009 | C12: =IF($B12<'Initial Parameter'!$C$17,'Initial Parameter'!$D$17,IF($B12<'Initial Parameter'!$C$19,'Initial Parameter'!$D$19,IF($B12<'Initial Parameter'!$C$21,'Initial Parameter'!$D$21,'Initial Parameter'!$D$22))) -> 1.00E+04 | D12: =IF($B12<'Initial Parameter'!$C$17,'Initial Parameter'!$E$17,IF($B12<'Initial Parameter'!$C$19,'Initial Parameter'!$E$19,IF($B12<'Initial Parameter'!$C$21,'Initial Parameter'!$E$21,'Initial Parameter'!$E$22))) -> 0.25 | E12: =IF($B12<'Initial Parameter'!$C$17,'Initial Parameter'!$H$3,IF($B12<'Initial Parameter'!$C$19,'Initial Parameter'!$H$4,IF($B12<'Initial Parameter'!$C$21,'Initial Parameter'!$H$5,'Initial Parameter'!$H$6))) -> 0.0 | F12: =IF($B12<'Initial Parameter'!$C$17,'Initial Parameter'!$J$3,IF($B12<'Initial Parameter'!$C$19,'Initial Parameter'!$J$4,IF($B12<'Initial Parameter'!$C$21,'Initial Parameter'!$J$5,'Initial Parameter'!$J$6))) -> 3325.0 | G12: ='Initial Parameter'!$M$2 -> 0.1805070847 | H12: ='Initial Parameter'!$F$16 -> 0.1805070847 | I12: ='Initial Parameter'!$G$16 -> 0.2579450041 | J12: 1.851007386 | K12: 5.328712875 | L12: 0.4009218993 | M12: =H12/'Initial Parameter'!$B$4*('Initial Parameter'!$B$4/I12+'Initial Parameter'!$B$3) -> 1.022689921 | N12: =(I12/'Initial Parameter'!$B$4)*('Initial Parameter'!$B$4/H12+'Initial Parameter'!$B$2) -> 2.005784669 | O12: =1/(H12*I12)+'Initial Parameter'!$B$3/(H12*'Initial Parameter'!$B$4)+'Initial Parameter'!$B$2/(I12*'Initial Parameter'!$B$4) -> 40.05618737 | P12: =('Initial Parameter'!$B$1^4/'Initial Parameter'!$B$6/'Initial Parameter'!$B$5)*((E12+2*F12)*M12+F12*N12) -> 20690.11 | Q12: ='Initial Parameter'!$B$4^2*O12*F12*'Initial Parameter'!$B$1^2/(2*'Initial Parameter'!$B$6*'Initial Parameter'!$B$5) -> 12.785935 | R12: 163.48 | S12: 8.849477313 | T12: 8.094894298 | U12: ='Initial Parameter'!$U$17 -> 3 | V12: 0.009 | W12: 0.07951802871 | X12: 1.000512263 | Y12: 0.07302060565 | Z12: 0.005803481707 | AA12: =IF($B12<'Initial Parameter'!$C$17,'Initial Parameter'!W$17,IF($B12<'Initial Parameter'!$C$19,'Initial Parameter'!W$19,IF($B12<'Initial Parameter'!$C$21,'Initial Parameter'!W$21,IF('Initial Parameter'!$U$22=0,'Initial Parameter'!W$23,'Initial Parameter'!W$22)))) -> 0.000000E+00 | AB12: =IF($B12<'Initial Parameter'!$C$17,'Initial Parameter'!X$17,IF($B12<'Initial Parameter'!$C$19,'Initial Parameter'!X$19,IF($B12<'Initial Parameter'!$C$21,'Initial Parameter'!X$21,IF('Initial Parameter'!$U$22=0,'Initial Parameter'!X$23,'Initial Parameter'!X$22)))) -> 1.000000E+00 | AC12: =IF($B12<'Initial Parameter'!$C$17,'Initial Parameter'!Y$17,IF($B12<'Initial Parameter'!$C$19,'Initial Parameter'!Y$19,IF($B12<'Initial Parameter'!$C$21,'Initial Parameter'!Y$21,IF('Initial Parameter'!$U$22=0,'Initial Parameter'!Y$23,'Initial Parameter'!Y$22)))) -> 0.000000E+00 | AD12: =IF($B12<'Initial Parameter'!$C$17,'Initial Parameter'!Z$17,IF($B12<'Initial Parameter'!$C$19,'Initial Parameter'!Z$19,IF($B12<'Initial Parameter'!$C$21,'Initial Parameter'!Z$21,IF('Initial Parameter'!$U$22=0,'Initial Parameter'!Z$23,'Initial Parameter'!Z$22)))) -> 0.000000E+00
A13: =IF($B13<'Initial Parameter'!$C$17,1,IF($B13<'Initial Parameter'!$C$19,2,IF($B13<'Initial Parameter'!$C$21,3,4))) -> 1 | B13: 0.01 | C13: =IF($B13<'Initial Parameter'!$C$17,'Initial Parameter'!$D$17,IF($B13<'Initial Parameter'!$C$19,'Initial Parameter'!$D$19,IF($B13<'Initial Parameter'!$C$21,'Initial Parameter'!$D$21,'Initial Parameter'!$D$22))) -> 1.00E+04 | D13: =IF($B13<'Initial Parameter'!$C$17,'Initial Parameter'!$E$17,IF($B13<'Initial Parameter'!$C$19,'Initial Parameter'!$E$19,IF($B13<'Initial Parameter'!$C$21,'Initial Parameter'!$E$21,'Initial Parameter'!$E$22))) -> 0.25 | E13: =IF($B13<'Initial Parameter'!$C$17,'Initial Parameter'!$H$3,IF($B13<'Initial Parameter'!$C$19,'Initial Parameter'!$H$4,IF($B13<'Initial Parameter'!$C$21,'Initial Parameter'!$H$5,'Initial Parameter'!$H$6))) -> 0.0 | F13: =IF($B13<'Initial Parameter'!$C$17,'Initial Parameter'!$J$3,IF($B13<'Initial Parameter'!$C$19,'Initial Parameter'!$J$4,IF($B13<'Initial Parameter'!$C$21,'Initial Parameter'!$J$5,'Initial Parameter'!$J$6))) -> 3325.0 | G13: ='Initial Parameter'!$M$2 -> 0.1805070847 | H13: ='Initial Parameter'!$F$16 -> 0.1805070847 | I13: ='Initial Parameter'!$G$16 -> 0.2579450041 | J13: 1.851007386 | K13: 5.328712875 | L13: 0.4009218993 | M13: =H13/'Initial Parameter'!$B$4*('Initial Parameter'!$B$4/I13+'Initial Parameter'!$B$3) -> 1.022689921 | N13: =(I13/'Initial Parameter'!$B$4)*('Initial Parameter'!$B$4/H13+'Initial Parameter'!$B$2) -> 2.005784669 | O13: =1/(H13*I13)+'Initial Parameter'!$B$3/(H13*'Initial Parameter'!$B$4)+'Initial Parameter'!$B$2/(I13*'Initial Parameter'!$B$4) -> 40.05618737 | P13: =('Initial Parameter'!$B$1^4/'Initial Parameter'!$B$6/'Initial Parameter'!$B$5)*((E13+2*F13)*M13+F13*N13) -> 20690.11 | Q13: ='Initial Parameter'!$B$4^2*O13*F13*'Initial Parameter'!$B$1^2/(2*'Initial Parameter'!$B$6*'Initial Parameter'!$B$5) -> 12.785935 | R13: 163.48 | S13: 8.849477313 | T13: 8.094894298 | U13: ='Initial Parameter'!$U$17 -> 3 | V13: 0.01 | W13: 0.08832016226 | X13: 1.000630811 | Y13: 0.0811773952 | Z13: 0.007165080904 | AA13: =IF($B13<'Initial Parameter'!$C$17,'Initial Parameter'!W$17,IF($B13<'Initial Parameter'!$C$19,'Initial Parameter'!W$19,IF($B13<'Initial Parameter'!$C$21,'Initial Parameter'!W$21,IF('Initial Parameter'!$U$22=0,'Initial Parameter'!W$23,'Initial Parameter'!W$22)))) -> 0.000000E+00 | AB13: =IF($B13<'Initial Parameter'!$C$17,'Initial Parameter'!X$17,IF($B13<'Initial Parameter'!$C$19,'Initial Parameter'!X$19,IF($B13<'Initial Parameter'!$C$21,'Initial Parameter'!X$21,IF('Initial Parameter'!$U$22=0,'Initial Parameter'!X$23,'Initial Parameter'!X$22)))) -> 1.000000E+00 | AC13: =IF($B13<'Initial Parameter'!$C$17,'Initial Parameter'!Y$17,IF($B13<'Initial Parameter'!$C$19,'Initial Parameter'!Y$19,IF($B13<'Initial Parameter'!$C$21,'Initial Parameter'!Y$21,IF('Initial Parameter'!$U$22=0,'Initial Parameter'!Y$23,'Initial Parameter'!Y$22)))) -> 0.000000E+00 | AD13: =IF($B13<'Initial Parameter'!$C$17,'Initial Parameter'!Z$17,IF($B13<'Initial Parameter'!$C$19,'Initial Parameter'!Z$19,IF($B13<'Initial Parameter'!$C$21,'Initial Parameter'!Z$21,IF('Initial Parameter'!$U$22=0,'Initial Parameter'!Z$23,'Initial Parameter'!Z$22)))) -> 0.000000E+00
A14: =IF($B14<'Initial Parameter'!$C$17,1,IF($B14<'Initial Parameter'!$C$19,2,IF($B14<'Initial Parameter'!$C$21,3,4))) -> 1 | B14: 0.011 | C14: =IF($B14<'Initial Parameter'!$C$17,'Initial Parameter'!$D$17,IF($B14<'Initial Parameter'!$C$19,'Initial Parameter'!$D$19,IF($B14<'Initial Parameter'!$C$21,'Initial Parameter'!$D$21,'Initial Parameter'!$D$22))) -> 1.00E+04 | D14: =IF($B14<'Initial Parameter'!$C$17,'Initial Parameter'!$E$17,IF($B14<'Initial Parameter'!$C$19,'Initial Parameter'!$E$19,IF($B14<'Initial Parameter'!$C$21,'Initial Parameter'!$E$21,'Initial Parameter'!$E$22))) -> 0.25 | E14: =IF($B14<'Initial Parameter'!$C$17,'Initial Parameter'!$H$3,IF($B14<'Initial Parameter'!$C$19,'Initial Parameter'!$H$4,IF($B14<'Initial Parameter'!$C$21,'Initial Parameter'!$H$5,'Initial Parameter'!$H$6))) -> 0.0 | F14: =IF($B14<'Initial Parameter'!$C$17,'Initial Parameter'!$J$3,IF($B14<'Initial Parameter'!$C$19,'Initial Parameter'!$J$4,IF($B14<'Initial Parameter'!$C$21,'Initial Parameter'!$J$5,'Initial Parameter'!$J$6))) -> 3325.0 | G14: ='Initial Parameter'!$M$2 -> 0.1805070847 | H14: ='Initial Parameter'!$F$16 -> 0.1805070847 | I14: ='Initial Parameter'!$G$16 -> 0.2579450041 | J14: 1.851007386 | K14: 5.328712875 | L14: 0.4009218993 | M14: =H14/'Initial Parameter'!$B$4*('Initial Parameter'!$B$4/I14+'Initial Parameter'!$B$3) -> 1.022689921 | N14: =(I14/'Initial Parameter'!$B$4)*('Initial Parameter'!$B$4/H14+'Initial Parameter'!$B$2) -> 2.005784669 | O14: =1/(H14*I14)+'Initial Parameter'!$B$3/(H14*'Initial Parameter'!$B$4)+'Initial Parameter'!$B$2/(I14*'Initial Parameter'!$B$4) -> 40.05618737 | P14: =('Initial Parameter'!$B$1^4/'Initial Parameter'!$B$6/'Initial Parameter'!$B$5)*((E14+2*F14)*M14+F14*N14) -> 20690.11 | Q14: ='Initial Parameter'!$B$4^2*O14*F14*'Initial Parameter'!$B$1^2/(2*'Initial Parameter'!$B$6*'Initial Parameter'!$B$5) -> 12.785935 | R14: 163.48 | S14: 8.849477313 | T14: 8.094894298 | U14: ='Initial Parameter'!$U$17 -> 3 | V14: 0.011 | W14: 0.09711179451 | X14: 1.000761125 | Y14: 0.0893478763 | Z14: 0.00867013355 | AA14: =IF($B14<'Initial Parameter'!$C$17,'Initial Parameter'!W$17,IF($B14<'Initial Parameter'!$C$19,'Initial Parameter'!W$19,IF($B14<'Initial Parameter'!$C$21,'Initial Parameter'!W$21,IF('Initial Parameter'!$U$22=0,'Initial Parameter'!W$23,'Initial Parameter'!W$22)))) -> 0.000000E+00 | AB14: =IF($B14<'Initial Parameter'!$C$17,'Initial Parameter'!X$17,IF($B14<'Initial Parameter'!$C$19,'Initial Parameter'!X$19,IF($B14<'Initial Parameter'!$C$21,'Initial Parameter'!X$21,IF('Initial Parameter'!$U$22=0,'Initial Parameter'!X$23,'Initial Parameter'!X$22)))) -> 1.000000E+00 | AC14: =IF($B14<'Initial Parameter'!$C$17,'Initial Parameter'!Y$17,IF($B14<'Initial Parameter'!$C$19,'Initial Parameter'!Y$19,IF($B14<'Initial Parameter'!$C$21,'Initial Parameter'!Y$21,IF('Initial Parameter'!$U$22=0,'Initial Parameter'!Y$23,'Initial Parameter'!Y$22)))) -> 0.000000E+00 | AD14: =IF($B14<'Initial Parameter'!$C$17,'Initial Parameter'!Z$17,IF($B14<'Initial Parameter'!$C$19,'Initial Parameter'!Z$19,IF($B14<'Initial Parameter'!$C$21,'Initial Parameter'!Z$21,IF('Initial Parameter'!$U$22=0,'Initial Parameter'!Z$23,'Initial Parameter'!Z$22)))) -> 0.000000E+00
A15: =IF($B15<'Initial Parameter'!$C$17,1,IF($B15<'Initial Parameter'!$C$19,2,IF($B15<'Initial Parameter'!$C$21,3,4))) -> 1 | B15: 0.012 | C15: =IF($B15<'Initial Parameter'!$C$17,'Initial Parameter'!$D$17,IF($B15<'Initial Parameter'!$C$19,'Initial Parameter'!$D$19,IF($B15<'Initial Parameter'!$C$21,'Initial Parameter'!$D$21,'Initial Parameter'!$D$22))) -> 1.00E+04 | D15: =IF($B15<'Initial Parameter'!$C$17,'Initial Parameter'!$E$17,IF($B15<'Initial Parameter'!$C$19,'Initial Parameter'!$E$19,IF($B15<'Initial Parameter'!$C$21,'Initial Parameter'!$E$21,'Initial Parameter'!$E$22))) -> 0.25 | E15: =IF($B15<'Initial Parameter'!$C$17,'Initial Parameter'!$H$3,IF($B15<'Initial Parameter'!$C$19,'Initial Parameter'!$H$4,IF($B15<'Initial Parameter'!$C$21,'Initial Parameter'!$H$5,'Initial Parameter'!$H$6))) -> 0.0 | F15: =IF($B15<'Initial Parameter'!$C$17,'Initial Parameter'!$J$3,IF($B15<'Initial Parameter'!$C$19,'Initial Parameter'!$J$4,IF($B15<'Initial Parameter'!$C$21,'Initial Parameter'!$J$5,'Initial Parameter'!$J$6))) -> 3325.0 | G15: ='Initial Parameter'!$M$2 -> 0.1805070847 | H15: ='Initial Parameter'!$F$16 -> 0.1805070847 | I15: ='Initial Parameter'!$G$16 -> 0.2579450041 | J15: 1.851007386 | K15: 5.328712875 | L15: 0.4009218993 | M15: =H15/'Initial Parameter'!$B$4*('Initial Parameter'!$B$4/I15+'Initial Parameter'!$B$3) -> 1.022689921 | N15: =(I15/'Initial Parameter'!$B$4)*('Initial Parameter'!$B$4/H15+'Initial Parameter'!$B$2) -> 2.005784669 | O15: =1/(H15*I15)+'Initial Parameter'!$B$3/(H15*'Initial Parameter'!$B$4)+'Initial Parameter'!$B$2/(I15*'Initial Parameter'!$B$4) -> 40.05618737 | P15: =('Initial Parameter'!$B$1^4/'Initial Parameter'!$B$6/'Initial Parameter'!$B$5)*((E15+2*F15)*M15+F15*N15) -> 20690.11 | Q15: ='Initial Parameter'!$B$4^2*O15*F15*'Initial Parameter'!$B$1^2/(2*'Initial Parameter'!$B$6*'Initial Parameter'!$B$5) -> 12.785935 | R15: 163.48 | S15: 8.849477313 | T15: 8.094894298 | U15: ='Initial Parameter'!$U$17 -> 3 | V15: 0.012 | W15: 0.1058918673 | X15: 1.00090299 | Y15: 0.09753341299 | Z15: 0.01031867756 | AA15: =IF($B15<'Initial Parameter'!$C$17,'Initial Parameter'!W$17,IF($B15<'Initial Parameter'!$C$19,'Initial Parameter'!W$19,IF($B15<'Initial Parameter'!$C$21,'Initial Parameter'!W$21,IF('Initial Parameter'!$U$22=0,'Initial Parameter'!W$23,'Initial Parameter'!W$22)))) -> 0.000000E+00 | AB15: =IF($B15<'Initial Parameter'!$C$17,'Initial Parameter'!X$17,IF($B15<'Initial Parameter'!$C$19,'Initial Parameter'!X$19,IF($B15<'Initial Parameter'!$C$21,'Initial Parameter'!X$21,IF('Initial Parameter'!$U$22=0,'Initial Parameter'!X$23,'Initial Parameter'!X$22)))) -> 1.000000E+00 | AC15: =IF($B15<'Initial Parameter'!$C$17,'Initial Parameter'!Y$17,IF($B15<'Initial Parameter'!$C$19,'Initial Parameter'!Y$19,IF($B15<'Initial Parameter'!$C$21,'Initial Parameter'!Y$21,IF('Initial Parameter'!$U$22=0,'Initial Parameter'!Y$23,'Initial Parameter'!Y$22)))) -> 0.000000E+00 | AD15: =IF($B15<'Initial Parameter'!$C$17,'Initial Parameter'!Z$17,IF($B15<'Initial Parameter'!$C$19,'Initial Parameter'!Z$19,IF($B15<'Initial Parameter'!$C$21,'Initial Parameter'!Z$21,IF('Initial Parameter'!$U$22=0,'Initial Parameter'!Z$23,'Initial Parameter'!Z$22)))) -> 0.000000E+00
A16: =IF($B16<'Initial Parameter'!$C$17,1,IF($B16<'Initial Parameter'!$C$19,2,IF($B16<'Initial Parameter'!$C$21,3,4))) -> 1 | B16: 0.013 | C16: =IF($B16<'Initial Parameter'!$C$17,'Initial Parameter'!$D$17,IF($B16<'Initial Parameter'!$C$19,'Initial Parameter'!$D$19,IF($B16<'Initial Parameter'!$C$21,'Initial Parameter'!$D$21,'Initial Parameter'!$D$22))) -> 1.00E+04 | D16: =IF($B16<'Initial Parameter'!$C$17,'Initial Parameter'!$E$17,IF($B16<'Initial Parameter'!$C$19,'Initial Parameter'!$E$19,IF($B16<'Initial Parameter'!$C$21,'Initial Parameter'!$E$21,'Initial Parameter'!$E$22))) -> 0.25 | E16: =IF($B16<'Initial Parameter'!$C$17,'Initial Parameter'!$H$3,IF($B16<'Initial Parameter'!$C$19,'Initial Parameter'!$H$4,IF($B16<'Initial Parameter'!$C$21,'Initial Parameter'!$H$5,'Initial Parameter'!$H$6))) -> 0.0 | F16: =IF($B16<'Initial Parameter'!$C$17,'Initial Parameter'!$J$3,IF($B16<'Initial Parameter'!$C$19,'Initial Parameter'!$J$4,IF($B16<'Initial Parameter'!$C$21,'Initial Parameter'!$J$5,'Initial Parameter'!$J$6))) -> 3325.0 | G16: ='Initial Parameter'!$M$2 -> 0.1805070847 | H16: ='Initial Parameter'!$F$16 -> 0.1805070847 | I16: ='Initial Parameter'!$G$16 -> 0.2579450041 | J16: 1.851007386 | K16: 5.328712875 | L16: 0.4009218993 | M16: =H16/'Initial Parameter'!$B$4*('Initial Parameter'!$B$4/I16+'Initial Parameter'!$B$3) -> 1.022689921 | N16: =(I16/'Initial Parameter'!$B$4)*('Initial Parameter'!$B$4/H16+'Initial Parameter'!$B$2) -> 2.005784669 | O16: =1/(H16*I16)+'Initial Parameter'!$B$3/(H16*'Initial Parameter'!$B$4)+'Initial Parameter'!$B$2/(I16*'Initial Parameter'!$B$4) -> 40.05618737 | P16: =('Initial Parameter'!$B$1^4/'Initial Parameter'!$B$6/'Initial Parameter'!$B$5)*((E16+2*F16)*M16+F16*N16) -> 20690.11 | Q16: ='Initial Parameter'!$B$4^2*O16*F16*'Initial Parameter'!$B$1^2/(2*'Initial Parameter'!$B$6*'Initial Parameter'!$B$5) -> 12.785935 | R16: 163.48 | S16: 8.849477313 | T16: 8.094894298 | U16: ='Initial Parameter'!$U$17 -> 3 | V16: 0.013 | W16: 0.11465932 | X16: 1.001056173 | Y16: 0.1057353679 | Z16: 0.01211075432 | AA16: =IF($B16<'Initial Parameter'!$C$17,'Initial Parameter'!W$17,IF($B16<'Initial Parameter'!$C$19,'Initial Parameter'!W$19,IF($B16<'Initial Parameter'!$C$21,'Initial Parameter'!W$21,IF('Initial Parameter'!$U$22=0,'Initial Parameter'!W$23,'Initial Parameter'!W$22)))) -> 0.000000E+00 | AB16: =IF($B16<'Initial Parameter'!$C$17,'Initial Parameter'!X$17,IF($B16<'Initial Parameter'!$C$19,'Initial Parameter'!X$19,IF($B16<'Initial Parameter'!$C$21,'Initial Parameter'!X$21,IF('Initial Parameter'!$U$22=0,'Initial Parameter'!X$23,'Initial Parameter'!X$22)))) -> 1.000000E+00 | AC16: =IF($B16<'Initial Parameter'!$C$17,'Initial Parameter'!Y$17,IF($B16<'Initial Parameter'!$C$19,'Initial Parameter'!Y$19,IF($B16<'Initial Parameter'!$C$21,'Initial Parameter'!Y$21,IF('Initial Parameter'!$U$22=0,'Initial Parameter'!Y$23,'Initial Parameter'!Y$22)))) -> 0.000000E+00 | AD16: =IF($B16<'Initial Parameter'!$C$17,'Initial Parameter'!Z$17,IF($B16<'Initial Parameter'!$C$19,'Initial Parameter'!Z$19,IF($B16<'Initial Parameter'!$C$21,'Initial Parameter'!Z$21,IF('Initial Parameter'!$U$22=0,'Initial Parameter'!Z$23,'Initial Parameter'!Z$22)))) -> 0.000000E+00
A17: =IF($B17<'Initial Parameter'!$C$17,1,IF($B17<'Initial Parameter'!$C$19,2,IF($B17<'Initial Parameter'!$C$21,3,4))) -> 1 | B17: 0.014 | C17: =IF($B17<'Initial Parameter'!$C$17,'Initial Parameter'!$D$17,IF($B17<'Initial Parameter'!$C$19,'Initial Parameter'!$D$19,IF($B17<'Initial Parameter'!$C$21,'Initial Parameter'!$D$21,'Initial Parameter'!$D$22))) -> 1.00E+04 | D17: =IF($B17<'Initial Parameter'!$C$17,'Initial Parameter'!$E$17,IF($B17<'Initial Parameter'!$C$19,'Initial Parameter'!$E$19,IF($B17<'Initial Parameter'!$C$21,'Initial Parameter'!$E$21,'Initial Parameter'!$E$22))) -> 0.25 | E17: =IF($B17<'Initial Parameter'!$C$17,'Initial Parameter'!$H$3,IF($B17<'Initial Parameter'!$C$19,'Initial Parameter'!$H$4,IF($B17<'Initial Parameter'!$C$21,'Initial Parameter'!$H$5,'Initial Parameter'!$H$6))) -> 0.0 | F17: =IF($B17<'Initial Parameter'!$C$17,'Initial Parameter'!$J$3,IF($B17<'Initial Parameter'!$C$19,'Initial Parameter'!$J$4,IF($B17<'Initial Parameter'!$C$21,'Initial Parameter'!$J$5,'Initial Parameter'!$J$6))) -> 3325.0 | G17: ='Initial Parameter'!$M$2 -> 0.1805070847 | H17: ='Initial Parameter'!$F$16 -> 0.1805070847 | I17: ='Initial Parameter'!$G$16 -> 0.2579450041 | J17: 1.851007386 | K17: 5.328712875 | L17: 0.4009218993 | M17: =H17/'Initial Parameter'!$B$4*('Initial Parameter'!$B$4/I17+'Initial Parameter'!$B$3) -> 1.022689921 | N17: =(I17/'Initial Parameter'!$B$4)*('Initial Parameter'!$B$4/H17+'Initial Parameter'!$B$2) -> 2.005784669 | O17: =1/(H17*I17)+'Initial Parameter'!$B$3/(H17*'Initial Parameter'!$B$4)+'Initial Parameter'!$B$2/(I17*'Initial Parameter'!$B$4) -> 40.05618737 | P17: =('Initial Parameter'!$B$1^4/'Initial Parameter'!$B$6/'Initial Parameter'!$B$5)*((E17+2*F17)*M17+F17*N17) -> 20690.11 | Q17: ='Initial Parameter'!$B$4^2*O17*F17*'Initial Parameter'!$B$1^2/(2*'Initial Parameter'!$B$6*'Initial Parameter'!$B$5) -> 12.785935 | R17: 163.48 | S17: 8.849477313 | T17: 8.094894298 | U17: ='Initial Parameter'!$U$17 -> 3 | V17: 0.014 | W17: 0.1234130897 | X17: 1.001220419 | Y17: 0.1139551019 | Z17: 0.01404640871 | AA17: =IF($B17<'Initial Parameter'!$C$17,'Initial Parameter'!W$17,IF($B17<'Initial Parameter'!$C$19,'Initial Parameter'!W$19,IF($B17<'Initial Parameter'!$C$21,'Initial Parameter'!W$21,IF('Initial Parameter'!$U$22=0,'Initial Parameter'!W$23,'Initial Parameter'!W$22)))) -> 0.000000E+00 | AB17: =IF($B17<'Initial Parameter'!$C$17,'Initial Parameter'!X$17,IF($B17<'Initial Parameter'!$C$19,'Initial Parameter'!X$19,IF($B17<'Initial Parameter'!$C$21,'Initial Parameter'!X$21,IF('Initial Parameter'!$U$22=0,'Initial Parameter'!X$23,'Initial Parameter'!X$22)))) -> 1.000000E+00 | AC17: =IF($B17<'Initial Parameter'!$C$17,'Initial Parameter'!Y$17,IF($B17<'Initial Parameter'!$C$19,'Initial Parameter'!Y$19,IF($B17<'Initial Parameter'!$C$21,'Initial Parameter'!Y$21,IF('Initial Parameter'!$U$22=0,'Initial Parameter'!Y$23,'Initial Parameter'!Y$22)))) -> 0.000000E+00 | AD17: =IF($B17<'Initial Parameter'!$C$17,'Initial Parameter'!Z$17,IF($B17<'Initial Parameter'!$C$19,'Initial Parameter'!Z$19,IF($B17<'Initial Parameter'!$C$21,'Initial Parameter'!Z$21,IF('Initial Parameter'!$U$22=0,'Initial Parameter'!Z$23,'Initial Parameter'!Z$22)))) -> 0.000000E+00
A18: =IF($B18<'Initial Parameter'!$C$17,1,IF($B18<'Initial Parameter'!$C$19,2,IF($B18<'Initial Parameter'!$C$21,3,4))) -> 1 | B18: 0.015 | C18: =IF($B18<'Initial Parameter'!$C$17,'Initial Parameter'!$D$17,IF($B18<'Initial Parameter'!$C$19,'Initial Parameter'!$D$19,IF($B18<'Initial Parameter'!$C$21,'Initial Parameter'!$D$21,'Initial Parameter'!$D$22))) -> 1.00E+04 | D18: =IF($B18<'Initial Parameter'!$C$17,'Initial Parameter'!$E$17,IF($B18<'Initial Parameter'!$C$19,'Initial Parameter'!$E$19,IF($B18<'Initial Parameter'!$C$21,'Initial Parameter'!$E$21,'Initial Parameter'!$E$22))) -> 0.25 | E18: =IF($B18<'Initial Parameter'!$C$17,'Initial Parameter'!$H$3,IF($B18<'Initial Parameter'!$C$19,'Initial Parameter'!$H$4,IF($B18<'Initial Parameter'!$C$21,'Initial Parameter'!$H$5,'Initial Parameter'!$H$6))) -> 0.0 | F18: =IF($B18<'Initial Parameter'!$C$17,'Initial Parameter'!$J$3,IF($B18<'Initial Parameter'!$C$19,'Initial Parameter'!$J$4,IF($B18<'Initial Parameter'!$C$21,'Initial Parameter'!$J$5,'Initial Parameter'!$J$6))) -> 3325.0 | G18: ='Initial Parameter'!$M$2 -> 0.1805070847 | H18: ='Initial Parameter'!$F$16 -> 0.1805070847 | I18: ='Initial Parameter'!$G$16 -> 0.2579450041 | J18: 1.851007386 | K18: 5.328712875 | L18: 0.4009218993 | M18: =H18/'Initial Parameter'!$B$4*('Initial Parameter'!$B$4/I18+'Initial Parameter'!$B$3) -> 1.022689921 | N18: =(I18/'Initial Parameter'!$B$4)*('Initial Parameter'!$B$4/H18+'Initial Parameter'!$B$2) -> 2.005784669 | O18: =1/(H18*I18)+'Initial Parameter'!$B$3/(H18*'Initial Parameter'!$B$4)+'Initial Parameter'!$B$2/(I18*'Initial Parameter'!$B$4) -> 40.05618737 | P18: =('Initial Parameter'!$B$1^4/'Initial Parameter'!$B$6/'Initial Parameter'!$B$5)*((E18+2*F18)*M18+F18*N18) -> 20690.11 | Q18: ='Initial Parameter'!$B$4^2*O18*F18*'Initial Parameter'!$B$1^2/(2*'Initial Parameter'!$B$6*'Initial Parameter'!$B$5) -> 12.785935 | R18: 163.48 | S18: 8.849477313 | T18: 8.094894298 | U18: ='Initial Parameter'!$U$17 -> 3 | V18: 0.015 | W18: 0.1321521107 | X18: 1.001395452 | Y18: 0.1221939743 | Z18: 0.01612568899 | AA18: =IF($B18<'Initial Parameter'!$C$17,'Initial Parameter'!W$17,IF($B18<'Initial Parameter'!$C$19,'Initial Parameter'!W$19,IF($B18<'Initial Parameter'!$C$21,'Initial Parameter'!W$21,IF('Initial Parameter'!$U$22=0,'Initial Parameter'!W$23,'Initial Parameter'!W$22)))) -> 0.000000E+00 | AB18: =IF($B18<'Initial Parameter'!$C$17,'Initial Parameter'!X$17,IF($B18<'Initial Parameter'!$C$19,'Initial Parameter'!X$19,IF($B18<'Initial Parameter'!$C$21,'Initial Parameter'!X$21,IF('Initial Parameter'!$U$22=0,'Initial Parameter'!X$23,'Initial Parameter'!X$22)))) -> 1.000000E+00 | AC18: =IF($B18<'Initial Parameter'!$C$17,'Initial Parameter'!Y$17,IF($B18<'Initial Parameter'!$C$19,'Initial Parameter'!Y$19,IF($B18<'Initial Parameter'!$C$21,'Initial Parameter'!Y$21,IF('Initial Parameter'!$U$22=0,'Initial Parameter'!Y$23,'Initial Parameter'!Y$22)))) -> 0.000000E+00 | AD18: =IF($B18<'Initial Parameter'!$C$17,'Initial Parameter'!Z$17,IF($B18<'Initial Parameter'!$C$19,'Initial Parameter'!Z$19,IF($B18<'Initial Parameter'!$C$21,'Initial Parameter'!Z$21,IF('Initial Parameter'!$U$22=0,'Initial Parameter'!Z$23,'Initial Parameter'!Z$22)))) -> 0.000000E+00
A19: =IF($B19<'Initial Parameter'!$C$17,1,IF($B19<'Initial Parameter'!$C$19,2,IF($B19<'Initial Parameter'!$C$21,3,4))) -> 1 | B19: 0.016 | C19: =IF($B19<'Initial Parameter'!$C$17,'Initial Parameter'!$D$17,IF($B19<'Initial Parameter'!$C$19,'Initial Parameter'!$D$19,IF($B19<'Initial Parameter'!$C$21,'Initial Parameter'!$D$21,'Initial Parameter'!$D$22))) -> 1.00E+04 | D19: =IF($B19<'Initial Parameter'!$C$17,'Initial Parameter'!$E$17,IF($B19<'Initial Parameter'!$C$19,'Initial Parameter'!$E$19,IF($B19<'Initial Parameter'!$C$21,'Initial Parameter'!$E$21,'Initial Parameter'!$E$22))) -> 0.25 | E19: =IF($B19<'Initial Parameter'!$C$17,'Initial Parameter'!$H$3,IF($B19<'Initial Parameter'!$C$19,'Initial Parameter'!$H$4,IF($B19<'Initial Parameter'!$C$21,'Initial Parameter'!$H$5,'Initial Parameter'!$H$6))) -> 0.0 | F19: =IF($B19<'Initial Parameter'!$C$17,'Initial Parameter'!$J$3,IF($B19<'Initial Parameter'!$C$19,'Initial Parameter'!$J$4,IF($B19<'Initial Parameter'!$C$21,'Initial Parameter'!$J$5,'Initial Parameter'!$J$6))) -> 3325.0 | G19: ='Initial Parameter'!$M$2 -> 0.1805070847 | H19: ='Initial Parameter'!$F$16 -> 0.1805070847 | I19: ='Initial Parameter'!$G$16 -> 0.2579450041 | J19: 1.851007386 | K19: 5.328712875 | L19: 0.4009218993 | M19: =H19/'Initial Parameter'!$B$4*('Initial Parameter'!$B$4/I19+'Initial Parameter'!$B$3) -> 1.022689921 | N19: =(I19/'Initial Parameter'!$B$4)*('Initial Parameter'!$B$4/H19+'Initial Parameter'!$B$2) -> 2.005784669 | O19: =1/(H19*I19)+'Initial Parameter'!$B$3/(H19*'Initial Parameter'!$B$4)+'Initial Parameter'!$B$2/(I19*'Initial Parameter'!$B$4) -> 40.05618737 | P19: =('Initial Parameter'!$B$1^4/'Initial Parameter'!$B$6/'Initial Parameter'!$B$5)*((E19+2*F19)*M19+F19*N19) -> 20690.11 | Q19: ='Initial Parameter'!$B$4^2*O19*F19*'Initial Parameter'!$B$1^2/(2*'Initial Parameter'!$B$6*'Initial Parameter'!$B$5) -> 12.785935 | R19: 163.48 | S19: 8.849477313 | T19: 8.094894298 | U19: ='Initial Parameter'!$U$17 -> 3 | V19: 0.016 | W19: 0.1408753142 | X19: 1.001580976 | Y19: 0.1304533425 | Z19: 0.01834864683 | AA19: =IF($B19<'Initial Parameter'!$C$17,'Initial Parameter'!W$17,IF($B19<'Initial Parameter'!$C$19,'Initial Parameter'!W$19,IF($B19<'Initial Parameter'!$C$21,'Initial Parameter'!W$21,IF('Initial Parameter'!$U$22=0,'Initial Parameter'!W$23,'Initial Parameter'!W$22)))) -> 0.000000E+00 | AB19: =IF($B19<'Initial Parameter'!$C$17,'Initial Parameter'!X$17,IF($B19<'Initial Parameter'!$C$19,'Initial Parameter'!X$19,IF($B19<'Initial Parameter'!$C$21,'Initial Parameter'!X$21,IF('Initial Parameter'!$U$22=0,'Initial Parameter'!X$23,'Initial Parameter'!X$22)))) -> 1.000000E+00 | AC19: =IF($B19<'Initial Parameter'!$C$17,'Initial Parameter'!Y$17,IF($B19<'Initial Parameter'!$C$19,'Initial Parameter'!Y$19,IF($B19<'Initial Parameter'!$C$21,'Initial Parameter'!Y$21,IF('Initial Parameter'!$U$22=0,'Initial Parameter'!Y$23,'Initial Parameter'!Y$22)))) -> 0.000000E+00 | AD19: =IF($B19<'Initial Parameter'!$C$17,'Initial Parameter'!Z$17,IF($B19<'Initial Parameter'!$C$19,'Initial Parameter'!Z$19,IF($B19<'Initial Parameter'!$C$21,'Initial Parameter'!Z$21,IF('Initial Parameter'!$U$22=0,'Initial Parameter'!Z$23,'Initial Parameter'!Z$22)))) -> 0.000000E+00
A20: =IF($B20<'Initial Parameter'!$C$17,1,IF($B20<'Initial Parameter'!$C$19,2,IF($B20<'Initial Parameter'!$C$21,3,4))) -> 1 | B20: 0.017 | C20: =IF($B20<'Initial Parameter'!$C$17,'Initial Parameter'!$D$17,IF($B20<'Initial Parameter'!$C$19,'Initial Parameter'!$D$19,IF($B20<'Initial Parameter'!$C$21,'Initial Parameter'!$D$21,'Initial Parameter'!$D$22))) -> 1.00E+04 | D20: =IF($B20<'Initial Parameter'!$C$17,'Initial Parameter'!$E$17,IF($B20<'Initial Parameter'!$C$19,'Initial Parameter'!$E$19,IF($B20<'Initial Parameter'!$C$21,'Initial Parameter'!$E$21,'Initial Parameter'!$E$22))) -> 0.25 | E20: =IF($B20<'Initial Parameter'!$C$17,'Initial Parameter'!$H$3,IF($B20<'Initial Parameter'!$C$19,'Initial Parameter'!$H$4,IF($B20<'Initial Parameter'!$C$21,'Initial Parameter'!$H$5,'Initial Parameter'!$H$6))) -> 0.0 | F20: =IF($B20<'Initial Parameter'!$C$17,'Initial Parameter'!$J$3,IF($B20<'Initial Parameter'!$C$19,'Initial Parameter'!$J$4,IF($B20<'Initial Parameter'!$C$21,'Initial Parameter'!$J$5,'Initial Parameter'!$J$6))) -> 3325.0 | G20: ='Initial Parameter'!$M$2 -> 0.1805070847 | H20: ='Initial Parameter'!$F$16 -> 0.1805070847 | I20: ='Initial Parameter'!$G$16 -> 0.2579450041 | J20: 1.851007386 | K20: 5.328712875 | L20: 0.4009218993 | M20: =H20/'Initial Parameter'!$B$4*('Initial Parameter'!$B$4/I20+'Initial Parameter'!$B$3) -> 1.022689921 | N20: =(I20/'Initial Parameter'!$B$4)*('Initial Parameter'!$B$4/H20+'Initial Parameter'!$B$2) -> 2.005784669 | O20: =1/(H20*I20)+'Initial Parameter'!$B$3/(H20*'Initial Parameter'!$B$4)+'Initial Parameter'!$B$2/(I20*'Initial Parameter'!$B$4) -> 40.05618737 | P20: =('Initial Parameter'!$B$1^4/'Initial Parameter'!$B$6/'Initial Parameter'!$B$5)*((E20+2*F20)*M20+F20*N20) -> 20690.11 | Q20: ='Initial Parameter'!$B$4^2*O20*F20*'Initial Parameter'!$B$1^2/(2*'Initial Parameter'!$B$6*'Initial Parameter'!$B$5) -> 12.785935 | R20: 163.48 | S20: 8.849477313 | T20: 8.094894298 | U20: ='Initial Parameter'!$U$17 -> 3 | V20: 0.017 | W20: 0.1495816284 | X20: 1.001776677 | Y20: 0.1387345619 | Z20: 0.02071533722 | AA20: =IF($B20<'Initial Parameter'!$C$17,'Initial Parameter'!W$17,IF($B20<'Initial Parameter'!$C$19,'Initial Parameter'!W$19,IF($B20<'Initial Parameter'!$C$21,'Initial Parameter'!W$21,IF('Initial Parameter'!$U$22=0,'Initial Parameter'!W$23,'Initial Parameter'!W$22)))) -> 0.000000E+00 | AB20: =IF($B20<'Initial Parameter'!$C$17,'Initial Parameter'!X$17,IF($B20<'Initial Parameter'!$C$19,'Initial Parameter'!X$19,IF($B20<'Initial Parameter'!$C$21,'Initial Parameter'!X$21,IF('Initial Parameter'!$U$22=0,'Initial Parameter'!X$23,'Initial Parameter'!X$22)))) -> 1.000000E+00 | AC20: =IF($B20<'Initial Parameter'!$C$17,'Initial Parameter'!Y$17,IF($B20<'Initial Parameter'!$C$19,'Initial Parameter'!Y$19,IF($B20<'Initial Parameter'!$C$21,'Initial Parameter'!Y$21,IF('Initial Parameter'!$U$22=0,'Initial Parameter'!Y$23,'Initial Parameter'!Y$22)))) -> 0.000000E+00 | AD20: =IF($B20<'Initial Parameter'!$C$17,'Initial Parameter'!Z$17,IF($B20<'Initial Parameter'!$C$19,'Initial Parameter'!Z$19,IF($B20<'Initial Parameter'!$C$21,'Initial Parameter'!Z$21,IF('Initial Parameter'!$U$22=0,'Initial Parameter'!Z$23,'Initial Parameter'!Z$22)))) -> 0.000000E+00
A21: =IF($B21<'Initial Parameter'!$C$17,1,IF($B21<'Initial Parameter'!$C$19,2,IF($B21<'Initial Parameter'!$C$21,3,4))) -> 1 | B21: 0.018 | C21: =IF($B21<'Initial Parameter'!$C$17,'Initial Parameter'!$D$17,IF($B21<'Initial Parameter'!$C$19,'Initial Parameter'!$D$19,IF($B21<'Initial Parameter'!$C$21,'Initial Parameter'!$D$21,'Initial Parameter'!$D$22))) -> 1.00E+04 | D21: =IF($B21<'Initial Parameter'!$C$17,'Initial Parameter'!$E$17,IF($B21<'Initial Parameter'!$C$19,'Initial Parameter'!$E$19,IF($B21<'Initial Parameter'!$C$21,'Initial Parameter'!$E$21,'Initial Parameter'!$E$22))) -> 0.25 | E21: =IF($B21<'Initial Parameter'!$C$17,'Initial Parameter'!$H$3,IF($B21<'Initial Parameter'!$C$19,'Initial Parameter'!$H$4,IF($B21<'Initial Parameter'!$C$21,'Initial Parameter'!$H$5,'Initial Parameter'!$H$6))) -> 0.0 | F21: =IF($B21<'Initial Parameter'!$C$17,'Initial Parameter'!$J$3,IF($B21<'Initial Parameter'!$C$19,'Initial Parameter'!$J$4,IF($B21<'Initial Parameter'!$C$21,'Initial Parameter'!$J$5,'Initial Parameter'!$J$6))) -> 3325.0 | G21: ='Initial Parameter'!$M$2 -> 0.1805070847 | H21: ='Initial Parameter'!$F$16 -> 0.1805070847 | I21: ='Initial Parameter'!$G$16 -> 0.2579450041 | J21: 1.851007386 | K21: 5.328712875 | L21: 0.4009218993 | M21: =H21/'Initial Parameter'!$B$4*('Initial Parameter'!$B$4/I21+'Initial Parameter'!$B$3) -> 1.022689921 | N21: =(I21/'Initial Parameter'!$B$4)*('Initial Parameter'!$B$4/H21+'Initial Parameter'!$B$2) -> 2.005784669 | O21: =1/(H21*I21)+'Initial Parameter'!$B$3/(H21*'Initial Parameter'!$B$4)+'Initial Parameter'!$B$2/(I21*'Initial Parameter'!$B$4) -> 40.05618737 | P21: =('Initial Parameter'!$B$1^4/'Initial Parameter'!$B$6/'Initial Parameter'!$B$5)*((E21+2*F21)*M21+F21*N21) -> 20690.11 | Q21: ='Initial Parameter'!$B$4^2*O21*F21*'Initial Parameter'!$B$1^2/(2*'Initial Parameter'!$B$6*'Initial Parameter'!$B$5) -> 12.785935 | R21: 163.48 | S21: 8.849477313 | T21: 8.094894298 | U21: ='Initial Parameter'!$U$17 -> 3 | V21: 0.018 | W21: 0.1582699782 | X21: 1.001982216 | Y21: 0.1470389857 | Z21: 0.02322581846 | AA21: =IF($B21<'Initial Parameter'!$C$17,'Initial Parameter'!W$17,IF($B21<'Initial Parameter'!$C$19,'Initial Parameter'!W$19,IF($B21<'Initial Parameter'!$C$21,'Initial Parameter'!W$21,IF('Initial Parameter'!$U$22=0,'Initial Parameter'!W$23,'Initial Parameter'!W$22)))) -> 0.000000E+00 | AB21: =IF($B21<'Initial Parameter'!$C$17,'Initial Parameter'!X$17,IF($B21<'Initial Parameter'!$C$19,'Initial Parameter'!X$19,IF($B21<'Initial Parameter'!$C$21,'Initial Parameter'!X$21,IF('Initial Parameter'!$U$22=0,'Initial Parameter'!X$23,'Initial Parameter'!X$22)))) -> 1.000000E+00 | AC21: =IF($B21<'Initial Parameter'!$C$17,'Initial Parameter'!Y$17,IF($B21<'Initial Parameter'!$C$19,'Initial Parameter'!Y$19,IF($B21<'Initial Parameter'!$C$21,'Initial Parameter'!Y$21,IF('Initial Parameter'!$U$22=0,'Initial Parameter'!Y$23,'Initial Parameter'!Y$22)))) -> 0.000000E+00 | AD21: =IF($B21<'Initial Parameter'!$C$17,'Initial Parameter'!Z$17,IF($B21<'Initial Parameter'!$C$19,'Initial Parameter'!Z$19,IF($B21<'Initial Parameter'!$C$21,'Initial Parameter'!Z$21,IF('Initial Parameter'!$U$22=0,'Initial Parameter'!Z$23,'Initial Parameter'!Z$22)))) -> 0.000000E+00
A22: =IF($B22<'Initial Parameter'!$C$17,1,IF($B22<'Initial Parameter'!$C$19,2,IF($B22<'Initial Parameter'!$C$21,3,4))) -> 1 | B22: 0.019 | C22: =IF($B22<'Initial Parameter'!$C$17,'Initial Parameter'!$D$17,IF($B22<'Initial Parameter'!$C$19,'Initial Parameter'!$D$19,IF($B22<'Initial Parameter'!$C$21,'Initial Parameter'!$D$21,'Initial Parameter'!$D$22))) -> 1.00E+04 | D22: =IF($B22<'Initial Parameter'!$C$17,'Initial Parameter'!$E$17,IF($B22<'Initial Parameter'!$C$19,'Initial Parameter'!$E$19,IF($B22<'Initial Parameter'!$C$21,'Initial Parameter'!$E$21,'Initial Parameter'!$E$22))) -> 0.25 | E22: =IF($B22<'Initial Parameter'!$C$17,'Initial Parameter'!$H$3,IF($B22<'Initial Parameter'!$C$19,'Initial Parameter'!$H$4,IF($B22<'Initial Parameter'!$C$21,'Initial Parameter'!$H$5,'Initial Parameter'!$H$6))) -> 0.0 | F22: =IF($B22<'Initial Parameter'!$C$17,'Initial Parameter'!$J$3,IF($B22<'Initial Parameter'!$C$19,'Initial Parameter'!$J$4,IF($B22<'Initial Parameter'!$C$21,'Initial Parameter'!$J$5,'Initial Parameter'!$J$6))) -> 3325.0 | G22: ='Initial Parameter'!$M$2 -> 0.1805070847 | H22: ='Initial Parameter'!$F$16 -> 0.1805070847 | I22: ='Initial Parameter'!$G$16 -> 0.2579450041 | J22: 1.851007386 | K22: 5.328712875 | L22: 0.4009218993 | M22: =H22/'Initial Parameter'!$B$4*('Initial Parameter'!$B$4/I22+'Initial Parameter'!$B$3) -> 1.022689921 | N22: =(I22/'Initial Parameter'!$B$4)*('Initial Parameter'!$B$4/H22+'Initial Parameter'!$B$2) -> 2.005784669 | O22: =1/(H22*I22)+'Initial Parameter'!$B$3/(H22*'Initial Parameter'!$B$4)+'Initial Parameter'!$B$2/(I22*'Initial Parameter'!$B$4) -> 40.05618737 | P22: =('Initial Parameter'!$B$1^4/'Initial Parameter'!$B$6/'Initial Parameter'!$B$5)*((E22+2*F22)*M22+F22*N22) -> 20690.11 | Q22: ='Initial Parameter'!$B$4^2*O22*F22*'Initial Parameter'!$B$1^2/(2*'Initial Parameter'!$B$6*'Initial Parameter'!$B$5) -> 12.785935 | R22: 163.48 | S22: 8.849477313 | T22: 8.094894298 | U22: ='Initial Parameter'!$U$17 -> 3 | V22: 0.019 | W22: 0.1669392849 | X22: 1.002197237 | Y22: 0.1553679648 | Z22: 0.0258801521 | AA22: =IF($B22<'Initial Parameter'!$C$17,'Initial Parameter'!W$17,IF($B22<'Initial Parameter'!$C$19,'Initial Parameter'!W$19,IF($B22<'Initial Parameter'!$C$21,'Initial Parameter'!W$21,IF('Initial Parameter'!$U$22=0,'Initial Parameter'!W$23,'Initial Parameter'!W$22)))) -> 0.000000E+00 | AB22: =IF($B22<'Initial Parameter'!$C$17,'Initial Parameter'!X$17,IF($B22<'Initial Parameter'!$C$19,'Initial Parameter'!X$19,IF($B22<'Initial Parameter'!$C$21,'Initial Parameter'!X$21,IF('Initial Parameter'!$U$22=0,'Initial Parameter'!X$23,'Initial Parameter'!X$22)))) -> 1.000000E+00 | AC22: =IF($B22<'Initial Parameter'!$C$17,'Initial Parameter'!Y$17,IF($B22<'Initial Parameter'!$C$19,'Initial Parameter'!Y$19,IF($B22<'Initial Parameter'!$C$21,'Initial Parameter'!Y$21,IF('Initial Parameter'!$U$22=0,'Initial Parameter'!Y$23,'Initial Parameter'!Y$22)))) -> 0.000000E+00 | AD22: =IF($B22<'Initial Parameter'!$C$17,'Initial Parameter'!Z$17,IF($B22<'Initial Parameter'!$C$19,'Initial Parameter'!Z$19,IF($B22<'Initial Parameter'!$C$21,'Initial Parameter'!Z$21,IF('Initial Parameter'!$U$22=0,'Initial Parameter'!Z$23,'Initial Parameter'!Z$22)))) -> 0.000000E+00
